Workbook

Sheet Cover
C9: AusNet Services
C10: Business Case Evaluation
C11: South Morang Training Facility

Sheet 1_KMA->
C6: Key Modelling Assumptions
C7: Section 1.
C9: =Cover!$C$9 -> AusNet Services
C10: =Cover!$C$10 -> Business Case Evaluation
C11: =Cover!$C$11 -> South Morang Training Facility

Sheet 1_KMA
B1: Key Modelling Assumptions | I1: Regulatory Period Indicator | J1: ='1_KMA'!J30 -> 1 | K1: ='1_KMA'!K30 -> 1 | L1: ='1_KMA'!L30 -> 1 | M1: ='1_KMA'!M30 -> 1 | N1: ='1_KMA'!N30 -> 1 | O1: ='1_KMA'!O30 -> 0 | P1: ='1_KMA'!P30 -> 0 | Q1: ='1_KMA'!Q30 -> 0 | R1: ='1_KMA'!R30 -> 0 | S1: ='1_KMA'!S30 -> 0 | T1: ='1_KMA'!T30 -> 0 | U1: ='1_KMA'!U30 -> 0 | V1: ='1_KMA'!V30 -> 0 | W1: ='1_KMA'!W30 -> 0 | X1: ='1_KMA'!X30 -> 0 | Y1: ='1_KMA'!Y30 -> 0 | Z1: ='1_KMA'!Z30 -> 0 | AA1: ='1_KMA'!AA30 -> 0 | AB1: ='1_KMA'!AB30 -> 0 | AC1: ='1_KMA'!AC30 -> 0 | AD1: ='1_KMA'!AD30 -> 0 | AE1: ='1_KMA'!AE30 -> 0 | AF1: ='1_KMA'!AF30 -> 0 | AG1: ='1_KMA'!AG30 -> 0 | AH1: ='1_KMA'!AH30 -> 0 | AI1: ='1_KMA'!AI30 -> 0 | AJ1: ='1_KMA'!AJ30 -> 0 | AK1: ='1_KMA'!AK30 -> 0 | AL1: ='1_KMA'!AL30 -> 0 | AM1: ='1_KMA'!AM30 -> 0 | AN1: ='1_KMA'!AN30 -> 0 | AO1: ='1_KMA'!AO30 -> 0 | AP1: ='1_KMA'!AP30 -> 0 | AQ1: ='1_KMA'!AQ30 -> 0 | AR1: ='1_KMA'!AR30 -> 0 | AS1: ='1_KMA'!AS30 -> 0 | AT1: ='1_KMA'!AT30 -> 0 | AU1: ='1_KMA'!AU30 -> 0 | AV1: ='1_KMA'!AV30 -> 0 | AW1: ='1_KMA'!AW30 -> 0 | AX1: ='1_KMA'!AX30 -> 0 | AY1: ='1_KMA'!AY30 -> 0 | AZ1: ='1_KMA'!AZ30 -> 0 | BA1: ='1_KMA'!BA30 -> 0 | BB1: ='1_KMA'!BB30 -> 0 | BC1: ='1_KMA'!BC30 -> 0 | BD1: ='1_KMA'!BD30 -> 0 | BE1: ='1_KMA'!BE30 -> 0 | BF1: ='1_KMA'!BF30 -> 0 | BG1: ='1_KMA'!BG30 -> 0
B2: =Cover!$C$9 -> AusNet Services | I2: Period Start Date | J2: ='1_KMA'!J31 -> 2026-07-01 | K2: ='1_KMA'!K31 -> 2027-07-01 | L2: ='1_KMA'!L31 -> 2028-07-01 | M2: ='1_KMA'!M31 -> 2029-07-01 | N2: ='1_KMA'!N31 -> 2030-07-01 | O2: ='1_KMA'!O31 -> 2031-07-01 | P2: ='1_KMA'!P31 -> 2032-07-01 | Q2: ='1_KMA'!Q31 -> 2033-07-01 | R2: ='1_KMA'!R31 -> 2034-07-01 | S2: ='1_KMA'!S31 -> 2035-07-01 | T2: ='1_KMA'!T31 -> 2036-07-01 | U2: ='1_KMA'!U31 -> 2037-07-01 | V2: ='1_KMA'!V31 -> 2038-07-01 | W2: ='1_KMA'!W31 -> 2039-07-01 | X2: ='1_KMA'!X31 -> 2040-07-01 | Y2: ='1_KMA'!Y31 -> 2041-07-01 | Z2: ='1_KMA'!Z31 -> 2042-07-01 | AA2: ='1_KMA'!AA31 -> 2043-07-01 | AB2: ='1_KMA'!AB31 -> 2044-07-01 | AC2: ='1_KMA'!AC31 -> 2045-07-01 | AD2: ='1_KMA'!AD31 -> 2046-07-01 | AE2: ='1_KMA'!AE31 -> 2047-07-01 | AF2: ='1_KMA'!AF31 -> 2048-07-01 | AG2: ='1_KMA'!AG31 -> 2049-07-01 | AH2: ='1_KMA'!AH31 -> 2050-07-01 | AI2: ='1_KMA'!AI31 -> 2051-07-01 | AJ2: ='1_KMA'!AJ31 -> 2052-07-01 | AK2: ='1_KMA'!AK31 -> 2053-07-01 | AL2: ='1_KMA'!AL31 -> 2054-07-01 | AM2: ='1_KMA'!AM31 -> 2055-07-01 | AN2: ='1_KMA'!AN31 -> 2056-07-01 | AO2: ='1_KMA'!AO31 -> 2057-07-01 | AP2: ='1_KMA'!AP31 -> 2058-07-01 | AQ2: ='1_KMA'!AQ31 -> 2059-07-01 | AR2: ='1_KMA'!AR31 -> 2060-07-01 | AS2: ='1_KMA'!AS31 -> 2061-07-01 | AT2: ='1_KMA'!AT31 -> 2062-07-01 | AU2: ='1_KMA'!AU31 -> 2063-07-01 | AV2: ='1_KMA'!AV31 -> 2064-07-01 | AW2: ='1_KMA'!AW31 -> 2065-07-01 | AX2: ='1_KMA'!AX31 -> 2066-07-01 | AY2: ='1_KMA'!AY31 -> 2067-07-01 | AZ2: ='1_KMA'!AZ31 -> 2068-07-01 | BA2: ='1_KMA'!BA31 -> 2069-07-01 | BB2: ='1_KMA'!BB31 -> 2070-07-01 | BC2: ='1_KMA'!BC31 -> 2071-07-01 | BD2: ='1_KMA'!BD31 -> 2072-07-01 | BE2: ='1_KMA'!BE31 -> 2073-07-01 | BF2: ='1_KMA'!BF31 -> 2074-07-01 | BG2: ='1_KMA'!BG31 -> 2075-07-01
B3: =Cover!$C$10 -> Business Case Evaluation | I3: Period End Date | J3: ='1_KMA'!J32 -> 2027-06-30 | K3: ='1_KMA'!K32 -> 2028-06-30 | L3: ='1_KMA'!L32 -> 2029-06-30 | M3: ='1_KMA'!M32 -> 2030-06-30 | N3: ='1_KMA'!N32 -> 2031-06-30 | O3: ='1_KMA'!O32 -> 2032-06-30 | P3: ='1_KMA'!P32 -> 2033-06-30 | Q3: ='1_KMA'!Q32 -> 2034-06-30 | R3: ='1_KMA'!R32 -> 2035-06-30 | S3: ='1_KMA'!S32 -> 2036-06-30 | T3: ='1_KMA'!T32 -> 2037-06-30 | U3: ='1_KMA'!U32 -> 2038-06-30 | V3: ='1_KMA'!V32 -> 2039-06-30 | W3: ='1_KMA'!W32 -> 2040-06-30 | X3: ='1_KMA'!X32 -> 2041-06-30 | Y3: ='1_KMA'!Y32 -> 2042-06-30 | Z3: ='1_KMA'!Z32 -> 2043-06-30 | AA3: ='1_KMA'!AA32 -> 2044-06-30 | AB3: ='1_KMA'!AB32 -> 2045-06-30 | AC3: ='1_KMA'!AC32 -> 2046-06-30 | AD3: ='1_KMA'!AD32 -> 2047-06-30 | AE3: ='1_KMA'!AE32 -> 2048-06-30 | AF3: ='1_KMA'!AF32 -> 2049-06-30 | AG3: ='1_KMA'!AG32 -> 2050-06-30 | AH3: ='1_KMA'!AH32 -> 2051-06-30 | AI3: ='1_KMA'!AI32 -> 2052-06-30 | AJ3: ='1_KMA'!AJ32 -> 2053-06-30 | AK3: ='1_KMA'!AK32 -> 2054-06-30 | AL3: ='1_KMA'!AL32 -> 2055-06-30 | AM3: ='1_KMA'!AM32 -> 2056-06-30 | AN3: ='1_KMA'!AN32 -> 2057-06-30 | AO3: ='1_KMA'!AO32 -> 2058-06-30 | AP3: ='1_KMA'!AP32 -> 2059-06-30 | AQ3: ='1_KMA'!AQ32 -> 2060-06-30 | AR3: ='1_KMA'!AR32 -> 2061-06-30 | AS3: ='1_KMA'!AS32 -> 2062-06-30 | AT3: ='1_KMA'!AT32 -> 2063-06-30 | AU3: ='1_KMA'!AU32 -> 2064-06-30 | AV3: ='1_KMA'!AV32 -> 2065-06-30 | AW3: ='1_KMA'!AW32 -> 2066-06-30 | AX3: ='1_KMA'!AX32 -> 2067-06-30 | AY3: ='1_KMA'!AY32 -> 2068-06-30 | AZ3: ='1_KMA'!AZ32 -> 2069-06-30 | BA3: ='1_KMA'!BA32 -> 2070-06-30 | BB3: ='1_KMA'!BB32 -> 2071-06-30 | BC3: ='1_KMA'!BC32 -> 2072-06-30 | BD3: ='1_KMA'!BD32 -> 2073-06-30 | BE3: ='1_KMA'!BE32 -> 2074-06-30 | BF3: ='1_KMA'!BF32 -> 2075-06-30 | BG3: ='1_KMA'!BG32 -> 2076-06-30
B4: =Cover!$C$11 -> South Morang Training Facility | I4: Project Year | J4: ='1_KMA'!J33 -> 1 | K4: ='1_KMA'!K33 -> 2 | L4: ='1_KMA'!L33 -> 3 | M4: ='1_KMA'!M33 -> 4 | N4: ='1_KMA'!N33 -> 5 | O4: ='1_KMA'!O33 -> 6 | P4: ='1_KMA'!P33 -> 7 | Q4: ='1_KMA'!Q33 -> 8 | R4: ='1_KMA'!R33 -> 9 | S4: ='1_KMA'!S33 -> 10 | T4: ='1_KMA'!T33 -> 11 | U4: ='1_KMA'!U33 -> 12 | V4: ='1_KMA'!V33 -> 13 | W4: ='1_KMA'!W33 -> 14 | X4: ='1_KMA'!X33 -> 15 | Y4: ='1_KMA'!Y33 -> 16 | Z4: ='1_KMA'!Z33 -> 17 | AA4: ='1_KMA'!AA33 -> 18 | AB4: ='1_KMA'!AB33 -> 19 | AC4: ='1_KMA'!AC33 -> 20 | AD4: ='1_KMA'!AD33 -> 21 | AE4: ='1_KMA'!AE33 -> 22 | AF4: ='1_KMA'!AF33 -> 23 | AG4: ='1_KMA'!AG33 -> 24 | AH4: ='1_KMA'!AH33 -> 25 | AI4: ='1_KMA'!AI33 -> 26 | AJ4: ='1_KMA'!AJ33 -> 27 | AK4: ='1_KMA'!AK33 -> 28 | AL4: ='1_KMA'!AL33 -> 29 | AM4: ='1_KMA'!AM33 -> 30 | AN4: ='1_KMA'!AN33 -> 31 | AO4: ='1_KMA'!AO33 -> 32 | AP4: ='1_KMA'!AP33 -> 33 | AQ4: ='1_KMA'!AQ33 -> 34 | AR4: ='1_KMA'!AR33 -> 35 | AS4: ='1_KMA'!AS33 -> 36 | AT4: ='1_KMA'!AT33 -> 37 | AU4: ='1_KMA'!AU33 -> 38 | AV4: ='1_KMA'!AV33 -> 39 | AW4: ='1_KMA'!AW33 -> 40 | AX4: ='1_KMA'!AX33 -> 41 | AY4: ='1_KMA'!AY33 -> 42 | AZ4: ='1_KMA'!AZ33 -> 43 | BA4: ='1_KMA'!BA33 -> 44 | BB4: ='1_KMA'!BB33 -> 45 | BC4: ='1_KMA'!BC33 -> 46 | BD4: ='1_KMA'!BD33 -> 47 | BE4: ='1_KMA'!BE33 -> 48 | BF4: ='1_KMA'!BF33 -> 49 | BG4: ='1_KMA'!BG33 -> 50
I5: Financial Year | J5: ='1_KMA'!J34 -> 2027 | K5: ='1_KMA'!K34 -> 2028 | L5: ='1_KMA'!L34 -> 2029 | M5: ='1_KMA'!M34 -> 2030 | N5: ='1_KMA'!N34 -> 2031 | O5: ='1_KMA'!O34 -> 2032 | P5: ='1_KMA'!P34 -> 2033 | Q5: ='1_KMA'!Q34 -> 2034 | R5: ='1_KMA'!R34 -> 2035 | S5: ='1_KMA'!S34 -> 2036 | T5: ='1_KMA'!T34 -> 2037 | U5: ='1_KMA'!U34 -> 2038 | V5: ='1_KMA'!V34 -> 2039 | W5: ='1_KMA'!W34 -> 2040 | X5: ='1_KMA'!X34 -> 2041 | Y5: ='1_KMA'!Y34 -> 2042 | Z5: ='1_KMA'!Z34 -> 2043 | AA5: ='1_KMA'!AA34 -> 2044 | AB5: ='1_KMA'!AB34 -> 2045 | AC5: ='1_KMA'!AC34 -> 2046 | AD5: ='1_KMA'!AD34 -> 2047 | AE5: ='1_KMA'!AE34 -> 2048 | AF5: ='1_KMA'!AF34 -> 2049 | AG5: ='1_KMA'!AG34 -> 2050 | AH5: ='1_KMA'!AH34 -> 2051 | AI5: ='1_KMA'!AI34 -> 2052 | AJ5: ='1_KMA'!AJ34 -> 2053 | AK5: ='1_KMA'!AK34 -> 2054 | AL5: ='1_KMA'!AL34 -> 2055 | AM5: ='1_KMA'!AM34 -> 2056 | AN5: ='1_KMA'!AN34 -> 2057 | AO5: ='1_KMA'!AO34 -> 2058 | AP5: ='1_KMA'!AP34 -> 2059 | AQ5: ='1_KMA'!AQ34 -> 2060 | AR5: ='1_KMA'!AR34 -> 2061 | AS5: ='1_KMA'!AS34 -> 2062 | AT5: ='1_KMA'!AT34 -> 2063 | AU5: ='1_KMA'!AU34 -> 2064 | AV5: ='1_KMA'!AV34 -> 2065 | AW5: ='1_KMA'!AW34 -> 2066 | AX5: ='1_KMA'!AX34 -> 2067 | AY5: ='1_KMA'!AY34 -> 2068 | AZ5: ='1_KMA'!AZ34 -> 2069 | BA5: ='1_KMA'!BA34 -> 2070 | BB5: ='1_KMA'!BB34 -> 2071 | BC5: ='1_KMA'!BC34 -> 2072 | BD5: ='1_KMA'!BD34 -> 2073 | BE5: ='1_KMA'!BE34 -> 2074 | BF5: ='1_KMA'!BF34 -> 2075 | BG5: ='1_KMA'!BG34 -> 2076
B7: Project Details
B9: Option Name | E9: Description | L9: Life of the asset for annualised cost calculation (years) | O9: Will this option be used in your assessment?
B10: Base Case | E10: BAU | O10: Yes
B11: Option 1 | E11: Redevelopment | L11: 40 | O11: Yes | P11: Select "Yes" if this option will be used in your assessment
B12: Option 2 | E12: Upgrade | L12: 10 | O12: Yes | P12: Select "No" if this option will not be used in your assessment
B13: Option 3 | E13: Mix of interstate | O13: Yes | P13: Selecting "Yes" when you are in fact not assessing this option will negatively affect how the summary charts are presented
B14: Option 4 | O14: No
B15: Option 5 | O15: No
B17: Modelling Controls
B19: Denomination of Entered Cashflows | I19: $millions | J19: Select the denomination that you want the NPV analysis to be in. This does not prevent your capex buildup (for example) to be in dollars or thousands. However, the total row must be in the denomination that you select, which means you might need to adjust the formula (for example divide by 10^6).
B20: Dollar Basis of Entered Value for all Parts of the Model | I20: 2024-06-30 | J20: Select the dollar basis that you are entering unit rates, dollar values, and benefit streams in.
B21: Dollar Basis Needed for EDPR | I21: 2024-06-30 | J21: The reg team is working in FY24 dollars for the Jan 2025 submission, so please ensure this is set to "30-Jun-24". However, this may change as the AER's assessment process evolves.
B22: Model Start Date | I22: 2026-07-01
B23: Assessment Period (Years) | I23: 40
B24: Model End Date | I24: =EOMONTH(I22+(I23*365),0) -> 2066-06-30
B25: Regulatory Period Start Date | I25: 2026-07-01 | J25: Do not change as this is the start date of the next regulatory period
B26: Regulatory Period End Date | I26: 2031-06-30 | J26: Do not change as this is the end date of the next regulatory period
B27: CPI p.a. (for future periods withouta RBA forecast) | I27: 0.025 | J27: Do not change as we have adopted 2.5% p.a. for the periods outside of the RBA's forecast. That is, we use the ABS' actuals where available, the RBA's forecast where available, and then 2.5% p.a. for all other future years.
B28: Real discount rate (base case) | I28: 0.0556 | J28: Do not change as this is the reg team's assumption.
B30: Regulatory Period Indicator | J30: =IF(AND(J$31>=$I$25,J$32<=$I$26),1,0) -> 1 | K30: =IF(AND(K$31>=$I$25,K$32<=$I$26),1,0) -> 1 | L30: 1 | M30: 1 | N30: 1 | O30: 0 | P30: 0 | Q30: 0 | R30: 0 | S30: 0 | T30: 0 | U30: 0 | V30: 0 | W30: 0 | X30: 0 | Y30: 0 | Z30: 0 | AA30: 0 | AB30: 0 | AC30: 0 | AD30: 0 | AE30: 0 | AF30: 0 | AG30: 0 | AH30: 0 | AI30: 0 | AJ30: 0 | AK30: 0 | AL30: 0 | AM30: 0 | AN30: 0 | AO30: 0 | AP30: =IF(AND(AP$31>=$I$25,AP$32<=$I$26),1,0) -> 0 | AQ30: 0 | AR30: 0 | AS30: 0 | AT30: 0 | AU30: 0 | AV30: 0 | AW30: 0 | AX30: 0 | AY30: 0 | AZ30: 0 | BA30: 0 | BB30: 0 | BC30: 0 | BD30: 0 | BE30: 0 | BF30: 0 | BG30: 0
B31: Period Start Date | J31: =EDATE($I$22,(J33-1)*12) -> 2026-07-01 | K31: =EDATE($I$22,(K33-1)*12) -> 2027-07-01 | L31: 2028-07-01 | M31: 2029-07-01 | N31: 2030-07-01 | O31: 2031-07-01 | P31: 2032-07-01 | Q31: 2033-07-01 | R31: 2034-07-01 | S31: 2035-07-01 | T31: 2036-07-01 | U31: 2037-07-01 | V31: 2038-07-01 | W31: 2039-07-01 | X31: 2040-07-01 | Y31: 2041-07-01 | Z31: 2042-07-01 | AA31: 2043-07-01 | AB31: 2044-07-01 | AC31: 2045-07-01 | AD31: 2046-07-01 | AE31: 2047-07-01 | AF31: 2048-07-01 | AG31: 2049-07-01 | AH31: 2050-07-01 | AI31: 2051-07-01 | AJ31: 2052-07-01 | AK31: 2053-07-01 | AL31: 2054-07-01 | AM31: 2055-07-01 | AN31: 2056-07-01 | AO31: 2057-07-01 | AP31: =EDATE($I$22,(AP33-1)*12) -> 2058-07-01 | AQ31: 2059-07-01 | AR31: 2060-07-01 | AS31: 2061-07-01 | AT31: 2062-07-01 | AU31: 2063-07-01 | AV31: 2064-07-01 | AW31: 2065-07-01 | AX31: 2066-07-01 | AY31: 2067-07-01 | AZ31: 2068-07-01 | BA31: 2069-07-01 | BB31: 2070-07-01 | BC31: 2071-07-01 | BD31: 2072-07-01 | BE31: 2073-07-01 | BF31: 2074-07-01 | BG31: 2075-07-01
B32: Period End Date | J32: =EDATE(J31,12)-1 -> 2027-06-30 | K32: =EDATE(K31,12)-1 -> 2028-06-30 | L32: 2029-06-30 | M32: =EDATE(M31,12)-1 -> 2030-06-30 | N32: 2031-06-30 | O32: 2032-06-30 | P32: 2033-06-30 | Q32: 2034-06-30 | R32: 2035-06-30 | S32: 2036-06-30 | T32: 2037-06-30 | U32: 2038-06-30 | V32: 2039-06-30 | W32: 2040-06-30 | X32: 2041-06-30 | Y32: 2042-06-30 | Z32: 2043-06-30 | AA32: 2044-06-30 | AB32: 2045-06-30 | AC32: 2046-06-30 | AD32: 2047-06-30 | AE32: 2048-06-30 | AF32: 2049-06-30 | AG32: 2050-06-30 | AH32: 2051-06-30 | AI32: 2052-06-30 | AJ32: 2053-06-30 | AK32: 2054-06-30 | AL32: 2055-06-30 | AM32: 2056-06-30 | AN32: 2057-06-30 | AO32: 2058-06-30 | AP32: 2059-06-30 | AQ32: 2060-06-30 | AR32: 2061-06-30 | AS32: 2062-06-30 | AT32: 2063-06-30 | AU32: 2064-06-30 | AV32: 2065-06-30 | AW32: 2066-06-30 | AX32: 2067-06-30 | AY32: 2068-06-30 | AZ32: 2069-06-30 | BA32: 2070-06-30 | BB32: 2071-06-30 | BC32: 2072-06-30 | BD32: 2073-06-30 | BE32: 2074-06-30 | BF32: 2075-06-30 | BG32: 2076-06-30
B33: ="Project Year" -> Project Year | J33: =COLUMNS($J33:J33) -> 1 | K33: =COLUMNS($J33:K33) -> 2 | L33: =COLUMNS($J33:L33) -> 3 | M33: =COLUMNS($J33:M33) -> 4 | N33: =COLUMNS($J33:N33) -> 5 | O33: =COLUMNS($J33:O33) -> 6 | P33: =COLUMNS($J33:P33) -> 7 | Q33: =COLUMNS($J33:Q33) -> 8 | R33: =COLUMNS($J33:R33) -> 9 | S33: =COLUMNS($J33:S33) -> 10 | T33: =COLUMNS($J33:T33) -> 11 | U33: =COLUMNS($J33:U33) -> 12 | V33: =COLUMNS($J33:V33) -> 13 | W33: =COLUMNS($J33:W33) -> 14 | X33: =COLUMNS($J33:X33) -> 15 | Y33: =COLUMNS($J33:Y33) -> 16 | Z33: =COLUMNS($J33:Z33) -> 17 | AA33: =COLUMNS($J33:AA33) -> 18 | AB33: =COLUMNS($J33:AB33) -> 19 | AC33: =COLUMNS($J33:AC33) -> 20 | AD33: =COLUMNS($J33:AD33) -> 21 | AE33: =COLUMNS($J33:AE33) -> 22 | AF33: =COLUMNS($J33:AF33) -> 23 | AG33: =COLUMNS($J33:AG33) -> 24 | AH33: =COLUMNS($J33:AH33) -> 25 | AI33: =COLUMNS($J33:AI33) -> 26 | AJ33: =COLUMNS($J33:AJ33) -> 27 | AK33: =COLUMNS($J33:AK33) -> 28 | AL33: =COLUMNS($J33:AL33) -> 29 | AM33: =COLUMNS($J33:AM33) -> 30 | AN33: =COLUMNS($J33:AN33) -> 31 | AO33: =COLUMNS($J33:AO33) -> 32 | AP33: =COLUMNS($J33:AP33) -> 33 | AQ33: =COLUMNS($J33:AQ33) -> 34 | AR33: =COLUMNS($J33:AR33) -> 35 | AS33: =COLUMNS($J33:AS33) -> 36 | AT33: =COLUMNS($J33:AT33) -> 37 | AU33: =COLUMNS($J33:AU33) -> 38 | AV33: =COLUMNS($J33:AV33) -> 39 | AW33: =COLUMNS($J33:AW33) -> 40 | AX33: =COLUMNS($J33:AX33) -> 41 | AY33: =COLUMNS($J33:AY33) -> 42 | AZ33: =COLUMNS($J33:AZ33) -> 43 | BA33: =COLUMNS($J33:BA33) -> 44 | BB33: =COLUMNS($J33:BB33) -> 45 | BC33: =COLUMNS($J33:BC33) -> 46 | BD33: =COLUMNS($J33:BD33) -> 47 | BE33: =COLUMNS($J33:BE33) -> 48 | BF33: =COLUMNS($J33:BF33) -> 49 | BG33: =COLUMNS($J33:BG33) -> 50
B34: Financial Year | J34: =YEAR(J32) -> 2027 | K34: =YEAR(K32) -> 2028 | L34: 2029 | M34: 2030 | N34: 2031 | O34: 2032 | P34: 2033 | Q34: 2034 | R34: 2035 | S34: 2036 | T34: 2037 | U34: 2038 | V34: 2039 | W34: 2040 | X34: 2041 | Y34: 2042 | Z34: 2043 | AA34: 2044 | AB34: 2045 | AC34: 2046 | AD34: 2047 | AE34: 2048 | AF34: 2049 | AG34: 2050 | AH34: 2051 | AI34: 2052 | AJ34: 2053 | AK34: 2054 | AL34: 2055 | AM34: 2056 | AN34: 2057 | AO34: 2058 | AP34: 2059 | AQ34: 2060 | AR34: 2061 | AS34: 2062 | AT34: 2063 | AU34: 2064 | AV34: 2065 | AW34: 2066 | AX34: 2067 | AY34: 2068 | AZ34: 2069 | BA34: 2070 | BB34: 2071 | BC34: 2072 | BD34: 2073 | BE34: 2074 | BF34: 2075 | BG34: 2076

Sheet 2.1_Inputs
C6: Inputs
C7: Section 2.1.
C9: =Cover!$C$9 -> AusNet Services
C10: =Cover!$C$10 -> Business Case Evaluation
C11: =Cover!$C$11 -> South Morang Training Facility

Sheet 2.1_BAU
B1: General Inputs: Base Case | I1: Regulatory Period Indicator | J1: ='1_KMA'!J30 -> 1 | K1: ='1_KMA'!K30 -> 1 | L1: ='1_KMA'!L30 -> 1 | M1: ='1_KMA'!M30 -> 1 | N1: ='1_KMA'!N30 -> 1 | O1: ='1_KMA'!O30 -> 0 | P1: ='1_KMA'!P30 -> 0 | Q1: ='1_KMA'!Q30 -> 0 | R1: ='1_KMA'!R30 -> 0 | S1: ='1_KMA'!S30 -> 0 | T1: ='1_KMA'!T30 -> 0 | U1: ='1_KMA'!U30 -> 0 | V1: ='1_KMA'!V30 -> 0 | W1: ='1_KMA'!W30 -> 0 | X1: ='1_KMA'!X30 -> 0 | Y1: ='1_KMA'!Y30 -> 0 | Z1: ='1_KMA'!Z30 -> 0 | AA1: ='1_KMA'!AA30 -> 0 | AB1: ='1_KMA'!AB30 -> 0 | AC1: ='1_KMA'!AC30 -> 0 | AD1: ='1_KMA'!AD30 -> 0 | AE1: ='1_KMA'!AE30 -> 0 | AF1: ='1_KMA'!AF30 -> 0 | AG1: ='1_KMA'!AG30 -> 0 | AH1: ='1_KMA'!AH30 -> 0 | AI1: ='1_KMA'!AI30 -> 0 | AJ1: ='1_KMA'!AJ30 -> 0 | AK1: ='1_KMA'!AK30 -> 0 | AL1: ='1_KMA'!AL30 -> 0 | AM1: ='1_KMA'!AM30 -> 0 | AN1: ='1_KMA'!AN30 -> 0 | AO1: ='1_KMA'!AO30 -> 0 | AP1: ='1_KMA'!AP30 -> 0 | AQ1: ='1_KMA'!AQ30 -> 0 | AR1: ='1_KMA'!AR30 -> 0 | AS1: ='1_KMA'!AS30 -> 0 | AT1: ='1_KMA'!AT30 -> 0 | AU1: ='1_KMA'!AU30 -> 0 | AV1: ='1_KMA'!AV30 -> 0 | AW1: ='1_KMA'!AW30 -> 0 | AX1: ='1_KMA'!AX30 -> 0 | AY1: ='1_KMA'!AY30 -> 0 | AZ1: ='1_KMA'!AZ30 -> 0 | BA1: ='1_KMA'!BA30 -> 0 | BB1: ='1_KMA'!BB30 -> 0 | BC1: ='1_KMA'!BC30 -> 0 | BD1: ='1_KMA'!BD30 -> 0 | BE1: ='1_KMA'!BE30 -> 0 | BF1: ='1_KMA'!BF30 -> 0 | BG1: ='1_KMA'!BG30 -> 0
B2: =Cover!$C$9 -> AusNet Services | I2: Period Start Date | J2: ='1_KMA'!J31 -> 2026-07-01 | K2: ='1_KMA'!K31 -> 2027-07-01 | L2: ='1_KMA'!L31 -> 2028-07-01 | M2: ='1_KMA'!M31 -> 2029-07-01 | N2: ='1_KMA'!N31 -> 2030-07-01 | O2: ='1_KMA'!O31 -> 2031-07-01 | P2: ='1_KMA'!P31 -> 2032-07-01 | Q2: ='1_KMA'!Q31 -> 2033-07-01 | R2: ='1_KMA'!R31 -> 2034-07-01 | S2: ='1_KMA'!S31 -> 2035-07-01 | T2: ='1_KMA'!T31 -> 2036-07-01 | U2: ='1_KMA'!U31 -> 2037-07-01 | V2: ='1_KMA'!V31 -> 2038-07-01 | W2: ='1_KMA'!W31 -> 2039-07-01 | X2: ='1_KMA'!X31 -> 2040-07-01 | Y2: ='1_KMA'!Y31 -> 2041-07-01 | Z2: ='1_KMA'!Z31 -> 2042-07-01 | AA2: ='1_KMA'!AA31 -> 2043-07-01 | AB2: ='1_KMA'!AB31 -> 2044-07-01 | AC2: ='1_KMA'!AC31 -> 2045-07-01 | AD2: ='1_KMA'!AD31 -> 2046-07-01 | AE2: ='1_KMA'!AE31 -> 2047-07-01 | AF2: ='1_KMA'!AF31 -> 2048-07-01 | AG2: ='1_KMA'!AG31 -> 2049-07-01 | AH2: ='1_KMA'!AH31 -> 2050-07-01 | AI2: ='1_KMA'!AI31 -> 2051-07-01 | AJ2: ='1_KMA'!AJ31 -> 2052-07-01 | AK2: ='1_KMA'!AK31 -> 2053-07-01 | AL2: ='1_KMA'!AL31 -> 2054-07-01 | AM2: ='1_KMA'!AM31 -> 2055-07-01 | AN2: ='1_KMA'!AN31 -> 2056-07-01 | AO2: ='1_KMA'!AO31 -> 2057-07-01 | AP2: ='1_KMA'!AP31 -> 2058-07-01 | AQ2: ='1_KMA'!AQ31 -> 2059-07-01 | AR2: ='1_KMA'!AR31 -> 2060-07-01 | AS2: ='1_KMA'!AS31 -> 2061-07-01 | AT2: ='1_KMA'!AT31 -> 2062-07-01 | AU2: ='1_KMA'!AU31 -> 2063-07-01 | AV2: ='1_KMA'!AV31 -> 2064-07-01 | AW2: ='1_KMA'!AW31 -> 2065-07-01 | AX2: ='1_KMA'!AX31 -> 2066-07-01 | AY2: ='1_KMA'!AY31 -> 2067-07-01 | AZ2: ='1_KMA'!AZ31 -> 2068-07-01 | BA2: ='1_KMA'!BA31 -> 2069-07-01 | BB2: ='1_KMA'!BB31 -> 2070-07-01 | BC2: ='1_KMA'!BC31 -> 2071-07-01 | BD2: ='1_KMA'!BD31 -> 2072-07-01 | BE2: ='1_KMA'!BE31 -> 2073-07-01 | BF2: ='1_KMA'!BF31 -> 2074-07-01 | BG2: ='1_KMA'!BG31 -> 2075-07-01
B3: =Cover!$C$10 -> Business Case Evaluation | I3: Period End Date | J3: ='1_KMA'!J32 -> 2027-06-30 | K3: ='1_KMA'!K32 -> 2028-06-30 | L3: ='1_KMA'!L32 -> 2029-06-30 | M3: ='1_KMA'!M32 -> 2030-06-30 | N3: ='1_KMA'!N32 -> 2031-06-30 | O3: ='1_KMA'!O32 -> 2032-06-30 | P3: ='1_KMA'!P32 -> 2033-06-30 | Q3: ='1_KMA'!Q32 -> 2034-06-30 | R3: ='1_KMA'!R32 -> 2035-06-30 | S3: ='1_KMA'!S32 -> 2036-06-30 | T3: ='1_KMA'!T32 -> 2037-06-30 | U3: ='1_KMA'!U32 -> 2038-06-30 | V3: ='1_KMA'!V32 -> 2039-06-30 | W3: ='1_KMA'!W32 -> 2040-06-30 | X3: ='1_KMA'!X32 -> 2041-06-30 | Y3: ='1_KMA'!Y32 -> 2042-06-30 | Z3: ='1_KMA'!Z32 -> 2043-06-30 | AA3: ='1_KMA'!AA32 -> 2044-06-30 | AB3: ='1_KMA'!AB32 -> 2045-06-30 | AC3: ='1_KMA'!AC32 -> 2046-06-30 | AD3: ='1_KMA'!AD32 -> 2047-06-30 | AE3: ='1_KMA'!AE32 -> 2048-06-30 | AF3: ='1_KMA'!AF32 -> 2049-06-30 | AG3: ='1_KMA'!AG32 -> 2050-06-30 | AH3: ='1_KMA'!AH32 -> 2051-06-30 | AI3: ='1_KMA'!AI32 -> 2052-06-30 | AJ3: ='1_KMA'!AJ32 -> 2053-06-30 | AK3: ='1_KMA'!AK32 -> 2054-06-30 | AL3: ='1_KMA'!AL32 -> 2055-06-30 | AM3: ='1_KMA'!AM32 -> 2056-06-30 | AN3: ='1_KMA'!AN32 -> 2057-06-30 | AO3: ='1_KMA'!AO32 -> 2058-06-30 | AP3: ='1_KMA'!AP32 -> 2059-06-30 | AQ3: ='1_KMA'!AQ32 -> 2060-06-30 | AR3: ='1_KMA'!AR32 -> 2061-06-30 | AS3: ='1_KMA'!AS32 -> 2062-06-30 | AT3: ='1_KMA'!AT32 -> 2063-06-30 | AU3: ='1_KMA'!AU32 -> 2064-06-30 | AV3: ='1_KMA'!AV32 -> 2065-06-30 | AW3: ='1_KMA'!AW32 -> 2066-06-30 | AX3: ='1_KMA'!AX32 -> 2067-06-30 | AY3: ='1_KMA'!AY32 -> 2068-06-30 | AZ3: ='1_KMA'!AZ32 -> 2069-06-30 | BA3: ='1_KMA'!BA32 -> 2070-06-30 | BB3: ='1_KMA'!BB32 -> 2071-06-30 | BC3: ='1_KMA'!BC32 -> 2072-06-30 | BD3: ='1_KMA'!BD32 -> 2073-06-30 | BE3: ='1_KMA'!BE32 -> 2074-06-30 | BF3: ='1_KMA'!BF32 -> 2075-06-30 | BG3: ='1_KMA'!BG32 -> 2076-06-30
B4: =Cover!$C$11 -> South Morang Training Facility | I4: Project Year | J4: ='1_KMA'!J33 -> 1 | K4: ='1_KMA'!K33 -> 2 | L4: ='1_KMA'!L33 -> 3 | M4: ='1_KMA'!M33 -> 4 | N4: ='1_KMA'!N33 -> 5 | O4: ='1_KMA'!O33 -> 6 | P4: ='1_KMA'!P33 -> 7 | Q4: ='1_KMA'!Q33 -> 8 | R4: ='1_KMA'!R33 -> 9 | S4: ='1_KMA'!S33 -> 10 | T4: ='1_KMA'!T33 -> 11 | U4: ='1_KMA'!U33 -> 12 | V4: ='1_KMA'!V33 -> 13 | W4: ='1_KMA'!W33 -> 14 | X4: ='1_KMA'!X33 -> 15 | Y4: ='1_KMA'!Y33 -> 16 | Z4: ='1_KMA'!Z33 -> 17 | AA4: ='1_KMA'!AA33 -> 18 | AB4: ='1_KMA'!AB33 -> 19 | AC4: ='1_KMA'!AC33 -> 20 | AD4: ='1_KMA'!AD33 -> 21 | AE4: ='1_KMA'!AE33 -> 22 | AF4: ='1_KMA'!AF33 -> 23 | AG4: ='1_KMA'!AG33 -> 24 | AH4: ='1_KMA'!AH33 -> 25 | AI4: ='1_KMA'!AI33 -> 26 | AJ4: ='1_KMA'!AJ33 -> 27 | AK4: ='1_KMA'!AK33 -> 28 | AL4: ='1_KMA'!AL33 -> 29 | AM4: ='1_KMA'!AM33 -> 30 | AN4: ='1_KMA'!AN33 -> 31 | AO4: ='1_KMA'!AO33 -> 32 | AP4: ='1_KMA'!AP33 -> 33 | AQ4: ='1_KMA'!AQ33 -> 34 | AR4: ='1_KMA'!AR33 -> 35 | AS4: ='1_KMA'!AS33 -> 36 | AT4: ='1_KMA'!AT33 -> 37 | AU4: ='1_KMA'!AU33 -> 38 | AV4: ='1_KMA'!AV33 -> 39 | AW4: ='1_KMA'!AW33 -> 40 | AX4: ='1_KMA'!AX33 -> 41 | AY4: ='1_KMA'!AY33 -> 42 | AZ4: ='1_KMA'!AZ33 -> 43 | BA4: ='1_KMA'!BA33 -> 44 | BB4: ='1_KMA'!BB33 -> 45 | BC4: ='1_KMA'!BC33 -> 46 | BD4: ='1_KMA'!BD33 -> 47 | BE4: ='1_KMA'!BE33 -> 48 | BF4: ='1_KMA'!BF33 -> 49 | BG4: ='1_KMA'!BG33 -> 50
I5: Financial Year | J5: ='1_KMA'!J34 -> 2027 | K5: ='1_KMA'!K34 -> 2028 | L5: ='1_KMA'!L34 -> 2029 | M5: ='1_KMA'!M34 -> 2030 | N5: ='1_KMA'!N34 -> 2031 | O5: ='1_KMA'!O34 -> 2032 | P5: ='1_KMA'!P34 -> 2033 | Q5: ='1_KMA'!Q34 -> 2034 | R5: ='1_KMA'!R34 -> 2035 | S5: ='1_KMA'!S34 -> 2036 | T5: ='1_KMA'!T34 -> 2037 | U5: ='1_KMA'!U34 -> 2038 | V5: ='1_KMA'!V34 -> 2039 | W5: ='1_KMA'!W34 -> 2040 | X5: ='1_KMA'!X34 -> 2041 | Y5: ='1_KMA'!Y34 -> 2042 | Z5: ='1_KMA'!Z34 -> 2043 | AA5: ='1_KMA'!AA34 -> 2044 | AB5: ='1_KMA'!AB34 -> 2045 | AC5: ='1_KMA'!AC34 -> 2046 | AD5: ='1_KMA'!AD34 -> 2047 | AE5: ='1_KMA'!AE34 -> 2048 | AF5: ='1_KMA'!AF34 -> 2049 | AG5: ='1_KMA'!AG34 -> 2050 | AH5: ='1_KMA'!AH34 -> 2051 | AI5: ='1_KMA'!AI34 -> 2052 | AJ5: ='1_KMA'!AJ34 -> 2053 | AK5: ='1_KMA'!AK34 -> 2054 | AL5: ='1_KMA'!AL34 -> 2055 | AM5: ='1_KMA'!AM34 -> 2056 | AN5: ='1_KMA'!AN34 -> 2057 | AO5: ='1_KMA'!AO34 -> 2058 | AP5: ='1_KMA'!AP34 -> 2059 | AQ5: ='1_KMA'!AQ34 -> 2060 | AR5: ='1_KMA'!AR34 -> 2061 | AS5: ='1_KMA'!AS34 -> 2062 | AT5: ='1_KMA'!AT34 -> 2063 | AU5: ='1_KMA'!AU34 -> 2064 | AV5: ='1_KMA'!AV34 -> 2065 | AW5: ='1_KMA'!AW34 -> 2066 | AX5: ='1_KMA'!AX34 -> 2067 | AY5: ='1_KMA'!AY34 -> 2068 | AZ5: ='1_KMA'!AZ34 -> 2069 | BA5: ='1_KMA'!BA34 -> 2070 | BB5: ='1_KMA'!BB34 -> 2071 | BC5: ='1_KMA'!BC34 -> 2072 | BD5: ='1_KMA'!BD34 -> 2073 | BE5: ='1_KMA'!BE34 -> 2074 | BF5: ='1_KMA'!BF34 -> 2075 | BG5: ='1_KMA'!BG34 -> 2076
B7: Summary
B9: Costs | G9: $ Basis Reminder | H9: $ Reminder | J9: ="Ensure this section [Summary] is picking up the relevant rows" -> Ensure this section [Summary] is picking up the relevant rows
B10: Capex | G10: ='1_KMA'!$I$20 -> 2024-06-30 | H10: ='1_KMA'!$I$19 -> $millions | J10: 0 | K10: 0 | L10: 0 | M10: 0 | N10: 0 | O10: 0 | P10: 0 | Q10: 0 | R10: 0 | S10: 0 | T10: 0 | U10: 0 | V10: 0 | W10: 0 | X10: 0 | Y10: 0 | Z10: 0 | AA10: 0 | AB10: 0 | AC10: 0 | AD10: 0 | AE10: 0 | AF10: 0 | AG10: 0 | AH10: 0 | AI10: 0 | AJ10: 0 | AK10: 0 | AL10: 0 | AM10: 0 | AN10: 0 | AO10: 0 | AP10: 0 | AQ10: 0 | AR10: 0 | AS10: 0 | AT10: 0 | AU10: 0 | AV10: 0 | AW10: 0 | AX10: 0 | AY10: 0 | AZ10: 0 | BA10: 0 | BB10: 0 | BC10: 0 | BD10: 0 | BE10: 0 | BF10: 0 | BG10: 0
B11: Capex offset | G11: ='1_KMA'!$I$20 -> 2024-06-30 | H11: ='1_KMA'!$I$19 -> $millions | J11: 0 | K11: 0 | L11: 0 | M11: 0 | N11: 0 | O11: 0 | P11: 0 | Q11: 0 | R11: 0 | S11: 0 | T11: 0 | U11: 0 | V11: 0 | W11: 0 | X11: 0 | Y11: 0 | Z11: 0 | AA11: 0 | AB11: 0 | AC11: 0 | AD11: 0 | AE11: 0 | AF11: 0 | AG11: 0 | AH11: 0 | AI11: 0 | AJ11: 0 | AK11: 0 | AL11: 0 | AM11: 0 | AN11: 0 | AO11: 0 | AP11: 0 | AQ11: 0 | AR11: 0 | AS11: 0 | AT11: 0 | AU11: 0 | AV11: 0 | AW11: 0 | AX11: 0 | AY11: 0 | AZ11: 0 | BA11: 0 | BB11: 0 | BC11: 0 | BD11: 0 | BE11: 0 | BF11: 0 | BG11: 0
B12: Opex | G12: ='1_KMA'!$I$20 -> 2024-06-30 | H12: ='1_KMA'!$I$19 -> $millions | J12: 0.318112 | K12: 0.416408 | L12: 0.513426 | M12: 0.606184 | N12: 0.700646 | O12: 0.795534 | P12: 0.887866 | Q12: 0.981476 | R12: 1.07466 | S12: 1.165714 | T12: 1.165714 | U12: 1.165714 | V12: 1.165714 | W12: 1.165714 | X12: 1.165714 | Y12: 1.165714 | Z12: 1.165714 | AA12: 1.165714 | AB12: 1.165714 | AC12: 1.165714 | AD12: 1.165714 | AE12: 1.165714 | AF12: 1.165714 | AG12: 1.165714 | AH12: 1.165714 | AI12: 1.165714 | AJ12: 1.165714 | AK12: 1.165714 | AL12: 1.165714 | AM12: 1.165714 | AN12: 1.165714 | AO12: 1.165714 | AP12: 1.165714 | AQ12: 1.165714 | AR12: 1.165714 | AS12: 1.165714 | AT12: 1.165714 | AU12: 1.165714 | AV12: 1.165714 | AW12: 1.165714 | AX12: 1.165714 | AY12: 1.165714 | AZ12: 1.165714 | BA12: 1.165714 | BB12: 1.165714 | BC12: 1.165714 | BD12: 1.165714 | BE12: 1.165714 | BF12: 1.165714 | BG12: 1.165714
B13: Total | G13: ='1_KMA'!$I$20 -> 2024-06-30 | H13: ='1_KMA'!$I$19 -> $millions | J13: 0.318112 | K13: 0.416408 | L13: 0.513426 | M13: 0.606184 | N13: 0.700646 | O13: 0.795534 | P13: 0.887866 | Q13: 0.981476 | R13: 1.07466 | S13: 1.165714 | T13: 1.165714 | U13: 1.165714 | V13: 1.165714 | W13: 1.165714 | X13: 1.165714 | Y13: 1.165714 | Z13: 1.165714 | AA13: 1.165714 | AB13: 1.165714 | AC13: 1.165714 | AD13: 1.165714 | AE13: 1.165714 | AF13: 1.165714 | AG13: 1.165714 | AH13: 1.165714 | AI13: 1.165714 | AJ13: 1.165714 | AK13: 1.165714 | AL13: 1.165714 | AM13: 1.165714 | AN13: 1.165714 | AO13: 1.165714 | AP13: 1.165714 | AQ13: 1.165714 | AR13: 1.165714 | AS13: 1.165714 | AT13: 1.165714 | AU13: 1.165714 | AV13: 1.165714 | AW13: 1.165714 | AX13: 1.165714 | AY13: 1.165714 | AZ13: 1.165714 | BA13: 1.165714 | BB13: 1.165714 | BC13: 1.165714 | BD13: 1.165714 | BE13: 1.165714 | BF13: 1.165714 | BG13: 1.165714
B15: Benefits | G15: $ Basis Reminder | H15: $ Reminder | J15: ="Ensure this section [Summary] is picking up the relevant rows" -> Ensure this section [Summary] is picking up the relevant rows
B16: Value of EUE | G16: ='1_KMA'!$I$20 -> 2024-06-30 | H16: ='1_KMA'!$I$19 -> $millions | J16: 0 | K16: 0 | L16: 0 | M16: 0 | N16: 0 | O16: 0 | P16: 0 | Q16: 0 | R16: 0 | S16: 0 | T16: 0 | U16: 0 | V16: 0 | W16: 0 | X16: 0 | Y16: 0 | Z16: 0 | AA16: 0 | AB16: 0 | AC16: 0 | AD16: 0 | AE16: 0 | AF16: 0 | AG16: 0 | AH16: 0 | AI16: 0 | AJ16: 0 | AK16: 0 | AL16: 0 | AM16: 0 | AN16: 0 | AO16: 0 | AP16: 0 | AQ16: 0 | AR16: 0 | AS16: 0 | AT16: 0 | AU16: 0 | AV16: 0 | AW16: 0 | AX16: 0 | AY16: 0 | AZ16: 0 | BA16: 0 | BB16: 0 | BC16: 0 | BD16: 0 | BE16: 0 | BF16: 0 | BG16: 0
B17: Reliability | G17: ='1_KMA'!$I$20 -> 2024-06-30 | H17: ='1_KMA'!$I$19 -> $millions | J17: 0 | K17: 0 | L17: 0 | M17: 0 | N17: 0 | O17: 0 | P17: 0 | Q17: 0 | R17: 0 | S17: 0 | T17: 0 | U17: 0 | V17: 0 | W17: 0 | X17: 0 | Y17: 0 | Z17: 0 | AA17: 0 | AB17: 0 | AC17: 0 | AD17: 0 | AE17: 0 | AF17: 0 | AG17: 0 | AH17: 0 | AI17: 0 | AJ17: 0 | AK17: 0 | AL17: 0 | AM17: 0 | AN17: 0 | AO17: 0 | AP17: 0 | AQ17: 0 | AR17: 0 | AS17: 0 | AT17: 0 | AU17: 0 | AV17: 0 | AW17: 0 | AX17: 0 | AY17: 0 | AZ17: 0 | BA17: 0 | BB17: 0 | BC17: 0 | BD17: 0 | BE17: 0 | BF17: 0 | BG17: 0
B18: Resilience | G18: ='1_KMA'!$I$20 -> 2024-06-30 | H18: ='1_KMA'!$I$19 -> $millions | J18: 0 | K18: 0 | L18: 0 | M18: 0 | N18: 0 | O18: 0 | P18: 0 | Q18: 0 | R18: 0 | S18: 0 | T18: 0 | U18: 0 | V18: 0 | W18: 0 | X18: 0 | Y18: 0 | Z18: 0 | AA18: 0 | AB18: 0 | AC18: 0 | AD18: 0 | AE18: 0 | AF18: 0 | AG18: 0 | AH18: 0 | AI18: 0 | AJ18: 0 | AK18: 0 | AL18: 0 | AM18: 0 | AN18: 0 | AO18: 0 | AP18: 0 | AQ18: 0 | AR18: 0 | AS18: 0 | AT18: 0 | AU18: 0 | AV18: 0 | AW18: 0 | AX18: 0 | AY18: 0 | AZ18: 0 | BA18: 0 | BB18: 0 | BC18: 0 | BD18: 0 | BE18: 0 | BF18: 0 | BG18: 0
B19: Batteries | G19: ='1_KMA'!$I$20 -> 2024-06-30 | H19: ='1_KMA'!$I$19 -> $millions | J19: 0 | K19: 0 | L19: 0 | M19: 0 | N19: 0 | O19: 0 | P19: 0 | Q19: 0 | R19: 0 | S19: 0 | T19: 0 | U19: 0 | V19: 0 | W19: 0 | X19: 0 | Y19: 0 | Z19: 0 | AA19: 0 | AB19: 0 | AC19: 0 | AD19: 0 | AE19: 0 | AF19: 0 | AG19: 0 | AH19: 0 | AI19: 0 | AJ19: 0 | AK19: 0 | AL19: 0 | AM19: 0 | AN19: 0 | AO19: 0 | AP19: 0 | AQ19: 0 | AR19: 0 | AS19: 0 | AT19: 0 | AU19: 0 | AV19: 0 | AW19: 0 | AX19: 0 | AY19: 0 | AZ19: 0 | BA19: 0 | BB19: 0 | BC19: 0 | BD19: 0 | BE19: 0 | BF19: 0 | BG19: 0
B20: Others | G20: ='1_KMA'!$I$20 -> 2024-06-30 | H20: ='1_KMA'!$I$19 -> $millions | J20: 0 | K20: 0 | L20: 0 | M20: 0 | N20: 0 | O20: 0 | P20: -373 | Q20: -440 | R20: -658 | S20: -972 | T20: -972 | U20: -972 | V20: -972 | W20: -972 | X20: -972 | Y20: -972 | Z20: -972 | AA20: -972 | AB20: -972 | AC20: -972 | AD20: -972 | AE20: -972 | AF20: -972 | AG20: -972 | AH20: -972 | AI20: -972 | AJ20: -972 | AK20: -972 | AL20: -972 | AM20: -972 | AN20: -972 | AO20: -972 | AP20: -972 | AQ20: -972 | AR20: -972 | AS20: -972 | AT20: -972 | AU20: -972 | AV20: -972 | AW20: -972 | AX20: -972 | AY20: -972 | AZ20: -972 | BA20: -972 | BB20: -972 | BC20: -972 | BD20: -972 | BE20: -972 | BF20: -972 | BG20: -972
B21: Total | G21: ='1_KMA'!$I$20 -> 2024-06-30 | H21: ='1_KMA'!$I$19 -> $millions | J21: 0 | K21: 0 | L21: 0 | M21: 0 | N21: 0 | O21: 0 | P21: -373 | Q21: -440 | R21: -658 | S21: -972 | T21: -972 | U21: -972 | V21: -972 | W21: -972 | X21: -972 | Y21: -972 | Z21: -972 | AA21: -972 | AB21: -972 | AC21: -972 | AD21: -972 | AE21: -972 | AF21: -972 | AG21: -972 | AH21: -972 | AI21: -972 | AJ21: -972 | AK21: -972 | AL21: -972 | AM21: -972 | AN21: -972 | AO21: -972 | AP21: -972 | AQ21: -972 | AR21: -972 | AS21: -972 | AT21: -972 | AU21: -972 | AV21: -972 | AW21: -972 | AX21: -972 | AY21: -972 | AZ21: -972 | BA21: -972 | BB21: -972 | BC21: -972 | BD21: -972 | BE21: -972 | BF21: -972 | BG21: -972
B24: Cost Inputs
B26: Capex Build Up
B28: Name | H28: Unit | J28: Unit Rate
B34: Name | H34: Unit | J34: Quantities
B40: Name | G40: $ Basis Reminder | H40: $ Reminder | J40: ="Costs - ensure costs have been converted to "&'1_KMA'!$I$19 -> Costs - ensure costs have been converted to $millions
G41: ='1_KMA'!$I$20 -> 2024-06-30 | H41: ='1_KMA'!$I$19 -> $millions | J41: =$J$29*J35 -> 0 | K41: =$J$29*K35 -> 0 | L41: =$J$29*L35 -> 0 | M41: =$J$29*M35 -> 0 | N41: 0 | O41: 0 | P41: 0 | Q41: 0 | R41: 0 | S41: 0 | T41: 0 | U41: 0 | V41: 0 | W41: 0 | X41: 0 | Y41: 0 | Z41: 0 | AA41: 0 | AB41: 0 | AC41: 0 | AD41: 0 | AE41: 0 | AF41: 0 | AG41: 0 | AH41: 0 | AI41: 0 | AJ41: 0 | AK41: 0 | AL41: 0 | AM41: 0 | AN41: 0 | AO41: 0 | AP41: 0 | AQ41: 0 | AR41: 0 | AS41: 0 | AT41: 0 | AU41: 0 | AV41: 0 | AW41: 0 | AX41: 0 | AY41: 0 | AZ41: 0 | BA41: 0 | BB41: 0 | BC41: 0 | BD41: 0 | BE41: 0 | BF41: 0 | BG41: 0
G42: ='1_KMA'!$I$20 -> 2024-06-30 | H42: ='1_KMA'!$I$19 -> $millions | J42: =$J$30*J36 -> 0 | K42: =$J$30*K36 -> 0 | L42: =$J$30*L36 -> 0 | M42: =$J$30*M36 -> 0 | N42: 0 | O42: 0 | P42: 0 | Q42: 0 | R42: 0 | S42: 0 | T42: 0 | U42: 0 | V42: 0 | W42: 0 | X42: 0 | Y42: 0 | Z42: 0 | AA42: 0 | AB42: 0 | AC42: 0 | AD42: 0 | AE42: 0 | AF42: 0 | AG42: 0 | AH42: 0 | AI42: 0 | AJ42: 0 | AK42: 0 | AL42: 0 | AM42: 0 | AN42: 0 | AO42: 0 | AP42: 0 | AQ42: 0 | AR42: 0 | AS42: 0 | AT42: 0 | AU42: 0 | AV42: 0 | AW42: 0 | AX42: 0 | AY42: 0 | AZ42: 0 | BA42: 0 | BB42: 0 | BC42: 0 | BD42: 0 | BE42: 0 | BF42: 0 | BG42: 0
G43: ='1_KMA'!$I$20 -> 2024-06-30 | H43: ='1_KMA'!$I$19 -> $millions | J43: =$J$31*J37 -> 0 | K43: =$J$31*K37 -> 0 | L43: =$J$31*L37 -> 0 | M43: =$J$31*M37 -> 0 | N43: 0 | O43: 0 | P43: 0 | Q43: 0 | R43: 0 | S43: 0 | T43: 0 | U43: 0 | V43: 0 | W43: 0 | X43: 0 | Y43: 0 | Z43: 0 | AA43: 0 | AB43: 0 | AC43: 0 | AD43: 0 | AE43: 0 | AF43: 0 | AG43: 0 | AH43: 0 | AI43: 0 | AJ43: 0 | AK43: 0 | AL43: 0 | AM43: 0 | AN43: 0 | AO43: 0 | AP43: 0 | AQ43: 0 | AR43: 0 | AS43: 0 | AT43: 0 | AU43: 0 | AV43: 0 | AW43: 0 | AX43: 0 | AY43: 0 | AZ43: 0 | BA43: 0 | BB43: 0 | BC43: 0 | BD43: 0 | BE43: 0 | BF43: 0 | BG43: 0
G44: ='1_KMA'!$I$20 -> 2024-06-30 | H44: ='1_KMA'!$I$19 -> $millions | J44: =$J$32*J38 -> 0 | K44: =$J$32*K38 -> 0 | L44: =$J$32*L38 -> 0 | M44: =$J$32*M38 -> 0 | N44: =$J$32*N38 -> 0 | O44: 0 | P44: 0 | Q44: 0 | R44: 0 | S44: 0 | T44: 0 | U44: 0 | V44: 0 | W44: 0 | X44: 0 | Y44: 0 | Z44: 0 | AA44: 0 | AB44: 0 | AC44: 0 | AD44: 0 | AE44: 0 | AF44: 0 | AG44: 0 | AH44: 0 | AI44: 0 | AJ44: 0 | AK44: 0 | AL44: 0 | AM44: 0 | AN44: 0 | AO44: 0 | AP44: 0 | AQ44: 0 | AR44: 0 | AS44: 0 | AT44: 0 | AU44: 0 | AV44: 0 | AW44: 0 | AX44: 0 | AY44: 0 | AZ44: 0 | BA44: 0 | BB44: 0 | BC44: 0 | BD44: 0 | BE44: 0 | BF44: 0 | BG44: 0
G46: $ Basis Reminder | H46: $ Reminder | J46: Summary table above picks up this total row
B47: Total | G47: ='1_KMA'!$I$20 -> 2024-06-30 | H47: ='1_KMA'!$I$19 -> $millions | J47: =SUM(J41:J44) -> 0 | K47: =SUM(K41:K44) -> 0 | L47: 0 | M47: =SUM(M41:M44) -> 0 | N47: 0 | O47: 0 | P47: 0 | Q47: 0 | R47: 0 | S47: 0 | T47: 0 | U47: 0 | V47: 0 | W47: 0 | X47: 0 | Y47: 0 | Z47: 0 | AA47: 0 | AB47: 0 | AC47: 0 | AD47: 0 | AE47: 0 | AF47: 0 | AG47: 0 | AH47: 0 | AI47: 0 | AJ47: 0 | AK47: 0 | AL47: 0 | AM47: 0 | AN47: 0 | AO47: 0 | AP47: =SUM(AP41:AP44) -> 0 | AQ47: 0 | AR47: 0 | AS47: 0 | AT47: 0 | AU47: 0 | AV47: 0 | AW47: 0 | AX47: 0 | AY47: 0 | AZ47: 0 | BA47: 0 | BB47: 0 | BC47: 0 | BD47: 0 | BE47: 0 | BF47: 0 | BG47: 0
B49: Capex Offset
J51: ="Capex offsets - ensure capex offsets have been converted to "&'1_KMA'!$I$19 -> Capex offsets - ensure capex offsets have been converted to $millions
B52: Name | G52: $ Basis Reminder | H52: $ Reminder | J52: Enter capex offsets as positive values as the spreadsheet later nets this off the gross amounts
G53: ='1_KMA'!$I$20 -> 2024-06-30 | H53: ='1_KMA'!$I$19 -> $millions
G54: ='1_KMA'!$I$20 -> 2024-06-30 | H54: ='1_KMA'!$I$19 -> $millions
G55: ='1_KMA'!$I$20 -> 2024-06-30 | H55: ='1_KMA'!$I$19 -> $millions
G56: ='1_KMA'!$I$20 -> 2024-06-30 | H56: ='1_KMA'!$I$19 -> $millions
G58: $ Basis Reminder | H58: $ Reminder | J58: Summary table above picks up this total row
B59: Total | G59: ='1_KMA'!$I$20 -> 2024-06-30 | H59: ='1_KMA'!$I$19 -> $millions | J59: =SUM(J53:J56) -> 0 | K59: =SUM(K53:K56) -> 0 | L59: =SUM(L53:L56) -> 0 | M59: 0 | N59: 0 | O59: 0 | P59: 0 | Q59: 0 | R59: 0 | S59: 0 | T59: 0 | U59: 0 | V59: 0 | W59: 0 | X59: 0 | Y59: 0 | Z59: 0 | AA59: 0 | AB59: 0 | AC59: 0 | AD59: 0 | AE59: 0 | AF59: 0 | AG59: 0 | AH59: 0 | AI59: 0 | AJ59: 0 | AK59: 0 | AL59: 0 | AM59: 0 | AN59: 0 | AO59: 0 | AP59: 0 | AQ59: 0 | AR59: 0 | AS59: 0 | AT59: 0 | AU59: 0 | AV59: 0 | AW59: 0 | AX59: 0 | AY59: 0 | AZ59: 0 | BA59: 0 | BB59: 0 | BC59: 0 | BD59: 0 | BE59: 0 | BF59: 0 | BG59: =SUM(BG53:BG56) -> 0
B61: Opex Build Up
B63: Name | H63: Unit | J63: Value
B64: Training cost (existing) | H64: 1 | J64: C-I-C
B65: Training cost (apprentice) | H65: 1 | J65: C-I-C
B69: Name | H69: Unit | J69: Quantities
B70: =B64 -> Training cost (existing) | H70: 1 | J70: C-I-C | K70: C-I-C | L70: C-I-C | M70: C-I-C | N70: C-I-C | O70: C-I-C | P70: C-I-C | Q70: C-I-C | R70: C-I-C | S70: C-I-C | T70: C-I-C | U70: C-I-C | V70: C-I-C | W70: C-I-C | X70: C-I-C | Y70: C-I-C | Z70: C-I-C | AA70: C-I-C | AB70: C-I-C | AC70: C-I-C | AD70: C-I-C | AE70: C-I-C | AF70: C-I-C | AG70: C-I-C | AH70: C-I-C | AI70: C-I-C | AJ70: C-I-C | AK70: C-I-C | AL70: C-I-C | AM70: C-I-C | AN70: C-I-C | AO70: C-I-C | AP70: C-I-C | AQ70: C-I-C | AR70: C-I-C | AS70: C-I-C | AT70: C-I-C | AU70: C-I-C | AV70: C-I-C | AW70: C-I-C | AX70: C-I-C | AY70: C-I-C | AZ70: C-I-C | BA70: C-I-C | BB70: C-I-C | BC70: C-I-C | BD70: C-I-C | BE70: C-I-C | BF70: C-I-C | BG70: C-I-C
B71: =B65 -> Training cost (apprentice) | H71: 1 | J71: C-I-C | K71: C-I-C | L71: C-I-C | M71: C-I-C | N71: C-I-C | O71: C-I-C | P71: C-I-C | Q71: C-I-C | R71: C-I-C | S71: C-I-C | T71: C-I-C | U71: C-I-C | V71: C-I-C | W71: C-I-C | X71: C-I-C | Y71: C-I-C | Z71: C-I-C | AA71: C-I-C | AB71: C-I-C | AC71: C-I-C | AD71: C-I-C | AE71: C-I-C | AF71: C-I-C | AG71: C-I-C | AH71: C-I-C | AI71: C-I-C | AJ71: C-I-C | AK71: C-I-C | AL71: C-I-C | AM71: C-I-C | AN71: C-I-C | AO71: C-I-C | AP71: C-I-C | AQ71: C-I-C | AR71: C-I-C | AS71: C-I-C | AT71: C-I-C | AU71: C-I-C | AV71: C-I-C | AW71: C-I-C | AX71: C-I-C | AY71: C-I-C | AZ71: C-I-C | BA71: C-I-C | BB71: C-I-C | BC71: C-I-C | BD71: C-I-C | BE71: C-I-C | BF71: C-I-C | BG71: C-I-C
B75: Name | G75: $ Basis Reminder | H75: $ Reminder | J75: ="Costs - ensure costs have been converted to "&'1_KMA'!$I$19 -> Costs - ensure costs have been converted to $millions
B76: =B64 -> Training cost (existing) | G76: ='1_KMA'!$I$20 -> 2024-06-30 | H76: ='1_KMA'!$I$19 -> $millions | J76: C-I-C | K76: C-I-C | L76: C-I-C | M76: C-I-C | N76: C-I-C | O76: C-I-C | P76: C-I-C | Q76: C-I-C | R76: C-I-C | S76: C-I-C | T76: C-I-C | U76: C-I-C | V76: C-I-C | W76: C-I-C | X76: C-I-C | Y76: C-I-C | Z76: C-I-C | AA76: C-I-C | AB76: C-I-C | AC76: C-I-C | AD76: C-I-C | AE76: C-I-C | AF76: C-I-C | AG76: C-I-C | AH76: C-I-C | AI76: C-I-C | AJ76: C-I-C | AK76: C-I-C | AL76: C-I-C | AM76: C-I-C | AN76: C-I-C | AO76: C-I-C | AP76: C-I-C | AQ76: C-I-C | AR76: C-I-C | AS76: C-I-C | AT76: C-I-C | AU76: C-I-C | AV76: C-I-C | AW76: C-I-C | AX76: C-I-C | AY76: C-I-C | AZ76: C-I-C | BA76: C-I-C | BB76: C-I-C | BC76: C-I-C | BD76: C-I-C | BE76: C-I-C | BF76: C-I-C | BG76: C-I-C
B77: =B71 -> Training cost (apprentice) | G77: ='1_KMA'!$I$20 -> 2024-06-30 | H77: ='1_KMA'!$I$19 -> $millions | J77: C-I-C | K77: C-I-C | L77: C-I-C | M77: C-I-C | N77: C-I-C | O77: C-I-C | P77: C-I-C | Q77: C-I-C | R77: C-I-C | S77: C-I-C | T77: C-I-C | U77: C-I-C | V77: C-I-C | W77: C-I-C | X77: C-I-C | Y77: C-I-C | Z77: C-I-C | AA77: C-I-C | AB77: C-I-C | AC77: C-I-C | AD77: C-I-C | AE77: C-I-C | AF77: C-I-C | AG77: C-I-C | AH77: C-I-C | AI77: C-I-C | AJ77: C-I-C | AK77: C-I-C | AL77: C-I-C | AM77: C-I-C | AN77: C-I-C | AO77: C-I-C | AP77: C-I-C | AQ77: C-I-C | AR77: C-I-C | AS77: C-I-C | AT77: C-I-C | AU77: C-I-C | AV77: C-I-C | AW77: C-I-C | AX77: C-I-C | AY77: C-I-C | AZ77: C-I-C | BA77: C-I-C | BB77: C-I-C | BC77: C-I-C | BD77: C-I-C | BE77: C-I-C | BF77: C-I-C | BG77: C-I-C
G78: ='1_KMA'!$I$20 -> 2024-06-30 | H78: ='1_KMA'!$I$19 -> $millions
G79: ='1_KMA'!$I$20 -> 2024-06-30 | H79: ='1_KMA'!$I$19 -> $millions
G81: $ Basis Reminder | H81: $ Reminder | J81: Summary table above picks up this total row
B82: Total | G82: ='1_KMA'!$I$20 -> 2024-06-30 | H82: ='1_KMA'!$I$19 -> $millions | J82: =SUM(J76:J79) -> 0 | K82: =SUM(K76:K79) -> 0 | L82: =SUM(L76:L79) -> 0 | M82: =SUM(M76:M79) -> 0 | N82: =SUM(N76:N79) -> 0 | O82: 0 | P82: 0 | Q82: 0 | R82: 0 | S82: 0 | T82: 0 | U82: 0 | V82: 0 | W82: 0 | X82: 0 | Y82: 0 | Z82: 0 | AA82: 0 | AB82: 0 | AC82: 0 | AD82: 0 | AE82: 0 | AF82: 0 | AG82: 0 | AH82: 0 | AI82: 0 | AJ82: 0 | AK82: 0 | AL82: 0 | AM82: 0 | AN82: 0 | AO82: 0 | AP82: 0 | AQ82: 0 | AR82: 0 | AS82: 0 | AT82: 0 | AU82: 0 | AV82: 0 | AW82: 0 | AX82: 0 | AY82: 0 | AZ82: 0 | BA82: 0 | BB82: 0 | BC82: 0 | BD82: 0 | BE82: 0 | BF82: 0 | BG82: =SUM(BG76:BG79) -> 0
B84: Benefits Inputs
B86: Value of EUE
J88: ="Values - ensure values have been converted to "&'1_KMA'!$I$19 -> Values - ensure values have been converted to $millions
G89: $ Basis Reminder | H89: $ Reminder | J89: Enter this as a positive value, as the spreadsheet later converts this to a negative benefit
B90: Value of Expected Unserved Energy (EUE) | G90: ='1_KMA'!$I$20 -> 2024-06-30 | H90: ='1_KMA'!$I$19 -> $millions
G92: $ Basis Reminder | H92: $ Reminder | J92: Summary table above picks up this total row
B93: Total | G93: ='1_KMA'!$I$20 -> 2024-06-30 | H93: ='1_KMA'!$I$19 -> $millions | J93: =J90 -> 0 | K93: =K90 -> 0 | L93: =L90 -> 0 | M93: 0 | N93: 0 | O93: 0 | P93: 0 | Q93: 0 | R93: 0 | S93: 0 | T93: 0 | U93: 0 | V93: 0 | W93: 0 | X93: 0 | Y93: 0 | Z93: 0 | AA93: 0 | AB93: 0 | AC93: 0 | AD93: 0 | AE93: 0 | AF93: 0 | AG93: 0 | AH93: 0 | AI93: 0 | AJ93: 0 | AK93: 0 | AL93: 0 | AM93: 0 | AN93: 0 | AO93: 0 | AP93: 0 | AQ93: 0 | AR93: 0 | AS93: 0 | AT93: 0 | AU93: 0 | AV93: 0 | AW93: 0 | AX93: 0 | AY93: 0 | AZ93: 0 | BA93: 0 | BB93: 0 | BC93: 0 | BD93: 0 | BE93: 0 | BF93: 0 | BG93: =BG90 -> 0
B95: Reliability
B97: QCV research | H97: Unit | J97: Unit Rate
B98: Fewer unplanned outages, less than 12 hours
B99: Fewer unplanned outages in the worst served areas
H102: Unit | J102: Quantities
B103: Fewer unplanned outages, less than 12 hours
B104: Fewer unplanned outages in the worst served areas
G106: $ Basis Reminder | H106: $ Reminder | J106: ="Values - ensure values have been converted to "&'1_KMA'!$I$19 -> Values - ensure values have been converted to $millions
B107: Fewer unplanned outages, less than 12 hours | G107: ='1_KMA'!$I$20 -> 2024-06-30 | H107: ='1_KMA'!$I$19 -> $millions | J107: =J103*$J$98 -> 0 | K107: =K103*$J$98 -> 0 | L107: =L103*$J$98 -> 0 | M107: =M103*$J$98 -> 0 | N107: =N103*$J$98 -> 0 | O107: =O103*$J$98 -> 0 | P107: 0 | Q107: 0 | R107: 0 | S107: 0 | T107: 0 | U107: 0 | V107: 0 | W107: 0 | X107: 0 | Y107: 0 | Z107: 0 | AA107: 0 | AB107: 0 | AC107: 0 | AD107: 0 | AE107: 0 | AF107: 0 | AG107: 0 | AH107: 0 | AI107: 0 | AJ107: 0 | AK107: 0 | AL107: 0 | AM107: 0 | AN107: 0 | AO107: 0 | AP107: 0 | AQ107: 0 | AR107: 0 | AS107: 0 | AT107: 0 | AU107: 0 | AV107: 0 | AW107: 0 | AX107: 0 | AY107: 0 | AZ107: 0 | BA107: 0 | BB107: 0 | BC107: 0 | BD107: 0 | BE107: 0 | BF107: 0 | BG107: 0
B108: Fewer unplanned outages in the worst served areas | G108: ='1_KMA'!$I$20 -> 2024-06-30 | H108: ='1_KMA'!$I$19 -> $millions | J108: =J104*$J$99 -> 0 | K108: =K104*$J$99 -> 0 | L108: =L104*$J$99 -> 0 | M108: =M104*$J$99 -> 0 | N108: =N104*$J$99 -> 0 | O108: =O104*$J$99 -> 0 | P108: 0 | Q108: 0 | R108: 0 | S108: 0 | T108: 0 | U108: 0 | V108: 0 | W108: 0 | X108: 0 | Y108: 0 | Z108: 0 | AA108: 0 | AB108: 0 | AC108: 0 | AD108: 0 | AE108: 0 | AF108: 0 | AG108: 0 | AH108: 0 | AI108: 0 | AJ108: 0 | AK108: 0 | AL108: 0 | AM108: 0 | AN108: 0 | AO108: 0 | AP108: 0 | AQ108: 0 | AR108: 0 | AS108: 0 | AT108: 0 | AU108: 0 | AV108: 0 | AW108: 0 | AX108: 0 | AY108: 0 | AZ108: 0 | BA108: 0 | BB108: 0 | BC108: 0 | BD108: 0 | BE108: 0 | BF108: 0 | BG108: 0
G110: $ Basis Reminder | H110: $ Reminder | J110: Summary table above picks up this total row
B111: Total | G111: ='1_KMA'!$I$20 -> 2024-06-30 | H111: ='1_KMA'!$I$19 -> $millions | J111: =SUM(J107:J108) -> 0 | K111: =SUM(K107:K108) -> 0 | L111: 0 | M111: 0 | N111: =SUM(N107:N108) -> 0 | O111: 0 | P111: 0 | Q111: 0 | R111: 0 | S111: 0 | T111: 0 | U111: 0 | V111: 0 | W111: 0 | X111: 0 | Y111: 0 | Z111: 0 | AA111: 0 | AB111: 0 | AC111: 0 | AD111: 0 | AE111: 0 | AF111: 0 | AG111: 0 | AH111: 0 | AI111: 0 | AJ111: 0 | AK111: 0 | AL111: 0 | AM111: 0 | AN111: 0 | AO111: 0 | AP111: 0 | AQ111: 0 | AR111: 0 | AS111: 0 | AT111: 0 | AU111: 0 | AV111: 0 | AW111: 0 | AX111: 0 | AY111: 0 | AZ111: 0 | BA111: 0 | BB111: 0 | BC111: 0 | BD111: 0 | BE111: 0 | BF111: 0 | BG111: 0
B113: Resilience
B115: QCV research | H115: Unit | J115: Unit Rate
B116: Fewer unplanned outages, longer than 12 hours
B117: Faster restoration of power when an outage has occurred
B118: Community hub offering essential services during long duration outages
H121: Unit | J121: Quantities
B122: Fewer unplanned outages, longer than 12 hours
B123: Faster restoration of power when an outage has occurred
B124: Community hub offering essential services
G126: $ Basis Reminder | H126: $ Reminder | J126: ="Values - ensure values have been converted to "&'1_KMA'!$I$19 -> Values - ensure values have been converted to $millions
B127: Fewer unplanned outages, longer than 12 hours | G127: ='1_KMA'!$I$20 -> 2024-06-30 | H127: ='1_KMA'!$I$19 -> $millions | J127: =J122*'2.1_BAU'!$J$116 -> 0 | K127: =K122*'2.1_BAU'!$J$116 -> 0 | L127: =L122*'2.1_BAU'!$J$116 -> 0 | M127: =M122*'2.1_BAU'!$J$116 -> 0 | N127: =N122*'2.1_BAU'!$J$116 -> 0 | O127: =O122*'2.1_BAU'!$J$116 -> 0 | P127: =P122*'2.1_BAU'!$J$116 -> 0 | Q127: =Q122*'2.1_BAU'!$J$116 -> 0 | R127: =R122*'2.1_BAU'!$J$116 -> 0 | S127: =S122*'2.1_BAU'!$J$116 -> 0 | T127: =T122*'2.1_BAU'!$J$116 -> 0 | U127: =U122*'2.1_BAU'!$J$116 -> 0 | V127: =V122*'2.1_BAU'!$J$116 -> 0 | W127: =W122*'2.1_BAU'!$J$116 -> 0 | X127: =X122*'2.1_BAU'!$J$116 -> 0 | Y127: =Y122*'2.1_BAU'!$J$116 -> 0 | Z127: =Z122*'2.1_BAU'!$J$116 -> 0 | AA127: =AA122*'2.1_BAU'!$J$116 -> 0 | AB127: =AB122*'2.1_BAU'!$J$116 -> 0 | AC127: =AC122*'2.1_BAU'!$J$116 -> 0 | AD127: =AD122*'2.1_BAU'!$J$116 -> 0 | AE127: =AE122*'2.1_BAU'!$J$116 -> 0 | AF127: =AF122*'2.1_BAU'!$J$116 -> 0 | AG127: =AG122*'2.1_BAU'!$J$116 -> 0 | AH127: =AH122*'2.1_BAU'!$J$116 -> 0 | AI127: =AI122*'2.1_BAU'!$J$116 -> 0 | AJ127: =AJ122*'2.1_BAU'!$J$116 -> 0 | AK127: =AK122*'2.1_BAU'!$J$116 -> 0 | AL127: =AL122*'2.1_BAU'!$J$116 -> 0 | AM127: =AM122*'2.1_BAU'!$J$116 -> 0 | AN127: =AN122*'2.1_BAU'!$J$116 -> 0 | AO127: =AO122*'2.1_BAU'!$J$116 -> 0 | AP127: =AP122*'2.1_BAU'!$J$116 -> 0 | AQ127: =AQ122*'2.1_BAU'!$J$116 -> 0 | AR127: =AR122*'2.1_BAU'!$J$116 -> 0 | AS127: =AS122*'2.1_BAU'!$J$116 -> 0 | AT127: =AT122*'2.1_BAU'!$J$116 -> 0 | AU127: =AU122*'2.1_BAU'!$J$116 -> 0 | AV127: =AV122*'2.1_BAU'!$J$116 -> 0 | AW127: =AW122*'2.1_BAU'!$J$116 -> 0 | AX127: =AX122*'2.1_BAU'!$J$116 -> 0 | AY127: =AY122*'2.1_BAU'!$J$116 -> 0 | AZ127: =AZ122*'2.1_BAU'!$J$116 -> 0 | BA127: =BA122*'2.1_BAU'!$J$116 -> 0 | BB127: =BB122*'2.1_BAU'!$J$116 -> 0 | BC127: =BC122*'2.1_BAU'!$J$116 -> 0 | BD127: =BD122*'2.1_BAU'!$J$116 -> 0 | BE127: =BE122*'2.1_BAU'!$J$116 -> 0 | BF127: =BF122*'2.1_BAU'!$J$116 -> 0 | BG127: =BG122*'2.1_BAU'!$J$116 -> 0
B128: Faster restoration of power when an outage has occurred | G128: ='1_KMA'!$I$20 -> 2024-06-30 | H128: ='1_KMA'!$I$19 -> $millions | J128: =J123*'2.1_BAU'!$J$117 -> 0 | K128: =K123*'2.1_BAU'!$J$117 -> 0 | L128: =L123*'2.1_BAU'!$J$117 -> 0 | M128: =M123*'2.1_BAU'!$J$117 -> 0 | N128: =N123*'2.1_BAU'!$J$117 -> 0 | O128: =O123*'2.1_BAU'!$J$117 -> 0 | P128: =P123*'2.1_BAU'!$J$117 -> 0 | Q128: =Q123*'2.1_BAU'!$J$117 -> 0 | R128: =R123*'2.1_BAU'!$J$117 -> 0 | S128: =S123*'2.1_BAU'!$J$117 -> 0 | T128: =T123*'2.1_BAU'!$J$117 -> 0 | U128: =U123*'2.1_BAU'!$J$117 -> 0 | V128: =V123*'2.1_BAU'!$J$117 -> 0 | W128: =W123*'2.1_BAU'!$J$117 -> 0 | X128: =X123*'2.1_BAU'!$J$117 -> 0 | Y128: =Y123*'2.1_BAU'!$J$117 -> 0 | Z128: =Z123*'2.1_BAU'!$J$117 -> 0 | AA128: =AA123*'2.1_BAU'!$J$117 -> 0 | AB128: =AB123*'2.1_BAU'!$J$117 -> 0 | AC128: =AC123*'2.1_BAU'!$J$117 -> 0 | AD128: =AD123*'2.1_BAU'!$J$117 -> 0 | AE128: =AE123*'2.1_BAU'!$J$117 -> 0 | AF128: =AF123*'2.1_BAU'!$J$117 -> 0 | AG128: =AG123*'2.1_BAU'!$J$117 -> 0 | AH128: =AH123*'2.1_BAU'!$J$117 -> 0 | AI128: =AI123*'2.1_BAU'!$J$117 -> 0 | AJ128: =AJ123*'2.1_BAU'!$J$117 -> 0 | AK128: =AK123*'2.1_BAU'!$J$117 -> 0 | AL128: =AL123*'2.1_BAU'!$J$117 -> 0 | AM128: =AM123*'2.1_BAU'!$J$117 -> 0 | AN128: =AN123*'2.1_BAU'!$J$117 -> 0 | AO128: =AO123*'2.1_BAU'!$J$117 -> 0 | AP128: =AP123*'2.1_BAU'!$J$117 -> 0 | AQ128: =AQ123*'2.1_BAU'!$J$117 -> 0 | AR128: =AR123*'2.1_BAU'!$J$117 -> 0 | AS128: =AS123*'2.1_BAU'!$J$117 -> 0 | AT128: =AT123*'2.1_BAU'!$J$117 -> 0 | AU128: =AU123*'2.1_BAU'!$J$117 -> 0 | AV128: =AV123*'2.1_BAU'!$J$117 -> 0 | AW128: =AW123*'2.1_BAU'!$J$117 -> 0 | AX128: =AX123*'2.1_BAU'!$J$117 -> 0 | AY128: =AY123*'2.1_BAU'!$J$117 -> 0 | AZ128: =AZ123*'2.1_BAU'!$J$117 -> 0 | BA128: =BA123*'2.1_BAU'!$J$117 -> 0 | BB128: =BB123*'2.1_BAU'!$J$117 -> 0 | BC128: =BC123*'2.1_BAU'!$J$117 -> 0 | BD128: =BD123*'2.1_BAU'!$J$117 -> 0 | BE128: =BE123*'2.1_BAU'!$J$117 -> 0 | BF128: =BF123*'2.1_BAU'!$J$117 -> 0 | BG128: =BG123*'2.1_BAU'!$J$117 -> 0
B129: Community hub offering essential services | G129: ='1_KMA'!$I$20 -> 2024-06-30 | H129: ='1_KMA'!$I$19 -> $millions | J129: =J124*'2.1_BAU'!$J$118 -> 0 | K129: =K124*'2.1_BAU'!$J$118 -> 0 | L129: =L124*'2.1_BAU'!$J$118 -> 0 | M129: =M124*'2.1_BAU'!$J$118 -> 0 | N129: =N124*'2.1_BAU'!$J$118 -> 0 | O129: =O124*'2.1_BAU'!$J$118 -> 0 | P129: =P124*'2.1_BAU'!$J$118 -> 0 | Q129: =Q124*'2.1_BAU'!$J$118 -> 0 | R129: =R124*'2.1_BAU'!$J$118 -> 0 | S129: =S124*'2.1_BAU'!$J$118 -> 0 | T129: =T124*'2.1_BAU'!$J$118 -> 0 | U129: =U124*'2.1_BAU'!$J$118 -> 0 | V129: =V124*'2.1_BAU'!$J$118 -> 0 | W129: =W124*'2.1_BAU'!$J$118 -> 0 | X129: =X124*'2.1_BAU'!$J$118 -> 0 | Y129: =Y124*'2.1_BAU'!$J$118 -> 0 | Z129: =Z124*'2.1_BAU'!$J$118 -> 0 | AA129: =AA124*'2.1_BAU'!$J$118 -> 0 | AB129: =AB124*'2.1_BAU'!$J$118 -> 0 | AC129: =AC124*'2.1_BAU'!$J$118 -> 0 | AD129: =AD124*'2.1_BAU'!$J$118 -> 0 | AE129: =AE124*'2.1_BAU'!$J$118 -> 0 | AF129: =AF124*'2.1_BAU'!$J$118 -> 0 | AG129: =AG124*'2.1_BAU'!$J$118 -> 0 | AH129: =AH124*'2.1_BAU'!$J$118 -> 0 | AI129: =AI124*'2.1_BAU'!$J$118 -> 0 | AJ129: =AJ124*'2.1_BAU'!$J$118 -> 0 | AK129: =AK124*'2.1_BAU'!$J$118 -> 0 | AL129: =AL124*'2.1_BAU'!$J$118 -> 0 | AM129: =AM124*'2.1_BAU'!$J$118 -> 0 | AN129: =AN124*'2.1_BAU'!$J$118 -> 0 | AO129: =AO124*'2.1_BAU'!$J$118 -> 0 | AP129: =AP124*'2.1_BAU'!$J$118 -> 0 | AQ129: =AQ124*'2.1_BAU'!$J$118 -> 0 | AR129: =AR124*'2.1_BAU'!$J$118 -> 0 | AS129: =AS124*'2.1_BAU'!$J$118 -> 0 | AT129: =AT124*'2.1_BAU'!$J$118 -> 0 | AU129: =AU124*'2.1_BAU'!$J$118 -> 0 | AV129: =AV124*'2.1_BAU'!$J$118 -> 0 | AW129: =AW124*'2.1_BAU'!$J$118 -> 0 | AX129: =AX124*'2.1_BAU'!$J$118 -> 0 | AY129: =AY124*'2.1_BAU'!$J$118 -> 0 | AZ129: =AZ124*'2.1_BAU'!$J$118 -> 0 | BA129: =BA124*'2.1_BAU'!$J$118 -> 0 | BB129: =BB124*'2.1_BAU'!$J$118 -> 0 | BC129: =BC124*'2.1_BAU'!$J$118 -> 0 | BD129: =BD124*'2.1_BAU'!$J$118 -> 0 | BE129: =BE124*'2.1_BAU'!$J$118 -> 0 | BF129: =BF124*'2.1_BAU'!$J$118 -> 0 | BG129: =BG124*'2.1_BAU'!$J$118 -> 0
G131: $ Basis Reminder | H131: $ Reminder | J131: Summary table above picks up this total row
B132: Total | G132: ='1_KMA'!$I$20 -> 2024-06-30 | H132: ='1_KMA'!$I$19 -> $millions | J132: =SUM(J127:J129) -> 0 | K132: =SUM(K127:K129) -> 0 | L132: =SUM(L127:L129) -> 0 | M132: 0 | N132: 0 | O132: 0 | P132: 0 | Q132: 0 | R132: 0 | S132: 0 | T132: 0 | U132: 0 | V132: 0 | W132: 0 | X132: 0 | Y132: 0 | Z132: 0 | AA132: 0 | AB132: 0 | AC132: 0 | AD132: 0 | AE132: 0 | AF132: 0 | AG132: 0 | AH132: 0 | AI132: 0 | AJ132: 0 | AK132: 0 | AL132: 0 | AM132: 0 | AN132: 0 | AO132: 0 | AP132: 0 | AQ132: 0 | AR132: 0 | AS132: 0 | AT132: 0 | AU132: 0 | AV132: 0 | AW132: 0 | AX132: 0 | AY132: 0 | AZ132: 0 | BA132: 0 | BB132: 0 | BC132: 0 | BD132: 0 | BE132: 0 | BF132: 0 | BG132: 0
B134: Batteries
B136: AusNet Savings from Wholesale Arbitrage
H137: Unit | J137: Value
B138: Wholesale market price differential | H138: [e.g. $dollars per MWh]
B139: AusNet Share in Wholesale arbitrage | H139: [e.g. %]
B140: Average annual battery derating | H140: [e.g. % p.a.]
H142: Unit | J142: Location 1 | K142: Location 2 | L142: Location 3 | M142: Location 4 | N142: Location 5
B143: Battery Rating (kW) | H143: kW
B144: Battery Rating (hr) | H144: hr
B145: Battery Rating (kWh) | H145: kWh | J145: =J143*J144 -> 0 | K145: =K143*K144 -> 0 | L145: =L143*L144 -> 0 | M145: =M143*M144 -> 0 | N145: =N143*N144 -> 0
B146: Retailer benefit by wholesale arbitrage | H146: [e.g. $millions, $thousands or $dollars per year] | J146: =J145*$J$138*0.8*5*52/1000 -> 0 | K146: =K145*$J$138*0.8*5*52/1000 -> 0 | L146: =L145*$J$138*0.8*5*52/1000 -> 0 | M146: =M145*$J$138*0.8*5*52/1000 -> 0 | N146: =N145*$J$138*0.8*5*52/1000 -> 0
G148: $ Basis Reminder | H148: $ Reminder | J148: ="Values - ensure values have been converted to "&'1_KMA'!$I$19 -> Values - ensure values have been converted to $millions
B149: AusNet Savings from Wholesale Arbitrage | G149: ='1_KMA'!$I$20 -> 2024-06-30 | H149: ='1_KMA'!$I$19 -> $millions | J149: =(SUM($J$146:$N$146)*$J$139*(1/(1+$J$140)^(J4-1)))/10^6 -> 0 | K149: =(SUM($J$146:$N$146)*$J$139*(1/(1+$J$140)^(K4-1)))/10^6 -> 0 | L149: =(SUM($J$146:$N$146)*$J$139*(1/(1+$J$140)^(L4-1)))/10^6 -> 0 | M149: 0 | N149: =(SUM($J$146:$N$146)*$J$139*(1/(1+$J$140)^(N4-1)))/10^6 -> 0 | O149: 0 | P149: 0 | Q149: =(SUM($J$146:$N$146)*$J$139*(1/(1+$J$140)^(Q4-1)))/10^6 -> 0 | R149: 0 | S149: 0 | T149: 0 | U149: 0 | V149: 0 | W149: 0 | X149: 0 | Y149: 0 | Z149: 0 | AA149: 0 | AB149: 0 | AC149: 0 | AD149: 0 | AE149: 0 | AF149: 0 | AG149: 0 | AH149: 0 | AI149: 0 | AJ149: 0 | AK149: 0 | AL149: 0 | AM149: 0 | AN149: 0 | AO149: 0 | AP149: 0 | AQ149: 0 | AR149: 0 | AS149: 0 | AT149: 0 | AU149: 0 | AV149: 0 | AW149: 0 | AX149: 0 | AY149: 0 | AZ149: 0 | BA149: 0 | BB149: 0 | BC149: 0 | BD149: 0 | BE149: 0 | BF149: 0 | BG149: 0
B151: AusNet Revenue from FCAS
H152: Unit | J152: Value
B153: FCAS participation price | H153: [e.g. $ollars per MW per hour]
B154: Average annual participation All batteries | H154: [e.g. MW per hour]
G156: $ Basis Reminder | H156: $ Reminder | J156: ="Values - ensure values have been converted to "&'1_KMA'!$I$19 -> Values - ensure values have been converted to $millions
B157: AusNet Revenue from FCAS | G157: ='1_KMA'!$I$20 -> 2024-06-30 | H157: ='1_KMA'!$I$19 -> $millions | J157: =$J$153*$J$154/10^6 -> 0 | K157: =$J$153*$J$154/10^6 -> 0 | L157: 0 | M157: 0 | N157: 0 | O157: 0 | P157: 0 | Q157: 0 | R157: 0 | S157: 0 | T157: 0 | U157: 0 | V157: 0 | W157: 0 | X157: 0 | Y157: 0 | Z157: 0 | AA157: 0 | AB157: 0 | AC157: 0 | AD157: 0 | AE157: 0 | AF157: 0 | AG157: 0 | AH157: 0 | AI157: 0 | AJ157: 0 | AK157: 0 | AL157: 0 | AM157: 0 | AN157: 0 | AO157: 0 | AP157: 0 | AQ157: 0 | AR157: 0 | AS157: 0 | AT157: 0 | AU157: 0 | AV157: 0 | AW157: 0 | AX157: 0 | AY157: 0 | AZ157: 0 | BA157: 0 | BB157: 0 | BC157: 0 | BD157: 0 | BE157: 0 | BF157: 0 | BG157: 0
B159: AusNet Savings from Avoided Penalties
H160: Unit | J160: Location 1 | K160: Location 2 | L160: Location 3 | M160: Location 4 | N160: Location 5
B161: Number of average outage events | H161: [e.g. Events per year]
B162: Average Ausnet penalty for outage | H162: [e.g. $dollars per event]
G164: $ Basis Reminder | H164: $ Reminder | J164: ="Values - ensure values have been converted to "&'1_KMA'!$I$19 -> Values - ensure values have been converted to $millions
B165: Ausnet Savings from Avoided Penalties | G165: ='1_KMA'!$I$20 -> 2024-06-30 | H165: ='1_KMA'!$I$19 -> $millions | J165: =SUMPRODUCT($J$161:$N$161,$J$162:$N$162)/10^6 -> 0 | K165: =SUMPRODUCT($J$161:$N$161,$J$162:$N$162)/10^6 -> 0 | L165: 0 | M165: 0 | N165: 0 | O165: 0 | P165: 0 | Q165: 0 | R165: 0 | S165: 0 | T165: 0 | U165: 0 | V165: 0 | W165: 0 | X165: 0 | Y165: 0 | Z165: 0 | AA165: 0 | AB165: 0 | AC165: 0 | AD165: 0 | AE165: 0 | AF165: 0 | AG165: 0 | AH165: 0 | AI165: 0 | AJ165: 0 | AK165: 0 | AL165: 0 | AM165: 0 | AN165: 0 | AO165: 0 | AP165: 0 | AQ165: 0 | AR165: 0 | AS165: 0 | AT165: 0 | AU165: 0 | AV165: 0 | AW165: 0 | AX165: 0 | AY165: 0 | AZ165: 0 | BA165: 0 | BB165: 0 | BC165: 0 | BD165: 0 | BE165: 0 | BF165: 0 | BG165: 0
G167: $ Basis Reminder | H167: $ Reminder | J167: Summary table above picks up this total row
B168: Total | G168: ='1_KMA'!$I$20 -> 2024-06-30 | H168: ='1_KMA'!$I$19 -> $millions | J168: =J149+J157+J165 -> 0 | K168: =K149+K157+K165 -> 0 | L168: 0 | M168: 0 | N168: 0 | O168: 0 | P168: 0 | Q168: 0 | R168: 0 | S168: 0 | T168: 0 | U168: 0 | V168: 0 | W168: 0 | X168: 0 | Y168: 0 | Z168: 0 | AA168: 0 | AB168: 0 | AC168: 0 | AD168: 0 | AE168: 0 | AF168: 0 | AG168: 0 | AH168: 0 | AI168: 0 | AJ168: 0 | AK168: 0 | AL168: 0 | AM168: 0 | AN168: 0 | AO168: 0 | AP168: 0 | AQ168: 0 | AR168: 0 | AS168: 0 | AT168: 0 | AU168: 0 | AV168: 0 | AW168: 0 | AX168: 0 | AY168: 0 | AZ168: 0 | BA168: 0 | BB168: 0 | BC168: 0 | BD168: 0 | BE168: 0 | BF168: 0 | BG168: 0
B170: Others

Sheet 2.1_Op1
B1: General Inputs: Option 1 | I1: Regulatory Period Indicator | J1: ='1_KMA'!J30 -> 1 | K1: ='1_KMA'!K30 -> 1 | L1: ='1_KMA'!L30 -> 1 | M1: ='1_KMA'!M30 -> 1 | N1: ='1_KMA'!N30 -> 1 | O1: ='1_KMA'!O30 -> 0 | P1: ='1_KMA'!P30 -> 0 | Q1: ='1_KMA'!Q30 -> 0 | R1: ='1_KMA'!R30 -> 0 | S1: ='1_KMA'!S30 -> 0 | T1: ='1_KMA'!T30 -> 0 | U1: ='1_KMA'!U30 -> 0 | V1: ='1_KMA'!V30 -> 0 | W1: ='1_KMA'!W30 -> 0 | X1: ='1_KMA'!X30 -> 0 | Y1: ='1_KMA'!Y30 -> 0 | Z1: ='1_KMA'!Z30 -> 0 | AA1: ='1_KMA'!AA30 -> 0 | AB1: ='1_KMA'!AB30 -> 0 | AC1: ='1_KMA'!AC30 -> 0 | AD1: ='1_KMA'!AD30 -> 0 | AE1: ='1_KMA'!AE30 -> 0 | AF1: ='1_KMA'!AF30 -> 0 | AG1: ='1_KMA'!AG30 -> 0 | AH1: ='1_KMA'!AH30 -> 0 | AI1: ='1_KMA'!AI30 -> 0 | AJ1: ='1_KMA'!AJ30 -> 0 | AK1: ='1_KMA'!AK30 -> 0 | AL1: ='1_KMA'!AL30 -> 0 | AM1: ='1_KMA'!AM30 -> 0 | AN1: ='1_KMA'!AN30 -> 0 | AO1: ='1_KMA'!AO30 -> 0 | AP1: ='1_KMA'!AP30 -> 0 | AQ1: ='1_KMA'!AQ30 -> 0 | AR1: ='1_KMA'!AR30 -> 0 | AS1: ='1_KMA'!AS30 -> 0 | AT1: ='1_KMA'!AT30 -> 0 | AU1: ='1_KMA'!AU30 -> 0 | AV1: ='1_KMA'!AV30 -> 0 | AW1: ='1_KMA'!AW30 -> 0 | AX1: ='1_KMA'!AX30 -> 0 | AY1: ='1_KMA'!AY30 -> 0 | AZ1: ='1_KMA'!AZ30 -> 0 | BA1: ='1_KMA'!BA30 -> 0 | BB1: ='1_KMA'!BB30 -> 0 | BC1: ='1_KMA'!BC30 -> 0 | BD1: ='1_KMA'!BD30 -> 0 | BE1: ='1_KMA'!BE30 -> 0 | BF1: ='1_KMA'!BF30 -> 0 | BG1: ='1_KMA'!BG30 -> 0
B2: =Cover!$C$9 -> AusNet Services | I2: Period Start Date | J2: ='1_KMA'!J31 -> 2026-07-01 | K2: ='1_KMA'!K31 -> 2027-07-01 | L2: ='1_KMA'!L31 -> 2028-07-01 | M2: ='1_KMA'!M31 -> 2029-07-01 | N2: ='1_KMA'!N31 -> 2030-07-01 | O2: ='1_KMA'!O31 -> 2031-07-01 | P2: ='1_KMA'!P31 -> 2032-07-01 | Q2: ='1_KMA'!Q31 -> 2033-07-01 | R2: ='1_KMA'!R31 -> 2034-07-01 | S2: ='1_KMA'!S31 -> 2035-07-01 | T2: ='1_KMA'!T31 -> 2036-07-01 | U2: ='1_KMA'!U31 -> 2037-07-01 | V2: ='1_KMA'!V31 -> 2038-07-01 | W2: ='1_KMA'!W31 -> 2039-07-01 | X2: ='1_KMA'!X31 -> 2040-07-01 | Y2: ='1_KMA'!Y31 -> 2041-07-01 | Z2: ='1_KMA'!Z31 -> 2042-07-01 | AA2: ='1_KMA'!AA31 -> 2043-07-01 | AB2: ='1_KMA'!AB31 -> 2044-07-01 | AC2: ='1_KMA'!AC31 -> 2045-07-01 | AD2: ='1_KMA'!AD31 -> 2046-07-01 | AE2: ='1_KMA'!AE31 -> 2047-07-01 | AF2: ='1_KMA'!AF31 -> 2048-07-01 | AG2: ='1_KMA'!AG31 -> 2049-07-01 | AH2: ='1_KMA'!AH31 -> 2050-07-01 | AI2: ='1_KMA'!AI31 -> 2051-07-01 | AJ2: ='1_KMA'!AJ31 -> 2052-07-01 | AK2: ='1_KMA'!AK31 -> 2053-07-01 | AL2: ='1_KMA'!AL31 -> 2054-07-01 | AM2: ='1_KMA'!AM31 -> 2055-07-01 | AN2: ='1_KMA'!AN31 -> 2056-07-01 | AO2: ='1_KMA'!AO31 -> 2057-07-01 | AP2: ='1_KMA'!AP31 -> 2058-07-01 | AQ2: ='1_KMA'!AQ31 -> 2059-07-01 | AR2: ='1_KMA'!AR31 -> 2060-07-01 | AS2: ='1_KMA'!AS31 -> 2061-07-01 | AT2: ='1_KMA'!AT31 -> 2062-07-01 | AU2: ='1_KMA'!AU31 -> 2063-07-01 | AV2: ='1_KMA'!AV31 -> 2064-07-01 | AW2: ='1_KMA'!AW31 -> 2065-07-01 | AX2: ='1_KMA'!AX31 -> 2066-07-01 | AY2: ='1_KMA'!AY31 -> 2067-07-01 | AZ2: ='1_KMA'!AZ31 -> 2068-07-01 | BA2: ='1_KMA'!BA31 -> 2069-07-01 | BB2: ='1_KMA'!BB31 -> 2070-07-01 | BC2: ='1_KMA'!BC31 -> 2071-07-01 | BD2: ='1_KMA'!BD31 -> 2072-07-01 | BE2: ='1_KMA'!BE31 -> 2073-07-01 | BF2: ='1_KMA'!BF31 -> 2074-07-01 | BG2: ='1_KMA'!BG31 -> 2075-07-01
B3: =Cover!$C$10 -> Business Case Evaluation | I3: Period End Date | J3: ='1_KMA'!J32 -> 2027-06-30 | K3: ='1_KMA'!K32 -> 2028-06-30 | L3: ='1_KMA'!L32 -> 2029-06-30 | M3: ='1_KMA'!M32 -> 2030-06-30 | N3: ='1_KMA'!N32 -> 2031-06-30 | O3: ='1_KMA'!O32 -> 2032-06-30 | P3: ='1_KMA'!P32 -> 2033-06-30 | Q3: ='1_KMA'!Q32 -> 2034-06-30 | R3: ='1_KMA'!R32 -> 2035-06-30 | S3: ='1_KMA'!S32 -> 2036-06-30 | T3: ='1_KMA'!T32 -> 2037-06-30 | U3: ='1_KMA'!U32 -> 2038-06-30 | V3: ='1_KMA'!V32 -> 2039-06-30 | W3: ='1_KMA'!W32 -> 2040-06-30 | X3: ='1_KMA'!X32 -> 2041-06-30 | Y3: ='1_KMA'!Y32 -> 2042-06-30 | Z3: ='1_KMA'!Z32 -> 2043-06-30 | AA3: ='1_KMA'!AA32 -> 2044-06-30 | AB3: ='1_KMA'!AB32 -> 2045-06-30 | AC3: ='1_KMA'!AC32 -> 2046-06-30 | AD3: ='1_KMA'!AD32 -> 2047-06-30 | AE3: ='1_KMA'!AE32 -> 2048-06-30 | AF3: ='1_KMA'!AF32 -> 2049-06-30 | AG3: ='1_KMA'!AG32 -> 2050-06-30 | AH3: ='1_KMA'!AH32 -> 2051-06-30 | AI3: ='1_KMA'!AI32 -> 2052-06-30 | AJ3: ='1_KMA'!AJ32 -> 2053-06-30 | AK3: ='1_KMA'!AK32 -> 2054-06-30 | AL3: ='1_KMA'!AL32 -> 2055-06-30 | AM3: ='1_KMA'!AM32 -> 2056-06-30 | AN3: ='1_KMA'!AN32 -> 2057-06-30 | AO3: ='1_KMA'!AO32 -> 2058-06-30 | AP3: ='1_KMA'!AP32 -> 2059-06-30 | AQ3: ='1_KMA'!AQ32 -> 2060-06-30 | AR3: ='1_KMA'!AR32 -> 2061-06-30 | AS3: ='1_KMA'!AS32 -> 2062-06-30 | AT3: ='1_KMA'!AT32 -> 2063-06-30 | AU3: ='1_KMA'!AU32 -> 2064-06-30 | AV3: ='1_KMA'!AV32 -> 2065-06-30 | AW3: ='1_KMA'!AW32 -> 2066-06-30 | AX3: ='1_KMA'!AX32 -> 2067-06-30 | AY3: ='1_KMA'!AY32 -> 2068-06-30 | AZ3: ='1_KMA'!AZ32 -> 2069-06-30 | BA3: ='1_KMA'!BA32 -> 2070-06-30 | BB3: ='1_KMA'!BB32 -> 2071-06-30 | BC3: ='1_KMA'!BC32 -> 2072-06-30 | BD3: ='1_KMA'!BD32 -> 2073-06-30 | BE3: ='1_KMA'!BE32 -> 2074-06-30 | BF3: ='1_KMA'!BF32 -> 2075-06-30 | BG3: ='1_KMA'!BG32 -> 2076-06-30
B4: =Cover!$C$11 -> South Morang Training Facility | I4: Project Year | J4: ='1_KMA'!J33 -> 1 | K4: ='1_KMA'!K33 -> 2 | L4: ='1_KMA'!L33 -> 3 | M4: ='1_KMA'!M33 -> 4 | N4: ='1_KMA'!N33 -> 5 | O4: ='1_KMA'!O33 -> 6 | P4: ='1_KMA'!P33 -> 7 | Q4: ='1_KMA'!Q33 -> 8 | R4: ='1_KMA'!R33 -> 9 | S4: ='1_KMA'!S33 -> 10 | T4: ='1_KMA'!T33 -> 11 | U4: ='1_KMA'!U33 -> 12 | V4: ='1_KMA'!V33 -> 13 | W4: ='1_KMA'!W33 -> 14 | X4: ='1_KMA'!X33 -> 15 | Y4: ='1_KMA'!Y33 -> 16 | Z4: ='1_KMA'!Z33 -> 17 | AA4: ='1_KMA'!AA33 -> 18 | AB4: ='1_KMA'!AB33 -> 19 | AC4: ='1_KMA'!AC33 -> 20 | AD4: ='1_KMA'!AD33 -> 21 | AE4: ='1_KMA'!AE33 -> 22 | AF4: ='1_KMA'!AF33 -> 23 | AG4: ='1_KMA'!AG33 -> 24 | AH4: ='1_KMA'!AH33 -> 25 | AI4: ='1_KMA'!AI33 -> 26 | AJ4: ='1_KMA'!AJ33 -> 27 | AK4: ='1_KMA'!AK33 -> 28 | AL4: ='1_KMA'!AL33 -> 29 | AM4: ='1_KMA'!AM33 -> 30 | AN4: ='1_KMA'!AN33 -> 31 | AO4: ='1_KMA'!AO33 -> 32 | AP4: ='1_KMA'!AP33 -> 33 | AQ4: ='1_KMA'!AQ33 -> 34 | AR4: ='1_KMA'!AR33 -> 35 | AS4: ='1_KMA'!AS33 -> 36 | AT4: ='1_KMA'!AT33 -> 37 | AU4: ='1_KMA'!AU33 -> 38 | AV4: ='1_KMA'!AV33 -> 39 | AW4: ='1_KMA'!AW33 -> 40 | AX4: ='1_KMA'!AX33 -> 41 | AY4: ='1_KMA'!AY33 -> 42 | AZ4: ='1_KMA'!AZ33 -> 43 | BA4: ='1_KMA'!BA33 -> 44 | BB4: ='1_KMA'!BB33 -> 45 | BC4: ='1_KMA'!BC33 -> 46 | BD4: ='1_KMA'!BD33 -> 47 | BE4: ='1_KMA'!BE33 -> 48 | BF4: ='1_KMA'!BF33 -> 49 | BG4: ='1_KMA'!BG33 -> 50
I5: Financial Year | J5: ='1_KMA'!J34 -> 2027 | K5: ='1_KMA'!K34 -> 2028 | L5: ='1_KMA'!L34 -> 2029 | M5: ='1_KMA'!M34 -> 2030 | N5: ='1_KMA'!N34 -> 2031 | O5: ='1_KMA'!O34 -> 2032 | P5: ='1_KMA'!P34 -> 2033 | Q5: ='1_KMA'!Q34 -> 2034 | R5: ='1_KMA'!R34 -> 2035 | S5: ='1_KMA'!S34 -> 2036 | T5: ='1_KMA'!T34 -> 2037 | U5: ='1_KMA'!U34 -> 2038 | V5: ='1_KMA'!V34 -> 2039 | W5: ='1_KMA'!W34 -> 2040 | X5: ='1_KMA'!X34 -> 2041 | Y5: ='1_KMA'!Y34 -> 2042 | Z5: ='1_KMA'!Z34 -> 2043 | AA5: ='1_KMA'!AA34 -> 2044 | AB5: ='1_KMA'!AB34 -> 2045 | AC5: ='1_KMA'!AC34 -> 2046 | AD5: ='1_KMA'!AD34 -> 2047 | AE5: ='1_KMA'!AE34 -> 2048 | AF5: ='1_KMA'!AF34 -> 2049 | AG5: ='1_KMA'!AG34 -> 2050 | AH5: ='1_KMA'!AH34 -> 2051 | AI5: ='1_KMA'!AI34 -> 2052 | AJ5: ='1_KMA'!AJ34 -> 2053 | AK5: ='1_KMA'!AK34 -> 2054 | AL5: ='1_KMA'!AL34 -> 2055 | AM5: ='1_KMA'!AM34 -> 2056 | AN5: ='1_KMA'!AN34 -> 2057 | AO5: ='1_KMA'!AO34 -> 2058 | AP5: ='1_KMA'!AP34 -> 2059 | AQ5: ='1_KMA'!AQ34 -> 2060 | AR5: ='1_KMA'!AR34 -> 2061 | AS5: ='1_KMA'!AS34 -> 2062 | AT5: ='1_KMA'!AT34 -> 2063 | AU5: ='1_KMA'!AU34 -> 2064 | AV5: ='1_KMA'!AV34 -> 2065 | AW5: ='1_KMA'!AW34 -> 2066 | AX5: ='1_KMA'!AX34 -> 2067 | AY5: ='1_KMA'!AY34 -> 2068 | AZ5: ='1_KMA'!AZ34 -> 2069 | BA5: ='1_KMA'!BA34 -> 2070 | BB5: ='1_KMA'!BB34 -> 2071 | BC5: ='1_KMA'!BC34 -> 2072 | BD5: ='1_KMA'!BD34 -> 2073 | BE5: ='1_KMA'!BE34 -> 2074 | BF5: ='1_KMA'!BF34 -> 2075 | BG5: ='1_KMA'!BG34 -> 2076
B7: Summary
B9: Costs | G9: $ Basis Reminder | H9: $ Reminder | J9: ="Ensure this section [Summary] is picking up the relevant rows" -> Ensure this section [Summary] is picking up the relevant rows
B10: Capex | G10: ='1_KMA'!$I$20 -> 2024-06-30 | H10: ='1_KMA'!$I$19 -> $millions | J10: 0 | K10: 0 | L10: 0 | M10: 12.4537 | N10: 0 | O10: 0 | P10: 0 | Q10: 0 | R10: 0 | S10: 0 | T10: 0 | U10: 0 | V10: 0 | W10: 0 | X10: 0 | Y10: 0 | Z10: 0 | AA10: 0 | AB10: 0 | AC10: 0 | AD10: 0 | AE10: 0 | AF10: 0 | AG10: 0 | AH10: 0 | AI10: 0 | AJ10: 0 | AK10: 0 | AL10: 0 | AM10: 0 | AN10: 0 | AO10: 0 | AP10: 0 | AQ10: 0 | AR10: 0 | AS10: 0 | AT10: 0 | AU10: 0 | AV10: 0 | AW10: 0 | AX10: 0 | AY10: 0 | AZ10: 0 | BA10: 0 | BB10: 0 | BC10: 0 | BD10: 0 | BE10: 0 | BF10: 0 | BG10: 0
B11: Capex offset | G11: ='1_KMA'!$I$20 -> 2024-06-30 | H11: ='1_KMA'!$I$19 -> $millions | J11: 0 | K11: 0 | L11: 0 | M11: 0 | N11: 0 | O11: 0 | P11: 0 | Q11: 0 | R11: 0 | S11: 0 | T11: 0 | U11: 0 | V11: 0 | W11: 0 | X11: 0 | Y11: 0 | Z11: 0 | AA11: 0 | AB11: 0 | AC11: 0 | AD11: 0 | AE11: 0 | AF11: 0 | AG11: 0 | AH11: 0 | AI11: 0 | AJ11: 0 | AK11: 0 | AL11: 0 | AM11: 0 | AN11: 0 | AO11: 0 | AP11: 0 | AQ11: 0 | AR11: 0 | AS11: 0 | AT11: 0 | AU11: 0 | AV11: 0 | AW11: 0 | AX11: 0 | AY11: 0 | AZ11: 0 | BA11: 0 | BB11: 0 | BC11: 0 | BD11: 0 | BE11: 0 | BF11: 0 | BG11: 0
B12: Opex | G12: ='1_KMA'!$I$20 -> 2024-06-30 | H12: ='1_KMA'!$I$19 -> $millions | J12: 0.318112 | K12: 0.416408 | L12: 0.513426 | M12: 0.856184 | N12: 1.200646 | O12: 1.355534 | P12: 1.507866 | Q12: 1.661476 | R12: 1.81466 | S12: 1.965714 | T12: 1.965714 | U12: 1.965714 | V12: 1.965714 | W12: 1.965714 | X12: 1.965714 | Y12: 1.965714 | Z12: 1.965714 | AA12: 1.965714 | AB12: 1.965714 | AC12: 1.965714 | AD12: 1.965714 | AE12: 1.965714 | AF12: 1.965714 | AG12: 1.965714 | AH12: 1.965714 | AI12: 1.965714 | AJ12: 1.965714 | AK12: 1.965714 | AL12: 1.965714 | AM12: 1.965714 | AN12: 1.965714 | AO12: 1.965714 | AP12: 1.965714 | AQ12: 1.965714 | AR12: 1.965714 | AS12: 1.965714 | AT12: 1.965714 | AU12: 1.965714 | AV12: 1.965714 | AW12: 1.965714 | AX12: 1.965714 | AY12: 1.965714 | AZ12: 1.965714 | BA12: 1.965714 | BB12: 1.965714 | BC12: 1.965714 | BD12: 1.965714 | BE12: 1.965714 | BF12: 1.965714 | BG12: 1.965714
B13: Total | G13: ='1_KMA'!$I$20 -> 2024-06-30 | H13: ='1_KMA'!$I$19 -> $millions | J13: 0.318112 | K13: 0.416408 | L13: 0.513426 | M13: 13.309884 | N13: 1.200646 | O13: 1.355534 | P13: 1.507866 | Q13: 1.661476 | R13: 1.81466 | S13: 1.965714 | T13: 1.965714 | U13: 1.965714 | V13: 1.965714 | W13: 1.965714 | X13: 1.965714 | Y13: 1.965714 | Z13: 1.965714 | AA13: 1.965714 | AB13: 1.965714 | AC13: 1.965714 | AD13: 1.965714 | AE13: 1.965714 | AF13: 1.965714 | AG13: 1.965714 | AH13: 1.965714 | AI13: 1.965714 | AJ13: 1.965714 | AK13: 1.965714 | AL13: 1.965714 | AM13: 1.965714 | AN13: 1.965714 | AO13: 1.965714 | AP13: 1.965714 | AQ13: 1.965714 | AR13: 1.965714 | AS13: 1.965714 | AT13: 1.965714 | AU13: 1.965714 | AV13: 1.965714 | AW13: 1.965714 | AX13: 1.965714 | AY13: 1.965714 | AZ13: 1.965714 | BA13: 1.965714 | BB13: 1.965714 | BC13: 1.965714 | BD13: 1.965714 | BE13: 1.965714 | BF13: 1.965714 | BG13: 1.965714
B15: Benefits | G15: $ Basis Reminder | H15: $ Reminder | J15: Ensure this section [Summary] is picking up the relevant rows
B16: Value of EUE | G16: ='1_KMA'!$I$20 -> 2024-06-30 | H16: ='1_KMA'!$I$19 -> $millions | J16: 0 | K16: 0 | L16: 0 | M16: 0 | N16: 0 | O16: 0 | P16: 0 | Q16: 0 | R16: 0 | S16: 0 | T16: 0 | U16: 0 | V16: 0 | W16: 0 | X16: 0 | Y16: 0 | Z16: 0 | AA16: 0 | AB16: 0 | AC16: 0 | AD16: 0 | AE16: 0 | AF16: 0 | AG16: 0 | AH16: 0 | AI16: 0 | AJ16: 0 | AK16: 0 | AL16: 0 | AM16: 0 | AN16: 0 | AO16: 0 | AP16: 0 | AQ16: 0 | AR16: 0 | AS16: 0 | AT16: 0 | AU16: 0 | AV16: 0 | AW16: 0 | AX16: 0 | AY16: 0 | AZ16: 0 | BA16: 0 | BB16: 0 | BC16: 0 | BD16: 0 | BE16: 0 | BF16: 0 | BG16: 0
B17: Reliability | G17: ='1_KMA'!$I$20 -> 2024-06-30 | H17: ='1_KMA'!$I$19 -> $millions | J17: 0 | K17: 0 | L17: 0 | M17: 0 | N17: 0 | O17: 0 | P17: 0 | Q17: 0 | R17: 0 | S17: 0 | T17: 0 | U17: 0 | V17: 0 | W17: 0 | X17: 0 | Y17: 0 | Z17: 0 | AA17: 0 | AB17: 0 | AC17: 0 | AD17: 0 | AE17: 0 | AF17: 0 | AG17: 0 | AH17: 0 | AI17: 0 | AJ17: 0 | AK17: 0 | AL17: 0 | AM17: 0 | AN17: 0 | AO17: 0 | AP17: 0 | AQ17: 0 | AR17: 0 | AS17: 0 | AT17: 0 | AU17: 0 | AV17: 0 | AW17: 0 | AX17: 0 | AY17: 0 | AZ17: 0 | BA17: 0 | BB17: 0 | BC17: 0 | BD17: 0 | BE17: 0 | BF17: 0 | BG17: 0
B18: Resilience | G18: ='1_KMA'!$I$20 -> 2024-06-30 | H18: ='1_KMA'!$I$19 -> $millions | J18: 0 | K18: 0 | L18: 0 | M18: 0 | N18: 0 | O18: 0 | P18: 0 | Q18: 0 | R18: 0 | S18: 0 | T18: 0 | U18: 0 | V18: 0 | W18: 0 | X18: 0 | Y18: 0 | Z18: 0 | AA18: 0 | AB18: 0 | AC18: 0 | AD18: 0 | AE18: 0 | AF18: 0 | AG18: 0 | AH18: 0 | AI18: 0 | AJ18: 0 | AK18: 0 | AL18: 0 | AM18: 0 | AN18: 0 | AO18: 0 | AP18: 0 | AQ18: 0 | AR18: 0 | AS18: 0 | AT18: 0 | AU18: 0 | AV18: 0 | AW18: 0 | AX18: 0 | AY18: 0 | AZ18: 0 | BA18: 0 | BB18: 0 | BC18: 0 | BD18: 0 | BE18: 0 | BF18: 0 | BG18: 0
B19: Batteries | G19: ='1_KMA'!$I$20 -> 2024-06-30 | H19: ='1_KMA'!$I$19 -> $millions | J19: 0 | K19: 0 | L19: 0 | M19: 0 | N19: 0 | O19: 0 | P19: 0 | Q19: 0 | R19: 0 | S19: 0 | T19: 0 | U19: 0 | V19: 0 | W19: 0 | X19: 0 | Y19: 0 | Z19: 0 | AA19: 0 | AB19: 0 | AC19: 0 | AD19: 0 | AE19: 0 | AF19: 0 | AG19: 0 | AH19: 0 | AI19: 0 | AJ19: 0 | AK19: 0 | AL19: 0 | AM19: 0 | AN19: 0 | AO19: 0 | AP19: 0 | AQ19: 0 | AR19: 0 | AS19: 0 | AT19: 0 | AU19: 0 | AV19: 0 | AW19: 0 | AX19: 0 | AY19: 0 | AZ19: 0 | BA19: 0 | BB19: 0 | BC19: 0 | BD19: 0 | BE19: 0 | BF19: 0 | BG19: 0
B20: Others | G20: ='1_KMA'!$I$20 -> 2024-06-30 | H20: ='1_KMA'!$I$19 -> $millions | J20: 0 | K20: 0 | L20: 0 | M20: 0 | N20: 0 | O20: 0 | P20: 0 | Q20: 0 | R20: 0 | S20: 0 | T20: 0 | U20: 0 | V20: 0 | W20: 0 | X20: 0 | Y20: 0 | Z20: 0 | AA20: 0 | AB20: 0 | AC20: 0 | AD20: 0 | AE20: 0 | AF20: 0 | AG20: 0 | AH20: 0 | AI20: 0 | AJ20: 0 | AK20: 0 | AL20: 0 | AM20: 0 | AN20: 0 | AO20: 0 | AP20: 0 | AQ20: 0 | AR20: 0 | AS20: 0 | AT20: 0 | AU20: 0 | AV20: 0 | AW20: 0 | AX20: 0 | AY20: 0 | AZ20: 0 | BA20: 0 | BB20: 0 | BC20: 0 | BD20: 0 | BE20: 0 | BF20: 0 | BG20: 0
B21: Total | G21: ='1_KMA'!$I$20 -> 2024-06-30 | H21: ='1_KMA'!$I$19 -> $millions | J21: 0 | K21: 0 | L21: 0 | M21: 0 | N21: 0 | O21: 0 | P21: 0 | Q21: 0 | R21: 0 | S21: 0 | T21: 0 | U21: 0 | V21: 0 | W21: 0 | X21: 0 | Y21: 0 | Z21: 0 | AA21: 0 | AB21: 0 | AC21: 0 | AD21: 0 | AE21: 0 | AF21: 0 | AG21: 0 | AH21: 0 | AI21: 0 | AJ21: 0 | AK21: 0 | AL21: 0 | AM21: 0 | AN21: 0 | AO21: 0 | AP21: 0 | AQ21: 0 | AR21: 0 | AS21: 0 | AT21: 0 | AU21: 0 | AV21: 0 | AW21: 0 | AX21: 0 | AY21: 0 | AZ21: 0 | BA21: 0 | BB21: 0 | BC21: 0 | BD21: 0 | BE21: 0 | BF21: 0 | BG21: 0
B24: Cost Inputs
B26: Capex Build Up
B28: Name | H28: Unit | J28: Unit Rate
B29: Construction of new facility | H29: 1 | J29: =22.241/2 -> 11.1205
B30: Upgrade of training equipment | H30: 1 | J30: =2.64/2 -> 1.32
B34: Name | H34: Unit | J34: Quantities
B35: =B29 -> Construction of new facility | H35: 1 | M35: 1
B36: =B30 -> Upgrade of training equipment | H36: 1 | M36: 1.01
B40: Name | G40: $ Basis Reminder | H40: $ Reminder | J40: ="Costs - ensure costs have been converted to "&'1_KMA'!$I$19 -> Costs - ensure costs have been converted to $millions
B41: =B29 -> Construction of new facility | G41: ='1_KMA'!$I$20 -> 2024-06-30 | H41: ='1_KMA'!$I$19 -> $millions | J41: =$J$29*J35 -> 0 | K41: =$J$29*K35 -> 0 | L41: =$J$29*L35 -> 0 | M41: 11.1205 | N41: 0 | O41: 0 | P41: 0 | Q41: 0 | R41: 0 | S41: 0 | T41: 0 | U41: 0 | V41: 0 | W41: 0 | X41: 0 | Y41: 0 | Z41: 0 | AA41: 0 | AB41: 0 | AC41: 0 | AD41: 0 | AE41: 0 | AF41: 0 | AG41: 0 | AH41: 0 | AI41: 0 | AJ41: 0 | AK41: 0 | AL41: 0 | AM41: 0 | AN41: 0 | AO41: 0 | AP41: 0 | AQ41: 0 | AR41: 0 | AS41: 0 | AT41: 0 | AU41: 0 | AV41: 0 | AW41: 0 | AX41: 0 | AY41: 0 | AZ41: 0 | BA41: 0 | BB41: 0 | BC41: 0 | BD41: 0 | BE41: 0 | BF41: 0 | BG41: 0
B42: =B30 -> Upgrade of training equipment | G42: ='1_KMA'!$I$20 -> 2024-06-30 | H42: ='1_KMA'!$I$19 -> $millions | J42: =$J$30*J36 -> 0 | K42: =$J$30*K36 -> 0 | L42: =$J$30*L36 -> 0 | M42: =$J$30*M36 -> 1.3332 | N42: =$J$30*N36 -> 0 | O42: 0 | P42: 0 | Q42: 0 | R42: 0 | S42: 0 | T42: 0 | U42: 0 | V42: 0 | W42: 0 | X42: 0 | Y42: 0 | Z42: 0 | AA42: 0 | AB42: 0 | AC42: 0 | AD42: 0 | AE42: 0 | AF42: 0 | AG42: 0 | AH42: 0 | AI42: 0 | AJ42: 0 | AK42: 0 | AL42: 0 | AM42: 0 | AN42: 0 | AO42: 0 | AP42: 0 | AQ42: 0 | AR42: 0 | AS42: 0 | AT42: 0 | AU42: 0 | AV42: 0 | AW42: 0 | AX42: 0 | AY42: 0 | AZ42: 0 | BA42: 0 | BB42: 0 | BC42: 0 | BD42: 0 | BE42: 0 | BF42: 0 | BG42: 0
G43: ='1_KMA'!$I$20 -> 2024-06-30 | H43: ='1_KMA'!$I$19 -> $millions | J43: =$J$31*J37 -> 0 | K43: =$J$31*K37 -> 0 | L43: =$J$31*L37 -> 0 | M43: 0 | N43: =$J$31*N37 -> 0 | O43: 0 | P43: 0 | Q43: 0 | R43: 0 | S43: 0 | T43: 0 | U43: 0 | V43: 0 | W43: 0 | X43: 0 | Y43: 0 | Z43: 0 | AA43: 0 | AB43: 0 | AC43: 0 | AD43: 0 | AE43: 0 | AF43: 0 | AG43: 0 | AH43: 0 | AI43: 0 | AJ43: 0 | AK43: 0 | AL43: 0 | AM43: 0 | AN43: 0 | AO43: 0 | AP43: 0 | AQ43: 0 | AR43: 0 | AS43: 0 | AT43: 0 | AU43: 0 | AV43: 0 | AW43: 0 | AX43: 0 | AY43: 0 | AZ43: 0 | BA43: 0 | BB43: 0 | BC43: 0 | BD43: 0 | BE43: 0 | BF43: 0 | BG43: 0
G44: ='1_KMA'!$I$20 -> 2024-06-30 | H44: ='1_KMA'!$I$19 -> $millions | J44: =$J$32*J38 -> 0 | K44: =$J$32*K38 -> 0 | L44: =$J$32*L38 -> 0 | M44: 0 | N44: 0 | O44: =$J$32*O38 -> 0 | P44: 0 | Q44: 0 | R44: 0 | S44: 0 | T44: 0 | U44: 0 | V44: 0 | W44: 0 | X44: 0 | Y44: 0 | Z44: 0 | AA44: 0 | AB44: 0 | AC44: 0 | AD44: 0 | AE44: 0 | AF44: 0 | AG44: 0 | AH44: 0 | AI44: 0 | AJ44: 0 | AK44: 0 | AL44: 0 | AM44: 0 | AN44: 0 | AO44: 0 | AP44: 0 | AQ44: 0 | AR44: 0 | AS44: 0 | AT44: 0 | AU44: 0 | AV44: 0 | AW44: 0 | AX44: 0 | AY44: 0 | AZ44: 0 | BA44: 0 | BB44: 0 | BC44: 0 | BD44: 0 | BE44: 0 | BF44: 0 | BG44: 0
G46: $ Basis Reminder | H46: $ Reminder | J46: Summary table above picks up this total row
B47: Total | G47: ='1_KMA'!$I$20 -> 2024-06-30 | H47: ='1_KMA'!$I$19 -> $millions | J47: =SUM(J41:J44) -> 0 | K47: =SUM(K41:K44) -> 0 | L47: 0 | M47: 12.4537 | N47: 0 | O47: 0 | P47: 0 | Q47: 0 | R47: 0 | S47: 0 | T47: 0 | U47: 0 | V47: 0 | W47: 0 | X47: 0 | Y47: 0 | Z47: 0 | AA47: 0 | AB47: 0 | AC47: 0 | AD47: 0 | AE47: 0 | AF47: 0 | AG47: 0 | AH47: 0 | AI47: 0 | AJ47: 0 | AK47: 0 | AL47: 0 | AM47: 0 | AN47: 0 | AO47: 0 | AP47: 0 | AQ47: 0 | AR47: 0 | AS47: 0 | AT47: 0 | AU47: 0 | AV47: 0 | AW47: 0 | AX47: 0 | AY47: 0 | AZ47: 0 | BA47: 0 | BB47: 0 | BC47: 0 | BD47: 0 | BE47: 0 | BF47: 0 | BG47: 0
B49: Capex Offset
J51: ="Capex offsets - ensure capex offsets have been converted to "&'1_KMA'!$I$19 -> Capex offsets - ensure capex offsets have been converted to $millions
B52: Name | G52: $ Basis Reminder | H52: $ Reminder | J52: Enter capex offsets as positive values as the spreadsheet later nets this off the gross amounts
G53: ='1_KMA'!$I$20 -> 2024-06-30 | H53: ='1_KMA'!$I$19 -> $millions
G54: ='1_KMA'!$I$20 -> 2024-06-30 | H54: ='1_KMA'!$I$19 -> $millions
G55: ='1_KMA'!$I$20 -> 2024-06-30 | H55: ='1_KMA'!$I$19 -> $millions
G56: ='1_KMA'!$I$20 -> 2024-06-30 | H56: ='1_KMA'!$I$19 -> $millions
G58: $ Basis Reminder | H58: $ Reminder | J58: Summary table above picks up this total row
B59: Total | G59: ='1_KMA'!$I$20 -> 2024-06-30 | H59: ='1_KMA'!$I$19 -> $millions | J59: =SUM(J53:J56) -> 0 | K59: =SUM(K53:K56) -> 0 | L59: =SUM(L53:L56) -> 0 | M59: 0 | N59: 0 | O59: 0 | P59: 0 | Q59: 0 | R59: 0 | S59: 0 | T59: 0 | U59: 0 | V59: 0 | W59: 0 | X59: 0 | Y59: 0 | Z59: 0 | AA59: 0 | AB59: 0 | AC59: 0 | AD59: 0 | AE59: 0 | AF59: 0 | AG59: 0 | AH59: 0 | AI59: 0 | AJ59: 0 | AK59: 0 | AL59: 0 | AM59: 0 | AN59: 0 | AO59: 0 | AP59: 0 | AQ59: 0 | AR59: 0 | AS59: 0 | AT59: 0 | AU59: 0 | AV59: 0 | AW59: 0 | AX59: 0 | AY59: 0 | AZ59: 0 | BA59: 0 | BB59: 0 | BC59: 0 | BD59: 0 | BE59: 0 | BF59: 0 | BG59: 0
B61: Opex Build Up
B63: Name | H63: Unit | J63: Value
B64: Training cost (existing) | H64: 1 | J64: C-I-C
B65: Facility management, operation, maintenance | H65: 1 | J65: C-I-C
B66: Training cost (apprentice) | H66: 1 | J66: C-I-C
B69: Name | H69: Unit | J69: Quantities
B70: =B64 -> Training cost (existing) | H70: 1 | J70: C-I-C | K70: C-I-C | L70: C-I-C | M70: C-I-C | N70: C-I-C | O70: C-I-C | P70: C-I-C | Q70: C-I-C | R70: C-I-C | S70: C-I-C | T70: C-I-C | U70: C-I-C | V70: C-I-C | W70: C-I-C | X70: C-I-C | Y70: C-I-C | Z70: C-I-C | AA70: C-I-C | AB70: C-I-C | AC70: C-I-C | AD70: C-I-C | AE70: C-I-C | AF70: C-I-C | AG70: C-I-C | AH70: C-I-C | AI70: C-I-C | AJ70: C-I-C | AK70: C-I-C | AL70: C-I-C | AM70: C-I-C | AN70: C-I-C | AO70: C-I-C | AP70: C-I-C | AQ70: C-I-C | AR70: C-I-C | AS70: C-I-C | AT70: C-I-C | AU70: C-I-C | AV70: C-I-C | AW70: C-I-C | AX70: C-I-C | AY70: C-I-C | AZ70: C-I-C | BA70: C-I-C | BB70: C-I-C | BC70: C-I-C | BD70: C-I-C | BE70: C-I-C | BF70: C-I-C | BG70: C-I-C
B71: =B65 -> Facility management, operation, maintenance | H71: 1 | J71: C-I-C | K71: C-I-C | L71: C-I-C | M71: C-I-C | N71: C-I-C | O71: C-I-C | P71: C-I-C | Q71: C-I-C | R71: C-I-C | S71: C-I-C | T71: C-I-C | U71: C-I-C | V71: C-I-C | W71: C-I-C | X71: C-I-C | Y71: C-I-C | Z71: C-I-C | AA71: C-I-C | AB71: C-I-C | AC71: C-I-C | AD71: C-I-C | AE71: C-I-C | AF71: C-I-C | AG71: C-I-C | AH71: C-I-C | AI71: C-I-C | AJ71: C-I-C | AK71: C-I-C | AL71: C-I-C | AM71: C-I-C | AN71: C-I-C | AO71: C-I-C | AP71: C-I-C | AQ71: C-I-C | AR71: C-I-C | AS71: C-I-C | AT71: C-I-C | AU71: C-I-C | AV71: C-I-C | AW71: C-I-C | AX71: C-I-C | AY71: C-I-C | AZ71: C-I-C | BA71: C-I-C | BB71: C-I-C | BC71: C-I-C | BD71: C-I-C | BE71: C-I-C | BF71: C-I-C | BG71: C-I-C
B72: =B66 -> Training cost (apprentice) | H72: 1 | J72: C-I-C | K72: C-I-C | L72: C-I-C | M72: C-I-C | N72: C-I-C | O72: C-I-C | P72: C-I-C | Q72: C-I-C | R72: C-I-C | S72: C-I-C | T72: C-I-C | U72: C-I-C | V72: C-I-C | W72: C-I-C | X72: C-I-C | Y72: C-I-C | Z72: C-I-C | AA72: C-I-C | AB72: C-I-C | AC72: C-I-C | AD72: C-I-C | AE72: C-I-C | AF72: C-I-C | AG72: C-I-C | AH72: C-I-C | AI72: C-I-C | AJ72: C-I-C | AK72: C-I-C | AL72: C-I-C | AM72: C-I-C | AN72: C-I-C | AO72: C-I-C | AP72: C-I-C | AQ72: C-I-C | AR72: C-I-C | AS72: C-I-C | AT72: C-I-C | AU72: C-I-C | AV72: C-I-C | AW72: C-I-C | AX72: C-I-C | AY72: C-I-C | AZ72: C-I-C | BA72: C-I-C | BB72: C-I-C | BC72: C-I-C | BD72: C-I-C | BE72: C-I-C | BF72: C-I-C | BG72: C-I-C
B75: Name | G75: $ Basis Reminder | H75: $ Reminder | J75: ="Costs - ensure costs have been converted to "&'1_KMA'!$I$19 -> Costs - ensure costs have been converted to $millions
B76: =B64 -> Training cost (existing) | G76: ='1_KMA'!$I$20 -> 2024-06-30 | H76: ='1_KMA'!$I$19 -> $millions | J76: C-I-C | K76: C-I-C | L76: C-I-C | M76: C-I-C | N76: C-I-C | O76: C-I-C | P76: C-I-C | Q76: C-I-C | R76: C-I-C | S76: C-I-C | T76: C-I-C | U76: C-I-C | V76: C-I-C | W76: C-I-C | X76: C-I-C | Y76: C-I-C | Z76: C-I-C | AA76: C-I-C | AB76: C-I-C | AC76: C-I-C | AD76: C-I-C | AE76: C-I-C | AF76: C-I-C | AG76: C-I-C | AH76: C-I-C | AI76: C-I-C | AJ76: C-I-C | AK76: C-I-C | AL76: C-I-C | AM76: C-I-C | AN76: C-I-C | AO76: C-I-C | AP76: C-I-C | AQ76: C-I-C | AR76: C-I-C | AS76: C-I-C | AT76: C-I-C | AU76: C-I-C | AV76: C-I-C | AW76: C-I-C | AX76: C-I-C | AY76: C-I-C | AZ76: C-I-C | BA76: C-I-C | BB76: C-I-C | BC76: C-I-C | BD76: C-I-C | BE76: C-I-C | BF76: C-I-C | BG76: C-I-C
B77: =B65 -> Facility management, operation, maintenance | G77: ='1_KMA'!$I$20 -> 2024-06-30 | H77: ='1_KMA'!$I$19 -> $millions | J77: C-I-C | K77: C-I-C | L77: C-I-C | M77: C-I-C | N77: C-I-C | O77: C-I-C | P77: C-I-C | Q77: C-I-C | R77: C-I-C | S77: C-I-C | T77: C-I-C | U77: C-I-C | V77: C-I-C | W77: C-I-C | X77: C-I-C | Y77: C-I-C | Z77: C-I-C | AA77: C-I-C | AB77: C-I-C | AC77: C-I-C | AD77: C-I-C | AE77: C-I-C | AF77: C-I-C | AG77: C-I-C | AH77: C-I-C | AI77: C-I-C | AJ77: C-I-C | AK77: C-I-C | AL77: C-I-C | AM77: C-I-C | AN77: C-I-C | AO77: C-I-C | AP77: C-I-C | AQ77: C-I-C | AR77: C-I-C | AS77: C-I-C | AT77: C-I-C | AU77: C-I-C | AV77: C-I-C | AW77: C-I-C | AX77: C-I-C | AY77: C-I-C | AZ77: C-I-C | BA77: C-I-C | BB77: C-I-C | BC77: C-I-C | BD77: C-I-C | BE77: C-I-C | BF77: C-I-C | BG77: C-I-C
B78: =B72 -> Training cost (apprentice) | G78: ='1_KMA'!$I$20 -> 2024-06-30 | H78: ='1_KMA'!$I$19 -> $millions | J78: C-I-C | K78: C-I-C | L78: C-I-C | M78: C-I-C | N78: C-I-C | O78: C-I-C | P78: C-I-C | Q78: C-I-C | R78: C-I-C | S78: C-I-C | T78: C-I-C | U78: C-I-C | V78: C-I-C | W78: C-I-C | X78: C-I-C | Y78: C-I-C | Z78: C-I-C | AA78: C-I-C | AB78: C-I-C | AC78: C-I-C | AD78: C-I-C | AE78: C-I-C | AF78: C-I-C | AG78: C-I-C | AH78: C-I-C | AI78: C-I-C | AJ78: C-I-C | AK78: C-I-C | AL78: C-I-C | AM78: C-I-C | AN78: C-I-C | AO78: C-I-C | AP78: C-I-C | AQ78: C-I-C | AR78: C-I-C | AS78: C-I-C | AT78: C-I-C | AU78: C-I-C | AV78: C-I-C | AW78: C-I-C | AX78: C-I-C | AY78: C-I-C | AZ78: C-I-C | BA78: C-I-C | BB78: C-I-C | BC78: C-I-C | BD78: C-I-C | BE78: C-I-C | BF78: C-I-C | BG78: C-I-C
G79: ='1_KMA'!$I$20 -> 2024-06-30 | H79: ='1_KMA'!$I$19 -> $millions
G81: $ Basis Reminder | H81: $ Reminder | J81: Summary table above picks up this total row
B82: Total | G82: ='1_KMA'!$I$20 -> 2024-06-30 | H82: ='1_KMA'!$I$19 -> $millions | J82: =SUM(J76:J79) -> 0 | K82: =SUM(K76:K79) -> 0 | L82: =SUM(L76:L79) -> 0 | M82: 0 | N82: 0 | O82: 0 | P82: 0 | Q82: 0 | R82: 0 | S82: 0 | T82: 0 | U82: 0 | V82: 0 | W82: 0 | X82: 0 | Y82: 0 | Z82: 0 | AA82: 0 | AB82: 0 | AC82: 0 | AD82: 0 | AE82: 0 | AF82: 0 | AG82: 0 | AH82: 0 | AI82: 0 | AJ82: 0 | AK82: 0 | AL82: 0 | AM82: 0 | AN82: 0 | AO82: 0 | AP82: 0 | AQ82: 0 | AR82: 0 | AS82: 0 | AT82: 0 | AU82: 0 | AV82: 0 | AW82: 0 | AX82: 0 | AY82: 0 | AZ82: 0 | BA82: 0 | BB82: 0 | BC82: 0 | BD82: 0 | BE82: 0 | BF82: 0 | BG82: =SUM(BG76:BG79) -> 0
B84: Benefits Inputs
B86: Value of EUE
J88: ="Values - ensure values have been converted to "&'1_KMA'!$I$19 -> Values - ensure values have been converted to $millions
G89: $ Basis Reminder | H89: $ Reminder | J89: Enter this as a positive value, as the spreadsheet later converts this to a negative benefit
B90: Value of Expected Unserved Energy (EUE) | G90: ='1_KMA'!$I$20 -> 2024-06-30 | H90: ='1_KMA'!$I$19 -> $millions
G92: $ Basis Reminder | H92: $ Reminder | J92: Summary table above picks up this total row
B93: Total | G93: ='1_KMA'!$I$20 -> 2024-06-30 | H93: ='1_KMA'!$I$19 -> $millions | J93: =J90 -> 0 | K93: =K90 -> 0 | L93: 0 | M93: 0 | N93: 0 | O93: 0 | P93: 0 | Q93: 0 | R93: 0 | S93: 0 | T93: 0 | U93: 0 | V93: 0 | W93: 0 | X93: 0 | Y93: 0 | Z93: 0 | AA93: 0 | AB93: 0 | AC93: 0 | AD93: 0 | AE93: 0 | AF93: 0 | AG93: 0 | AH93: 0 | AI93: 0 | AJ93: 0 | AK93: 0 | AL93: 0 | AM93: 0 | AN93: 0 | AO93: 0 | AP93: 0 | AQ93: 0 | AR93: 0 | AS93: 0 | AT93: 0 | AU93: 0 | AV93: 0 | AW93: 0 | AX93: 0 | AY93: 0 | AZ93: 0 | BA93: 0 | BB93: 0 | BC93: 0 | BD93: 0 | BE93: 0 | BF93: 0 | BG93: 0
B95: Reliability
B97: QCV research | H97: Unit | J97: Unit Rate
B98: Fewer unplanned outages, less than 12 hours
B99: Fewer unplanned outages in the worst served areas
H102: Unit | J102: Quantities
B103: Fewer unplanned outages, less than 12 hours
B104: Fewer unplanned outages in the worst served areas
G106: $ Basis Reminder | H106: $ Reminder | J106: ="Values - ensure values have been converted to "&'1_KMA'!$I$19 -> Values - ensure values have been converted to $millions
B107: Fewer unplanned outages, less than 12 hours | G107: ='1_KMA'!$I$20 -> 2024-06-30 | H107: ='1_KMA'!$I$19 -> $millions | J107: =J103*$J$98 -> 0 | K107: =K103*$J$98 -> 0 | L107: =L103*$J$98 -> 0 | M107: =M103*$J$98 -> 0 | N107: 0 | O107: =O103*$J$98 -> 0 | P107: 0 | Q107: 0 | R107: 0 | S107: 0 | T107: 0 | U107: 0 | V107: 0 | W107: 0 | X107: 0 | Y107: 0 | Z107: 0 | AA107: 0 | AB107: 0 | AC107: 0 | AD107: 0 | AE107: 0 | AF107: 0 | AG107: 0 | AH107: 0 | AI107: 0 | AJ107: 0 | AK107: 0 | AL107: 0 | AM107: 0 | AN107: 0 | AO107: 0 | AP107: 0 | AQ107: 0 | AR107: 0 | AS107: 0 | AT107: 0 | AU107: 0 | AV107: 0 | AW107: 0 | AX107: 0 | AY107: 0 | AZ107: 0 | BA107: 0 | BB107: 0 | BC107: 0 | BD107: 0 | BE107: 0 | BF107: 0 | BG107: 0
B108: Fewer unplanned outages in the worst served areas | G108: ='1_KMA'!$I$20 -> 2024-06-30 | H108: ='1_KMA'!$I$19 -> $millions | J108: =J104*$J$99 -> 0 | K108: =K104*$J$99 -> 0 | L108: =L104*$J$99 -> 0 | M108: =M104*$J$99 -> 0 | N108: 0 | O108: =O104*$J$99 -> 0 | P108: 0 | Q108: 0 | R108: 0 | S108: 0 | T108: 0 | U108: 0 | V108: 0 | W108: 0 | X108: 0 | Y108: 0 | Z108: 0 | AA108: 0 | AB108: 0 | AC108: 0 | AD108: 0 | AE108: 0 | AF108: 0 | AG108: 0 | AH108: 0 | AI108: 0 | AJ108: 0 | AK108: 0 | AL108: 0 | AM108: 0 | AN108: 0 | AO108: 0 | AP108: 0 | AQ108: 0 | AR108: 0 | AS108: 0 | AT108: 0 | AU108: 0 | AV108: 0 | AW108: 0 | AX108: 0 | AY108: 0 | AZ108: 0 | BA108: 0 | BB108: 0 | BC108: 0 | BD108: 0 | BE108: 0 | BF108: 0 | BG108: 0
G110: $ Basis Reminder | H110: $ Reminder | J110: Summary table above picks up this total row
B111: Total | G111: ='1_KMA'!$I$20 -> 2024-06-30 | H111: ='1_KMA'!$I$19 -> $millions | J111: =SUM(J107:J108) -> 0 | K111: =SUM(K107:K108) -> 0 | L111: 0 | M111: 0 | N111: 0 | O111: 0 | P111: 0 | Q111: 0 | R111: 0 | S111: 0 | T111: 0 | U111: 0 | V111: 0 | W111: 0 | X111: 0 | Y111: 0 | Z111: 0 | AA111: 0 | AB111: 0 | AC111: 0 | AD111: 0 | AE111: 0 | AF111: 0 | AG111: 0 | AH111: 0 | AI111: 0 | AJ111: 0 | AK111: 0 | AL111: 0 | AM111: 0 | AN111: 0 | AO111: 0 | AP111: 0 | AQ111: 0 | AR111: 0 | AS111: 0 | AT111: 0 | AU111: 0 | AV111: 0 | AW111: 0 | AX111: 0 | AY111: 0 | AZ111: 0 | BA111: 0 | BB111: 0 | BC111: 0 | BD111: 0 | BE111: 0 | BF111: 0 | BG111: 0
B113: Resilience
B115: QCV research | H115: Unit | J115: Unit Rate
B116: Fewer unplanned outages, longer than 12 hours
B117: Faster restoration of power when an outage has occurred
B118: Community hub offering essential services during long duration outages
H121: Unit | J121: Quantities
B122: Fewer unplanned outages, longer than 12 hours
B123: Faster restoration of power when an outage has occurred
B124: Community hub offering essential services
G126: $ Basis Reminder | H126: $ Reminder | J126: ="Values - ensure values have been converted to "&'1_KMA'!$I$19 -> Values - ensure values have been converted to $millions
B127: Fewer unplanned outages, longer than 12 hours | G127: ='1_KMA'!$I$20 -> 2024-06-30 | H127: ='1_KMA'!$I$19 -> $millions | J127: =J122*'2.1_Op1'!$J$116 -> 0 | K127: =K122*'2.1_Op1'!$J$116 -> 0 | L127: =L122*'2.1_Op1'!$J$116 -> 0 | M127: =M122*'2.1_Op1'!$J$116 -> 0 | N127: =N122*'2.1_Op1'!$J$116 -> 0 | O127: =O122*'2.1_Op1'!$J$116 -> 0 | P127: =P122*'2.1_Op1'!$J$116 -> 0 | Q127: =Q122*'2.1_Op1'!$J$116 -> 0 | R127: =R122*'2.1_Op1'!$J$116 -> 0 | S127: =S122*'2.1_Op1'!$J$116 -> 0 | T127: =T122*'2.1_Op1'!$J$116 -> 0 | U127: =U122*'2.1_Op1'!$J$116 -> 0 | V127: =V122*'2.1_Op1'!$J$116 -> 0 | W127: =W122*'2.1_Op1'!$J$116 -> 0 | X127: =X122*'2.1_Op1'!$J$116 -> 0 | Y127: =Y122*'2.1_Op1'!$J$116 -> 0 | Z127: =Z122*'2.1_Op1'!$J$116 -> 0 | AA127: =AA122*'2.1_Op1'!$J$116 -> 0 | AB127: =AB122*'2.1_Op1'!$J$116 -> 0 | AC127: =AC122*'2.1_Op1'!$J$116 -> 0 | AD127: =AD122*'2.1_Op1'!$J$116 -> 0 | AE127: =AE122*'2.1_Op1'!$J$116 -> 0 | AF127: =AF122*'2.1_Op1'!$J$116 -> 0 | AG127: =AG122*'2.1_Op1'!$J$116 -> 0 | AH127: =AH122*'2.1_Op1'!$J$116 -> 0 | AI127: =AI122*'2.1_Op1'!$J$116 -> 0 | AJ127: =AJ122*'2.1_Op1'!$J$116 -> 0 | AK127: =AK122*'2.1_Op1'!$J$116 -> 0 | AL127: =AL122*'2.1_Op1'!$J$116 -> 0 | AM127: =AM122*'2.1_Op1'!$J$116 -> 0 | AN127: =AN122*'2.1_Op1'!$J$116 -> 0 | AO127: =AO122*'2.1_Op1'!$J$116 -> 0 | AP127: =AP122*'2.1_Op1'!$J$116 -> 0 | AQ127: =AQ122*'2.1_Op1'!$J$116 -> 0 | AR127: =AR122*'2.1_Op1'!$J$116 -> 0 | AS127: =AS122*'2.1_Op1'!$J$116 -> 0 | AT127: =AT122*'2.1_Op1'!$J$116 -> 0 | AU127: =AU122*'2.1_Op1'!$J$116 -> 0 | AV127: =AV122*'2.1_Op1'!$J$116 -> 0 | AW127: =AW122*'2.1_Op1'!$J$116 -> 0 | AX127: =AX122*'2.1_Op1'!$J$116 -> 0 | AY127: =AY122*'2.1_Op1'!$J$116 -> 0 | AZ127: =AZ122*'2.1_Op1'!$J$116 -> 0 | BA127: =BA122*'2.1_Op1'!$J$116 -> 0 | BB127: =BB122*'2.1_Op1'!$J$116 -> 0 | BC127: =BC122*'2.1_Op1'!$J$116 -> 0 | BD127: =BD122*'2.1_Op1'!$J$116 -> 0 | BE127: =BE122*'2.1_Op1'!$J$116 -> 0 | BF127: =BF122*'2.1_Op1'!$J$116 -> 0 | BG127: =BG122*'2.1_Op1'!$J$116 -> 0
B128: Faster restoration of power when an outage has occurred | G128: ='1_KMA'!$I$20 -> 2024-06-30 | H128: ='1_KMA'!$I$19 -> $millions | J128: =J123*'2.1_Op1'!$J$117 -> 0 | K128: =K123*'2.1_Op1'!$J$117 -> 0 | L128: =L123*'2.1_Op1'!$J$117 -> 0 | M128: =M123*'2.1_Op1'!$J$117 -> 0 | N128: =N123*'2.1_Op1'!$J$117 -> 0 | O128: =O123*'2.1_Op1'!$J$117 -> 0 | P128: =P123*'2.1_Op1'!$J$117 -> 0 | Q128: =Q123*'2.1_Op1'!$J$117 -> 0 | R128: =R123*'2.1_Op1'!$J$117 -> 0 | S128: =S123*'2.1_Op1'!$J$117 -> 0 | T128: =T123*'2.1_Op1'!$J$117 -> 0 | U128: =U123*'2.1_Op1'!$J$117 -> 0 | V128: =V123*'2.1_Op1'!$J$117 -> 0 | W128: =W123*'2.1_Op1'!$J$117 -> 0 | X128: =X123*'2.1_Op1'!$J$117 -> 0 | Y128: =Y123*'2.1_Op1'!$J$117 -> 0 | Z128: =Z123*'2.1_Op1'!$J$117 -> 0 | AA128: =AA123*'2.1_Op1'!$J$117 -> 0 | AB128: =AB123*'2.1_Op1'!$J$117 -> 0 | AC128: =AC123*'2.1_Op1'!$J$117 -> 0 | AD128: =AD123*'2.1_Op1'!$J$117 -> 0 | AE128: =AE123*'2.1_Op1'!$J$117 -> 0 | AF128: =AF123*'2.1_Op1'!$J$117 -> 0 | AG128: =AG123*'2.1_Op1'!$J$117 -> 0 | AH128: =AH123*'2.1_Op1'!$J$117 -> 0 | AI128: =AI123*'2.1_Op1'!$J$117 -> 0 | AJ128: =AJ123*'2.1_Op1'!$J$117 -> 0 | AK128: =AK123*'2.1_Op1'!$J$117 -> 0 | AL128: =AL123*'2.1_Op1'!$J$117 -> 0 | AM128: =AM123*'2.1_Op1'!$J$117 -> 0 | AN128: =AN123*'2.1_Op1'!$J$117 -> 0 | AO128: =AO123*'2.1_Op1'!$J$117 -> 0 | AP128: =AP123*'2.1_Op1'!$J$117 -> 0 | AQ128: =AQ123*'2.1_Op1'!$J$117 -> 0 | AR128: =AR123*'2.1_Op1'!$J$117 -> 0 | AS128: =AS123*'2.1_Op1'!$J$117 -> 0 | AT128: =AT123*'2.1_Op1'!$J$117 -> 0 | AU128: =AU123*'2.1_Op1'!$J$117 -> 0 | AV128: =AV123*'2.1_Op1'!$J$117 -> 0 | AW128: =AW123*'2.1_Op1'!$J$117 -> 0 | AX128: =AX123*'2.1_Op1'!$J$117 -> 0 | AY128: =AY123*'2.1_Op1'!$J$117 -> 0 | AZ128: =AZ123*'2.1_Op1'!$J$117 -> 0 | BA128: =BA123*'2.1_Op1'!$J$117 -> 0 | BB128: =BB123*'2.1_Op1'!$J$117 -> 0 | BC128: =BC123*'2.1_Op1'!$J$117 -> 0 | BD128: =BD123*'2.1_Op1'!$J$117 -> 0 | BE128: =BE123*'2.1_Op1'!$J$117 -> 0 | BF128: =BF123*'2.1_Op1'!$J$117 -> 0 | BG128: =BG123*'2.1_Op1'!$J$117 -> 0
B129: Community hub offering essential services | G129: ='1_KMA'!$I$20 -> 2024-06-30 | H129: ='1_KMA'!$I$19 -> $millions | J129: =J124*'2.1_Op1'!$J$118 -> 0 | K129: =K124*'2.1_Op1'!$J$118 -> 0 | L129: =L124*'2.1_Op1'!$J$118 -> 0 | M129: =M124*'2.1_Op1'!$J$118 -> 0 | N129: =N124*'2.1_Op1'!$J$118 -> 0 | O129: =O124*'2.1_Op1'!$J$118 -> 0 | P129: =P124*'2.1_Op1'!$J$118 -> 0 | Q129: =Q124*'2.1_Op1'!$J$118 -> 0 | R129: =R124*'2.1_Op1'!$J$118 -> 0 | S129: =S124*'2.1_Op1'!$J$118 -> 0 | T129: =T124*'2.1_Op1'!$J$118 -> 0 | U129: =U124*'2.1_Op1'!$J$118 -> 0 | V129: =V124*'2.1_Op1'!$J$118 -> 0 | W129: =W124*'2.1_Op1'!$J$118 -> 0 | X129: =X124*'2.1_Op1'!$J$118 -> 0 | Y129: =Y124*'2.1_Op1'!$J$118 -> 0 | Z129: =Z124*'2.1_Op1'!$J$118 -> 0 | AA129: =AA124*'2.1_Op1'!$J$118 -> 0 | AB129: =AB124*'2.1_Op1'!$J$118 -> 0 | AC129: =AC124*'2.1_Op1'!$J$118 -> 0 | AD129: =AD124*'2.1_Op1'!$J$118 -> 0 | AE129: =AE124*'2.1_Op1'!$J$118 -> 0 | AF129: =AF124*'2.1_Op1'!$J$118 -> 0 | AG129: =AG124*'2.1_Op1'!$J$118 -> 0 | AH129: =AH124*'2.1_Op1'!$J$118 -> 0 | AI129: =AI124*'2.1_Op1'!$J$118 -> 0 | AJ129: =AJ124*'2.1_Op1'!$J$118 -> 0 | AK129: =AK124*'2.1_Op1'!$J$118 -> 0 | AL129: =AL124*'2.1_Op1'!$J$118 -> 0 | AM129: =AM124*'2.1_Op1'!$J$118 -> 0 | AN129: =AN124*'2.1_Op1'!$J$118 -> 0 | AO129: =AO124*'2.1_Op1'!$J$118 -> 0 | AP129: =AP124*'2.1_Op1'!$J$118 -> 0 | AQ129: =AQ124*'2.1_Op1'!$J$118 -> 0 | AR129: =AR124*'2.1_Op1'!$J$118 -> 0 | AS129: =AS124*'2.1_Op1'!$J$118 -> 0 | AT129: =AT124*'2.1_Op1'!$J$118 -> 0 | AU129: =AU124*'2.1_Op1'!$J$118 -> 0 | AV129: =AV124*'2.1_Op1'!$J$118 -> 0 | AW129: =AW124*'2.1_Op1'!$J$118 -> 0 | AX129: =AX124*'2.1_Op1'!$J$118 -> 0 | AY129: =AY124*'2.1_Op1'!$J$118 -> 0 | AZ129: =AZ124*'2.1_Op1'!$J$118 -> 0 | BA129: =BA124*'2.1_Op1'!$J$118 -> 0 | BB129: =BB124*'2.1_Op1'!$J$118 -> 0 | BC129: =BC124*'2.1_Op1'!$J$118 -> 0 | BD129: =BD124*'2.1_Op1'!$J$118 -> 0 | BE129: =BE124*'2.1_Op1'!$J$118 -> 0 | BF129: =BF124*'2.1_Op1'!$J$118 -> 0 | BG129: =BG124*'2.1_Op1'!$J$118 -> 0
G131: $ Basis Reminder | H131: $ Reminder | J131: Summary table above picks up this total row
B132: Total | G132: ='1_KMA'!$I$20 -> 2024-06-30 | H132: ='1_KMA'!$I$19 -> $millions | J132: =SUM(J127:J129) -> 0 | K132: =SUM(K127:K129) -> 0 | L132: 0 | M132: 0 | N132: 0 | O132: 0 | P132: 0 | Q132: 0 | R132: 0 | S132: 0 | T132: 0 | U132: 0 | V132: 0 | W132: 0 | X132: 0 | Y132: 0 | Z132: 0 | AA132: 0 | AB132: 0 | AC132: 0 | AD132: 0 | AE132: 0 | AF132: 0 | AG132: 0 | AH132: 0 | AI132: 0 | AJ132: 0 | AK132: 0 | AL132: 0 | AM132: 0 | AN132: 0 | AO132: 0 | AP132: 0 | AQ132: 0 | AR132: 0 | AS132: 0 | AT132: 0 | AU132: 0 | AV132: 0 | AW132: 0 | AX132: 0 | AY132: 0 | AZ132: 0 | BA132: 0 | BB132: 0 | BC132: 0 | BD132: 0 | BE132: 0 | BF132: 0 | BG132: 0
B134: Batteries
B136: AusNet Savings from Wholesale Arbitrage
H137: Unit | J137: Value
B138: Wholesale market price differential | H138: [e.g. $dollars per MWh]
B139: AusNet Share in Wholesale arbitrage | H139: [e.g. %]
B140: Average annual battery derating | H140: [e.g. % p.a.]
H142: Unit | J142: Location 1 | K142: Location 2 | L142: Location 3 | M142: Location 4 | N142: Location 5
B143: Battery Rating (kW) | H143: kW
B144: Battery Rating (hr) | H144: hr
B145: Battery Rating (kWh) | H145: kWh | J145: =J143*J144 -> 0 | K145: =K143*K144 -> 0 | L145: =L143*L144 -> 0 | M145: =M143*M144 -> 0 | N145: =N143*N144 -> 0
B146: Retailer benefit by wholesale arbitrage | H146: [e.g. $millions, $thousands or $dollars per year] | J146: =J145*$J$138*0.8*5*52/1000 -> 0 | K146: =K145*$J$138*0.8*5*52/1000 -> 0 | L146: =L145*$J$138*0.8*5*52/1000 -> 0 | M146: =M145*$J$138*0.8*5*52/1000 -> 0 | N146: =N145*$J$138*0.8*5*52/1000 -> 0
G148: $ Basis Reminder | H148: $ Reminder | J148: ="Values - ensure values have been converted to "&'1_KMA'!$I$19 -> Values - ensure values have been converted to $millions
B149: AusNet Savings from Wholesale Arbitrage | G149: ='1_KMA'!$I$20 -> 2024-06-30 | H149: ='1_KMA'!$I$19 -> $millions | J149: =(SUM($J$146:$N$146)*$J$139*(1/(1+$J$140)^(J4-1)))/10^6 -> 0 | K149: 0 | L149: 0 | M149: 0 | N149: 0 | O149: 0 | P149: 0 | Q149: 0 | R149: 0 | S149: 0 | T149: 0 | U149: 0 | V149: 0 | W149: 0 | X149: 0 | Y149: 0 | Z149: 0 | AA149: 0 | AB149: 0 | AC149: 0 | AD149: 0 | AE149: 0 | AF149: 0 | AG149: 0 | AH149: 0 | AI149: 0 | AJ149: 0 | AK149: 0 | AL149: 0 | AM149: 0 | AN149: 0 | AO149: 0 | AP149: =(SUM($J$146:$N$146)*$J$139*(1/(1+$J$140)^(AP4-1)))/10^6 -> 0 | AQ149: 0 | AR149: 0 | AS149: 0 | AT149: 0 | AU149: 0 | AV149: 0 | AW149: 0 | AX149: 0 | AY149: 0 | AZ149: 0 | BA149: 0 | BB149: 0 | BC149: 0 | BD149: 0 | BE149: 0 | BF149: 0 | BG149: 0
B151: AusNet Revenue from FCAS
H152: Unit | J152: Value
B153: FCAS participation price | H153: [e.g. $ollars per MW per hour]
B154: Average annual participation All batteries | H154: [e.g. MW per hour]
G156: $ Basis Reminder | H156: $ Reminder | J156: ="Values - ensure values have been converted to "&'1_KMA'!$I$19 -> Values - ensure values have been converted to $millions
B157: AusNet Revenue from FCAS | G157: ='1_KMA'!$I$20 -> 2024-06-30 | H157: ='1_KMA'!$I$19 -> $millions | J157: =$J$153*$J$154/10^6 -> 0 | K157: =$J$153*$J$154/10^6 -> 0 | L157: 0 | M157: 0 | N157: 0 | O157: 0 | P157: 0 | Q157: 0 | R157: 0 | S157: 0 | T157: 0 | U157: 0 | V157: 0 | W157: 0 | X157: 0 | Y157: 0 | Z157: 0 | AA157: 0 | AB157: 0 | AC157: 0 | AD157: 0 | AE157: 0 | AF157: 0 | AG157: 0 | AH157: 0 | AI157: 0 | AJ157: 0 | AK157: 0 | AL157: 0 | AM157: 0 | AN157: 0 | AO157: 0 | AP157: 0 | AQ157: 0 | AR157: 0 | AS157: 0 | AT157: 0 | AU157: 0 | AV157: 0 | AW157: 0 | AX157: 0 | AY157: 0 | AZ157: 0 | BA157: 0 | BB157: 0 | BC157: 0 | BD157: 0 | BE157: 0 | BF157: 0 | BG157: 0
B159: AusNet Savings from Avoided Penalties
H160: Unit | J160: Location 1 | K160: Location 2 | L160: Location 3 | M160: Location 4 | N160: Location 5
B161: Number of average outage events | H161: [e.g. Events per year]
B162: Average Ausnet penalty for outage | H162: [e.g. $dollars per event]
G164: $ Basis Reminder | H164: $ Reminder | J164: ="Values - ensure values have been converted to "&'1_KMA'!$I$19 -> Values - ensure values have been converted to $millions
B165: Ausnet Savings from Avoided Penalties | G165: ='1_KMA'!$I$20 -> 2024-06-30 | H165: ='1_KMA'!$I$19 -> $millions | J165: =SUMPRODUCT($J$161:$N$161,$J$162:$N$162)/10^6 -> 0 | K165: =SUMPRODUCT($J$161:$N$161,$J$162:$N$162)/10^6 -> 0 | L165: 0 | M165: 0 | N165: 0 | O165: 0 | P165: 0 | Q165: 0 | R165: 0 | S165: 0 | T165: 0 | U165: 0 | V165: 0 | W165: 0 | X165: 0 | Y165: 0 | Z165: 0 | AA165: 0 | AB165: 0 | AC165: 0 | AD165: 0 | AE165: 0 | AF165: 0 | AG165: 0 | AH165: 0 | AI165: 0 | AJ165: 0 | AK165: 0 | AL165: 0 | AM165: 0 | AN165: 0 | AO165: 0 | AP165: 0 | AQ165: 0 | AR165: 0 | AS165: 0 | AT165: 0 | AU165: 0 | AV165: 0 | AW165: 0 | AX165: 0 | AY165: 0 | AZ165: 0 | BA165: 0 | BB165: 0 | BC165: 0 | BD165: 0 | BE165: 0 | BF165: 0 | BG165: 0
G167: $ Basis Reminder | H167: $ Reminder | J167: Summary table above picks up this total row
B168: Total | G168: ='1_KMA'!$I$20 -> 2024-06-30 | H168: ='1_KMA'!$I$19 -> $millions | J168: =J149+J157+J165 -> 0 | K168: =K149+K157+K165 -> 0 | L168: 0 | M168: 0 | N168: 0 | O168: 0 | P168: 0 | Q168: 0 | R168: 0 | S168: 0 | T168: 0 | U168: 0 | V168: 0 | W168: 0 | X168: 0 | Y168: 0 | Z168: 0 | AA168: 0 | AB168: 0 | AC168: 0 | AD168: 0 | AE168: 0 | AF168: 0 | AG168: 0 | AH168: 0 | AI168: 0 | AJ168: 0 | AK168: 0 | AL168: 0 | AM168: 0 | AN168: 0 | AO168: 0 | AP168: 0 | AQ168: 0 | AR168: 0 | AS168: 0 | AT168: 0 | AU168: 0 | AV168: 0 | AW168: 0 | AX168: 0 | AY168: 0 | AZ168: 0 | BA168: 0 | BB168: 0 | BC168: 0 | BD168: 0 | BE168: 0 | BF168: 0 | BG168: 0
B170: Others

Sheet 2.1_Op2
B1: General Inputs: Option 2 | I1: Regulatory Period Indicator | J1: ='1_KMA'!J30 -> 1 | K1: ='1_KMA'!K30 -> 1 | L1: ='1_KMA'!L30 -> 1 | M1: ='1_KMA'!M30 -> 1 | N1: ='1_KMA'!N30 -> 1 | O1: ='1_KMA'!O30 -> 0 | P1: ='1_KMA'!P30 -> 0 | Q1: ='1_KMA'!Q30 -> 0 | R1: ='1_KMA'!R30 -> 0 | S1: ='1_KMA'!S30 -> 0 | T1: ='1_KMA'!T30 -> 0 | U1: ='1_KMA'!U30 -> 0 | V1: ='1_KMA'!V30 -> 0 | W1: ='1_KMA'!W30 -> 0 | X1: ='1_KMA'!X30 -> 0 | Y1: ='1_KMA'!Y30 -> 0 | Z1: ='1_KMA'!Z30 -> 0 | AA1: ='1_KMA'!AA30 -> 0 | AB1: ='1_KMA'!AB30 -> 0 | AC1: ='1_KMA'!AC30 -> 0 | AD1: ='1_KMA'!AD30 -> 0 | AE1: ='1_KMA'!AE30 -> 0 | AF1: ='1_KMA'!AF30 -> 0 | AG1: ='1_KMA'!AG30 -> 0 | AH1: ='1_KMA'!AH30 -> 0 | AI1: ='1_KMA'!AI30 -> 0 | AJ1: ='1_KMA'!AJ30 -> 0 | AK1: ='1_KMA'!AK30 -> 0 | AL1: ='1_KMA'!AL30 -> 0 | AM1: ='1_KMA'!AM30 -> 0 | AN1: ='1_KMA'!AN30 -> 0 | AO1: ='1_KMA'!AO30 -> 0 | AP1: ='1_KMA'!AP30 -> 0 | AQ1: ='1_KMA'!AQ30 -> 0 | AR1: ='1_KMA'!AR30 -> 0 | AS1: ='1_KMA'!AS30 -> 0 | AT1: ='1_KMA'!AT30 -> 0 | AU1: ='1_KMA'!AU30 -> 0 | AV1: ='1_KMA'!AV30 -> 0 | AW1: ='1_KMA'!AW30 -> 0 | AX1: ='1_KMA'!AX30 -> 0 | AY1: ='1_KMA'!AY30 -> 0 | AZ1: ='1_KMA'!AZ30 -> 0 | BA1: ='1_KMA'!BA30 -> 0 | BB1: ='1_KMA'!BB30 -> 0 | BC1: ='1_KMA'!BC30 -> 0 | BD1: ='1_KMA'!BD30 -> 0 | BE1: ='1_KMA'!BE30 -> 0 | BF1: ='1_KMA'!BF30 -> 0 | BG1: ='1_KMA'!BG30 -> 0
B2: =Cover!$C$9 -> AusNet Services | I2: Period Start Date | J2: ='1_KMA'!J31 -> 2026-07-01 | K2: ='1_KMA'!K31 -> 2027-07-01 | L2: ='1_KMA'!L31 -> 2028-07-01 | M2: ='1_KMA'!M31 -> 2029-07-01 | N2: ='1_KMA'!N31 -> 2030-07-01 | O2: ='1_KMA'!O31 -> 2031-07-01 | P2: ='1_KMA'!P31 -> 2032-07-01 | Q2: ='1_KMA'!Q31 -> 2033-07-01 | R2: ='1_KMA'!R31 -> 2034-07-01 | S2: ='1_KMA'!S31 -> 2035-07-01 | T2: ='1_KMA'!T31 -> 2036-07-01 | U2: ='1_KMA'!U31 -> 2037-07-01 | V2: ='1_KMA'!V31 -> 2038-07-01 | W2: ='1_KMA'!W31 -> 2039-07-01 | X2: ='1_KMA'!X31 -> 2040-07-01 | Y2: ='1_KMA'!Y31 -> 2041-07-01 | Z2: ='1_KMA'!Z31 -> 2042-07-01 | AA2: ='1_KMA'!AA31 -> 2043-07-01 | AB2: ='1_KMA'!AB31 -> 2044-07-01 | AC2: ='1_KMA'!AC31 -> 2045-07-01 | AD2: ='1_KMA'!AD31 -> 2046-07-01 | AE2: ='1_KMA'!AE31 -> 2047-07-01 | AF2: ='1_KMA'!AF31 -> 2048-07-01 | AG2: ='1_KMA'!AG31 -> 2049-07-01 | AH2: ='1_KMA'!AH31 -> 2050-07-01 | AI2: ='1_KMA'!AI31 -> 2051-07-01 | AJ2: ='1_KMA'!AJ31 -> 2052-07-01 | AK2: ='1_KMA'!AK31 -> 2053-07-01 | AL2: ='1_KMA'!AL31 -> 2054-07-01 | AM2: ='1_KMA'!AM31 -> 2055-07-01 | AN2: ='1_KMA'!AN31 -> 2056-07-01 | AO2: ='1_KMA'!AO31 -> 2057-07-01 | AP2: ='1_KMA'!AP31 -> 2058-07-01 | AQ2: ='1_KMA'!AQ31 -> 2059-07-01 | AR2: ='1_KMA'!AR31 -> 2060-07-01 | AS2: ='1_KMA'!AS31 -> 2061-07-01 | AT2: ='1_KMA'!AT31 -> 2062-07-01 | AU2: ='1_KMA'!AU31 -> 2063-07-01 | AV2: ='1_KMA'!AV31 -> 2064-07-01 | AW2: ='1_KMA'!AW31 -> 2065-07-01 | AX2: ='1_KMA'!AX31 -> 2066-07-01 | AY2: ='1_KMA'!AY31 -> 2067-07-01 | AZ2: ='1_KMA'!AZ31 -> 2068-07-01 | BA2: ='1_KMA'!BA31 -> 2069-07-01 | BB2: ='1_KMA'!BB31 -> 2070-07-01 | BC2: ='1_KMA'!BC31 -> 2071-07-01 | BD2: ='1_KMA'!BD31 -> 2072-07-01 | BE2: ='1_KMA'!BE31 -> 2073-07-01 | BF2: ='1_KMA'!BF31 -> 2074-07-01 | BG2: ='1_KMA'!BG31 -> 2075-07-01
B3: =Cover!$C$10 -> Business Case Evaluation | I3: Period End Date | J3: ='1_KMA'!J32 -> 2027-06-30 | K3: ='1_KMA'!K32 -> 2028-06-30 | L3: ='1_KMA'!L32 -> 2029-06-30 | M3: ='1_KMA'!M32 -> 2030-06-30 | N3: ='1_KMA'!N32 -> 2031-06-30 | O3: ='1_KMA'!O32 -> 2032-06-30 | P3: ='1_KMA'!P32 -> 2033-06-30 | Q3: ='1_KMA'!Q32 -> 2034-06-30 | R3: ='1_KMA'!R32 -> 2035-06-30 | S3: ='1_KMA'!S32 -> 2036-06-30 | T3: ='1_KMA'!T32 -> 2037-06-30 | U3: ='1_KMA'!U32 -> 2038-06-30 | V3: ='1_KMA'!V32 -> 2039-06-30 | W3: ='1_KMA'!W32 -> 2040-06-30 | X3: ='1_KMA'!X32 -> 2041-06-30 | Y3: ='1_KMA'!Y32 -> 2042-06-30 | Z3: ='1_KMA'!Z32 -> 2043-06-30 | AA3: ='1_KMA'!AA32 -> 2044-06-30 | AB3: ='1_KMA'!AB32 -> 2045-06-30 | AC3: ='1_KMA'!AC32 -> 2046-06-30 | AD3: ='1_KMA'!AD32 -> 2047-06-30 | AE3: ='1_KMA'!AE32 -> 2048-06-30 | AF3: ='1_KMA'!AF32 -> 2049-06-30 | AG3: ='1_KMA'!AG32 -> 2050-06-30 | AH3: ='1_KMA'!AH32 -> 2051-06-30 | AI3: ='1_KMA'!AI32 -> 2052-06-30 | AJ3: ='1_KMA'!AJ32 -> 2053-06-30 | AK3: ='1_KMA'!AK32 -> 2054-06-30 | AL3: ='1_KMA'!AL32 -> 2055-06-30 | AM3: ='1_KMA'!AM32 -> 2056-06-30 | AN3: ='1_KMA'!AN32 -> 2057-06-30 | AO3: ='1_KMA'!AO32 -> 2058-06-30 | AP3: ='1_KMA'!AP32 -> 2059-06-30 | AQ3: ='1_KMA'!AQ32 -> 2060-06-30 | AR3: ='1_KMA'!AR32 -> 2061-06-30 | AS3: ='1_KMA'!AS32 -> 2062-06-30 | AT3: ='1_KMA'!AT32 -> 2063-06-30 | AU3: ='1_KMA'!AU32 -> 2064-06-30 | AV3: ='1_KMA'!AV32 -> 2065-06-30 | AW3: ='1_KMA'!AW32 -> 2066-06-30 | AX3: ='1_KMA'!AX32 -> 2067-06-30 | AY3: ='1_KMA'!AY32 -> 2068-06-30 | AZ3: ='1_KMA'!AZ32 -> 2069-06-30 | BA3: ='1_KMA'!BA32 -> 2070-06-30 | BB3: ='1_KMA'!BB32 -> 2071-06-30 | BC3: ='1_KMA'!BC32 -> 2072-06-30 | BD3: ='1_KMA'!BD32 -> 2073-06-30 | BE3: ='1_KMA'!BE32 -> 2074-06-30 | BF3: ='1_KMA'!BF32 -> 2075-06-30 | BG3: ='1_KMA'!BG32 -> 2076-06-30
B4: =Cover!$C$11 -> South Morang Training Facility | I4: Project Year | J4: ='1_KMA'!J33 -> 1 | K4: ='1_KMA'!K33 -> 2 | L4: ='1_KMA'!L33 -> 3 | M4: ='1_KMA'!M33 -> 4 | N4: ='1_KMA'!N33 -> 5 | O4: ='1_KMA'!O33 -> 6 | P4: ='1_KMA'!P33 -> 7 | Q4: ='1_KMA'!Q33 -> 8 | R4: ='1_KMA'!R33 -> 9 | S4: ='1_KMA'!S33 -> 10 | T4: ='1_KMA'!T33 -> 11 | U4: ='1_KMA'!U33 -> 12 | V4: ='1_KMA'!V33 -> 13 | W4: ='1_KMA'!W33 -> 14 | X4: ='1_KMA'!X33 -> 15 | Y4: ='1_KMA'!Y33 -> 16 | Z4: ='1_KMA'!Z33 -> 17 | AA4: ='1_KMA'!AA33 -> 18 | AB4: ='1_KMA'!AB33 -> 19 | AC4: ='1_KMA'!AC33 -> 20 | AD4: ='1_KMA'!AD33 -> 21 | AE4: ='1_KMA'!AE33 -> 22 | AF4: ='1_KMA'!AF33 -> 23 | AG4: ='1_KMA'!AG33 -> 24 | AH4: ='1_KMA'!AH33 -> 25 | AI4: ='1_KMA'!AI33 -> 26 | AJ4: ='1_KMA'!AJ33 -> 27 | AK4: ='1_KMA'!AK33 -> 28 | AL4: ='1_KMA'!AL33 -> 29 | AM4: ='1_KMA'!AM33 -> 30 | AN4: ='1_KMA'!AN33 -> 31 | AO4: ='1_KMA'!AO33 -> 32 | AP4: ='1_KMA'!AP33 -> 33 | AQ4: ='1_KMA'!AQ33 -> 34 | AR4: ='1_KMA'!AR33 -> 35 | AS4: ='1_KMA'!AS33 -> 36 | AT4: ='1_KMA'!AT33 -> 37 | AU4: ='1_KMA'!AU33 -> 38 | AV4: ='1_KMA'!AV33 -> 39 | AW4: ='1_KMA'!AW33 -> 40 | AX4: ='1_KMA'!AX33 -> 41 | AY4: ='1_KMA'!AY33 -> 42 | AZ4: ='1_KMA'!AZ33 -> 43 | BA4: ='1_KMA'!BA33 -> 44 | BB4: ='1_KMA'!BB33 -> 45 | BC4: ='1_KMA'!BC33 -> 46 | BD4: ='1_KMA'!BD33 -> 47 | BE4: ='1_KMA'!BE33 -> 48 | BF4: ='1_KMA'!BF33 -> 49 | BG4: ='1_KMA'!BG33 -> 50
I5: Financial Year | J5: ='1_KMA'!J34 -> 2027 | K5: ='1_KMA'!K34 -> 2028 | L5: ='1_KMA'!L34 -> 2029 | M5: ='1_KMA'!M34 -> 2030 | N5: ='1_KMA'!N34 -> 2031 | O5: ='1_KMA'!O34 -> 2032 | P5: ='1_KMA'!P34 -> 2033 | Q5: ='1_KMA'!Q34 -> 2034 | R5: ='1_KMA'!R34 -> 2035 | S5: ='1_KMA'!S34 -> 2036 | T5: ='1_KMA'!T34 -> 2037 | U5: ='1_KMA'!U34 -> 2038 | V5: ='1_KMA'!V34 -> 2039 | W5: ='1_KMA'!W34 -> 2040 | X5: ='1_KMA'!X34 -> 2041 | Y5: ='1_KMA'!Y34 -> 2042 | Z5: ='1_KMA'!Z34 -> 2043 | AA5: ='1_KMA'!AA34 -> 2044 | AB5: ='1_KMA'!AB34 -> 2045 | AC5: ='1_KMA'!AC34 -> 2046 | AD5: ='1_KMA'!AD34 -> 2047 | AE5: ='1_KMA'!AE34 -> 2048 | AF5: ='1_KMA'!AF34 -> 2049 | AG5: ='1_KMA'!AG34 -> 2050 | AH5: ='1_KMA'!AH34 -> 2051 | AI5: ='1_KMA'!AI34 -> 2052 | AJ5: ='1_KMA'!AJ34 -> 2053 | AK5: ='1_KMA'!AK34 -> 2054 | AL5: ='1_KMA'!AL34 -> 2055 | AM5: ='1_KMA'!AM34 -> 2056 | AN5: ='1_KMA'!AN34 -> 2057 | AO5: ='1_KMA'!AO34 -> 2058 | AP5: ='1_KMA'!AP34 -> 2059 | AQ5: ='1_KMA'!AQ34 -> 2060 | AR5: ='1_KMA'!AR34 -> 2061 | AS5: ='1_KMA'!AS34 -> 2062 | AT5: ='1_KMA'!AT34 -> 2063 | AU5: ='1_KMA'!AU34 -> 2064 | AV5: ='1_KMA'!AV34 -> 2065 | AW5: ='1_KMA'!AW34 -> 2066 | AX5: ='1_KMA'!AX34 -> 2067 | AY5: ='1_KMA'!AY34 -> 2068 | AZ5: ='1_KMA'!AZ34 -> 2069 | BA5: ='1_KMA'!BA34 -> 2070 | BB5: ='1_KMA'!BB34 -> 2071 | BC5: ='1_KMA'!BC34 -> 2072 | BD5: ='1_KMA'!BD34 -> 2073 | BE5: ='1_KMA'!BE34 -> 2074 | BF5: ='1_KMA'!BF34 -> 2075 | BG5: ='1_KMA'!BG34 -> 2076
B7: Summary
B9: Costs | G9: $ Basis Reminder | H9: $ Reminder | J9: ="Ensure this section [Summary] is picking up the relevant rows" -> Ensure this section [Summary] is picking up the relevant rows
B10: Capex | G10: ='1_KMA'!$I$20 -> 2024-06-30 | H10: ='1_KMA'!$I$19 -> $millions | J10: 0 | K10: 0 | L10: 0 | M10: 1.5 | N10: 0 | O10: 0 | P10: 0 | Q10: 0 | R10: 0 | S10: 0 | T10: 0 | U10: 0 | V10: 0 | W10: 0 | X10: 0 | Y10: 0 | Z10: 0 | AA10: 0 | AB10: 0 | AC10: 0 | AD10: 0 | AE10: 0 | AF10: 0 | AG10: 0 | AH10: 0 | AI10: 0 | AJ10: 0 | AK10: 0 | AL10: 0 | AM10: 0 | AN10: 0 | AO10: 0 | AP10: 0 | AQ10: 0 | AR10: 0 | AS10: 0 | AT10: 0 | AU10: 0 | AV10: 0 | AW10: 0 | AX10: 0 | AY10: 0 | AZ10: 0 | BA10: 0 | BB10: 0 | BC10: 0 | BD10: 0 | BE10: 0 | BF10: 0 | BG10: 0
B11: Capex offset | G11: ='1_KMA'!$I$20 -> 2024-06-30 | H11: ='1_KMA'!$I$19 -> $millions | J11: 0 | K11: 0 | L11: 0 | M11: 0 | N11: 0 | O11: 0 | P11: 0 | Q11: 0 | R11: 0 | S11: 0 | T11: 0 | U11: 0 | V11: 0 | W11: 0 | X11: 0 | Y11: 0 | Z11: 0 | AA11: 0 | AB11: 0 | AC11: 0 | AD11: 0 | AE11: 0 | AF11: 0 | AG11: 0 | AH11: 0 | AI11: 0 | AJ11: 0 | AK11: 0 | AL11: 0 | AM11: 0 | AN11: 0 | AO11: 0 | AP11: 0 | AQ11: 0 | AR11: 0 | AS11: 0 | AT11: 0 | AU11: 0 | AV11: 0 | AW11: 0 | AX11: 0 | AY11: 0 | AZ11: 0 | BA11: 0 | BB11: 0 | BC11: 0 | BD11: 0 | BE11: 0 | BF11: 0 | BG11: 0
B12: Opex | G12: ='1_KMA'!$I$20 -> 2024-06-30 | H12: ='1_KMA'!$I$19 -> $millions | J12: 0.318112 | K12: 0.416408 | L12: 0.513426 | M12: 0.731184 | N12: 0.950646 | O12: 1.045534 | P12: 1.137866 | Q12: 1.231476 | R12: 1.32466 | S12: 1.415714 | T12: 1.415714 | U12: 1.415714 | V12: 1.415714 | W12: 1.415714 | X12: 1.415714 | Y12: 1.415714 | Z12: 1.415714 | AA12: 1.415714 | AB12: 1.415714 | AC12: 1.415714 | AD12: 1.415714 | AE12: 1.415714 | AF12: 1.415714 | AG12: 1.415714 | AH12: 1.415714 | AI12: 1.415714 | AJ12: 1.415714 | AK12: 1.415714 | AL12: 1.415714 | AM12: 1.415714 | AN12: 1.415714 | AO12: 1.415714 | AP12: 1.415714 | AQ12: 1.415714 | AR12: 1.415714 | AS12: 1.415714 | AT12: 1.415714 | AU12: 1.415714 | AV12: 1.415714 | AW12: 1.415714 | AX12: 1.415714 | AY12: 1.415714 | AZ12: 1.415714 | BA12: 1.415714 | BB12: 1.415714 | BC12: 1.415714 | BD12: 1.415714 | BE12: 1.415714 | BF12: 1.415714 | BG12: 1.415714
B13: Total | G13: ='1_KMA'!$I$20 -> 2024-06-30 | H13: ='1_KMA'!$I$19 -> $millions | J13: 0.318112 | K13: 0.416408 | L13: 0.513426 | M13: 2.231184 | N13: 0.950646 | O13: 1.045534 | P13: 1.137866 | Q13: 1.231476 | R13: 1.32466 | S13: 1.415714 | T13: 1.415714 | U13: 1.415714 | V13: 1.415714 | W13: 1.415714 | X13: 1.415714 | Y13: 1.415714 | Z13: 1.415714 | AA13: 1.415714 | AB13: 1.415714 | AC13: 1.415714 | AD13: 1.415714 | AE13: 1.415714 | AF13: 1.415714 | AG13: 1.415714 | AH13: 1.415714 | AI13: 1.415714 | AJ13: 1.415714 | AK13: 1.415714 | AL13: 1.415714 | AM13: 1.415714 | AN13: 1.415714 | AO13: 1.415714 | AP13: 1.415714 | AQ13: 1.415714 | AR13: 1.415714 | AS13: 1.415714 | AT13: 1.415714 | AU13: 1.415714 | AV13: 1.415714 | AW13: 1.415714 | AX13: 1.415714 | AY13: 1.415714 | AZ13: 1.415714 | BA13: 1.415714 | BB13: 1.415714 | BC13: 1.415714 | BD13: 1.415714 | BE13: 1.415714 | BF13: 1.415714 | BG13: 1.415714
B15: Benefits | G15: $ Basis Reminder | H15: $ Reminder | J15: Ensure this section [Summary] is picking up the relevant rows
B16: Value of EUE | G16: ='1_KMA'!$I$20 -> 2024-06-30 | H16: ='1_KMA'!$I$19 -> $millions | J16: 0 | K16: 0 | L16: 0 | M16: 0 | N16: 0 | O16: 0 | P16: 0 | Q16: 0 | R16: 0 | S16: 0 | T16: 0 | U16: 0 | V16: 0 | W16: 0 | X16: 0 | Y16: 0 | Z16: 0 | AA16: 0 | AB16: 0 | AC16: 0 | AD16: 0 | AE16: 0 | AF16: 0 | AG16: 0 | AH16: 0 | AI16: 0 | AJ16: 0 | AK16: 0 | AL16: 0 | AM16: 0 | AN16: 0 | AO16: 0 | AP16: 0 | AQ16: 0 | AR16: 0 | AS16: 0 | AT16: 0 | AU16: 0 | AV16: 0 | AW16: 0 | AX16: 0 | AY16: 0 | AZ16: 0 | BA16: 0 | BB16: 0 | BC16: 0 | BD16: 0 | BE16: 0 | BF16: 0 | BG16: 0
B17: Reliability | G17: ='1_KMA'!$I$20 -> 2024-06-30 | H17: ='1_KMA'!$I$19 -> $millions | J17: 0 | K17: 0 | L17: 0 | M17: 0 | N17: 0 | O17: 0 | P17: 0 | Q17: 0 | R17: 0 | S17: 0 | T17: 0 | U17: 0 | V17: 0 | W17: 0 | X17: 0 | Y17: 0 | Z17: 0 | AA17: 0 | AB17: 0 | AC17: 0 | AD17: 0 | AE17: 0 | AF17: 0 | AG17: 0 | AH17: 0 | AI17: 0 | AJ17: 0 | AK17: 0 | AL17: 0 | AM17: 0 | AN17: 0 | AO17: 0 | AP17: 0 | AQ17: 0 | AR17: 0 | AS17: 0 | AT17: 0 | AU17: 0 | AV17: 0 | AW17: 0 | AX17: 0 | AY17: 0 | AZ17: 0 | BA17: 0 | BB17: 0 | BC17: 0 | BD17: 0 | BE17: 0 | BF17: 0 | BG17: 0
B18: Resilience | G18: ='1_KMA'!$I$20 -> 2024-06-30 | H18: ='1_KMA'!$I$19 -> $millions | J18: 0 | K18: 0 | L18: 0 | M18: 0 | N18: 0 | O18: 0 | P18: 0 | Q18: 0 | R18: 0 | S18: 0 | T18: 0 | U18: 0 | V18: 0 | W18: 0 | X18: 0 | Y18: 0 | Z18: 0 | AA18: 0 | AB18: 0 | AC18: 0 | AD18: 0 | AE18: 0 | AF18: 0 | AG18: 0 | AH18: 0 | AI18: 0 | AJ18: 0 | AK18: 0 | AL18: 0 | AM18: 0 | AN18: 0 | AO18: 0 | AP18: 0 | AQ18: 0 | AR18: 0 | AS18: 0 | AT18: 0 | AU18: 0 | AV18: 0 | AW18: 0 | AX18: 0 | AY18: 0 | AZ18: 0 | BA18: 0 | BB18: 0 | BC18: 0 | BD18: 0 | BE18: 0 | BF18: 0 | BG18: 0
B19: Batteries | G19: ='1_KMA'!$I$20 -> 2024-06-30 | H19: ='1_KMA'!$I$19 -> $millions | J19: 0 | K19: 0 | L19: 0 | M19: 0 | N19: 0 | O19: 0 | P19: 0 | Q19: 0 | R19: 0 | S19: 0 | T19: 0 | U19: 0 | V19: 0 | W19: 0 | X19: 0 | Y19: 0 | Z19: 0 | AA19: 0 | AB19: 0 | AC19: 0 | AD19: 0 | AE19: 0 | AF19: 0 | AG19: 0 | AH19: 0 | AI19: 0 | AJ19: 0 | AK19: 0 | AL19: 0 | AM19: 0 | AN19: 0 | AO19: 0 | AP19: 0 | AQ19: 0 | AR19: 0 | AS19: 0 | AT19: 0 | AU19: 0 | AV19: 0 | AW19: 0 | AX19: 0 | AY19: 0 | AZ19: 0 | BA19: 0 | BB19: 0 | BC19: 0 | BD19: 0 | BE19: 0 | BF19: 0 | BG19: 0
B20: Others | G20: ='1_KMA'!$I$20 -> 2024-06-30 | H20: ='1_KMA'!$I$19 -> $millions | J20: 0 | K20: 0 | L20: 0 | M20: 0 | N20: 0 | O20: 0 | P20: -373 | Q20: -440 | R20: -658 | S20: -972 | T20: -972 | U20: -972 | V20: -972 | W20: -972 | X20: -972 | Y20: -972 | Z20: -972 | AA20: -972 | AB20: -972 | AC20: -972 | AD20: -972 | AE20: -972 | AF20: -972 | AG20: -972 | AH20: -972 | AI20: -972 | AJ20: -972 | AK20: -972 | AL20: -972 | AM20: -972 | AN20: -972 | AO20: -972 | AP20: -972 | AQ20: -972 | AR20: -972 | AS20: -972 | AT20: -972 | AU20: -972 | AV20: -972 | AW20: -972 | AX20: -972 | AY20: -972 | AZ20: -972 | BA20: -972 | BB20: -972 | BC20: -972 | BD20: -972 | BE20: -972 | BF20: -972 | BG20: -972
B21: Total | G21: ='1_KMA'!$I$20 -> 2024-06-30 | H21: ='1_KMA'!$I$19 -> $millions | J21: 0 | K21: 0 | L21: 0 | M21: 0 | N21: 0 | O21: 0 | P21: -373 | Q21: -440 | R21: -658 | S21: -972 | T21: -972 | U21: -972 | V21: -972 | W21: -972 | X21: -972 | Y21: -972 | Z21: -972 | AA21: -972 | AB21: -972 | AC21: -972 | AD21: -972 | AE21: -972 | AF21: -972 | AG21: -972 | AH21: -972 | AI21: -972 | AJ21: -972 | AK21: -972 | AL21: -972 | AM21: -972 | AN21: -972 | AO21: -972 | AP21: -972 | AQ21: -972 | AR21: -972 | AS21: -972 | AT21: -972 | AU21: -972 | AV21: -972 | AW21: -972 | AX21: -972 | AY21: -972 | AZ21: -972 | BA21: -972 | BB21: -972 | BC21: -972 | BD21: -972 | BE21: -972 | BF21: -972 | BG21: -972
B24: Cost Inputs
B26: Capex Build Up
B28: Name | H28: Unit | J28: Unit Rate
B29: Upgrade of facility | H29: 1 | J29: 1.5
B34: Name | H34: Unit | J34: Quantities
B35: =B29 -> Upgrade of facility | H35: 1 | M35: 1
B40: Name | G40: $ Basis Reminder | H40: $ Reminder | J40: ="Costs - ensure costs have been converted to "&'1_KMA'!$I$19 -> Costs - ensure costs have been converted to $millions
B41: =B29 -> Upgrade of facility | G41: ='1_KMA'!$I$20 -> 2024-06-30 | H41: ='1_KMA'!$I$19 -> $millions | J41: =$J$29*J35 -> 0 | K41: =$J$29*K35 -> 0 | L41: =$J$29*L35 -> 0 | M41: =$J$29*M35 -> 1.5 | N41: 0 | O41: 0 | P41: 0 | Q41: 0 | R41: 0 | S41: 0 | T41: 0 | U41: 0 | V41: 0 | W41: 0 | X41: 0 | Y41: 0 | Z41: 0 | AA41: 0 | AB41: 0 | AC41: 0 | AD41: 0 | AE41: 0 | AF41: 0 | AG41: 0 | AH41: 0 | AI41: 0 | AJ41: 0 | AK41: 0 | AL41: 0 | AM41: 0 | AN41: 0 | AO41: 0 | AP41: 0 | AQ41: 0 | AR41: 0 | AS41: 0 | AT41: 0 | AU41: 0 | AV41: 0 | AW41: 0 | AX41: 0 | AY41: 0 | AZ41: 0 | BA41: 0 | BB41: 0 | BC41: 0 | BD41: 0 | BE41: 0 | BF41: 0 | BG41: 0
G42: ='1_KMA'!$I$20 -> 2024-06-30 | H42: ='1_KMA'!$I$19 -> $millions
G43: ='1_KMA'!$I$20 -> 2024-06-30 | H43: ='1_KMA'!$I$19 -> $millions
G44: ='1_KMA'!$I$20 -> 2024-06-30 | H44: ='1_KMA'!$I$19 -> $millions
G46: $ Basis Reminder | H46: $ Reminder | J46: Summary table above picks up this total row
B47: Total | G47: ='1_KMA'!$I$20 -> 2024-06-30 | H47: ='1_KMA'!$I$19 -> $millions | J47: =SUM(J41:J44) -> 0 | K47: =SUM(K41:K44) -> 0 | L47: =SUM(L41:L44) -> 0 | M47: 1.5 | N47: 0 | O47: 0 | P47: 0 | Q47: 0 | R47: 0 | S47: 0 | T47: 0 | U47: 0 | V47: 0 | W47: 0 | X47: 0 | Y47: 0 | Z47: 0 | AA47: 0 | AB47: 0 | AC47: 0 | AD47: 0 | AE47: 0 | AF47: 0 | AG47: 0 | AH47: 0 | AI47: 0 | AJ47: 0 | AK47: 0 | AL47: 0 | AM47: 0 | AN47: 0 | AO47: 0 | AP47: 0 | AQ47: 0 | AR47: 0 | AS47: 0 | AT47: 0 | AU47: 0 | AV47: 0 | AW47: 0 | AX47: 0 | AY47: 0 | AZ47: 0 | BA47: 0 | BB47: 0 | BC47: 0 | BD47: 0 | BE47: 0 | BF47: 0 | BG47: =SUM(BG41:BG44) -> 0
B49: Capex Offset
J51: ="Capex offsets - ensure capex offsets have been converted to "&'1_KMA'!$I$19 -> Capex offsets - ensure capex offsets have been converted to $millions
B52: Name | G52: $ Basis Reminder | H52: $ Reminder | J52: Enter capex offsets as positive values as the spreadsheet later nets this off the gross amounts
G53: ='1_KMA'!$I$20 -> 2024-06-30 | H53: ='1_KMA'!$I$19 -> $millions
G54: ='1_KMA'!$I$20 -> 2024-06-30 | H54: ='1_KMA'!$I$19 -> $millions
G55: ='1_KMA'!$I$20 -> 2024-06-30 | H55: ='1_KMA'!$I$19 -> $millions
G56: ='1_KMA'!$I$20 -> 2024-06-30 | H56: ='1_KMA'!$I$19 -> $millions
G58: $ Basis Reminder | H58: $ Reminder | J58: Summary table above picks up this total row
B59: Total | G59: ='1_KMA'!$I$20 -> 2024-06-30 | H59: ='1_KMA'!$I$19 -> $millions | J59: =SUM(J53:J56) -> 0 | K59: =SUM(K53:K56) -> 0 | L59: =SUM(L53:L56) -> 0 | M59: 0 | N59: 0 | O59: 0 | P59: 0 | Q59: 0 | R59: 0 | S59: 0 | T59: 0 | U59: 0 | V59: 0 | W59: 0 | X59: 0 | Y59: 0 | Z59: 0 | AA59: 0 | AB59: 0 | AC59: 0 | AD59: 0 | AE59: 0 | AF59: 0 | AG59: 0 | AH59: 0 | AI59: 0 | AJ59: 0 | AK59: 0 | AL59: 0 | AM59: 0 | AN59: 0 | AO59: 0 | AP59: 0 | AQ59: 0 | AR59: 0 | AS59: 0 | AT59: 0 | AU59: 0 | AV59: 0 | AW59: 0 | AX59: 0 | AY59: 0 | AZ59: 0 | BA59: 0 | BB59: 0 | BC59: 0 | BD59: 0 | BE59: 0 | BF59: 0 | BG59: 0
B61: Opex Build Up
B63: Name | H63: Unit | J63: Value
B64: Training cost (existing) | H64: 1 | J64: C-I-C
B65: Facility management, operation, maintenance | H65: 1 | J65: C-I-C
B66: Training cost (apprentice) | H66: 1 | J66: C-I-C
B69: Name | H69: Unit | J69: Quantities
B70: =B64 -> Training cost (existing) | H70: 1 | J70: C-I-C | K70: C-I-C | L70: C-I-C | M70: C-I-C | N70: C-I-C | O70: C-I-C | P70: C-I-C | Q70: C-I-C | R70: C-I-C | S70: C-I-C | T70: C-I-C | U70: C-I-C | V70: C-I-C | W70: C-I-C | X70: C-I-C | Y70: C-I-C | Z70: C-I-C | AA70: C-I-C | AB70: C-I-C | AC70: C-I-C | AD70: C-I-C | AE70: C-I-C | AF70: C-I-C | AG70: C-I-C | AH70: C-I-C | AI70: C-I-C | AJ70: C-I-C | AK70: C-I-C | AL70: C-I-C | AM70: C-I-C | AN70: C-I-C | AO70: C-I-C | AP70: C-I-C | AQ70: C-I-C | AR70: C-I-C | AS70: C-I-C | AT70: C-I-C | AU70: C-I-C | AV70: C-I-C | AW70: C-I-C | AX70: C-I-C | AY70: C-I-C | AZ70: C-I-C | BA70: C-I-C | BB70: C-I-C | BC70: C-I-C | BD70: C-I-C | BE70: C-I-C | BF70: C-I-C | BG70: C-I-C
B71: =B65 -> Facility management, operation, maintenance | H71: 1 | J71: C-I-C | K71: C-I-C | L71: C-I-C | M71: C-I-C | N71: C-I-C | O71: C-I-C | P71: C-I-C | Q71: C-I-C | R71: C-I-C | S71: C-I-C | T71: C-I-C | U71: C-I-C | V71: C-I-C | W71: C-I-C | X71: C-I-C | Y71: C-I-C | Z71: C-I-C | AA71: C-I-C | AB71: C-I-C | AC71: C-I-C | AD71: C-I-C | AE71: C-I-C | AF71: C-I-C | AG71: C-I-C | AH71: C-I-C | AI71: C-I-C | AJ71: C-I-C | AK71: C-I-C | AL71: C-I-C | AM71: C-I-C | AN71: C-I-C | AO71: C-I-C | AP71: C-I-C | AQ71: C-I-C | AR71: C-I-C | AS71: C-I-C | AT71: C-I-C | AU71: C-I-C | AV71: C-I-C | AW71: C-I-C | AX71: C-I-C | AY71: C-I-C | AZ71: C-I-C | BA71: C-I-C | BB71: C-I-C | BC71: C-I-C | BD71: C-I-C | BE71: C-I-C | BF71: C-I-C | BG71: C-I-C
B72: =B66 -> Training cost (apprentice) | H72: 1 | J72: C-I-C | K72: C-I-C | L72: C-I-C | M72: C-I-C | N72: C-I-C | O72: C-I-C | P72: C-I-C | Q72: C-I-C | R72: C-I-C | S72: C-I-C | T72: C-I-C | U72: C-I-C | V72: C-I-C | W72: C-I-C | X72: C-I-C | Y72: C-I-C | Z72: C-I-C | AA72: C-I-C | AB72: C-I-C | AC72: C-I-C | AD72: C-I-C | AE72: C-I-C | AF72: C-I-C | AG72: C-I-C | AH72: C-I-C | AI72: C-I-C | AJ72: C-I-C | AK72: C-I-C | AL72: C-I-C | AM72: C-I-C | AN72: C-I-C | AO72: C-I-C | AP72: C-I-C | AQ72: C-I-C | AR72: C-I-C | AS72: C-I-C | AT72: C-I-C | AU72: C-I-C | AV72: C-I-C | AW72: C-I-C | AX72: C-I-C | AY72: C-I-C | AZ72: C-I-C | BA72: C-I-C | BB72: C-I-C | BC72: C-I-C | BD72: C-I-C | BE72: C-I-C | BF72: C-I-C | BG72: C-I-C
B75: Name | G75: $ Basis Reminder | H75: $ Reminder | J75: ="Costs - ensure costs have been converted to "&'1_KMA'!$I$19 -> Costs - ensure costs have been converted to $millions
B76: =B64 -> Training cost (existing) | G76: ='1_KMA'!$I$20 -> 2024-06-30 | H76: ='1_KMA'!$I$19 -> $millions | J76: C-I-C | K76: C-I-C | L76: C-I-C | M76: C-I-C | N76: C-I-C | O76: C-I-C | P76: C-I-C | Q76: C-I-C | R76: C-I-C | S76: C-I-C | T76: C-I-C | U76: C-I-C | V76: C-I-C | W76: C-I-C | X76: C-I-C | Y76: C-I-C | Z76: C-I-C | AA76: C-I-C | AB76: C-I-C | AC76: C-I-C | AD76: C-I-C | AE76: C-I-C | AF76: C-I-C | AG76: C-I-C | AH76: C-I-C | AI76: C-I-C | AJ76: C-I-C | AK76: C-I-C | AL76: C-I-C | AM76: C-I-C | AN76: C-I-C | AO76: C-I-C | AP76: C-I-C | AQ76: C-I-C | AR76: C-I-C | AS76: C-I-C | AT76: C-I-C | AU76: C-I-C | AV76: C-I-C | AW76: C-I-C | AX76: C-I-C | AY76: C-I-C | AZ76: C-I-C | BA76: C-I-C | BB76: C-I-C | BC76: C-I-C | BD76: C-I-C | BE76: C-I-C | BF76: C-I-C | BG76: C-I-C
B77: =B65 -> Facility management, operation, maintenance | G77: ='1_KMA'!$I$20 -> 2024-06-30 | H77: ='1_KMA'!$I$19 -> $millions | J77: C-I-C | K77: C-I-C | L77: C-I-C | M77: C-I-C | N77: C-I-C | O77: C-I-C | P77: C-I-C | Q77: C-I-C | R77: C-I-C | S77: C-I-C | T77: C-I-C | U77: C-I-C | V77: C-I-C | W77: C-I-C | X77: C-I-C | Y77: C-I-C | Z77: C-I-C | AA77: C-I-C | AB77: C-I-C | AC77: C-I-C | AD77: C-I-C | AE77: C-I-C | AF77: C-I-C | AG77: C-I-C | AH77: C-I-C | AI77: C-I-C | AJ77: C-I-C | AK77: C-I-C | AL77: C-I-C | AM77: C-I-C | AN77: C-I-C | AO77: C-I-C | AP77: C-I-C | AQ77: C-I-C | AR77: C-I-C | AS77: C-I-C | AT77: C-I-C | AU77: C-I-C | AV77: C-I-C | AW77: C-I-C | AX77: C-I-C | AY77: C-I-C | AZ77: C-I-C | BA77: C-I-C | BB77: C-I-C | BC77: C-I-C | BD77: C-I-C | BE77: C-I-C | BF77: C-I-C | BG77: C-I-C
B78: =B72 -> Training cost (apprentice) | G78: ='1_KMA'!$I$20 -> 2024-06-30 | H78: ='1_KMA'!$I$19 -> $millions | J78: C-I-C | K78: C-I-C | L78: C-I-C | M78: C-I-C | N78: C-I-C | O78: C-I-C | P78: C-I-C | Q78: C-I-C | R78: C-I-C | S78: C-I-C | T78: C-I-C | U78: C-I-C | V78: C-I-C | W78: C-I-C | X78: C-I-C | Y78: C-I-C | Z78: C-I-C | AA78: C-I-C | AB78: C-I-C | AC78: C-I-C | AD78: C-I-C | AE78: C-I-C | AF78: C-I-C | AG78: C-I-C | AH78: C-I-C | AI78: C-I-C | AJ78: C-I-C | AK78: C-I-C | AL78: C-I-C | AM78: C-I-C | AN78: C-I-C | AO78: C-I-C | AP78: C-I-C | AQ78: C-I-C | AR78: C-I-C | AS78: C-I-C | AT78: C-I-C | AU78: C-I-C | AV78: C-I-C | AW78: C-I-C | AX78: C-I-C | AY78: C-I-C | AZ78: C-I-C | BA78: C-I-C | BB78: C-I-C | BC78: C-I-C | BD78: C-I-C | BE78: C-I-C | BF78: C-I-C | BG78: C-I-C
G79: ='1_KMA'!$I$20 -> 2024-06-30 | H79: ='1_KMA'!$I$19 -> $millions
G81: $ Basis Reminder | H81: $ Reminder | J81: Summary table above picks up this total row
B82: Total | G82: ='1_KMA'!$I$20 -> 2024-06-30 | H82: ='1_KMA'!$I$19 -> $millions | J82: =SUM(J76:J79) -> 0 | K82: =SUM(K76:K79) -> 0 | L82: =SUM(L76:L79) -> 0 | M82: 0 | N82: 0 | O82: 0 | P82: 0 | Q82: 0 | R82: 0 | S82: 0 | T82: 0 | U82: 0 | V82: 0 | W82: 0 | X82: 0 | Y82: 0 | Z82: 0 | AA82: 0 | AB82: 0 | AC82: 0 | AD82: 0 | AE82: 0 | AF82: 0 | AG82: 0 | AH82: 0 | AI82: 0 | AJ82: 0 | AK82: 0 | AL82: 0 | AM82: 0 | AN82: 0 | AO82: 0 | AP82: 0 | AQ82: 0 | AR82: 0 | AS82: 0 | AT82: 0 | AU82: 0 | AV82: 0 | AW82: 0 | AX82: 0 | AY82: 0 | AZ82: 0 | BA82: 0 | BB82: 0 | BC82: 0 | BD82: 0 | BE82: 0 | BF82: 0 | BG82: =SUM(BG76:BG79) -> 0
B84: Benefits Inputs
B86: Value of EUE
J88: ="Values - ensure values have been converted to "&'1_KMA'!$I$19 -> Values - ensure values have been converted to $millions
G89: $ Basis Reminder | H89: $ Reminder | J89: Enter this as a positive value, as the spreadsheet later converts this to a negative benefit
B90: Value of Expected Unserved Energy (EUE) | G90: ='1_KMA'!$I$20 -> 2024-06-30 | H90: ='1_KMA'!$I$19 -> $millions
G92: $ Basis Reminder | H92: $ Reminder | J92: Summary table above picks up this total row
B93: Total | G93: ='1_KMA'!$I$20 -> 2024-06-30 | H93: ='1_KMA'!$I$19 -> $millions | J93: =J90 -> 0 | K93: =K90 -> 0 | L93: 0 | M93: 0 | N93: 0 | O93: 0 | P93: 0 | Q93: 0 | R93: 0 | S93: 0 | T93: 0 | U93: 0 | V93: 0 | W93: 0 | X93: 0 | Y93: 0 | Z93: 0 | AA93: 0 | AB93: 0 | AC93: 0 | AD93: 0 | AE93: 0 | AF93: 0 | AG93: 0 | AH93: 0 | AI93: 0 | AJ93: 0 | AK93: 0 | AL93: 0 | AM93: 0 | AN93: 0 | AO93: 0 | AP93: 0 | AQ93: 0 | AR93: 0 | AS93: 0 | AT93: 0 | AU93: 0 | AV93: 0 | AW93: 0 | AX93: 0 | AY93: 0 | AZ93: 0 | BA93: 0 | BB93: 0 | BC93: 0 | BD93: 0 | BE93: 0 | BF93: 0 | BG93: 0
B95: Reliability
B97: QCV research | H97: Unit | J97: Unit Rate
B98: Fewer unplanned outages, less than 12 hours
B99: Fewer unplanned outages in the worst served areas
H102: Unit | J102: Quantities
B103: Fewer unplanned outages, less than 12 hours
B104: Fewer unplanned outages in the worst served areas
G106: $ Basis Reminder | H106: $ Reminder | J106: ="Values - ensure values have been converted to "&'1_KMA'!$I$19 -> Values - ensure values have been converted to $millions
B107: Fewer unplanned outages, less than 12 hours | G107: ='1_KMA'!$I$20 -> 2024-06-30 | H107: ='1_KMA'!$I$19 -> $millions | J107: =J103*$J$98 -> 0 | K107: =K103*$J$98 -> 0 | L107: =L103*$J$98 -> 0 | M107: =M103*$J$98 -> 0 | N107: 0 | O107: =O103*$J$98 -> 0 | P107: 0 | Q107: 0 | R107: 0 | S107: 0 | T107: 0 | U107: 0 | V107: 0 | W107: 0 | X107: 0 | Y107: 0 | Z107: 0 | AA107: 0 | AB107: 0 | AC107: 0 | AD107: 0 | AE107: 0 | AF107: 0 | AG107: 0 | AH107: 0 | AI107: 0 | AJ107: 0 | AK107: 0 | AL107: 0 | AM107: 0 | AN107: 0 | AO107: 0 | AP107: 0 | AQ107: 0 | AR107: 0 | AS107: 0 | AT107: 0 | AU107: 0 | AV107: 0 | AW107: 0 | AX107: 0 | AY107: 0 | AZ107: 0 | BA107: 0 | BB107: 0 | BC107: 0 | BD107: 0 | BE107: 0 | BF107: 0 | BG107: 0
B108: Fewer unplanned outages in the worst served areas | G108: ='1_KMA'!$I$20 -> 2024-06-30 | H108: ='1_KMA'!$I$19 -> $millions | J108: =J104*$J$99 -> 0 | K108: =K104*$J$99 -> 0 | L108: =L104*$J$99 -> 0 | M108: =M104*$J$99 -> 0 | N108: 0 | O108: =O104*$J$99 -> 0 | P108: 0 | Q108: 0 | R108: 0 | S108: 0 | T108: 0 | U108: 0 | V108: 0 | W108: 0 | X108: 0 | Y108: 0 | Z108: 0 | AA108: 0 | AB108: 0 | AC108: 0 | AD108: 0 | AE108: 0 | AF108: 0 | AG108: 0 | AH108: 0 | AI108: 0 | AJ108: 0 | AK108: 0 | AL108: 0 | AM108: 0 | AN108: 0 | AO108: 0 | AP108: 0 | AQ108: 0 | AR108: 0 | AS108: 0 | AT108: 0 | AU108: 0 | AV108: 0 | AW108: 0 | AX108: 0 | AY108: 0 | AZ108: 0 | BA108: 0 | BB108: 0 | BC108: 0 | BD108: 0 | BE108: 0 | BF108: 0 | BG108: 0
G110: $ Basis Reminder | H110: $ Reminder | J110: Summary table above picks up this total row
B111: Total | G111: ='1_KMA'!$I$20 -> 2024-06-30 | H111: ='1_KMA'!$I$19 -> $millions | J111: =SUM(J107:J108) -> 0 | K111: =SUM(K107:K108) -> 0 | L111: 0 | M111: 0 | N111: 0 | O111: 0 | P111: 0 | Q111: 0 | R111: 0 | S111: 0 | T111: 0 | U111: 0 | V111: 0 | W111: 0 | X111: 0 | Y111: 0 | Z111: 0 | AA111: 0 | AB111: 0 | AC111: 0 | AD111: 0 | AE111: 0 | AF111: 0 | AG111: 0 | AH111: 0 | AI111: 0 | AJ111: 0 | AK111: 0 | AL111: 0 | AM111: 0 | AN111: 0 | AO111: 0 | AP111: 0 | AQ111: 0 | AR111: 0 | AS111: 0 | AT111: 0 | AU111: 0 | AV111: 0 | AW111: 0 | AX111: 0 | AY111: 0 | AZ111: 0 | BA111: 0 | BB111: 0 | BC111: 0 | BD111: 0 | BE111: 0 | BF111: 0 | BG111: 0
B113: Resilience
B115: QCV research | H115: Unit | J115: Unit Rate
B116: Fewer unplanned outages, longer than 12 hours
B117: Faster restoration of power when an outage has occurred
B118: Community hub offering essential services during long duration outages
H121: Unit | J121: Quantities
B122: Fewer unplanned outages, longer than 12 hours
B123: Faster restoration of power when an outage has occurred
B124: Community hub offering essential services
G126: $ Basis Reminder | H126: $ Reminder | J126: ="Values - ensure values have been converted to "&'1_KMA'!$I$19 -> Values - ensure values have been converted to $millions
B127: Fewer unplanned outages, longer than 12 hours | G127: ='1_KMA'!$I$20 -> 2024-06-30 | H127: ='1_KMA'!$I$19 -> $millions | J127: =J122*'2.1_Op2'!$J$116 -> 0 | K127: =K122*'2.1_Op2'!$J$116 -> 0 | L127: =L122*'2.1_Op2'!$J$116 -> 0 | M127: =M122*'2.1_Op2'!$J$116 -> 0 | N127: =N122*'2.1_Op2'!$J$116 -> 0 | O127: =O122*'2.1_Op2'!$J$116 -> 0 | P127: =P122*'2.1_Op2'!$J$116 -> 0 | Q127: =Q122*'2.1_Op2'!$J$116 -> 0 | R127: =R122*'2.1_Op2'!$J$116 -> 0 | S127: =S122*'2.1_Op2'!$J$116 -> 0 | T127: =T122*'2.1_Op2'!$J$116 -> 0 | U127: =U122*'2.1_Op2'!$J$116 -> 0 | V127: =V122*'2.1_Op2'!$J$116 -> 0 | W127: =W122*'2.1_Op2'!$J$116 -> 0 | X127: =X122*'2.1_Op2'!$J$116 -> 0 | Y127: =Y122*'2.1_Op2'!$J$116 -> 0 | Z127: =Z122*'2.1_Op2'!$J$116 -> 0 | AA127: =AA122*'2.1_Op2'!$J$116 -> 0 | AB127: =AB122*'2.1_Op2'!$J$116 -> 0 | AC127: =AC122*'2.1_Op2'!$J$116 -> 0 | AD127: =AD122*'2.1_Op2'!$J$116 -> 0 | AE127: =AE122*'2.1_Op2'!$J$116 -> 0 | AF127: =AF122*'2.1_Op2'!$J$116 -> 0 | AG127: =AG122*'2.1_Op2'!$J$116 -> 0 | AH127: =AH122*'2.1_Op2'!$J$116 -> 0 | AI127: =AI122*'2.1_Op2'!$J$116 -> 0 | AJ127: =AJ122*'2.1_Op2'!$J$116 -> 0 | AK127: =AK122*'2.1_Op2'!$J$116 -> 0 | AL127: =AL122*'2.1_Op2'!$J$116 -> 0 | AM127: =AM122*'2.1_Op2'!$J$116 -> 0 | AN127: =AN122*'2.1_Op2'!$J$116 -> 0 | AO127: =AO122*'2.1_Op2'!$J$116 -> 0 | AP127: =AP122*'2.1_Op2'!$J$116 -> 0 | AQ127: =AQ122*'2.1_Op2'!$J$116 -> 0 | AR127: =AR122*'2.1_Op2'!$J$116 -> 0 | AS127: =AS122*'2.1_Op2'!$J$116 -> 0 | AT127: =AT122*'2.1_Op2'!$J$116 -> 0 | AU127: =AU122*'2.1_Op2'!$J$116 -> 0 | AV127: =AV122*'2.1_Op2'!$J$116 -> 0 | AW127: =AW122*'2.1_Op2'!$J$116 -> 0 | AX127: =AX122*'2.1_Op2'!$J$116 -> 0 | AY127: =AY122*'2.1_Op2'!$J$116 -> 0 | AZ127: =AZ122*'2.1_Op2'!$J$116 -> 0 | BA127: =BA122*'2.1_Op2'!$J$116 -> 0 | BB127: =BB122*'2.1_Op2'!$J$116 -> 0 | BC127: =BC122*'2.1_Op2'!$J$116 -> 0 | BD127: =BD122*'2.1_Op2'!$J$116 -> 0 | BE127: =BE122*'2.1_Op2'!$J$116 -> 0 | BF127: =BF122*'2.1_Op2'!$J$116 -> 0 | BG127: =BG122*'2.1_Op2'!$J$116 -> 0
B128: Faster restoration of power when an outage has occurred | G128: ='1_KMA'!$I$20 -> 2024-06-30 | H128: ='1_KMA'!$I$19 -> $millions | J128: =J123*'2.1_Op2'!$J$117 -> 0 | K128: =K123*'2.1_Op2'!$J$117 -> 0 | L128: =L123*'2.1_Op2'!$J$117 -> 0 | M128: =M123*'2.1_Op2'!$J$117 -> 0 | N128: =N123*'2.1_Op2'!$J$117 -> 0 | O128: =O123*'2.1_Op2'!$J$117 -> 0 | P128: =P123*'2.1_Op2'!$J$117 -> 0 | Q128: =Q123*'2.1_Op2'!$J$117 -> 0 | R128: =R123*'2.1_Op2'!$J$117 -> 0 | S128: =S123*'2.1_Op2'!$J$117 -> 0 | T128: =T123*'2.1_Op2'!$J$117 -> 0 | U128: =U123*'2.1_Op2'!$J$117 -> 0 | V128: =V123*'2.1_Op2'!$J$117 -> 0 | W128: =W123*'2.1_Op2'!$J$117 -> 0 | X128: =X123*'2.1_Op2'!$J$117 -> 0 | Y128: =Y123*'2.1_Op2'!$J$117 -> 0 | Z128: =Z123*'2.1_Op2'!$J$117 -> 0 | AA128: =AA123*'2.1_Op2'!$J$117 -> 0 | AB128: =AB123*'2.1_Op2'!$J$117 -> 0 | AC128: =AC123*'2.1_Op2'!$J$117 -> 0 | AD128: =AD123*'2.1_Op2'!$J$117 -> 0 | AE128: =AE123*'2.1_Op2'!$J$117 -> 0 | AF128: =AF123*'2.1_Op2'!$J$117 -> 0 | AG128: =AG123*'2.1_Op2'!$J$117 -> 0 | AH128: =AH123*'2.1_Op2'!$J$117 -> 0 | AI128: =AI123*'2.1_Op2'!$J$117 -> 0 | AJ128: =AJ123*'2.1_Op2'!$J$117 -> 0 | AK128: =AK123*'2.1_Op2'!$J$117 -> 0 | AL128: =AL123*'2.1_Op2'!$J$117 -> 0 | AM128: =AM123*'2.1_Op2'!$J$117 -> 0 | AN128: =AN123*'2.1_Op2'!$J$117 -> 0 | AO128: =AO123*'2.1_Op2'!$J$117 -> 0 | AP128: =AP123*'2.1_Op2'!$J$117 -> 0 | AQ128: =AQ123*'2.1_Op2'!$J$117 -> 0 | AR128: =AR123*'2.1_Op2'!$J$117 -> 0 | AS128: =AS123*'2.1_Op2'!$J$117 -> 0 | AT128: =AT123*'2.1_Op2'!$J$117 -> 0 | AU128: =AU123*'2.1_Op2'!$J$117 -> 0 | AV128: =AV123*'2.1_Op2'!$J$117 -> 0 | AW128: =AW123*'2.1_Op2'!$J$117 -> 0 | AX128: =AX123*'2.1_Op2'!$J$117 -> 0 | AY128: =AY123*'2.1_Op2'!$J$117 -> 0 | AZ128: =AZ123*'2.1_Op2'!$J$117 -> 0 | BA128: =BA123*'2.1_Op2'!$J$117 -> 0 | BB128: =BB123*'2.1_Op2'!$J$117 -> 0 | BC128: =BC123*'2.1_Op2'!$J$117 -> 0 | BD128: =BD123*'2.1_Op2'!$J$117 -> 0 | BE128: =BE123*'2.1_Op2'!$J$117 -> 0 | BF128: =BF123*'2.1_Op2'!$J$117 -> 0 | BG128: =BG123*'2.1_Op2'!$J$117 -> 0
B129: Community hub offering essential services | G129: ='1_KMA'!$I$20 -> 2024-06-30 | H129: ='1_KMA'!$I$19 -> $millions | J129: =J124*'2.1_Op2'!$J$118 -> 0 | K129: =K124*'2.1_Op2'!$J$118 -> 0 | L129: =L124*'2.1_Op2'!$J$118 -> 0 | M129: =M124*'2.1_Op2'!$J$118 -> 0 | N129: =N124*'2.1_Op2'!$J$118 -> 0 | O129: =O124*'2.1_Op2'!$J$118 -> 0 | P129: =P124*'2.1_Op2'!$J$118 -> 0 | Q129: =Q124*'2.1_Op2'!$J$118 -> 0 | R129: =R124*'2.1_Op2'!$J$118 -> 0 | S129: =S124*'2.1_Op2'!$J$118 -> 0 | T129: =T124*'2.1_Op2'!$J$118 -> 0 | U129: =U124*'2.1_Op2'!$J$118 -> 0 | V129: =V124*'2.1_Op2'!$J$118 -> 0 | W129: =W124*'2.1_Op2'!$J$118 -> 0 | X129: =X124*'2.1_Op2'!$J$118 -> 0 | Y129: =Y124*'2.1_Op2'!$J$118 -> 0 | Z129: =Z124*'2.1_Op2'!$J$118 -> 0 | AA129: =AA124*'2.1_Op2'!$J$118 -> 0 | AB129: =AB124*'2.1_Op2'!$J$118 -> 0 | AC129: =AC124*'2.1_Op2'!$J$118 -> 0 | AD129: =AD124*'2.1_Op2'!$J$118 -> 0 | AE129: =AE124*'2.1_Op2'!$J$118 -> 0 | AF129: =AF124*'2.1_Op2'!$J$118 -> 0 | AG129: =AG124*'2.1_Op2'!$J$118 -> 0 | AH129: =AH124*'2.1_Op2'!$J$118 -> 0 | AI129: =AI124*'2.1_Op2'!$J$118 -> 0 | AJ129: =AJ124*'2.1_Op2'!$J$118 -> 0 | AK129: =AK124*'2.1_Op2'!$J$118 -> 0 | AL129: =AL124*'2.1_Op2'!$J$118 -> 0 | AM129: =AM124*'2.1_Op2'!$J$118 -> 0 | AN129: =AN124*'2.1_Op2'!$J$118 -> 0 | AO129: =AO124*'2.1_Op2'!$J$118 -> 0 | AP129: =AP124*'2.1_Op2'!$J$118 -> 0 | AQ129: =AQ124*'2.1_Op2'!$J$118 -> 0 | AR129: =AR124*'2.1_Op2'!$J$118 -> 0 | AS129: =AS124*'2.1_Op2'!$J$118 -> 0 | AT129: =AT124*'2.1_Op2'!$J$118 -> 0 | AU129: =AU124*'2.1_Op2'!$J$118 -> 0 | AV129: =AV124*'2.1_Op2'!$J$118 -> 0 | AW129: =AW124*'2.1_Op2'!$J$118 -> 0 | AX129: =AX124*'2.1_Op2'!$J$118 -> 0 | AY129: =AY124*'2.1_Op2'!$J$118 -> 0 | AZ129: =AZ124*'2.1_Op2'!$J$118 -> 0 | BA129: =BA124*'2.1_Op2'!$J$118 -> 0 | BB129: =BB124*'2.1_Op2'!$J$118 -> 0 | BC129: =BC124*'2.1_Op2'!$J$118 -> 0 | BD129: =BD124*'2.1_Op2'!$J$118 -> 0 | BE129: =BE124*'2.1_Op2'!$J$118 -> 0 | BF129: =BF124*'2.1_Op2'!$J$118 -> 0 | BG129: =BG124*'2.1_Op2'!$J$118 -> 0
G131: $ Basis Reminder | H131: $ Reminder | J131: Summary table above picks up this total row
B132: Total | G132: ='1_KMA'!$I$20 -> 2024-06-30 | H132: ='1_KMA'!$I$19 -> $millions | J132: =SUM(J127:J129) -> 0 | K132: =SUM(K127:K129) -> 0 | L132: 0 | M132: 0 | N132: 0 | O132: 0 | P132: 0 | Q132: 0 | R132: 0 | S132: 0 | T132: 0 | U132: 0 | V132: 0 | W132: 0 | X132: 0 | Y132: 0 | Z132: 0 | AA132: 0 | AB132: 0 | AC132: 0 | AD132: 0 | AE132: 0 | AF132: 0 | AG132: 0 | AH132: 0 | AI132: 0 | AJ132: 0 | AK132: 0 | AL132: 0 | AM132: 0 | AN132: 0 | AO132: 0 | AP132: 0 | AQ132: 0 | AR132: 0 | AS132: 0 | AT132: 0 | AU132: 0 | AV132: 0 | AW132: 0 | AX132: 0 | AY132: 0 | AZ132: 0 | BA132: 0 | BB132: 0 | BC132: 0 | BD132: 0 | BE132: 0 | BF132: 0 | BG132: 0
B134: Batteries
B136: AusNet Savings from Wholesale Arbitrage
H137: Unit | J137: Value
B138: Wholesale market price differential | H138: [e.g. $dollars per MWh]
B139: AusNet Share in Wholesale arbitrage | H139: [e.g. %]
B140: Average annual battery derating | H140: [e.g. % p.a.]
H142: Unit | J142: Location 1 | K142: Location 2 | L142: Location 3 | M142: Location 4 | N142: Location 5
B143: Battery Rating (kW) | H143: kW
B144: Battery Rating (hr) | H144: hr
B145: Battery Rating (kWh) | H145: kWh | J145: =J143*J144 -> 0 | K145: =K143*K144 -> 0 | L145: =L143*L144 -> 0 | M145: =M143*M144 -> 0 | N145: =N143*N144 -> 0
B146: Retailer benefit by wholesale arbitrage | H146: [e.g. $millions, $thousands or $dollars per year] | J146: =J145*$J$138*0.8*5*52/1000 -> 0 | K146: =K145*$J$138*0.8*5*52/1000 -> 0 | L146: =L145*$J$138*0.8*5*52/1000 -> 0 | M146: =M145*$J$138*0.8*5*52/1000 -> 0 | N146: =N145*$J$138*0.8*5*52/1000 -> 0
G148: $ Basis Reminder | H148: $ Reminder | J148: ="Values - ensure values have been converted to "&'1_KMA'!$I$19 -> Values - ensure values have been converted to $millions
B149: AusNet Savings from Wholesale Arbitrage | G149: ='1_KMA'!$I$20 -> 2024-06-30 | H149: ='1_KMA'!$I$19 -> $millions | J149: =(SUM($J$146:$N$146)*$J$139*(1/(1+$J$140)^(J4-1)))/10^6 -> 0 | K149: =(SUM($J$146:$N$146)*$J$139*(1/(1+$J$140)^(K4-1)))/10^6 -> 0 | L149: =(SUM($J$146:$N$146)*$J$139*(1/(1+$J$140)^(L4-1)))/10^6 -> 0 | M149: 0 | N149: 0 | O149: 0 | P149: 0 | Q149: 0 | R149: 0 | S149: 0 | T149: 0 | U149: 0 | V149: 0 | W149: 0 | X149: 0 | Y149: 0 | Z149: 0 | AA149: 0 | AB149: 0 | AC149: 0 | AD149: 0 | AE149: 0 | AF149: 0 | AG149: 0 | AH149: 0 | AI149: 0 | AJ149: 0 | AK149: 0 | AL149: 0 | AM149: 0 | AN149: 0 | AO149: 0 | AP149: 0 | AQ149: 0 | AR149: 0 | AS149: 0 | AT149: 0 | AU149: 0 | AV149: 0 | AW149: 0 | AX149: 0 | AY149: 0 | AZ149: 0 | BA149: 0 | BB149: 0 | BC149: 0 | BD149: 0 | BE149: 0 | BF149: 0 | BG149: 0
B151: AusNet Revenue from FCAS
H152: Unit | J152: Value
B153: FCAS participation price | H153: [e.g. $ollars per MW per hour]
B154: Average annual participation All batteries | H154: [e.g. MW per hour]
G156: $ Basis Reminder | H156: $ Reminder | J156: ="Values - ensure values have been converted to "&'1_KMA'!$I$19 -> Values - ensure values have been converted to $millions
B157: AusNet Revenue from FCAS | G157: ='1_KMA'!$I$20 -> 2024-06-30 | H157: ='1_KMA'!$I$19 -> $millions | J157: =$J$153*$J$154/10^6 -> 0 | K157: =$J$153*$J$154/10^6 -> 0 | L157: 0 | M157: 0 | N157: 0 | O157: 0 | P157: 0 | Q157: 0 | R157: 0 | S157: 0 | T157: 0 | U157: 0 | V157: 0 | W157: 0 | X157: 0 | Y157: 0 | Z157: 0 | AA157: 0 | AB157: 0 | AC157: 0 | AD157: 0 | AE157: 0 | AF157: 0 | AG157: 0 | AH157: 0 | AI157: 0 | AJ157: 0 | AK157: 0 | AL157: 0 | AM157: 0 | AN157: 0 | AO157: 0 | AP157: 0 | AQ157: 0 | AR157: 0 | AS157: 0 | AT157: 0 | AU157: 0 | AV157: 0 | AW157: 0 | AX157: 0 | AY157: 0 | AZ157: 0 | BA157: 0 | BB157: 0 | BC157: 0 | BD157: 0 | BE157: 0 | BF157: 0 | BG157: 0
B159: AusNet Savings from Avoided Penalties
H160: Unit | J160: Location 1 | K160: Location 2 | L160: Location 3 | M160: Location 4 | N160: Location 5
B161: Number of average outage events | H161: [e.g. Events per year]
B162: Average Ausnet penalty for outage | H162: [e.g. $dollars per event]
G164: $ Basis Reminder | H164: $ Reminder | J164: ="Values - ensure values have been converted to "&'1_KMA'!$I$19 -> Values - ensure values have been converted to $millions
B165: Ausnet Savings from Avoided Penalties | G165: ='1_KMA'!$I$20 -> 2024-06-30 | H165: ='1_KMA'!$I$19 -> $millions | J165: =SUMPRODUCT($J$161:$N$161,$J$162:$N$162)/10^6 -> 0 | K165: =SUMPRODUCT($J$161:$N$161,$J$162:$N$162)/10^6 -> 0 | L165: 0 | M165: =SUMPRODUCT($J$161:$N$161,$J$162:$N$162)/10^6 -> 0 | N165: 0 | O165: 0 | P165: 0 | Q165: 0 | R165: 0 | S165: 0 | T165: 0 | U165: 0 | V165: 0 | W165: 0 | X165: 0 | Y165: 0 | Z165: 0 | AA165: 0 | AB165: 0 | AC165: 0 | AD165: 0 | AE165: 0 | AF165: 0 | AG165: 0 | AH165: 0 | AI165: 0 | AJ165: 0 | AK165: 0 | AL165: 0 | AM165: 0 | AN165: 0 | AO165: 0 | AP165: 0 | AQ165: 0 | AR165: 0 | AS165: 0 | AT165: 0 | AU165: 0 | AV165: 0 | AW165: 0 | AX165: 0 | AY165: 0 | AZ165: 0 | BA165: 0 | BB165: 0 | BC165: 0 | BD165: 0 | BE165: 0 | BF165: 0 | BG165: 0
G167: $ Basis Reminder | H167: $ Reminder | J167: Summary table above picks up this total row
B168: Total | G168: ='1_KMA'!$I$20 -> 2024-06-30 | H168: ='1_KMA'!$I$19 -> $millions | J168: =J149+J157+J165 -> 0 | K168: =K149+K157+K165 -> 0 | L168: 0 | M168: 0 | N168: 0 | O168: 0 | P168: 0 | Q168: 0 | R168: 0 | S168: 0 | T168: 0 | U168: 0 | V168: 0 | W168: 0 | X168: 0 | Y168: 0 | Z168: 0 | AA168: 0 | AB168: 0 | AC168: 0 | AD168: 0 | AE168: 0 | AF168: 0 | AG168: 0 | AH168: 0 | AI168: 0 | AJ168: 0 | AK168: 0 | AL168: 0 | AM168: 0 | AN168: 0 | AO168: 0 | AP168: 0 | AQ168: 0 | AR168: 0 | AS168: 0 | AT168: 0 | AU168: 0 | AV168: 0 | AW168: 0 | AX168: 0 | AY168: 0 | AZ168: 0 | BA168: 0 | BB168: 0 | BC168: 0 | BD168: 0 | BE168: 0 | BF168: 0 | BG168: 0
B170: Others

Sheet 2.1_Op3
B1: General Inputs: Option 3 | I1: Regulatory Period Indicator | J1: ='1_KMA'!J30 -> 1 | K1: ='1_KMA'!K30 -> 1 | L1: ='1_KMA'!L30 -> 1 | M1: ='1_KMA'!M30 -> 1 | N1: ='1_KMA'!N30 -> 1 | O1: ='1_KMA'!O30 -> 0 | P1: ='1_KMA'!P30 -> 0 | Q1: ='1_KMA'!Q30 -> 0 | R1: ='1_KMA'!R30 -> 0 | S1: ='1_KMA'!S30 -> 0 | T1: ='1_KMA'!T30 -> 0 | U1: ='1_KMA'!U30 -> 0 | V1: ='1_KMA'!V30 -> 0 | W1: ='1_KMA'!W30 -> 0 | X1: ='1_KMA'!X30 -> 0 | Y1: ='1_KMA'!Y30 -> 0 | Z1: ='1_KMA'!Z30 -> 0 | AA1: ='1_KMA'!AA30 -> 0 | AB1: ='1_KMA'!AB30 -> 0 | AC1: ='1_KMA'!AC30 -> 0 | AD1: ='1_KMA'!AD30 -> 0 | AE1: ='1_KMA'!AE30 -> 0 | AF1: ='1_KMA'!AF30 -> 0 | AG1: ='1_KMA'!AG30 -> 0 | AH1: ='1_KMA'!AH30 -> 0 | AI1: ='1_KMA'!AI30 -> 0 | AJ1: ='1_KMA'!AJ30 -> 0 | AK1: ='1_KMA'!AK30 -> 0 | AL1: ='1_KMA'!AL30 -> 0 | AM1: ='1_KMA'!AM30 -> 0 | AN1: ='1_KMA'!AN30 -> 0 | AO1: ='1_KMA'!AO30 -> 0 | AP1: ='1_KMA'!AP30 -> 0 | AQ1: ='1_KMA'!AQ30 -> 0 | AR1: ='1_KMA'!AR30 -> 0 | AS1: ='1_KMA'!AS30 -> 0 | AT1: ='1_KMA'!AT30 -> 0 | AU1: ='1_KMA'!AU30 -> 0 | AV1: ='1_KMA'!AV30 -> 0 | AW1: ='1_KMA'!AW30 -> 0 | AX1: ='1_KMA'!AX30 -> 0 | AY1: ='1_KMA'!AY30 -> 0 | AZ1: ='1_KMA'!AZ30 -> 0 | BA1: ='1_KMA'!BA30 -> 0 | BB1: ='1_KMA'!BB30 -> 0 | BC1: ='1_KMA'!BC30 -> 0 | BD1: ='1_KMA'!BD30 -> 0 | BE1: ='1_KMA'!BE30 -> 0 | BF1: ='1_KMA'!BF30 -> 0 | BG1: ='1_KMA'!BG30 -> 0
B2: =Cover!$C$9 -> AusNet Services | I2: Period Start Date | J2: ='1_KMA'!J31 -> 2026-07-01 | K2: ='1_KMA'!K31 -> 2027-07-01 | L2: ='1_KMA'!L31 -> 2028-07-01 | M2: ='1_KMA'!M31 -> 2029-07-01 | N2: ='1_KMA'!N31 -> 2030-07-01 | O2: ='1_KMA'!O31 -> 2031-07-01 | P2: ='1_KMA'!P31 -> 2032-07-01 | Q2: ='1_KMA'!Q31 -> 2033-07-01 | R2: ='1_KMA'!R31 -> 2034-07-01 | S2: ='1_KMA'!S31 -> 2035-07-01 | T2: ='1_KMA'!T31 -> 2036-07-01 | U2: ='1_KMA'!U31 -> 2037-07-01 | V2: ='1_KMA'!V31 -> 2038-07-01 | W2: ='1_KMA'!W31 -> 2039-07-01 | X2: ='1_KMA'!X31 -> 2040-07-01 | Y2: ='1_KMA'!Y31 -> 2041-07-01 | Z2: ='1_KMA'!Z31 -> 2042-07-01 | AA2: ='1_KMA'!AA31 -> 2043-07-01 | AB2: ='1_KMA'!AB31 -> 2044-07-01 | AC2: ='1_KMA'!AC31 -> 2045-07-01 | AD2: ='1_KMA'!AD31 -> 2046-07-01 | AE2: ='1_KMA'!AE31 -> 2047-07-01 | AF2: ='1_KMA'!AF31 -> 2048-07-01 | AG2: ='1_KMA'!AG31 -> 2049-07-01 | AH2: ='1_KMA'!AH31 -> 2050-07-01 | AI2: ='1_KMA'!AI31 -> 2051-07-01 | AJ2: ='1_KMA'!AJ31 -> 2052-07-01 | AK2: ='1_KMA'!AK31 -> 2053-07-01 | AL2: ='1_KMA'!AL31 -> 2054-07-01 | AM2: ='1_KMA'!AM31 -> 2055-07-01 | AN2: ='1_KMA'!AN31 -> 2056-07-01 | AO2: ='1_KMA'!AO31 -> 2057-07-01 | AP2: ='1_KMA'!AP31 -> 2058-07-01 | AQ2: ='1_KMA'!AQ31 -> 2059-07-01 | AR2: ='1_KMA'!AR31 -> 2060-07-01 | AS2: ='1_KMA'!AS31 -> 2061-07-01 | AT2: ='1_KMA'!AT31 -> 2062-07-01 | AU2: ='1_KMA'!AU31 -> 2063-07-01 | AV2: ='1_KMA'!AV31 -> 2064-07-01 | AW2: ='1_KMA'!AW31 -> 2065-07-01 | AX2: ='1_KMA'!AX31 -> 2066-07-01 | AY2: ='1_KMA'!AY31 -> 2067-07-01 | AZ2: ='1_KMA'!AZ31 -> 2068-07-01 | BA2: ='1_KMA'!BA31 -> 2069-07-01 | BB2: ='1_KMA'!BB31 -> 2070-07-01 | BC2: ='1_KMA'!BC31 -> 2071-07-01 | BD2: ='1_KMA'!BD31 -> 2072-07-01 | BE2: ='1_KMA'!BE31 -> 2073-07-01 | BF2: ='1_KMA'!BF31 -> 2074-07-01 | BG2: ='1_KMA'!BG31 -> 2075-07-01
B3: =Cover!$C$10 -> Business Case Evaluation | I3: Period End Date | J3: ='1_KMA'!J32 -> 2027-06-30 | K3: ='1_KMA'!K32 -> 2028-06-30 | L3: ='1_KMA'!L32 -> 2029-06-30 | M3: ='1_KMA'!M32 -> 2030-06-30 | N3: ='1_KMA'!N32 -> 2031-06-30 | O3: ='1_KMA'!O32 -> 2032-06-30 | P3: ='1_KMA'!P32 -> 2033-06-30 | Q3: ='1_KMA'!Q32 -> 2034-06-30 | R3: ='1_KMA'!R32 -> 2035-06-30 | S3: ='1_KMA'!S32 -> 2036-06-30 | T3: ='1_KMA'!T32 -> 2037-06-30 | U3: ='1_KMA'!U32 -> 2038-06-30 | V3: ='1_KMA'!V32 -> 2039-06-30 | W3: ='1_KMA'!W32 -> 2040-06-30 | X3: ='1_KMA'!X32 -> 2041-06-30 | Y3: ='1_KMA'!Y32 -> 2042-06-30 | Z3: ='1_KMA'!Z32 -> 2043-06-30 | AA3: ='1_KMA'!AA32 -> 2044-06-30 | AB3: ='1_KMA'!AB32 -> 2045-06-30 | AC3: ='1_KMA'!AC32 -> 2046-06-30 | AD3: ='1_KMA'!AD32 -> 2047-06-30 | AE3: ='1_KMA'!AE32 -> 2048-06-30 | AF3: ='1_KMA'!AF32 -> 2049-06-30 | AG3: ='1_KMA'!AG32 -> 2050-06-30 | AH3: ='1_KMA'!AH32 -> 2051-06-30 | AI3: ='1_KMA'!AI32 -> 2052-06-30 | AJ3: ='1_KMA'!AJ32 -> 2053-06-30 | AK3: ='1_KMA'!AK32 -> 2054-06-30 | AL3: ='1_KMA'!AL32 -> 2055-06-30 | AM3: ='1_KMA'!AM32 -> 2056-06-30 | AN3: ='1_KMA'!AN32 -> 2057-06-30 | AO3: ='1_KMA'!AO32 -> 2058-06-30 | AP3: ='1_KMA'!AP32 -> 2059-06-30 | AQ3: ='1_KMA'!AQ32 -> 2060-06-30 | AR3: ='1_KMA'!AR32 -> 2061-06-30 | AS3: ='1_KMA'!AS32 -> 2062-06-30 | AT3: ='1_KMA'!AT32 -> 2063-06-30 | AU3: ='1_KMA'!AU32 -> 2064-06-30 | AV3: ='1_KMA'!AV32 -> 2065-06-30 | AW3: ='1_KMA'!AW32 -> 2066-06-30 | AX3: ='1_KMA'!AX32 -> 2067-06-30 | AY3: ='1_KMA'!AY32 -> 2068-06-30 | AZ3: ='1_KMA'!AZ32 -> 2069-06-30 | BA3: ='1_KMA'!BA32 -> 2070-06-30 | BB3: ='1_KMA'!BB32 -> 2071-06-30 | BC3: ='1_KMA'!BC32 -> 2072-06-30 | BD3: ='1_KMA'!BD32 -> 2073-06-30 | BE3: ='1_KMA'!BE32 -> 2074-06-30 | BF3: ='1_KMA'!BF32 -> 2075-06-30 | BG3: ='1_KMA'!BG32 -> 2076-06-30
B4: =Cover!$C$11 -> South Morang Training Facility | I4: Project Year | J4: ='1_KMA'!J33 -> 1 | K4: ='1_KMA'!K33 -> 2 | L4: ='1_KMA'!L33 -> 3 | M4: ='1_KMA'!M33 -> 4 | N4: ='1_KMA'!N33 -> 5 | O4: ='1_KMA'!O33 -> 6 | P4: ='1_KMA'!P33 -> 7 | Q4: ='1_KMA'!Q33 -> 8 | R4: ='1_KMA'!R33 -> 9 | S4: ='1_KMA'!S33 -> 10 | T4: ='1_KMA'!T33 -> 11 | U4: ='1_KMA'!U33 -> 12 | V4: ='1_KMA'!V33 -> 13 | W4: ='1_KMA'!W33 -> 14 | X4: ='1_KMA'!X33 -> 15 | Y4: ='1_KMA'!Y33 -> 16 | Z4: ='1_KMA'!Z33 -> 17 | AA4: ='1_KMA'!AA33 -> 18 | AB4: ='1_KMA'!AB33 -> 19 | AC4: ='1_KMA'!AC33 -> 20 | AD4: ='1_KMA'!AD33 -> 21 | AE4: ='1_KMA'!AE33 -> 22 | AF4: ='1_KMA'!AF33 -> 23 | AG4: ='1_KMA'!AG33 -> 24 | AH4: ='1_KMA'!AH33 -> 25 | AI4: ='1_KMA'!AI33 -> 26 | AJ4: ='1_KMA'!AJ33 -> 27 | AK4: ='1_KMA'!AK33 -> 28 | AL4: ='1_KMA'!AL33 -> 29 | AM4: ='1_KMA'!AM33 -> 30 | AN4: ='1_KMA'!AN33 -> 31 | AO4: ='1_KMA'!AO33 -> 32 | AP4: ='1_KMA'!AP33 -> 33 | AQ4: ='1_KMA'!AQ33 -> 34 | AR4: ='1_KMA'!AR33 -> 35 | AS4: ='1_KMA'!AS33 -> 36 | AT4: ='1_KMA'!AT33 -> 37 | AU4: ='1_KMA'!AU33 -> 38 | AV4: ='1_KMA'!AV33 -> 39 | AW4: ='1_KMA'!AW33 -> 40 | AX4: ='1_KMA'!AX33 -> 41 | AY4: ='1_KMA'!AY33 -> 42 | AZ4: ='1_KMA'!AZ33 -> 43 | BA4: ='1_KMA'!BA33 -> 44 | BB4: ='1_KMA'!BB33 -> 45 | BC4: ='1_KMA'!BC33 -> 46 | BD4: ='1_KMA'!BD33 -> 47 | BE4: ='1_KMA'!BE33 -> 48 | BF4: ='1_KMA'!BF33 -> 49 | BG4: ='1_KMA'!BG33 -> 50
I5: Financial Year | J5: ='1_KMA'!J34 -> 2027 | K5: ='1_KMA'!K34 -> 2028 | L5: ='1_KMA'!L34 -> 2029 | M5: ='1_KMA'!M34 -> 2030 | N5: ='1_KMA'!N34 -> 2031 | O5: ='1_KMA'!O34 -> 2032 | P5: ='1_KMA'!P34 -> 2033 | Q5: ='1_KMA'!Q34 -> 2034 | R5: ='1_KMA'!R34 -> 2035 | S5: ='1_KMA'!S34 -> 2036 | T5: ='1_KMA'!T34 -> 2037 | U5: ='1_KMA'!U34 -> 2038 | V5: ='1_KMA'!V34 -> 2039 | W5: ='1_KMA'!W34 -> 2040 | X5: ='1_KMA'!X34 -> 2041 | Y5: ='1_KMA'!Y34 -> 2042 | Z5: ='1_KMA'!Z34 -> 2043 | AA5: ='1_KMA'!AA34 -> 2044 | AB5: ='1_KMA'!AB34 -> 2045 | AC5: ='1_KMA'!AC34 -> 2046 | AD5: ='1_KMA'!AD34 -> 2047 | AE5: ='1_KMA'!AE34 -> 2048 | AF5: ='1_KMA'!AF34 -> 2049 | AG5: ='1_KMA'!AG34 -> 2050 | AH5: ='1_KMA'!AH34 -> 2051 | AI5: ='1_KMA'!AI34 -> 2052 | AJ5: ='1_KMA'!AJ34 -> 2053 | AK5: ='1_KMA'!AK34 -> 2054 | AL5: ='1_KMA'!AL34 -> 2055 | AM5: ='1_KMA'!AM34 -> 2056 | AN5: ='1_KMA'!AN34 -> 2057 | AO5: ='1_KMA'!AO34 -> 2058 | AP5: ='1_KMA'!AP34 -> 2059 | AQ5: ='1_KMA'!AQ34 -> 2060 | AR5: ='1_KMA'!AR34 -> 2061 | AS5: ='1_KMA'!AS34 -> 2062 | AT5: ='1_KMA'!AT34 -> 2063 | AU5: ='1_KMA'!AU34 -> 2064 | AV5: ='1_KMA'!AV34 -> 2065 | AW5: ='1_KMA'!AW34 -> 2066 | AX5: ='1_KMA'!AX34 -> 2067 | AY5: ='1_KMA'!AY34 -> 2068 | AZ5: ='1_KMA'!AZ34 -> 2069 | BA5: ='1_KMA'!BA34 -> 2070 | BB5: ='1_KMA'!BB34 -> 2071 | BC5: ='1_KMA'!BC34 -> 2072 | BD5: ='1_KMA'!BD34 -> 2073 | BE5: ='1_KMA'!BE34 -> 2074 | BF5: ='1_KMA'!BF34 -> 2075 | BG5: ='1_KMA'!BG34 -> 2076
B7: Summary
B9: Costs | G9: $ Basis Reminder | H9: $ Reminder | J9: ="Ensure this section [Summary] is picking up the relevant rows" -> Ensure this section [Summary] is picking up the relevant rows
B10: Capex | G10: ='1_KMA'!$I$20 -> 2024-06-30 | H10: ='1_KMA'!$I$19 -> $millions | J10: 0 | K10: 0 | L10: 0 | M10: 0 | N10: 0 | O10: 0 | P10: 0 | Q10: 0 | R10: 0 | S10: 0 | T10: 0 | U10: 0 | V10: 0 | W10: 0 | X10: 0 | Y10: 0 | Z10: 0 | AA10: 0 | AB10: 0 | AC10: 0 | AD10: 0 | AE10: 0 | AF10: 0 | AG10: 0 | AH10: 0 | AI10: 0 | AJ10: 0 | AK10: 0 | AL10: 0 | AM10: 0 | AN10: 0 | AO10: 0 | AP10: 0 | AQ10: 0 | AR10: 0 | AS10: 0 | AT10: 0 | AU10: 0 | AV10: 0 | AW10: 0 | AX10: 0 | AY10: 0 | AZ10: 0 | BA10: 0 | BB10: 0 | BC10: 0 | BD10: 0 | BE10: 0 | BF10: 0 | BG10: 0
B11: Capex offset | G11: ='1_KMA'!$I$20 -> 2024-06-30 | H11: ='1_KMA'!$I$19 -> $millions | J11: 0 | K11: 0 | L11: 0 | M11: 0 | N11: 0 | O11: 0 | P11: 0 | Q11: 0 | R11: 0 | S11: 0 | T11: 0 | U11: 0 | V11: 0 | W11: 0 | X11: 0 | Y11: 0 | Z11: 0 | AA11: 0 | AB11: 0 | AC11: 0 | AD11: 0 | AE11: 0 | AF11: 0 | AG11: 0 | AH11: 0 | AI11: 0 | AJ11: 0 | AK11: 0 | AL11: 0 | AM11: 0 | AN11: 0 | AO11: 0 | AP11: 0 | AQ11: 0 | AR11: 0 | AS11: 0 | AT11: 0 | AU11: 0 | AV11: 0 | AW11: 0 | AX11: 0 | AY11: 0 | AZ11: 0 | BA11: 0 | BB11: 0 | BC11: 0 | BD11: 0 | BE11: 0 | BF11: 0 | BG11: 0
B12: Opex | G12: ='1_KMA'!$I$20 -> 2024-06-30 | H12: ='1_KMA'!$I$19 -> $millions | J12: 0.443112 | K12: 0.666408 | L12: 0.888426 | M12: 1.106184 | N12: 1.325646 | O12: 1.680534 | P12: 2.032866 | Q12: 2.386476 | R12: 2.73966 | S12: 3.090714 | T12: 3.090714 | U12: 3.090714 | V12: 3.090714 | W12: 3.090714 | X12: 3.090714 | Y12: 3.090714 | Z12: 3.090714 | AA12: 3.090714 | AB12: 3.090714 | AC12: 3.090714 | AD12: 3.090714 | AE12: 3.090714 | AF12: 3.090714 | AG12: 3.090714 | AH12: 3.090714 | AI12: 3.090714 | AJ12: 3.090714 | AK12: 3.090714 | AL12: 3.090714 | AM12: 3.090714 | AN12: 3.090714 | AO12: 3.090714 | AP12: 3.090714 | AQ12: 3.090714 | AR12: 3.090714 | AS12: 3.090714 | AT12: 3.090714 | AU12: 3.090714 | AV12: 3.090714 | AW12: 3.090714 | AX12: 3.090714 | AY12: 3.090714 | AZ12: 3.090714 | BA12: 3.090714 | BB12: 3.090714 | BC12: 3.090714 | BD12: 3.090714 | BE12: 3.090714 | BF12: 3.090714 | BG12: 3.090714
B13: Total | G13: ='1_KMA'!$I$20 -> 2024-06-30 | H13: ='1_KMA'!$I$19 -> $millions | J13: 0.443112 | K13: 0.666408 | L13: 0.888426 | M13: 1.106184 | N13: 1.325646 | O13: 1.680534 | P13: 2.032866 | Q13: 2.386476 | R13: 2.73966 | S13: 3.090714 | T13: 3.090714 | U13: 3.090714 | V13: 3.090714 | W13: 3.090714 | X13: 3.090714 | Y13: 3.090714 | Z13: 3.090714 | AA13: 3.090714 | AB13: 3.090714 | AC13: 3.090714 | AD13: 3.090714 | AE13: 3.090714 | AF13: 3.090714 | AG13: 3.090714 | AH13: 3.090714 | AI13: 3.090714 | AJ13: 3.090714 | AK13: 3.090714 | AL13: 3.090714 | AM13: 3.090714 | AN13: 3.090714 | AO13: 3.090714 | AP13: 3.090714 | AQ13: 3.090714 | AR13: 3.090714 | AS13: 3.090714 | AT13: 3.090714 | AU13: 3.090714 | AV13: 3.090714 | AW13: 3.090714 | AX13: 3.090714 | AY13: 3.090714 | AZ13: 3.090714 | BA13: 3.090714 | BB13: 3.090714 | BC13: 3.090714 | BD13: 3.090714 | BE13: 3.090714 | BF13: 3.090714 | BG13: 3.090714
B15: Benefits | G15: $ Basis Reminder | H15: $ Reminder | J15: Ensure this section [Summary] is picking up the relevant rows
B16: Value of EUE | G16: ='1_KMA'!$I$20 -> 2024-06-30 | H16: ='1_KMA'!$I$19 -> $millions | J16: 0 | K16: 0 | L16: 0 | M16: 0 | N16: 0 | O16: 0 | P16: 0 | Q16: 0 | R16: 0 | S16: 0 | T16: 0 | U16: 0 | V16: 0 | W16: 0 | X16: 0 | Y16: 0 | Z16: 0 | AA16: 0 | AB16: 0 | AC16: 0 | AD16: 0 | AE16: 0 | AF16: 0 | AG16: 0 | AH16: 0 | AI16: 0 | AJ16: 0 | AK16: 0 | AL16: 0 | AM16: 0 | AN16: 0 | AO16: 0 | AP16: 0 | AQ16: 0 | AR16: 0 | AS16: 0 | AT16: 0 | AU16: 0 | AV16: 0 | AW16: 0 | AX16: 0 | AY16: 0 | AZ16: 0 | BA16: 0 | BB16: 0 | BC16: 0 | BD16: 0 | BE16: 0 | BF16: 0 | BG16: 0
B17: Reliability | G17: ='1_KMA'!$I$20 -> 2024-06-30 | H17: ='1_KMA'!$I$19 -> $millions | J17: 0 | K17: 0 | L17: 0 | M17: 0 | N17: 0 | O17: 0 | P17: 0 | Q17: 0 | R17: 0 | S17: 0 | T17: 0 | U17: 0 | V17: 0 | W17: 0 | X17: 0 | Y17: 0 | Z17: 0 | AA17: 0 | AB17: 0 | AC17: 0 | AD17: 0 | AE17: 0 | AF17: 0 | AG17: 0 | AH17: 0 | AI17: 0 | AJ17: 0 | AK17: 0 | AL17: 0 | AM17: 0 | AN17: 0 | AO17: 0 | AP17: 0 | AQ17: 0 | AR17: 0 | AS17: 0 | AT17: 0 | AU17: 0 | AV17: 0 | AW17: 0 | AX17: 0 | AY17: 0 | AZ17: 0 | BA17: 0 | BB17: 0 | BC17: 0 | BD17: 0 | BE17: 0 | BF17: 0 | BG17: 0
B18: Resilience | G18: ='1_KMA'!$I$20 -> 2024-06-30 | H18: ='1_KMA'!$I$19 -> $millions | J18: 0 | K18: 0 | L18: 0 | M18: 0 | N18: 0 | O18: 0 | P18: 0 | Q18: 0 | R18: 0 | S18: 0 | T18: 0 | U18: 0 | V18: 0 | W18: 0 | X18: 0 | Y18: 0 | Z18: 0 | AA18: 0 | AB18: 0 | AC18: 0 | AD18: 0 | AE18: 0 | AF18: 0 | AG18: 0 | AH18: 0 | AI18: 0 | AJ18: 0 | AK18: 0 | AL18: 0 | AM18: 0 | AN18: 0 | AO18: 0 | AP18: 0 | AQ18: 0 | AR18: 0 | AS18: 0 | AT18: 0 | AU18: 0 | AV18: 0 | AW18: 0 | AX18: 0 | AY18: 0 | AZ18: 0 | BA18: 0 | BB18: 0 | BC18: 0 | BD18: 0 | BE18: 0 | BF18: 0 | BG18: 0
B19: Batteries | G19: ='1_KMA'!$I$20 -> 2024-06-30 | H19: ='1_KMA'!$I$19 -> $millions | J19: 0 | K19: 0 | L19: 0 | M19: 0 | N19: 0 | O19: 0 | P19: 0 | Q19: 0 | R19: 0 | S19: 0 | T19: 0 | U19: 0 | V19: 0 | W19: 0 | X19: 0 | Y19: 0 | Z19: 0 | AA19: 0 | AB19: 0 | AC19: 0 | AD19: 0 | AE19: 0 | AF19: 0 | AG19: 0 | AH19: 0 | AI19: 0 | AJ19: 0 | AK19: 0 | AL19: 0 | AM19: 0 | AN19: 0 | AO19: 0 | AP19: 0 | AQ19: 0 | AR19: 0 | AS19: 0 | AT19: 0 | AU19: 0 | AV19: 0 | AW19: 0 | AX19: 0 | AY19: 0 | AZ19: 0 | BA19: 0 | BB19: 0 | BC19: 0 | BD19: 0 | BE19: 0 | BF19: 0 | BG19: 0
B20: Others | G20: ='1_KMA'!$I$20 -> 2024-06-30 | H20: ='1_KMA'!$I$19 -> $millions | J20: 0 | K20: 0 | L20: 0 | M20: 0 | N20: 0 | O20: 0 | P20: 0 | Q20: 0 | R20: 0 | S20: 0 | T20: 0 | U20: 0 | V20: 0 | W20: 0 | X20: 0 | Y20: 0 | Z20: 0 | AA20: 0 | AB20: 0 | AC20: 0 | AD20: 0 | AE20: 0 | AF20: 0 | AG20: 0 | AH20: 0 | AI20: 0 | AJ20: 0 | AK20: 0 | AL20: 0 | AM20: 0 | AN20: 0 | AO20: 0 | AP20: 0 | AQ20: 0 | AR20: 0 | AS20: 0 | AT20: 0 | AU20: 0 | AV20: 0 | AW20: 0 | AX20: 0 | AY20: 0 | AZ20: 0 | BA20: 0 | BB20: 0 | BC20: 0 | BD20: 0 | BE20: 0 | BF20: 0 | BG20: 0
B21: Total | G21: ='1_KMA'!$I$20 -> 2024-06-30 | H21: ='1_KMA'!$I$19 -> $millions | J21: 0 | K21: 0 | L21: 0 | M21: 0 | N21: 0 | O21: 0 | P21: 0 | Q21: 0 | R21: 0 | S21: 0 | T21: 0 | U21: 0 | V21: 0 | W21: 0 | X21: 0 | Y21: 0 | Z21: 0 | AA21: 0 | AB21: 0 | AC21: 0 | AD21: 0 | AE21: 0 | AF21: 0 | AG21: 0 | AH21: 0 | AI21: 0 | AJ21: 0 | AK21: 0 | AL21: 0 | AM21: 0 | AN21: 0 | AO21: 0 | AP21: 0 | AQ21: 0 | AR21: 0 | AS21: 0 | AT21: 0 | AU21: 0 | AV21: 0 | AW21: 0 | AX21: 0 | AY21: 0 | AZ21: 0 | BA21: 0 | BB21: 0 | BC21: 0 | BD21: 0 | BE21: 0 | BF21: 0 | BG21: 0
B24: Cost Inputs
B26: Capex Build Up
B28: Name | H28: Unit | J28: Unit Rate
B34: Name | H34: Unit | J34: Quantities
B40: Name | G40: $ Basis Reminder | H40: $ Reminder | J40: ="Costs - ensure costs have been converted to "&'1_KMA'!$I$19 -> Costs - ensure costs have been converted to $millions
G41: ='1_KMA'!$I$20 -> 2024-06-30 | H41: ='1_KMA'!$I$19 -> $millions | J41: =$J$29*J35 -> 0 | K41: =$J$29*K35 -> 0 | L41: =$J$29*L35 -> 0 | M41: =$J$29*M35 -> 0 | N41: 0 | O41: 0 | P41: 0 | Q41: 0 | R41: 0 | S41: 0 | T41: 0 | U41: 0 | V41: 0 | W41: 0 | X41: 0 | Y41: 0 | Z41: 0 | AA41: 0 | AB41: 0 | AC41: 0 | AD41: 0 | AE41: 0 | AF41: 0 | AG41: 0 | AH41: 0 | AI41: 0 | AJ41: 0 | AK41: 0 | AL41: 0 | AM41: 0 | AN41: 0 | AO41: 0 | AP41: 0 | AQ41: 0 | AR41: 0 | AS41: 0 | AT41: 0 | AU41: 0 | AV41: 0 | AW41: 0 | AX41: 0 | AY41: 0 | AZ41: 0 | BA41: 0 | BB41: 0 | BC41: 0 | BD41: 0 | BE41: 0 | BF41: 0 | BG41: 0
G42: ='1_KMA'!$I$20 -> 2024-06-30 | H42: ='1_KMA'!$I$19 -> $millions | J42: =$J$30*J36 -> 0 | K42: =$J$30*K36 -> 0 | L42: =$J$30*L36 -> 0 | M42: =$J$30*M36 -> 0 | N42: 0 | O42: 0 | P42: 0 | Q42: 0 | R42: 0 | S42: 0 | T42: 0 | U42: 0 | V42: 0 | W42: 0 | X42: 0 | Y42: 0 | Z42: 0 | AA42: 0 | AB42: 0 | AC42: 0 | AD42: 0 | AE42: 0 | AF42: 0 | AG42: 0 | AH42: 0 | AI42: 0 | AJ42: 0 | AK42: 0 | AL42: 0 | AM42: 0 | AN42: 0 | AO42: 0 | AP42: 0 | AQ42: 0 | AR42: 0 | AS42: 0 | AT42: 0 | AU42: 0 | AV42: 0 | AW42: 0 | AX42: 0 | AY42: 0 | AZ42: 0 | BA42: 0 | BB42: 0 | BC42: 0 | BD42: 0 | BE42: 0 | BF42: 0 | BG42: 0
G43: ='1_KMA'!$I$20 -> 2024-06-30 | H43: ='1_KMA'!$I$19 -> $millions | J43: =$J$31*J37 -> 0 | K43: =$J$31*K37 -> 0 | L43: =$J$31*L37 -> 0 | M43: =$J$31*M37 -> 0 | N43: 0 | O43: 0 | P43: 0 | Q43: 0 | R43: 0 | S43: 0 | T43: 0 | U43: 0 | V43: 0 | W43: 0 | X43: 0 | Y43: 0 | Z43: 0 | AA43: 0 | AB43: 0 | AC43: 0 | AD43: 0 | AE43: 0 | AF43: 0 | AG43: 0 | AH43: 0 | AI43: 0 | AJ43: 0 | AK43: 0 | AL43: 0 | AM43: 0 | AN43: 0 | AO43: 0 | AP43: 0 | AQ43: 0 | AR43: 0 | AS43: 0 | AT43: 0 | AU43: 0 | AV43: 0 | AW43: 0 | AX43: 0 | AY43: 0 | AZ43: 0 | BA43: 0 | BB43: 0 | BC43: 0 | BD43: 0 | BE43: 0 | BF43: 0 | BG43: 0
G44: ='1_KMA'!$I$20 -> 2024-06-30 | H44: ='1_KMA'!$I$19 -> $millions | J44: =$J$32*J38 -> 0 | K44: =$J$32*K38 -> 0 | L44: =$J$32*L38 -> 0 | M44: 0 | N44: 0 | O44: 0 | P44: 0 | Q44: 0 | R44: 0 | S44: 0 | T44: 0 | U44: 0 | V44: 0 | W44: 0 | X44: 0 | Y44: 0 | Z44: 0 | AA44: 0 | AB44: 0 | AC44: 0 | AD44: 0 | AE44: 0 | AF44: 0 | AG44: 0 | AH44: 0 | AI44: 0 | AJ44: 0 | AK44: 0 | AL44: 0 | AM44: 0 | AN44: 0 | AO44: 0 | AP44: 0 | AQ44: 0 | AR44: 0 | AS44: 0 | AT44: 0 | AU44: 0 | AV44: 0 | AW44: 0 | AX44: 0 | AY44: 0 | AZ44: 0 | BA44: 0 | BB44: 0 | BC44: 0 | BD44: 0 | BE44: 0 | BF44: 0 | BG44: 0
G46: $ Basis Reminder | H46: $ Reminder | J46: Summary table above picks up this total row
B47: Total | G47: ='1_KMA'!$I$20 -> 2024-06-30 | H47: ='1_KMA'!$I$19 -> $millions | J47: =SUM(J41:J44) -> 0 | K47: =SUM(K41:K44) -> 0 | L47: =SUM(L41:L44) -> 0 | M47: 0 | N47: 0 | O47: 0 | P47: 0 | Q47: 0 | R47: 0 | S47: 0 | T47: 0 | U47: 0 | V47: 0 | W47: 0 | X47: 0 | Y47: 0 | Z47: 0 | AA47: 0 | AB47: 0 | AC47: 0 | AD47: 0 | AE47: 0 | AF47: 0 | AG47: 0 | AH47: 0 | AI47: 0 | AJ47: 0 | AK47: 0 | AL47: 0 | AM47: 0 | AN47: 0 | AO47: 0 | AP47: 0 | AQ47: 0 | AR47: 0 | AS47: 0 | AT47: 0 | AU47: 0 | AV47: 0 | AW47: 0 | AX47: 0 | AY47: 0 | AZ47: 0 | BA47: 0 | BB47: 0 | BC47: 0 | BD47: 0 | BE47: 0 | BF47: 0 | BG47: =SUM(BG41:BG44) -> 0
B49: Capex Offset
J51: ="Capex offsets - ensure capex offsets have been converted to "&'1_KMA'!$I$19 -> Capex offsets - ensure capex offsets have been converted to $millions
B52: Name | G52: $ Basis Reminder | H52: $ Reminder | J52: Enter capex offsets as positive values as the spreadsheet later nets this off the gross amounts
G53: ='1_KMA'!$I$20 -> 2024-06-30 | H53: ='1_KMA'!$I$19 -> $millions
G54: ='1_KMA'!$I$20 -> 2024-06-30 | H54: ='1_KMA'!$I$19 -> $millions
G55: ='1_KMA'!$I$20 -> 2024-06-30 | H55: ='1_KMA'!$I$19 -> $millions
G56: ='1_KMA'!$I$20 -> 2024-06-30 | H56: ='1_KMA'!$I$19 -> $millions
G58: $ Basis Reminder | H58: $ Reminder | J58: Summary table above picks up this total row
B59: Total | G59: ='1_KMA'!$I$20 -> 2024-06-30 | H59: ='1_KMA'!$I$19 -> $millions | J59: =SUM(J53:J56) -> 0 | K59: =SUM(K53:K56) -> 0 | L59: =SUM(L53:L56) -> 0 | M59: 0 | N59: 0 | O59: 0 | P59: 0 | Q59: 0 | R59: 0 | S59: 0 | T59: 0 | U59: 0 | V59: 0 | W59: 0 | X59: 0 | Y59: 0 | Z59: 0 | AA59: 0 | AB59: 0 | AC59: 0 | AD59: 0 | AE59: 0 | AF59: 0 | AG59: 0 | AH59: 0 | AI59: 0 | AJ59: 0 | AK59: 0 | AL59: 0 | AM59: 0 | AN59: 0 | AO59: 0 | AP59: 0 | AQ59: 0 | AR59: 0 | AS59: 0 | AT59: 0 | AU59: 0 | AV59: 0 | AW59: 0 | AX59: 0 | AY59: 0 | AZ59: 0 | BA59: 0 | BB59: 0 | BC59: 0 | BD59: 0 | BE59: 0 | BF59: 0 | BG59: 0
B61: Opex Build Up
B63: Name | H63: Unit | J63: Value
B64: Training cost (existing) | H64: 1 | J64: C-I-C
B65: Training (interstate apprentice) | H65: 1 | J65: C-I-C
B69: Name | H69: Unit | J69: Quantities
B70: =B64 -> Training cost (existing) | H70: 1 | J70: C-I-C | K70: C-I-C | L70: C-I-C | M70: C-I-C | N70: C-I-C | O70: C-I-C | P70: C-I-C | Q70: C-I-C | R70: C-I-C | S70: C-I-C | T70: C-I-C | U70: C-I-C | V70: C-I-C | W70: C-I-C | X70: C-I-C | Y70: C-I-C | Z70: C-I-C | AA70: C-I-C | AB70: C-I-C | AC70: C-I-C | AD70: C-I-C | AE70: C-I-C | AF70: C-I-C | AG70: C-I-C | AH70: C-I-C | AI70: C-I-C | AJ70: C-I-C | AK70: C-I-C | AL70: C-I-C | AM70: C-I-C | AN70: C-I-C | AO70: C-I-C | AP70: C-I-C | AQ70: C-I-C | AR70: C-I-C | AS70: C-I-C | AT70: C-I-C | AU70: C-I-C | AV70: C-I-C | AW70: C-I-C | AX70: C-I-C | AY70: C-I-C | AZ70: C-I-C | BA70: C-I-C | BB70: C-I-C | BC70: C-I-C | BD70: C-I-C | BE70: C-I-C | BF70: C-I-C | BG70: C-I-C
B71: =B65 -> Training (interstate apprentice) | H71: 1 | J71: C-I-C | K71: C-I-C | L71: C-I-C | M71: C-I-C | N71: C-I-C | O71: C-I-C | P71: C-I-C | Q71: C-I-C | R71: C-I-C | S71: C-I-C | T71: C-I-C | U71: C-I-C | V71: C-I-C | W71: C-I-C | X71: C-I-C | Y71: C-I-C | Z71: C-I-C | AA71: C-I-C | AB71: C-I-C | AC71: C-I-C | AD71: C-I-C | AE71: C-I-C | AF71: C-I-C | AG71: C-I-C | AH71: C-I-C | AI71: C-I-C | AJ71: C-I-C | AK71: C-I-C | AL71: C-I-C | AM71: C-I-C | AN71: C-I-C | AO71: C-I-C | AP71: C-I-C | AQ71: C-I-C | AR71: C-I-C | AS71: C-I-C | AT71: C-I-C | AU71: C-I-C | AV71: C-I-C | AW71: C-I-C | AX71: C-I-C | AY71: C-I-C | AZ71: C-I-C | BA71: C-I-C | BB71: C-I-C | BC71: C-I-C | BD71: C-I-C | BE71: C-I-C | BF71: C-I-C | BG71: C-I-C
B75: Name | G75: $ Basis Reminder | H75: $ Reminder | J75: ="Costs - ensure costs have been converted to "&'1_KMA'!$I$19 -> Costs - ensure costs have been converted to $millions
B76: =B64 -> Training cost (existing) | G76: ='1_KMA'!$I$20 -> 2024-06-30 | H76: ='1_KMA'!$I$19 -> $millions | J76: C-I-C | K76: C-I-C | L76: C-I-C | M76: C-I-C | N76: C-I-C | O76: C-I-C | P76: C-I-C | Q76: C-I-C | R76: C-I-C | S76: C-I-C | T76: C-I-C | U76: C-I-C | V76: C-I-C | W76: C-I-C | X76: C-I-C | Y76: C-I-C | Z76: C-I-C | AA76: C-I-C | AB76: C-I-C | AC76: C-I-C | AD76: C-I-C | AE76: C-I-C | AF76: C-I-C | AG76: C-I-C | AH76: C-I-C | AI76: C-I-C | AJ76: C-I-C | AK76: C-I-C | AL76: C-I-C | AM76: C-I-C | AN76: C-I-C | AO76: C-I-C | AP76: C-I-C | AQ76: C-I-C | AR76: C-I-C | AS76: C-I-C | AT76: C-I-C | AU76: C-I-C | AV76: C-I-C | AW76: C-I-C | AX76: C-I-C | AY76: C-I-C | AZ76: C-I-C | BA76: C-I-C | BB76: C-I-C | BC76: C-I-C | BD76: C-I-C | BE76: C-I-C | BF76: C-I-C | BG76: C-I-C
B77: =B71 -> Training (interstate apprentice) | G77: ='1_KMA'!$I$20 -> 2024-06-30 | H77: ='1_KMA'!$I$19 -> $millions | J77: C-I-C | K77: C-I-C | L77: C-I-C | M77: C-I-C | N77: C-I-C | O77: C-I-C | P77: C-I-C | Q77: C-I-C | R77: C-I-C | S77: C-I-C | T77: C-I-C | U77: C-I-C | V77: C-I-C | W77: C-I-C | X77: C-I-C | Y77: C-I-C | Z77: C-I-C | AA77: C-I-C | AB77: C-I-C | AC77: C-I-C | AD77: C-I-C | AE77: C-I-C | AF77: C-I-C | AG77: C-I-C | AH77: C-I-C | AI77: C-I-C | AJ77: C-I-C | AK77: C-I-C | AL77: C-I-C | AM77: C-I-C | AN77: C-I-C | AO77: C-I-C | AP77: C-I-C | AQ77: C-I-C | AR77: C-I-C | AS77: C-I-C | AT77: C-I-C | AU77: C-I-C | AV77: C-I-C | AW77: C-I-C | AX77: C-I-C | AY77: C-I-C | AZ77: C-I-C | BA77: C-I-C | BB77: C-I-C | BC77: C-I-C | BD77: C-I-C | BE77: C-I-C | BF77: C-I-C | BG77: C-I-C
G78: ='1_KMA'!$I$20 -> 2024-06-30 | H78: ='1_KMA'!$I$19 -> $millions
G79: ='1_KMA'!$I$20 -> 2024-06-30 | H79: ='1_KMA'!$I$19 -> $millions
G81: $ Basis Reminder | H81: $ Reminder | J81: Summary table above picks up this total row
B82: Total | G82: ='1_KMA'!$I$20 -> 2024-06-30 | H82: ='1_KMA'!$I$19 -> $millions | J82: =SUM(J76:J79) -> 0 | K82: =SUM(K76:K79) -> 0 | L82: =SUM(L76:L79) -> 0 | M82: 0 | N82: 0 | O82: 0 | P82: 0 | Q82: 0 | R82: 0 | S82: 0 | T82: 0 | U82: 0 | V82: 0 | W82: 0 | X82: 0 | Y82: 0 | Z82: 0 | AA82: 0 | AB82: 0 | AC82: 0 | AD82: 0 | AE82: 0 | AF82: 0 | AG82: 0 | AH82: 0 | AI82: 0 | AJ82: 0 | AK82: 0 | AL82: 0 | AM82: 0 | AN82: 0 | AO82: 0 | AP82: 0 | AQ82: 0 | AR82: 0 | AS82: 0 | AT82: 0 | AU82: 0 | AV82: 0 | AW82: 0 | AX82: 0 | AY82: 0 | AZ82: 0 | BA82: 0 | BB82: 0 | BC82: 0 | BD82: 0 | BE82: 0 | BF82: 0 | BG82: =SUM(BG76:BG79) -> 0
B84: Benefits Inputs
B86: Value of EUE
J88: ="Values - ensure values have been converted to "&'1_KMA'!$I$19 -> Values - ensure values have been converted to $millions
G89: $ Basis Reminder | H89: $ Reminder | J89: Enter this as a positive value, as the spreadsheet later converts this to a negative benefit
B90: Value of Expected Unserved Energy (EUE) | G90: ='1_KMA'!$I$20 -> 2024-06-30 | H90: ='1_KMA'!$I$19 -> $millions
G92: $ Basis Reminder | H92: $ Reminder | J92: Summary table above picks up this total row
B93: Total | G93: ='1_KMA'!$I$20 -> 2024-06-30 | H93: ='1_KMA'!$I$19 -> $millions | J93: =J90 -> 0 | K93: =K90 -> 0 | L93: 0 | M93: 0 | N93: 0 | O93: 0 | P93: 0 | Q93: 0 | R93: 0 | S93: 0 | T93: 0 | U93: 0 | V93: 0 | W93: 0 | X93: 0 | Y93: 0 | Z93: 0 | AA93: 0 | AB93: 0 | AC93: 0 | AD93: 0 | AE93: 0 | AF93: 0 | AG93: 0 | AH93: 0 | AI93: 0 | AJ93: 0 | AK93: 0 | AL93: 0 | AM93: 0 | AN93: 0 | AO93: 0 | AP93: 0 | AQ93: 0 | AR93: 0 | AS93: 0 | AT93: 0 | AU93: 0 | AV93: 0 | AW93: 0 | AX93: 0 | AY93: 0 | AZ93: 0 | BA93: 0 | BB93: 0 | BC93: 0 | BD93: 0 | BE93: 0 | BF93: 0 | BG93: 0
B95: Reliability
B97: QCV research | H97: Unit | J97: Unit Rate
B98: Fewer unplanned outages, less than 12 hours
B99: Fewer unplanned outages in the worst served areas
H102: Unit | J102: Quantities
B103: Fewer unplanned outages, less than 12 hours
B104: Fewer unplanned outages in the worst served areas
G106: $ Basis Reminder | H106: $ Reminder | J106: ="Values - ensure values have been converted to "&'1_KMA'!$I$19 -> Values - ensure values have been converted to $millions
B107: Fewer unplanned outages, less than 12 hours | G107: ='1_KMA'!$I$20 -> 2024-06-30 | H107: ='1_KMA'!$I$19 -> $millions | J107: =J103*$J$98 -> 0 | K107: =K103*$J$98 -> 0 | L107: =L103*$J$98 -> 0 | M107: =M103*$J$98 -> 0 | N107: 0 | O107: =O103*$J$98 -> 0 | P107: 0 | Q107: 0 | R107: 0 | S107: 0 | T107: 0 | U107: 0 | V107: 0 | W107: 0 | X107: 0 | Y107: 0 | Z107: 0 | AA107: 0 | AB107: 0 | AC107: 0 | AD107: 0 | AE107: 0 | AF107: 0 | AG107: 0 | AH107: 0 | AI107: 0 | AJ107: 0 | AK107: 0 | AL107: 0 | AM107: 0 | AN107: 0 | AO107: 0 | AP107: 0 | AQ107: 0 | AR107: 0 | AS107: 0 | AT107: 0 | AU107: 0 | AV107: 0 | AW107: 0 | AX107: 0 | AY107: 0 | AZ107: 0 | BA107: 0 | BB107: 0 | BC107: 0 | BD107: 0 | BE107: 0 | BF107: 0 | BG107: 0
B108: Fewer unplanned outages in the worst served areas | G108: ='1_KMA'!$I$20 -> 2024-06-30 | H108: ='1_KMA'!$I$19 -> $millions | J108: =J104*$J$99 -> 0 | K108: =K104*$J$99 -> 0 | L108: =L104*$J$99 -> 0 | M108: =M104*$J$99 -> 0 | N108: 0 | O108: =O104*$J$99 -> 0 | P108: 0 | Q108: 0 | R108: 0 | S108: 0 | T108: 0 | U108: 0 | V108: 0 | W108: 0 | X108: 0 | Y108: 0 | Z108: 0 | AA108: 0 | AB108: 0 | AC108: 0 | AD108: 0 | AE108: 0 | AF108: 0 | AG108: 0 | AH108: 0 | AI108: 0 | AJ108: 0 | AK108: 0 | AL108: 0 | AM108: 0 | AN108: 0 | AO108: 0 | AP108: 0 | AQ108: 0 | AR108: 0 | AS108: 0 | AT108: 0 | AU108: 0 | AV108: 0 | AW108: 0 | AX108: 0 | AY108: 0 | AZ108: 0 | BA108: 0 | BB108: 0 | BC108: 0 | BD108: 0 | BE108: 0 | BF108: 0 | BG108: 0
G110: $ Basis Reminder | H110: $ Reminder | J110: Summary table above picks up this total row
B111: Total | G111: ='1_KMA'!$I$20 -> 2024-06-30 | H111: ='1_KMA'!$I$19 -> $millions | J111: =SUM(J107:J108) -> 0 | K111: =SUM(K107:K108) -> 0 | L111: 0 | M111: 0 | N111: 0 | O111: 0 | P111: 0 | Q111: 0 | R111: 0 | S111: 0 | T111: 0 | U111: 0 | V111: 0 | W111: 0 | X111: 0 | Y111: 0 | Z111: 0 | AA111: 0 | AB111: 0 | AC111: 0 | AD111: 0 | AE111: 0 | AF111: 0 | AG111: 0 | AH111: 0 | AI111: 0 | AJ111: 0 | AK111: 0 | AL111: 0 | AM111: 0 | AN111: 0 | AO111: 0 | AP111: 0 | AQ111: 0 | AR111: 0 | AS111: 0 | AT111: 0 | AU111: 0 | AV111: 0 | AW111: 0 | AX111: 0 | AY111: 0 | AZ111: 0 | BA111: 0 | BB111: 0 | BC111: 0 | BD111: 0 | BE111: 0 | BF111: 0 | BG111: 0
B113: Resilience
B115: QCV research | H115: Unit | J115: Unit Rate
B116: Fewer unplanned outages, longer than 12 hours
B117: Faster restoration of power when an outage has occurred
B118: Community hub offering essential services during long duration outages
H121: Unit | J121: Quantities
B122: Fewer unplanned outages, longer than 12 hours
B123: Faster restoration of power when an outage has occurred
B124: Community hub offering essential services
G126: $ Basis Reminder | H126: $ Reminder | J126: ="Values - ensure values have been converted to "&'1_KMA'!$I$19 -> Values - ensure values have been converted to $millions
B127: Fewer unplanned outages, longer than 12 hours | G127: ='1_KMA'!$I$20 -> 2024-06-30 | H127: ='1_KMA'!$I$19 -> $millions | J127: =J122*'2.1_Op3'!$J$116 -> 0 | K127: =K122*'2.1_Op3'!$J$116 -> 0 | L127: =L122*'2.1_Op3'!$J$116 -> 0 | M127: =M122*'2.1_Op3'!$J$116 -> 0 | N127: =N122*'2.1_Op3'!$J$116 -> 0 | O127: =O122*'2.1_Op3'!$J$116 -> 0 | P127: =P122*'2.1_Op3'!$J$116 -> 0 | Q127: =Q122*'2.1_Op3'!$J$116 -> 0 | R127: =R122*'2.1_Op3'!$J$116 -> 0 | S127: =S122*'2.1_Op3'!$J$116 -> 0 | T127: =T122*'2.1_Op3'!$J$116 -> 0 | U127: =U122*'2.1_Op3'!$J$116 -> 0 | V127: =V122*'2.1_Op3'!$J$116 -> 0 | W127: =W122*'2.1_Op3'!$J$116 -> 0 | X127: =X122*'2.1_Op3'!$J$116 -> 0 | Y127: =Y122*'2.1_Op3'!$J$116 -> 0 | Z127: =Z122*'2.1_Op3'!$J$116 -> 0 | AA127: =AA122*'2.1_Op3'!$J$116 -> 0 | AB127: =AB122*'2.1_Op3'!$J$116 -> 0 | AC127: =AC122*'2.1_Op3'!$J$116 -> 0 | AD127: =AD122*'2.1_Op3'!$J$116 -> 0 | AE127: =AE122*'2.1_Op3'!$J$116 -> 0 | AF127: =AF122*'2.1_Op3'!$J$116 -> 0 | AG127: =AG122*'2.1_Op3'!$J$116 -> 0 | AH127: =AH122*'2.1_Op3'!$J$116 -> 0 | AI127: =AI122*'2.1_Op3'!$J$116 -> 0 | AJ127: =AJ122*'2.1_Op3'!$J$116 -> 0 | AK127: =AK122*'2.1_Op3'!$J$116 -> 0 | AL127: =AL122*'2.1_Op3'!$J$116 -> 0 | AM127: =AM122*'2.1_Op3'!$J$116 -> 0 | AN127: =AN122*'2.1_Op3'!$J$116 -> 0 | AO127: =AO122*'2.1_Op3'!$J$116 -> 0 | AP127: =AP122*'2.1_Op3'!$J$116 -> 0 | AQ127: =AQ122*'2.1_Op3'!$J$116 -> 0 | AR127: =AR122*'2.1_Op3'!$J$116 -> 0 | AS127: =AS122*'2.1_Op3'!$J$116 -> 0 | AT127: =AT122*'2.1_Op3'!$J$116 -> 0 | AU127: =AU122*'2.1_Op3'!$J$116 -> 0 | AV127: =AV122*'2.1_Op3'!$J$116 -> 0 | AW127: =AW122*'2.1_Op3'!$J$116 -> 0 | AX127: =AX122*'2.1_Op3'!$J$116 -> 0 | AY127: =AY122*'2.1_Op3'!$J$116 -> 0 | AZ127: =AZ122*'2.1_Op3'!$J$116 -> 0 | BA127: =BA122*'2.1_Op3'!$J$116 -> 0 | BB127: =BB122*'2.1_Op3'!$J$116 -> 0 | BC127: =BC122*'2.1_Op3'!$J$116 -> 0 | BD127: =BD122*'2.1_Op3'!$J$116 -> 0 | BE127: =BE122*'2.1_Op3'!$J$116 -> 0 | BF127: =BF122*'2.1_Op3'!$J$116 -> 0 | BG127: =BG122*'2.1_Op3'!$J$116 -> 0
B128: Faster restoration of power when an outage has occurred | G128: ='1_KMA'!$I$20 -> 2024-06-30 | H128: ='1_KMA'!$I$19 -> $millions | J128: =J123*'2.1_Op3'!$J$117 -> 0 | K128: =K123*'2.1_Op3'!$J$117 -> 0 | L128: =L123*'2.1_Op3'!$J$117 -> 0 | M128: =M123*'2.1_Op3'!$J$117 -> 0 | N128: =N123*'2.1_Op3'!$J$117 -> 0 | O128: =O123*'2.1_Op3'!$J$117 -> 0 | P128: =P123*'2.1_Op3'!$J$117 -> 0 | Q128: =Q123*'2.1_Op3'!$J$117 -> 0 | R128: =R123*'2.1_Op3'!$J$117 -> 0 | S128: =S123*'2.1_Op3'!$J$117 -> 0 | T128: =T123*'2.1_Op3'!$J$117 -> 0 | U128: =U123*'2.1_Op3'!$J$117 -> 0 | V128: =V123*'2.1_Op3'!$J$117 -> 0 | W128: =W123*'2.1_Op3'!$J$117 -> 0 | X128: =X123*'2.1_Op3'!$J$117 -> 0 | Y128: =Y123*'2.1_Op3'!$J$117 -> 0 | Z128: =Z123*'2.1_Op3'!$J$117 -> 0 | AA128: =AA123*'2.1_Op3'!$J$117 -> 0 | AB128: =AB123*'2.1_Op3'!$J$117 -> 0 | AC128: =AC123*'2.1_Op3'!$J$117 -> 0 | AD128: =AD123*'2.1_Op3'!$J$117 -> 0 | AE128: =AE123*'2.1_Op3'!$J$117 -> 0 | AF128: =AF123*'2.1_Op3'!$J$117 -> 0 | AG128: =AG123*'2.1_Op3'!$J$117 -> 0 | AH128: =AH123*'2.1_Op3'!$J$117 -> 0 | AI128: =AI123*'2.1_Op3'!$J$117 -> 0 | AJ128: =AJ123*'2.1_Op3'!$J$117 -> 0 | AK128: =AK123*'2.1_Op3'!$J$117 -> 0 | AL128: =AL123*'2.1_Op3'!$J$117 -> 0 | AM128: =AM123*'2.1_Op3'!$J$117 -> 0 | AN128: =AN123*'2.1_Op3'!$J$117 -> 0 | AO128: =AO123*'2.1_Op3'!$J$117 -> 0 | AP128: =AP123*'2.1_Op3'!$J$117 -> 0 | AQ128: =AQ123*'2.1_Op3'!$J$117 -> 0 | AR128: =AR123*'2.1_Op3'!$J$117 -> 0 | AS128: =AS123*'2.1_Op3'!$J$117 -> 0 | AT128: =AT123*'2.1_Op3'!$J$117 -> 0 | AU128: =AU123*'2.1_Op3'!$J$117 -> 0 | AV128: =AV123*'2.1_Op3'!$J$117 -> 0 | AW128: =AW123*'2.1_Op3'!$J$117 -> 0 | AX128: =AX123*'2.1_Op3'!$J$117 -> 0 | AY128: =AY123*'2.1_Op3'!$J$117 -> 0 | AZ128: =AZ123*'2.1_Op3'!$J$117 -> 0 | BA128: =BA123*'2.1_Op3'!$J$117 -> 0 | BB128: =BB123*'2.1_Op3'!$J$117 -> 0 | BC128: =BC123*'2.1_Op3'!$J$117 -> 0 | BD128: =BD123*'2.1_Op3'!$J$117 -> 0 | BE128: =BE123*'2.1_Op3'!$J$117 -> 0 | BF128: =BF123*'2.1_Op3'!$J$117 -> 0 | BG128: =BG123*'2.1_Op3'!$J$117 -> 0
B129: Community hub offering essential services | G129: ='1_KMA'!$I$20 -> 2024-06-30 | H129: ='1_KMA'!$I$19 -> $millions | J129: =J124*'2.1_Op3'!$J$118 -> 0 | K129: =K124*'2.1_Op3'!$J$118 -> 0 | L129: =L124*'2.1_Op3'!$J$118 -> 0 | M129: =M124*'2.1_Op3'!$J$118 -> 0 | N129: =N124*'2.1_Op3'!$J$118 -> 0 | O129: =O124*'2.1_Op3'!$J$118 -> 0 | P129: =P124*'2.1_Op3'!$J$118 -> 0 | Q129: =Q124*'2.1_Op3'!$J$118 -> 0 | R129: =R124*'2.1_Op3'!$J$118 -> 0 | S129: =S124*'2.1_Op3'!$J$118 -> 0 | T129: =T124*'2.1_Op3'!$J$118 -> 0 | U129: =U124*'2.1_Op3'!$J$118 -> 0 | V129: =V124*'2.1_Op3'!$J$118 -> 0 | W129: =W124*'2.1_Op3'!$J$118 -> 0 | X129: =X124*'2.1_Op3'!$J$118 -> 0 | Y129: =Y124*'2.1_Op3'!$J$118 -> 0 | Z129: =Z124*'2.1_Op3'!$J$118 -> 0 | AA129: =AA124*'2.1_Op3'!$J$118 -> 0 | AB129: =AB124*'2.1_Op3'!$J$118 -> 0 | AC129: =AC124*'2.1_Op3'!$J$118 -> 0 | AD129: =AD124*'2.1_Op3'!$J$118 -> 0 | AE129: =AE124*'2.1_Op3'!$J$118 -> 0 | AF129: =AF124*'2.1_Op3'!$J$118 -> 0 | AG129: =AG124*'2.1_Op3'!$J$118 -> 0 | AH129: =AH124*'2.1_Op3'!$J$118 -> 0 | AI129: =AI124*'2.1_Op3'!$J$118 -> 0 | AJ129: =AJ124*'2.1_Op3'!$J$118 -> 0 | AK129: =AK124*'2.1_Op3'!$J$118 -> 0 | AL129: =AL124*'2.1_Op3'!$J$118 -> 0 | AM129: =AM124*'2.1_Op3'!$J$118 -> 0 | AN129: =AN124*'2.1_Op3'!$J$118 -> 0 | AO129: =AO124*'2.1_Op3'!$J$118 -> 0 | AP129: =AP124*'2.1_Op3'!$J$118 -> 0 | AQ129: =AQ124*'2.1_Op3'!$J$118 -> 0 | AR129: =AR124*'2.1_Op3'!$J$118 -> 0 | AS129: =AS124*'2.1_Op3'!$J$118 -> 0 | AT129: =AT124*'2.1_Op3'!$J$118 -> 0 | AU129: =AU124*'2.1_Op3'!$J$118 -> 0 | AV129: =AV124*'2.1_Op3'!$J$118 -> 0 | AW129: =AW124*'2.1_Op3'!$J$118 -> 0 | AX129: =AX124*'2.1_Op3'!$J$118 -> 0 | AY129: =AY124*'2.1_Op3'!$J$118 -> 0 | AZ129: =AZ124*'2.1_Op3'!$J$118 -> 0 | BA129: =BA124*'2.1_Op3'!$J$118 -> 0 | BB129: =BB124*'2.1_Op3'!$J$118 -> 0 | BC129: =BC124*'2.1_Op3'!$J$118 -> 0 | BD129: =BD124*'2.1_Op3'!$J$118 -> 0 | BE129: =BE124*'2.1_Op3'!$J$118 -> 0 | BF129: =BF124*'2.1_Op3'!$J$118 -> 0 | BG129: =BG124*'2.1_Op3'!$J$118 -> 0
G131: $ Basis Reminder | H131: $ Reminder | J131: Summary table above picks up this total row
B132: Total | G132: ='1_KMA'!$I$20 -> 2024-06-30 | H132: ='1_KMA'!$I$19 -> $millions | J132: =SUM(J127:J129) -> 0 | K132: =SUM(K127:K129) -> 0 | L132: 0 | M132: 0 | N132: 0 | O132: 0 | P132: 0 | Q132: 0 | R132: 0 | S132: 0 | T132: 0 | U132: 0 | V132: 0 | W132: 0 | X132: 0 | Y132: 0 | Z132: 0 | AA132: 0 | AB132: 0 | AC132: 0 | AD132: 0 | AE132: 0 | AF132: 0 | AG132: 0 | AH132: 0 | AI132: 0 | AJ132: 0 | AK132: 0 | AL132: 0 | AM132: 0 | AN132: 0 | AO132: 0 | AP132: 0 | AQ132: 0 | AR132: 0 | AS132: 0 | AT132: 0 | AU132: 0 | AV132: 0 | AW132: 0 | AX132: 0 | AY132: 0 | AZ132: 0 | BA132: 0 | BB132: 0 | BC132: 0 | BD132: 0 | BE132: 0 | BF132: 0 | BG132: 0
B134: Batteries
B136: AusNet Savings from Wholesale Arbitrage
H137: Unit | J137: Value
B138: Wholesale market price differential | H138: [e.g. $dollars per MWh]
B139: AusNet Share in Wholesale arbitrage | H139: [e.g. %]
B140: Average annual battery derating | H140: [e.g. % p.a.]
H142: Unit | J142: Location 1 | K142: Location 2 | L142: Location 3 | M142: Location 4 | N142: Location 5
B143: Battery Rating | H143: kW
B144: Battery Rating | H144: hr
B145: Battery Rating | H145: kWh | J145: =J143*J144 -> 0 | K145: =K143*K144 -> 0 | L145: =L143*L144 -> 0 | M145: =M143*M144 -> 0 | N145: =N143*N144 -> 0
B146: Retailer benefit by wholesale arbitrage | H146: [e.g. $millions, $thousands or $dollars per year] | J146: =J145*$J$138*0.8*5*52/1000 -> 0 | K146: =K145*$J$138*0.8*5*52/1000 -> 0 | L146: =L145*$J$138*0.8*5*52/1000 -> 0 | M146: =M145*$J$138*0.8*5*52/1000 -> 0 | N146: =N145*$J$138*0.8*5*52/1000 -> 0
G148: $ Basis Reminder | H148: $ Reminder | J148: ="Values - ensure values have been converted to "&'1_KMA'!$I$19 -> Values - ensure values have been converted to $millions
B149: AusNet Savings from Wholesale Arbitrage | G149: ='1_KMA'!$I$20 -> 2024-06-30 | H149: ='1_KMA'!$I$19 -> $millions | J149: =(SUM($J$146:$N$146)*$J$139*(1/(1+$J$140)^(J4-1)))/10^6 -> 0 | K149: =(SUM($J$146:$N$146)*$J$139*(1/(1+$J$140)^(K4-1)))/10^6 -> 0 | L149: 0 | M149: 0 | N149: 0 | O149: 0 | P149: 0 | Q149: 0 | R149: 0 | S149: 0 | T149: 0 | U149: 0 | V149: 0 | W149: 0 | X149: 0 | Y149: 0 | Z149: 0 | AA149: 0 | AB149: 0 | AC149: 0 | AD149: 0 | AE149: 0 | AF149: 0 | AG149: 0 | AH149: 0 | AI149: 0 | AJ149: 0 | AK149: 0 | AL149: 0 | AM149: 0 | AN149: 0 | AO149: 0 | AP149: 0 | AQ149: 0 | AR149: 0 | AS149: 0 | AT149: 0 | AU149: 0 | AV149: 0 | AW149: 0 | AX149: 0 | AY149: 0 | AZ149: 0 | BA149: 0 | BB149: 0 | BC149: 0 | BD149: 0 | BE149: 0 | BF149: 0 | BG149: 0
B151: AusNet Revenue from FCAS
H152: Unit | J152: Value
B153: FCAS participation price | H153: [e.g. $ollars per MW per hour] | J153: ='2.1_Op1'!J153*3 -> 0
B154: Average annual participation All batteries | H154: [e.g. MW per hour] | J154: ='2.1_Op1'!J154 -> 0
G156: $ Basis Reminder | H156: $ Reminder | J156: ="Values - ensure values have been converted to "&'1_KMA'!$I$19 -> Values - ensure values have been converted to $millions
B157: AusNet Revenue from FCAS | G157: ='1_KMA'!$I$20 -> 2024-06-30 | H157: ='1_KMA'!$I$19 -> $millions | J157: =$J$153*$J$154/10^6 -> 0 | K157: =$J$153*$J$154/10^6 -> 0 | L157: 0 | M157: 0 | N157: 0 | O157: 0 | P157: 0 | Q157: 0 | R157: 0 | S157: 0 | T157: 0 | U157: 0 | V157: 0 | W157: 0 | X157: 0 | Y157: 0 | Z157: 0 | AA157: 0 | AB157: 0 | AC157: 0 | AD157: 0 | AE157: 0 | AF157: 0 | AG157: 0 | AH157: 0 | AI157: 0 | AJ157: 0 | AK157: 0 | AL157: 0 | AM157: 0 | AN157: 0 | AO157: 0 | AP157: 0 | AQ157: 0 | AR157: 0 | AS157: 0 | AT157: 0 | AU157: 0 | AV157: 0 | AW157: 0 | AX157: 0 | AY157: 0 | AZ157: 0 | BA157: 0 | BB157: 0 | BC157: 0 | BD157: 0 | BE157: 0 | BF157: 0 | BG157: 0
B159: AusNet Savings from Avoided Penalties
H160: Unit | J160: Location 1 | K160: Location 2 | L160: Location 3 | M160: Location 4 | N160: Location 5
B161: Number of average outage events | H161: [e.g. Events per year]
B162: Average Ausnet penalty for outage | H162: [e.g. $dollars per event]
G164: $ Basis Reminder | H164: $ Reminder | J164: ="Values - ensure values have been converted to "&'1_KMA'!$I$19 -> Values - ensure values have been converted to $millions
B165: Ausnet Savings from Avoided Penalties | G165: ='1_KMA'!$I$20 -> 2024-06-30 | H165: ='1_KMA'!$I$19 -> $millions | J165: =SUMPRODUCT($J$161:$N$161,$J$162:$N$162)/10^6 -> 0 | K165: =SUMPRODUCT($J$161:$N$161,$J$162:$N$162)/10^6 -> 0 | L165: 0 | M165: 0 | N165: 0 | O165: 0 | P165: 0 | Q165: 0 | R165: 0 | S165: 0 | T165: 0 | U165: 0 | V165: 0 | W165: 0 | X165: 0 | Y165: 0 | Z165: 0 | AA165: 0 | AB165: 0 | AC165: 0 | AD165: 0 | AE165: 0 | AF165: 0 | AG165: 0 | AH165: 0 | AI165: 0 | AJ165: 0 | AK165: 0 | AL165: 0 | AM165: 0 | AN165: 0 | AO165: 0 | AP165: 0 | AQ165: 0 | AR165: 0 | AS165: 0 | AT165: 0 | AU165: 0 | AV165: 0 | AW165: 0 | AX165: 0 | AY165: 0 | AZ165: 0 | BA165: 0 | BB165: 0 | BC165: 0 | BD165: 0 | BE165: 0 | BF165: 0 | BG165: 0
G167: $ Basis Reminder | H167: $ Reminder | J167: Summary table above picks up this total row
B168: Total | G168: ='1_KMA'!$I$20 -> 2024-06-30 | H168: ='1_KMA'!$I$19 -> $millions | J168: =J149+J157+J165 -> 0 | K168: =K149+K157+K165 -> 0 | L168: 0 | M168: 0 | N168: 0 | O168: 0 | P168: 0 | Q168: 0 | R168: 0 | S168: 0 | T168: 0 | U168: 0 | V168: 0 | W168: 0 | X168: 0 | Y168: 0 | Z168: 0 | AA168: 0 | AB168: 0 | AC168: 0 | AD168: 0 | AE168: 0 | AF168: 0 | AG168: 0 | AH168: 0 | AI168: 0 | AJ168: 0 | AK168: 0 | AL168: 0 | AM168: 0 | AN168: 0 | AO168: 0 | AP168: 0 | AQ168: 0 | AR168: 0 | AS168: 0 | AT168: 0 | AU168: 0 | AV168: 0 | AW168: 0 | AX168: 0 | AY168: 0 | AZ168: 0 | BA168: 0 | BB168: 0 | BC168: 0 | BD168: 0 | BE168: 0 | BF168: 0 | BG168: 0
B170: Others

Sheet 3_Interim calcs-> (hidden)
C6: Interim calculations
C7: Section 3.
C9: =Cover!$C$9 -> AusNet Services
C10: =Cover!$C$10 -> Business Case Evaluation
C11: =Cover!$C$11 -> South Morang Training Facility

Sheet 3_BC (hidden)
B1: Interim Calculations: Base Case | I1: Regulatory Period Indicator | J1: ='1_KMA'!J30 -> 1 | K1: ='1_KMA'!K30 -> 1 | L1: ='1_KMA'!L30 -> 1 | M1: ='1_KMA'!M30 -> 1 | N1: ='1_KMA'!N30 -> 1 | O1: ='1_KMA'!O30 -> 0 | P1: ='1_KMA'!P30 -> 0 | Q1: ='1_KMA'!Q30 -> 0 | R1: ='1_KMA'!R30 -> 0 | S1: ='1_KMA'!S30 -> 0 | T1: ='1_KMA'!T30 -> 0 | U1: ='1_KMA'!U30 -> 0 | V1: ='1_KMA'!V30 -> 0 | W1: ='1_KMA'!W30 -> 0 | X1: ='1_KMA'!X30 -> 0 | Y1: ='1_KMA'!Y30 -> 0 | Z1: ='1_KMA'!Z30 -> 0 | AA1: ='1_KMA'!AA30 -> 0 | AB1: ='1_KMA'!AB30 -> 0 | AC1: ='1_KMA'!AC30 -> 0 | AD1: ='1_KMA'!AD30 -> 0 | AE1: ='1_KMA'!AE30 -> 0 | AF1: ='1_KMA'!AF30 -> 0 | AG1: ='1_KMA'!AG30 -> 0 | AH1: ='1_KMA'!AH30 -> 0 | AI1: ='1_KMA'!AI30 -> 0 | AJ1: ='1_KMA'!AJ30 -> 0 | AK1: ='1_KMA'!AK30 -> 0 | AL1: ='1_KMA'!AL30 -> 0 | AM1: ='1_KMA'!AM30 -> 0 | AN1: ='1_KMA'!AN30 -> 0 | AO1: ='1_KMA'!AO30 -> 0 | AP1: ='1_KMA'!AP30 -> 0 | AQ1: ='1_KMA'!AQ30 -> 0 | AR1: ='1_KMA'!AR30 -> 0 | AS1: ='1_KMA'!AS30 -> 0 | AT1: ='1_KMA'!AT30 -> 0 | AU1: ='1_KMA'!AU30 -> 0 | AV1: ='1_KMA'!AV30 -> 0 | AW1: ='1_KMA'!AW30 -> 0 | AX1: ='1_KMA'!AX30 -> 0 | AY1: ='1_KMA'!AY30 -> 0 | AZ1: ='1_KMA'!AZ30 -> 0 | BA1: ='1_KMA'!BA30 -> 0 | BB1: ='1_KMA'!BB30 -> 0 | BC1: ='1_KMA'!BC30 -> 0 | BD1: ='1_KMA'!BD30 -> 0 | BE1: ='1_KMA'!BE30 -> 0 | BF1: ='1_KMA'!BF30 -> 0 | BG1: ='1_KMA'!BG30 -> 0
B2: =Cover!$C$9 -> AusNet Services | I2: Period Start Date | J2: ='1_KMA'!J31 -> 2026-07-01 | K2: ='1_KMA'!K31 -> 2027-07-01 | L2: ='1_KMA'!L31 -> 2028-07-01 | M2: ='1_KMA'!M31 -> 2029-07-01 | N2: ='1_KMA'!N31 -> 2030-07-01 | O2: ='1_KMA'!O31 -> 2031-07-01 | P2: ='1_KMA'!P31 -> 2032-07-01 | Q2: ='1_KMA'!Q31 -> 2033-07-01 | R2: ='1_KMA'!R31 -> 2034-07-01 | S2: ='1_KMA'!S31 -> 2035-07-01 | T2: ='1_KMA'!T31 -> 2036-07-01 | U2: ='1_KMA'!U31 -> 2037-07-01 | V2: ='1_KMA'!V31 -> 2038-07-01 | W2: ='1_KMA'!W31 -> 2039-07-01 | X2: ='1_KMA'!X31 -> 2040-07-01 | Y2: ='1_KMA'!Y31 -> 2041-07-01 | Z2: ='1_KMA'!Z31 -> 2042-07-01 | AA2: ='1_KMA'!AA31 -> 2043-07-01 | AB2: ='1_KMA'!AB31 -> 2044-07-01 | AC2: ='1_KMA'!AC31 -> 2045-07-01 | AD2: ='1_KMA'!AD31 -> 2046-07-01 | AE2: ='1_KMA'!AE31 -> 2047-07-01 | AF2: ='1_KMA'!AF31 -> 2048-07-01 | AG2: ='1_KMA'!AG31 -> 2049-07-01 | AH2: ='1_KMA'!AH31 -> 2050-07-01 | AI2: ='1_KMA'!AI31 -> 2051-07-01 | AJ2: ='1_KMA'!AJ31 -> 2052-07-01 | AK2: ='1_KMA'!AK31 -> 2053-07-01 | AL2: ='1_KMA'!AL31 -> 2054-07-01 | AM2: ='1_KMA'!AM31 -> 2055-07-01 | AN2: ='1_KMA'!AN31 -> 2056-07-01 | AO2: ='1_KMA'!AO31 -> 2057-07-01 | AP2: ='1_KMA'!AP31 -> 2058-07-01 | AQ2: ='1_KMA'!AQ31 -> 2059-07-01 | AR2: ='1_KMA'!AR31 -> 2060-07-01 | AS2: ='1_KMA'!AS31 -> 2061-07-01 | AT2: ='1_KMA'!AT31 -> 2062-07-01 | AU2: ='1_KMA'!AU31 -> 2063-07-01 | AV2: ='1_KMA'!AV31 -> 2064-07-01 | AW2: ='1_KMA'!AW31 -> 2065-07-01 | AX2: ='1_KMA'!AX31 -> 2066-07-01 | AY2: ='1_KMA'!AY31 -> 2067-07-01 | AZ2: ='1_KMA'!AZ31 -> 2068-07-01 | BA2: ='1_KMA'!BA31 -> 2069-07-01 | BB2: ='1_KMA'!BB31 -> 2070-07-01 | BC2: ='1_KMA'!BC31 -> 2071-07-01 | BD2: ='1_KMA'!BD31 -> 2072-07-01 | BE2: ='1_KMA'!BE31 -> 2073-07-01 | BF2: ='1_KMA'!BF31 -> 2074-07-01 | BG2: ='1_KMA'!BG31 -> 2075-07-01
B3: =Cover!$C$10 -> Business Case Evaluation | I3: Period End Date | J3: ='1_KMA'!J32 -> 2027-06-30 | K3: ='1_KMA'!K32 -> 2028-06-30 | L3: ='1_KMA'!L32 -> 2029-06-30 | M3: ='1_KMA'!M32 -> 2030-06-30 | N3: ='1_KMA'!N32 -> 2031-06-30 | O3: ='1_KMA'!O32 -> 2032-06-30 | P3: ='1_KMA'!P32 -> 2033-06-30 | Q3: ='1_KMA'!Q32 -> 2034-06-30 | R3: ='1_KMA'!R32 -> 2035-06-30 | S3: ='1_KMA'!S32 -> 2036-06-30 | T3: ='1_KMA'!T32 -> 2037-06-30 | U3: ='1_KMA'!U32 -> 2038-06-30 | V3: ='1_KMA'!V32 -> 2039-06-30 | W3: ='1_KMA'!W32 -> 2040-06-30 | X3: ='1_KMA'!X32 -> 2041-06-30 | Y3: ='1_KMA'!Y32 -> 2042-06-30 | Z3: ='1_KMA'!Z32 -> 2043-06-30 | AA3: ='1_KMA'!AA32 -> 2044-06-30 | AB3: ='1_KMA'!AB32 -> 2045-06-30 | AC3: ='1_KMA'!AC32 -> 2046-06-30 | AD3: ='1_KMA'!AD32 -> 2047-06-30 | AE3: ='1_KMA'!AE32 -> 2048-06-30 | AF3: ='1_KMA'!AF32 -> 2049-06-30 | AG3: ='1_KMA'!AG32 -> 2050-06-30 | AH3: ='1_KMA'!AH32 -> 2051-06-30 | AI3: ='1_KMA'!AI32 -> 2052-06-30 | AJ3: ='1_KMA'!AJ32 -> 2053-06-30 | AK3: ='1_KMA'!AK32 -> 2054-06-30 | AL3: ='1_KMA'!AL32 -> 2055-06-30 | AM3: ='1_KMA'!AM32 -> 2056-06-30 | AN3: ='1_KMA'!AN32 -> 2057-06-30 | AO3: ='1_KMA'!AO32 -> 2058-06-30 | AP3: ='1_KMA'!AP32 -> 2059-06-30 | AQ3: ='1_KMA'!AQ32 -> 2060-06-30 | AR3: ='1_KMA'!AR32 -> 2061-06-30 | AS3: ='1_KMA'!AS32 -> 2062-06-30 | AT3: ='1_KMA'!AT32 -> 2063-06-30 | AU3: ='1_KMA'!AU32 -> 2064-06-30 | AV3: ='1_KMA'!AV32 -> 2065-06-30 | AW3: ='1_KMA'!AW32 -> 2066-06-30 | AX3: ='1_KMA'!AX32 -> 2067-06-30 | AY3: ='1_KMA'!AY32 -> 2068-06-30 | AZ3: ='1_KMA'!AZ32 -> 2069-06-30 | BA3: ='1_KMA'!BA32 -> 2070-06-30 | BB3: ='1_KMA'!BB32 -> 2071-06-30 | BC3: ='1_KMA'!BC32 -> 2072-06-30 | BD3: ='1_KMA'!BD32 -> 2073-06-30 | BE3: ='1_KMA'!BE32 -> 2074-06-30 | BF3: ='1_KMA'!BF32 -> 2075-06-30 | BG3: ='1_KMA'!BG32 -> 2076-06-30
B4: =Cover!$C$11 -> South Morang Training Facility | I4: Project Year | J4: ='1_KMA'!J33 -> 1 | K4: ='1_KMA'!K33 -> 2 | L4: ='1_KMA'!L33 -> 3 | M4: ='1_KMA'!M33 -> 4 | N4: ='1_KMA'!N33 -> 5 | O4: ='1_KMA'!O33 -> 6 | P4: ='1_KMA'!P33 -> 7 | Q4: ='1_KMA'!Q33 -> 8 | R4: ='1_KMA'!R33 -> 9 | S4: ='1_KMA'!S33 -> 10 | T4: ='1_KMA'!T33 -> 11 | U4: ='1_KMA'!U33 -> 12 | V4: ='1_KMA'!V33 -> 13 | W4: ='1_KMA'!W33 -> 14 | X4: ='1_KMA'!X33 -> 15 | Y4: ='1_KMA'!Y33 -> 16 | Z4: ='1_KMA'!Z33 -> 17 | AA4: ='1_KMA'!AA33 -> 18 | AB4: ='1_KMA'!AB33 -> 19 | AC4: ='1_KMA'!AC33 -> 20 | AD4: ='1_KMA'!AD33 -> 21 | AE4: ='1_KMA'!AE33 -> 22 | AF4: ='1_KMA'!AF33 -> 23 | AG4: ='1_KMA'!AG33 -> 24 | AH4: ='1_KMA'!AH33 -> 25 | AI4: ='1_KMA'!AI33 -> 26 | AJ4: ='1_KMA'!AJ33 -> 27 | AK4: ='1_KMA'!AK33 -> 28 | AL4: ='1_KMA'!AL33 -> 29 | AM4: ='1_KMA'!AM33 -> 30 | AN4: ='1_KMA'!AN33 -> 31 | AO4: ='1_KMA'!AO33 -> 32 | AP4: ='1_KMA'!AP33 -> 33 | AQ4: ='1_KMA'!AQ33 -> 34 | AR4: ='1_KMA'!AR33 -> 35 | AS4: ='1_KMA'!AS33 -> 36 | AT4: ='1_KMA'!AT33 -> 37 | AU4: ='1_KMA'!AU33 -> 38 | AV4: ='1_KMA'!AV33 -> 39 | AW4: ='1_KMA'!AW33 -> 40 | AX4: ='1_KMA'!AX33 -> 41 | AY4: ='1_KMA'!AY33 -> 42 | AZ4: ='1_KMA'!AZ33 -> 43 | BA4: ='1_KMA'!BA33 -> 44 | BB4: ='1_KMA'!BB33 -> 45 | BC4: ='1_KMA'!BC33 -> 46 | BD4: ='1_KMA'!BD33 -> 47 | BE4: ='1_KMA'!BE33 -> 48 | BF4: ='1_KMA'!BF33 -> 49 | BG4: ='1_KMA'!BG33 -> 50
I5: Financial Year | J5: ='1_KMA'!J34 -> 2027 | K5: ='1_KMA'!K34 -> 2028 | L5: ='1_KMA'!L34 -> 2029 | M5: ='1_KMA'!M34 -> 2030 | N5: ='1_KMA'!N34 -> 2031 | O5: ='1_KMA'!O34 -> 2032 | P5: ='1_KMA'!P34 -> 2033 | Q5: ='1_KMA'!Q34 -> 2034 | R5: ='1_KMA'!R34 -> 2035 | S5: ='1_KMA'!S34 -> 2036 | T5: ='1_KMA'!T34 -> 2037 | U5: ='1_KMA'!U34 -> 2038 | V5: ='1_KMA'!V34 -> 2039 | W5: ='1_KMA'!W34 -> 2040 | X5: ='1_KMA'!X34 -> 2041 | Y5: ='1_KMA'!Y34 -> 2042 | Z5: ='1_KMA'!Z34 -> 2043 | AA5: ='1_KMA'!AA34 -> 2044 | AB5: ='1_KMA'!AB34 -> 2045 | AC5: ='1_KMA'!AC34 -> 2046 | AD5: ='1_KMA'!AD34 -> 2047 | AE5: ='1_KMA'!AE34 -> 2048 | AF5: ='1_KMA'!AF34 -> 2049 | AG5: ='1_KMA'!AG34 -> 2050 | AH5: ='1_KMA'!AH34 -> 2051 | AI5: ='1_KMA'!AI34 -> 2052 | AJ5: ='1_KMA'!AJ34 -> 2053 | AK5: ='1_KMA'!AK34 -> 2054 | AL5: ='1_KMA'!AL34 -> 2055 | AM5: ='1_KMA'!AM34 -> 2056 | AN5: ='1_KMA'!AN34 -> 2057 | AO5: ='1_KMA'!AO34 -> 2058 | AP5: ='1_KMA'!AP34 -> 2059 | AQ5: ='1_KMA'!AQ34 -> 2060 | AR5: ='1_KMA'!AR34 -> 2061 | AS5: ='1_KMA'!AS34 -> 2062 | AT5: ='1_KMA'!AT34 -> 2063 | AU5: ='1_KMA'!AU34 -> 2064 | AV5: ='1_KMA'!AV34 -> 2065 | AW5: ='1_KMA'!AW34 -> 2066 | AX5: ='1_KMA'!AX34 -> 2067 | AY5: ='1_KMA'!AY34 -> 2068 | AZ5: ='1_KMA'!AZ34 -> 2069 | BA5: ='1_KMA'!BA34 -> 2070 | BB5: ='1_KMA'!BB34 -> 2071 | BC5: ='1_KMA'!BC34 -> 2072 | BD5: ='1_KMA'!BD34 -> 2073 | BE5: ='1_KMA'!BE34 -> 2074 | BF5: ='1_KMA'!BF34 -> 2075 | BG5: ='1_KMA'!BG34 -> 2076
I7: Escalation | J7: =IF(ISERROR(VLOOKUP('1_KMA'!$I$20&'1_KMA'!$I$21,CPI_Con_F!$C$63:$H$182,6,FALSE)),0,VLOOKUP('1_KMA'!$I$20&'1_KMA'!$I$21,CPI_Con_F!$C$63:$H$182,6,FALSE)) -> 1 | K7: =IF(ISERROR(VLOOKUP('1_KMA'!$I$20&'1_KMA'!$I$21,CPI_Con_F!$C$63:$H$182,6,FALSE)),0,VLOOKUP('1_KMA'!$I$20&'1_KMA'!$I$21,CPI_Con_F!$C$63:$H$182,6,FALSE)) -> 1 | L7: =IF(ISERROR(VLOOKUP('1_KMA'!$I$20&'1_KMA'!$I$21,CPI_Con_F!$C$63:$H$182,6,FALSE)),0,VLOOKUP('1_KMA'!$I$20&'1_KMA'!$I$21,CPI_Con_F!$C$63:$H$182,6,FALSE)) -> 1 | M7: =IF(ISERROR(VLOOKUP('1_KMA'!$I$20&'1_KMA'!$I$21,CPI_Con_F!$C$63:$H$182,6,FALSE)),0,VLOOKUP('1_KMA'!$I$20&'1_KMA'!$I$21,CPI_Con_F!$C$63:$H$182,6,FALSE)) -> 1 | N7: =IF(ISERROR(VLOOKUP('1_KMA'!$I$20&'1_KMA'!$I$21,CPI_Con_F!$C$63:$H$182,6,FALSE)),0,VLOOKUP('1_KMA'!$I$20&'1_KMA'!$I$21,CPI_Con_F!$C$63:$H$182,6,FALSE)) -> 1 | O7: =IF(ISERROR(VLOOKUP('1_KMA'!$I$20&'1_KMA'!$I$21,CPI_Con_F!$C$63:$H$182,6,FALSE)),0,VLOOKUP('1_KMA'!$I$20&'1_KMA'!$I$21,CPI_Con_F!$C$63:$H$182,6,FALSE)) -> 1 | P7: =IF(ISERROR(VLOOKUP('1_KMA'!$I$20&'1_KMA'!$I$21,CPI_Con_F!$C$63:$H$182,6,FALSE)),0,VLOOKUP('1_KMA'!$I$20&'1_KMA'!$I$21,CPI_Con_F!$C$63:$H$182,6,FALSE)) -> 1 | Q7: =IF(ISERROR(VLOOKUP('1_KMA'!$I$20&'1_KMA'!$I$21,CPI_Con_F!$C$63:$H$182,6,FALSE)),0,VLOOKUP('1_KMA'!$I$20&'1_KMA'!$I$21,CPI_Con_F!$C$63:$H$182,6,FALSE)) -> 1 | R7: =IF(ISERROR(VLOOKUP('1_KMA'!$I$20&'1_KMA'!$I$21,CPI_Con_F!$C$63:$H$182,6,FALSE)),0,VLOOKUP('1_KMA'!$I$20&'1_KMA'!$I$21,CPI_Con_F!$C$63:$H$182,6,FALSE)) -> 1 | S7: =IF(ISERROR(VLOOKUP('1_KMA'!$I$20&'1_KMA'!$I$21,CPI_Con_F!$C$63:$H$182,6,FALSE)),0,VLOOKUP('1_KMA'!$I$20&'1_KMA'!$I$21,CPI_Con_F!$C$63:$H$182,6,FALSE)) -> 1 | T7: =IF(ISERROR(VLOOKUP('1_KMA'!$I$20&'1_KMA'!$I$21,CPI_Con_F!$C$63:$H$182,6,FALSE)),0,VLOOKUP('1_KMA'!$I$20&'1_KMA'!$I$21,CPI_Con_F!$C$63:$H$182,6,FALSE)) -> 1 | U7: =IF(ISERROR(VLOOKUP('1_KMA'!$I$20&'1_KMA'!$I$21,CPI_Con_F!$C$63:$H$182,6,FALSE)),0,VLOOKUP('1_KMA'!$I$20&'1_KMA'!$I$21,CPI_Con_F!$C$63:$H$182,6,FALSE)) -> 1 | V7: =IF(ISERROR(VLOOKUP('1_KMA'!$I$20&'1_KMA'!$I$21,CPI_Con_F!$C$63:$H$182,6,FALSE)),0,VLOOKUP('1_KMA'!$I$20&'1_KMA'!$I$21,CPI_Con_F!$C$63:$H$182,6,FALSE)) -> 1 | W7: =IF(ISERROR(VLOOKUP('1_KMA'!$I$20&'1_KMA'!$I$21,CPI_Con_F!$C$63:$H$182,6,FALSE)),0,VLOOKUP('1_KMA'!$I$20&'1_KMA'!$I$21,CPI_Con_F!$C$63:$H$182,6,FALSE)) -> 1 | X7: =IF(ISERROR(VLOOKUP('1_KMA'!$I$20&'1_KMA'!$I$21,CPI_Con_F!$C$63:$H$182,6,FALSE)),0,VLOOKUP('1_KMA'!$I$20&'1_KMA'!$I$21,CPI_Con_F!$C$63:$H$182,6,FALSE)) -> 1 | Y7: =IF(ISERROR(VLOOKUP('1_KMA'!$I$20&'1_KMA'!$I$21,CPI_Con_F!$C$63:$H$182,6,FALSE)),0,VLOOKUP('1_KMA'!$I$20&'1_KMA'!$I$21,CPI_Con_F!$C$63:$H$182,6,FALSE)) -> 1 | Z7: =IF(ISERROR(VLOOKUP('1_KMA'!$I$20&'1_KMA'!$I$21,CPI_Con_F!$C$63:$H$182,6,FALSE)),0,VLOOKUP('1_KMA'!$I$20&'1_KMA'!$I$21,CPI_Con_F!$C$63:$H$182,6,FALSE)) -> 1 | AA7: =IF(ISERROR(VLOOKUP('1_KMA'!$I$20&'1_KMA'!$I$21,CPI_Con_F!$C$63:$H$182,6,FALSE)),0,VLOOKUP('1_KMA'!$I$20&'1_KMA'!$I$21,CPI_Con_F!$C$63:$H$182,6,FALSE)) -> 1 | AB7: =IF(ISERROR(VLOOKUP('1_KMA'!$I$20&'1_KMA'!$I$21,CPI_Con_F!$C$63:$H$182,6,FALSE)),0,VLOOKUP('1_KMA'!$I$20&'1_KMA'!$I$21,CPI_Con_F!$C$63:$H$182,6,FALSE)) -> 1 | AC7: =IF(ISERROR(VLOOKUP('1_KMA'!$I$20&'1_KMA'!$I$21,CPI_Con_F!$C$63:$H$182,6,FALSE)),0,VLOOKUP('1_KMA'!$I$20&'1_KMA'!$I$21,CPI_Con_F!$C$63:$H$182,6,FALSE)) -> 1 | AD7: =IF(ISERROR(VLOOKUP('1_KMA'!$I$20&'1_KMA'!$I$21,CPI_Con_F!$C$63:$H$182,6,FALSE)),0,VLOOKUP('1_KMA'!$I$20&'1_KMA'!$I$21,CPI_Con_F!$C$63:$H$182,6,FALSE)) -> 1 | AE7: =IF(ISERROR(VLOOKUP('1_KMA'!$I$20&'1_KMA'!$I$21,CPI_Con_F!$C$63:$H$182,6,FALSE)),0,VLOOKUP('1_KMA'!$I$20&'1_KMA'!$I$21,CPI_Con_F!$C$63:$H$182,6,FALSE)) -> 1 | AF7: =IF(ISERROR(VLOOKUP('1_KMA'!$I$20&'1_KMA'!$I$21,CPI_Con_F!$C$63:$H$182,6,FALSE)),0,VLOOKUP('1_KMA'!$I$20&'1_KMA'!$I$21,CPI_Con_F!$C$63:$H$182,6,FALSE)) -> 1 | AG7: =IF(ISERROR(VLOOKUP('1_KMA'!$I$20&'1_KMA'!$I$21,CPI_Con_F!$C$63:$H$182,6,FALSE)),0,VLOOKUP('1_KMA'!$I$20&'1_KMA'!$I$21,CPI_Con_F!$C$63:$H$182,6,FALSE)) -> 1 | AH7: =IF(ISERROR(VLOOKUP('1_KMA'!$I$20&'1_KMA'!$I$21,CPI_Con_F!$C$63:$H$182,6,FALSE)),0,VLOOKUP('1_KMA'!$I$20&'1_KMA'!$I$21,CPI_Con_F!$C$63:$H$182,6,FALSE)) -> 1 | AI7: =IF(ISERROR(VLOOKUP('1_KMA'!$I$20&'1_KMA'!$I$21,CPI_Con_F!$C$63:$H$182,6,FALSE)),0,VLOOKUP('1_KMA'!$I$20&'1_KMA'!$I$21,CPI_Con_F!$C$63:$H$182,6,FALSE)) -> 1 | AJ7: =IF(ISERROR(VLOOKUP('1_KMA'!$I$20&'1_KMA'!$I$21,CPI_Con_F!$C$63:$H$182,6,FALSE)),0,VLOOKUP('1_KMA'!$I$20&'1_KMA'!$I$21,CPI_Con_F!$C$63:$H$182,6,FALSE)) -> 1 | AK7: =IF(ISERROR(VLOOKUP('1_KMA'!$I$20&'1_KMA'!$I$21,CPI_Con_F!$C$63:$H$182,6,FALSE)),0,VLOOKUP('1_KMA'!$I$20&'1_KMA'!$I$21,CPI_Con_F!$C$63:$H$182,6,FALSE)) -> 1 | AL7: =IF(ISERROR(VLOOKUP('1_KMA'!$I$20&'1_KMA'!$I$21,CPI_Con_F!$C$63:$H$182,6,FALSE)),0,VLOOKUP('1_KMA'!$I$20&'1_KMA'!$I$21,CPI_Con_F!$C$63:$H$182,6,FALSE)) -> 1 | AM7: =IF(ISERROR(VLOOKUP('1_KMA'!$I$20&'1_KMA'!$I$21,CPI_Con_F!$C$63:$H$182,6,FALSE)),0,VLOOKUP('1_KMA'!$I$20&'1_KMA'!$I$21,CPI_Con_F!$C$63:$H$182,6,FALSE)) -> 1 | AN7: =IF(ISERROR(VLOOKUP('1_KMA'!$I$20&'1_KMA'!$I$21,CPI_Con_F!$C$63:$H$182,6,FALSE)),0,VLOOKUP('1_KMA'!$I$20&'1_KMA'!$I$21,CPI_Con_F!$C$63:$H$182,6,FALSE)) -> 1 | AO7: =IF(ISERROR(VLOOKUP('1_KMA'!$I$20&'1_KMA'!$I$21,CPI_Con_F!$C$63:$H$182,6,FALSE)),0,VLOOKUP('1_KMA'!$I$20&'1_KMA'!$I$21,CPI_Con_F!$C$63:$H$182,6,FALSE)) -> 1 | AP7: =IF(ISERROR(VLOOKUP('1_KMA'!$I$20&'1_KMA'!$I$21,CPI_Con_F!$C$63:$H$182,6,FALSE)),0,VLOOKUP('1_KMA'!$I$20&'1_KMA'!$I$21,CPI_Con_F!$C$63:$H$182,6,FALSE)) -> 1 | AQ7: =IF(ISERROR(VLOOKUP('1_KMA'!$I$20&'1_KMA'!$I$21,CPI_Con_F!$C$63:$H$182,6,FALSE)),0,VLOOKUP('1_KMA'!$I$20&'1_KMA'!$I$21,CPI_Con_F!$C$63:$H$182,6,FALSE)) -> 1 | AR7: =IF(ISERROR(VLOOKUP('1_KMA'!$I$20&'1_KMA'!$I$21,CPI_Con_F!$C$63:$H$182,6,FALSE)),0,VLOOKUP('1_KMA'!$I$20&'1_KMA'!$I$21,CPI_Con_F!$C$63:$H$182,6,FALSE)) -> 1 | AS7: =IF(ISERROR(VLOOKUP('1_KMA'!$I$20&'1_KMA'!$I$21,CPI_Con_F!$C$63:$H$182,6,FALSE)),0,VLOOKUP('1_KMA'!$I$20&'1_KMA'!$I$21,CPI_Con_F!$C$63:$H$182,6,FALSE)) -> 1 | AT7: =IF(ISERROR(VLOOKUP('1_KMA'!$I$20&'1_KMA'!$I$21,CPI_Con_F!$C$63:$H$182,6,FALSE)),0,VLOOKUP('1_KMA'!$I$20&'1_KMA'!$I$21,CPI_Con_F!$C$63:$H$182,6,FALSE)) -> 1 | AU7: =IF(ISERROR(VLOOKUP('1_KMA'!$I$20&'1_KMA'!$I$21,CPI_Con_F!$C$63:$H$182,6,FALSE)),0,VLOOKUP('1_KMA'!$I$20&'1_KMA'!$I$21,CPI_Con_F!$C$63:$H$182,6,FALSE)) -> 1 | AV7: =IF(ISERROR(VLOOKUP('1_KMA'!$I$20&'1_KMA'!$I$21,CPI_Con_F!$C$63:$H$182,6,FALSE)),0,VLOOKUP('1_KMA'!$I$20&'1_KMA'!$I$21,CPI_Con_F!$C$63:$H$182,6,FALSE)) -> 1 | AW7: =IF(ISERROR(VLOOKUP('1_KMA'!$I$20&'1_KMA'!$I$21,CPI_Con_F!$C$63:$H$182,6,FALSE)),0,VLOOKUP('1_KMA'!$I$20&'1_KMA'!$I$21,CPI_Con_F!$C$63:$H$182,6,FALSE)) -> 1 | AX7: =IF(ISERROR(VLOOKUP('1_KMA'!$I$20&'1_KMA'!$I$21,CPI_Con_F!$C$63:$H$182,6,FALSE)),0,VLOOKUP('1_KMA'!$I$20&'1_KMA'!$I$21,CPI_Con_F!$C$63:$H$182,6,FALSE)) -> 1 | AY7: =IF(ISERROR(VLOOKUP('1_KMA'!$I$20&'1_KMA'!$I$21,CPI_Con_F!$C$63:$H$182,6,FALSE)),0,VLOOKUP('1_KMA'!$I$20&'1_KMA'!$I$21,CPI_Con_F!$C$63:$H$182,6,FALSE)) -> 1 | AZ7: =IF(ISERROR(VLOOKUP('1_KMA'!$I$20&'1_KMA'!$I$21,CPI_Con_F!$C$63:$H$182,6,FALSE)),0,VLOOKUP('1_KMA'!$I$20&'1_KMA'!$I$21,CPI_Con_F!$C$63:$H$182,6,FALSE)) -> 1 | BA7: =IF(ISERROR(VLOOKUP('1_KMA'!$I$20&'1_KMA'!$I$21,CPI_Con_F!$C$63:$H$182,6,FALSE)),0,VLOOKUP('1_KMA'!$I$20&'1_KMA'!$I$21,CPI_Con_F!$C$63:$H$182,6,FALSE)) -> 1 | BB7: =IF(ISERROR(VLOOKUP('1_KMA'!$I$20&'1_KMA'!$I$21,CPI_Con_F!$C$63:$H$182,6,FALSE)),0,VLOOKUP('1_KMA'!$I$20&'1_KMA'!$I$21,CPI_Con_F!$C$63:$H$182,6,FALSE)) -> 1 | BC7: =IF(ISERROR(VLOOKUP('1_KMA'!$I$20&'1_KMA'!$I$21,CPI_Con_F!$C$63:$H$182,6,FALSE)),0,VLOOKUP('1_KMA'!$I$20&'1_KMA'!$I$21,CPI_Con_F!$C$63:$H$182,6,FALSE)) -> 1 | BD7: =IF(ISERROR(VLOOKUP('1_KMA'!$I$20&'1_KMA'!$I$21,CPI_Con_F!$C$63:$H$182,6,FALSE)),0,VLOOKUP('1_KMA'!$I$20&'1_KMA'!$I$21,CPI_Con_F!$C$63:$H$182,6,FALSE)) -> 1 | BE7: =IF(ISERROR(VLOOKUP('1_KMA'!$I$20&'1_KMA'!$I$21,CPI_Con_F!$C$63:$H$182,6,FALSE)),0,VLOOKUP('1_KMA'!$I$20&'1_KMA'!$I$21,CPI_Con_F!$C$63:$H$182,6,FALSE)) -> 1 | BF7: =IF(ISERROR(VLOOKUP('1_KMA'!$I$20&'1_KMA'!$I$21,CPI_Con_F!$C$63:$H$182,6,FALSE)),0,VLOOKUP('1_KMA'!$I$20&'1_KMA'!$I$21,CPI_Con_F!$C$63:$H$182,6,FALSE)) -> 1 | BG7: =IF(ISERROR(VLOOKUP('1_KMA'!$I$20&'1_KMA'!$I$21,CPI_Con_F!$C$63:$H$182,6,FALSE)),0,VLOOKUP('1_KMA'!$I$20&'1_KMA'!$I$21,CPI_Con_F!$C$63:$H$182,6,FALSE)) -> 1
I8: Evaluation Period Indicator | J8: =IF(J4<='1_KMA'!$I$23,1,0) -> 1 | K8: =IF(K4<='1_KMA'!$I$23,1,0) -> 1 | L8: =IF(L4<='1_KMA'!$I$23,1,0) -> 1 | M8: =IF(M4<='1_KMA'!$I$23,1,0) -> 1 | N8: =IF(N4<='1_KMA'!$I$23,1,0) -> 1 | O8: =IF(O4<='1_KMA'!$I$23,1,0) -> 1 | P8: =IF(P4<='1_KMA'!$I$23,1,0) -> 1 | Q8: =IF(Q4<='1_KMA'!$I$23,1,0) -> 1 | R8: =IF(R4<='1_KMA'!$I$23,1,0) -> 1 | S8: =IF(S4<='1_KMA'!$I$23,1,0) -> 1 | T8: =IF(T4<='1_KMA'!$I$23,1,0) -> 1 | U8: =IF(U4<='1_KMA'!$I$23,1,0) -> 1 | V8: =IF(V4<='1_KMA'!$I$23,1,0) -> 1 | W8: =IF(W4<='1_KMA'!$I$23,1,0) -> 1 | X8: =IF(X4<='1_KMA'!$I$23,1,0) -> 1 | Y8: =IF(Y4<='1_KMA'!$I$23,1,0) -> 1 | Z8: =IF(Z4<='1_KMA'!$I$23,1,0) -> 1 | AA8: =IF(AA4<='1_KMA'!$I$23,1,0) -> 1 | AB8: =IF(AB4<='1_KMA'!$I$23,1,0) -> 1 | AC8: =IF(AC4<='1_KMA'!$I$23,1,0) -> 1 | AD8: =IF(AD4<='1_KMA'!$I$23,1,0) -> 1 | AE8: =IF(AE4<='1_KMA'!$I$23,1,0) -> 1 | AF8: =IF(AF4<='1_KMA'!$I$23,1,0) -> 1 | AG8: =IF(AG4<='1_KMA'!$I$23,1,0) -> 1 | AH8: =IF(AH4<='1_KMA'!$I$23,1,0) -> 1 | AI8: =IF(AI4<='1_KMA'!$I$23,1,0) -> 1 | AJ8: =IF(AJ4<='1_KMA'!$I$23,1,0) -> 1 | AK8: =IF(AK4<='1_KMA'!$I$23,1,0) -> 1 | AL8: =IF(AL4<='1_KMA'!$I$23,1,0) -> 1 | AM8: =IF(AM4<='1_KMA'!$I$23,1,0) -> 1 | AN8: =IF(AN4<='1_KMA'!$I$23,1,0) -> 1 | AO8: =IF(AO4<='1_KMA'!$I$23,1,0) -> 1 | AP8: =IF(AP4<='1_KMA'!$I$23,1,0) -> 1 | AQ8: =IF(AQ4<='1_KMA'!$I$23,1,0) -> 1 | AR8: =IF(AR4<='1_KMA'!$I$23,1,0) -> 1 | AS8: =IF(AS4<='1_KMA'!$I$23,1,0) -> 1 | AT8: =IF(AT4<='1_KMA'!$I$23,1,0) -> 1 | AU8: =IF(AU4<='1_KMA'!$I$23,1,0) -> 1 | AV8: =IF(AV4<='1_KMA'!$I$23,1,0) -> 1 | AW8: =IF(AW4<='1_KMA'!$I$23,1,0) -> 1 | AX8: =IF(AX4<='1_KMA'!$I$23,1,0) -> 0 | AY8: =IF(AY4<='1_KMA'!$I$23,1,0) -> 0 | AZ8: =IF(AZ4<='1_KMA'!$I$23,1,0) -> 0 | BA8: =IF(BA4<='1_KMA'!$I$23,1,0) -> 0 | BB8: =IF(BB4<='1_KMA'!$I$23,1,0) -> 0 | BC8: =IF(BC4<='1_KMA'!$I$23,1,0) -> 0 | BD8: =IF(BD4<='1_KMA'!$I$23,1,0) -> 0 | BE8: =IF(BE4<='1_KMA'!$I$23,1,0) -> 0 | BF8: =IF(BF4<='1_KMA'!$I$23,1,0) -> 0 | BG8: =IF(BG4<='1_KMA'!$I$23,1,0) -> 0
B10: Summary for Central Assumptions
B12: WACC | J12: ='1_KMA'!$I$28 -> 0.0556 | K12: ='1_KMA'!$I$28 -> 0.0556 | L12: ='1_KMA'!$I$28 -> 0.0556 | M12: ='1_KMA'!$I$28 -> 0.0556 | N12: ='1_KMA'!$I$28 -> 0.0556 | O12: ='1_KMA'!$I$28 -> 0.0556 | P12: ='1_KMA'!$I$28 -> 0.0556 | Q12: ='1_KMA'!$I$28 -> 0.0556 | R12: ='1_KMA'!$I$28 -> 0.0556 | S12: ='1_KMA'!$I$28 -> 0.0556 | T12: ='1_KMA'!$I$28 -> 0.0556 | U12: ='1_KMA'!$I$28 -> 0.0556 | V12: ='1_KMA'!$I$28 -> 0.0556 | W12: ='1_KMA'!$I$28 -> 0.0556 | X12: ='1_KMA'!$I$28 -> 0.0556 | Y12: ='1_KMA'!$I$28 -> 0.0556 | Z12: ='1_KMA'!$I$28 -> 0.0556 | AA12: ='1_KMA'!$I$28 -> 0.0556 | AB12: ='1_KMA'!$I$28 -> 0.0556 | AC12: ='1_KMA'!$I$28 -> 0.0556 | AD12: ='1_KMA'!$I$28 -> 0.0556 | AE12: ='1_KMA'!$I$28 -> 0.0556 | AF12: ='1_KMA'!$I$28 -> 0.0556 | AG12: ='1_KMA'!$I$28 -> 0.0556 | AH12: ='1_KMA'!$I$28 -> 0.0556 | AI12: ='1_KMA'!$I$28 -> 0.0556 | AJ12: ='1_KMA'!$I$28 -> 0.0556 | AK12: ='1_KMA'!$I$28 -> 0.0556 | AL12: ='1_KMA'!$I$28 -> 0.0556 | AM12: ='1_KMA'!$I$28 -> 0.0556 | AN12: ='1_KMA'!$I$28 -> 0.0556 | AO12: ='1_KMA'!$I$28 -> 0.0556 | AP12: ='1_KMA'!$I$28 -> 0.0556 | AQ12: ='1_KMA'!$I$28 -> 0.0556 | AR12: ='1_KMA'!$I$28 -> 0.0556 | AS12: ='1_KMA'!$I$28 -> 0.0556 | AT12: ='1_KMA'!$I$28 -> 0.0556 | AU12: ='1_KMA'!$I$28 -> 0.0556 | AV12: ='1_KMA'!$I$28 -> 0.0556 | AW12: ='1_KMA'!$I$28 -> 0.0556 | AX12: ='1_KMA'!$I$28 -> 0.0556 | AY12: ='1_KMA'!$I$28 -> 0.0556 | AZ12: ='1_KMA'!$I$28 -> 0.0556 | BA12: ='1_KMA'!$I$28 -> 0.0556 | BB12: ='1_KMA'!$I$28 -> 0.0556 | BC12: ='1_KMA'!$I$28 -> 0.0556 | BD12: ='1_KMA'!$I$28 -> 0.0556 | BE12: ='1_KMA'!$I$28 -> 0.0556 | BF12: ='1_KMA'!$I$28 -> 0.0556 | BG12: ='1_KMA'!$I$28 -> 0.0556
B13: Deflator (interim calculation) | J13: 1 | K13: =J13*(1+K12) -> 1.0556 | L13: =K13*(1+L12) -> 1.11429136 | M13: =L13*(1+M12) -> 1.17624596 | N13: 1.241645235 | O13: 1.31068071 | P13: 1.383554558 | Q13: 1.460480191 | R13: 1.54168289 | S13: 1.627400458 | T13: 1.717883924 | U13: 1.81339827 | V13: 1.914223214 | W13: 2.020654024 | X13: 2.133002388 | Y13: 2.251597321 | Z13: 2.376786132 | AA13: 2.508935441 | AB13: 2.648432251 | AC13: 2.795685084 | AD13: 2.951125175 | AE13: 3.115207735 | AF13: 3.288413285 | AG13: 3.471249064 | AH13: 3.664250512 | AI13: 3.86798284 | AJ13: 4.083042686 | AK13: 4.310059859 | AL13: 4.549699187 | AM13: 4.802662462 | AN13: 5.069690495 | AO13: 5.351565287 | AP13: 5.649112317 | AQ13: 5.963202961 | AR13: 6.294757046 | AS13: 6.644745538 | AT13: 7.01419339 | AU13: 7.404182542 | AV13: 7.815855092 | AW13: 8.250416635 | AX13: 8.709139799 | AY13: 9.193367972 | AZ13: 9.704519232 | BA13: 10.2440905 | BB13: 10.81366193 | BC13: 11.41490154 | BD13: 12.04957006 | BE13: 12.71952616 | BF13: 13.42673181 | BG13: 14.1732581
B14: Deflator | J14: =1/J13 -> 1 | K14: =1/K13 -> 0.9473285335 | L14: =1/L13 -> 0.8974313505 | M14: 0.8501623252 | N14: =1/N13 -> 0.8053830288 | O14: 0.7629623236 | P14: 0.7227759791 | Q14: 0.6847063084 | R14: 0.648641823 | S14: 0.614476907 | T14: 0.5821115072 | U14: 0.5514508405 | V14: 0.522405116 | W14: 0.4948892725 | X14: 0.4688227288 | Y14: 0.4441291481 | Z14: 0.4207362146 | AA14: 0.3985754212 | AB14: 0.3775818692 | AC14: 0.3576940785 | AD14: 0.3388538068 | AE14: 0.3210058799 | AF14: 0.3040980295 | AG14: 0.2880807403 | AH14: 0.2729071052 | AI14: 0.2585326878 | AJ14: 0.244915392 | AK14: 0.2320153392 | AL14: 0.219794751 | AM14: 0.2082178391 | AN14: 0.1972507002 | AO14: 0.1868612166 | AP14: 0.1770189623 | AQ14: 0.1676951139 | AR14: 0.1588623664 | AS14: 0.1504948526 | AT14: 0.142568068 | AU14: 0.1350587988 | AV14: 0.1279450538 | AW14: 0.1212060002 | AX14: 0.1148219024 | AY14: 0.1087740644 | AZ14: 0.1030447749 | BA14: 0.09761725552 | BB14: 0.09247561152 | BC14: 0.08760478545 | BD14: 0.08299051293 | BE14: 0.07861928091 | BF14: 0.07447828809 | BG14: 0.07055540744
B16: Totex sought for EDPR FY27-31 (undiscounted) | G16: ="("&TEXT('1_KMA'!$I$21,"dd-mmm-yy")&" Dollars)" -> (30-Jun-24 Dollars)
C17: Net Capital Expenditure | G17: =SUM(J17:BG17) -> 0 | J17: =-J33*J$1*J$8 -> 0 | K17: =-K33*K$1*K$8 -> 0 | L17: 0 | M17: 0 | N17: 0 | O17: 0 | P17: 0 | Q17: 0 | R17: 0 | S17: 0 | T17: 0 | U17: 0 | V17: 0 | W17: 0 | X17: 0 | Y17: 0 | Z17: 0 | AA17: 0 | AB17: 0 | AC17: 0 | AD17: 0 | AE17: 0 | AF17: 0 | AG17: 0 | AH17: 0 | AI17: 0 | AJ17: 0 | AK17: 0 | AL17: 0 | AM17: 0 | AN17: 0 | AO17: 0 | AP17: 0 | AQ17: 0 | AR17: 0 | AS17: 0 | AT17: 0 | AU17: 0 | AV17: 0 | AW17: 0 | AX17: 0 | AY17: 0 | AZ17: 0 | BA17: 0 | BB17: 0 | BC17: 0 | BD17: 0 | BE17: 0 | BF17: 0 | BG17: 0
C18: Operating Expenditure | G18: =SUM(J18:BG18) -> -2.554776 | J18: =-J34*J$1*J$8 -> -0.318112 | K18: =-K34*K$1*K$8 -> -0.416408 | L18: -0.513426 | M18: -0.606184 | N18: -0.700646 | O18: 0 | P18: 0 | Q18: 0 | R18: 0 | S18: 0 | T18: 0 | U18: 0 | V18: 0 | W18: 0 | X18: 0 | Y18: 0 | Z18: 0 | AA18: 0 | AB18: 0 | AC18: 0 | AD18: 0 | AE18: 0 | AF18: 0 | AG18: 0 | AH18: 0 | AI18: 0 | AJ18: 0 | AK18: 0 | AL18: 0 | AM18: 0 | AN18: 0 | AO18: 0 | AP18: 0 | AQ18: 0 | AR18: 0 | AS18: 0 | AT18: 0 | AU18: 0 | AV18: 0 | AW18: 0 | AX18: 0 | AY18: 0 | AZ18: 0 | BA18: 0 | BB18: 0 | BC18: 0 | BD18: 0 | BE18: 0 | BF18: 0 | BG18: 0
C19: Totex | G19: =SUM(G17:G18) -> -2.554776 | J19: =SUM(J17:J18) -> -0.318112 | K19: =SUM(K17:K18) -> -0.416408 | L19: =SUM(L17:L18) -> -0.513426 | M19: -0.606184 | N19: -0.700646 | O19: 0 | P19: 0 | Q19: 0 | R19: 0 | S19: 0 | T19: 0 | U19: 0 | V19: 0 | W19: 0 | X19: 0 | Y19: 0 | Z19: 0 | AA19: 0 | AB19: 0 | AC19: 0 | AD19: 0 | AE19: 0 | AF19: 0 | AG19: 0 | AH19: 0 | AI19: 0 | AJ19: 0 | AK19: 0 | AL19: 0 | AM19: 0 | AN19: 0 | AO19: 0 | AP19: 0 | AQ19: 0 | AR19: 0 | AS19: 0 | AT19: 0 | AU19: 0 | AV19: 0 | AW19: 0 | AX19: 0 | AY19: 0 | AZ19: 0 | BA19: 0 | BB19: 0 | BC19: 0 | BD19: 0 | BE19: 0 | BF19: 0 | BG19: 0
B21: PV over full assessment period to establish the preferred option (discounted) | G21: ="("&TEXT('1_KMA'!$I$21,"dd-mmm-yy")&" Dollars)" -> (30-Jun-24 Dollars)
C22: Net Capital Expenditure | G22: =SUM(J22:BG22) -> 0 | J22: =-(J33)*J$14*J$8 -> 0 | K22: =-(K33)*K$14*K$8 -> 0 | L22: 0 | M22: 0 | N22: 0 | O22: 0 | P22: 0 | Q22: 0 | R22: 0 | S22: 0 | T22: 0 | U22: 0 | V22: 0 | W22: 0 | X22: 0 | Y22: 0 | Z22: 0 | AA22: 0 | AB22: 0 | AC22: 0 | AD22: 0 | AE22: 0 | AF22: 0 | AG22: 0 | AH22: 0 | AI22: 0 | AJ22: 0 | AK22: 0 | AL22: 0 | AM22: 0 | AN22: 0 | AO22: 0 | AP22: 0 | AQ22: 0 | AR22: 0 | AS22: 0 | AT22: 0 | AU22: 0 | AV22: 0 | AW22: 0 | AX22: 0 | AY22: 0 | AZ22: 0 | BA22: 0 | BB22: 0 | BC22: 0 | BD22: 0 | BE22: 0 | BF22: 0 | BG22: 0
C23: Operating Expenditure | G23: =SUM(J23:BG23) -> -15.92903908 | J23: =-(J34)*J$14*J$8 -> -0.318112 | K23: =-(K34)*K$14*K$8 -> -0.39447518 | L23: -0.4607645885 | M23: -0.5153547989 | N23: -0.5642883976 | O23: -0.6069624691 | P23: -0.6417282175 | Q23: -0.6720228087 | R23: -0.6970694215 | S23: -0.7163043332 | T23: -0.6785755335 | U23: -0.6428339651 | V23: -0.6089749574 | W23: -0.5768993534 | X23: -0.5465132184 | Y23: -0.5177275658 | Z23: -0.4904580957 | AA23: -0.4646249485 | AB23: -0.4401524711 | AC23: -0.416968995 | AD23: -0.3950066266 | AE23: -0.3742010483 | AF23: -0.3544913303 | AG23: -0.3358197521 | AH23: -0.3181316333 | AI23: =-(AI34)*AI$14*AI$8 -> -0.3013751736 | AJ23: -0.2855013013 | AK23: -0.2704635291 | AL23: -0.2562178184 | AM23: -0.2427224501 | AN23: -0.2299379027 | AO23: -0.2178267362 | AP23: -0.2063534826 | AQ23: -0.195484542 | AR23: -0.1851880845 | AS23: -0.1754339566 | AT23: -0.1661935928 | AU23: -0.1574399325 | AV23: -0.1491473404 | AW23: -0.1412915313 | AX23: 0 | AY23: 0 | AZ23: 0 | BA23: 0 | BB23: 0 | BC23: 0 | BD23: 0 | BE23: 0 | BF23: 0 | BG23: 0
C24: Net Benefits | G24: =SUM(J24:BG24) -> -10218.31318 | J24: =(J45)*J$14*J$8 -> 0 | K24: =(K45)*K$14*K$8 -> 0 | L24: 0 | M24: 0 | N24: 0 | O24: 0 | P24: -269.5954402 | Q24: -301.2707757 | R24: -426.8063196 | S24: -597.2715536 | T24: -565.812385 | U24: -536.0102169 | V24: -507.7777728 | W24: -481.0323728 | X24: -455.6956923 | Y24: -431.693532 | Z24: -408.9556006 | AA24: -387.4153094 | AB24: -367.0095769 | AC24: -347.6786443 | AD24: -329.3659002 | AE24: -312.0177153 | AF24: -295.5832846 | AG24: -280.0144796 | AH24: -265.2657063 | AI24: =(AI45)*AI$14*AI$8 -> -251.2937725 | AJ24: -238.057761 | AK24: -225.5189097 | AL24: -213.640498 | AM24: -202.3877396 | AN24: -191.7276806 | AO24: -181.6291025 | AP24: -172.0624313 | AQ24: -162.9996507 | AR24: -154.4142201 | AS24: -146.2809967 | AT24: -138.5761621 | AU24: -131.2771524 | AV24: -124.3625923 | AW24: =(AW45)*AW$14*AW$8 -> -117.8122322 | AX24: 0 | AY24: 0 | AZ24: 0 | BA24: 0 | BB24: 0 | BC24: 0 | BD24: 0 | BE24: 0 | BF24: 0 | BG24: 0
B25: Total Present Value | G25: =SUM(J25:BG25) -> -10234.24222 | J25: =SUM(J22:J24) -> -0.318112 | K25: =SUM(K22:K24) -> -0.39447518 | L25: -0.4607645885 | M25: -0.5153547989 | N25: -0.5642883976 | O25: -0.6069624691 | P25: -270.2371684 | Q25: -301.9427985 | R25: -427.503389 | S25: -597.9878579 | T25: -566.4909605 | U25: -536.6530509 | V25: -508.3867477 | W25: -481.6092722 | X25: -456.2422056 | Y25: -432.2112595 | Z25: -409.4460587 | AA25: -387.8799343 | AB25: -367.4497294 | AC25: -348.0956133 | AD25: -329.7609069 | AE25: -312.3919163 | AF25: -295.937776 | AG25: -280.3502993 | AH25: -265.5838379 | AI25: -251.5951477 | AJ25: -238.3432623 | AK25: -225.7893732 | AL25: -213.8967158 | AM25: -202.6304621 | AN25: -191.9576185 | AO25: -181.8469292 | AP25: -172.2687848 | AQ25: -163.1951353 | AR25: -154.5994082 | AS25: -146.4564306 | AT25: -138.7423557 | AU25: -131.4345923 | AV25: -124.5117396 | AW25: -117.9535237 | AX25: 0 | AY25: 0 | AZ25: 0 | BA25: 0 | BB25: 0 | BC25: 0 | BD25: 0 | BE25: 0 | BF25: 0 | BG25: 0
B27: Details for Central Assumptions
B28: Undiscounted | D28: ="("&TEXT('1_KMA'!$I$21,"dd-mmm-yy")&" dollars)" -> (30-Jun-24 dollars)
B30: Costs
G32: $ Basis Reminder | H32: $ Reminder
B33: Net Capex | G33: ='1_KMA'!$I$21 -> 2024-06-30 | H33: ='1_KMA'!$I$19 -> $millions | J33: =J52*J$7 -> 0 | K33: 0 | L33: 0 | M33: 0 | N33: 0 | O33: 0 | P33: 0 | Q33: 0 | R33: 0 | S33: 0 | T33: 0 | U33: 0 | V33: 0 | W33: 0 | X33: 0 | Y33: 0 | Z33: 0 | AA33: 0 | AB33: 0 | AC33: 0 | AD33: 0 | AE33: 0 | AF33: 0 | AG33: 0 | AH33: 0 | AI33: 0 | AJ33: 0 | AK33: 0 | AL33: 0 | AM33: 0 | AN33: 0 | AO33: 0 | AP33: =AP52*AP$7 -> 0 | AQ33: 0 | AR33: 0 | AS33: 0 | AT33: 0 | AU33: 0 | AV33: 0 | AW33: 0 | AX33: 0 | AY33: 0 | AZ33: 0 | BA33: 0 | BB33: 0 | BC33: 0 | BD33: 0 | BE33: 0 | BF33: 0 | BG33: 0
B34: Opex | G34: ='1_KMA'!$I$21 -> 2024-06-30 | H34: ='1_KMA'!$I$19 -> $millions | J34: =J53*J$7 -> 0.318112 | K34: 0.416408 | L34: 0.513426 | M34: 0.606184 | N34: 0.700646 | O34: 0.795534 | P34: 0.887866 | Q34: 0.981476 | R34: 1.07466 | S34: 1.165714 | T34: 1.165714 | U34: 1.165714 | V34: 1.165714 | W34: 1.165714 | X34: 1.165714 | Y34: 1.165714 | Z34: 1.165714 | AA34: 1.165714 | AB34: 1.165714 | AC34: 1.165714 | AD34: 1.165714 | AE34: 1.165714 | AF34: 1.165714 | AG34: 1.165714 | AH34: 1.165714 | AI34: 1.165714 | AJ34: 1.165714 | AK34: 1.165714 | AL34: 1.165714 | AM34: 1.165714 | AN34: 1.165714 | AO34: 1.165714 | AP34: =AP53*AP$7 -> 1.165714 | AQ34: 1.165714 | AR34: 1.165714 | AS34: 1.165714 | AT34: 1.165714 | AU34: 1.165714 | AV34: 1.165714 | AW34: 1.165714 | AX34: 1.165714 | AY34: 1.165714 | AZ34: 1.165714 | BA34: 1.165714 | BB34: 1.165714 | BC34: 1.165714 | BD34: 1.165714 | BE34: 1.165714 | BF34: 1.165714 | BG34: 1.165714
B35: Total | G35: ='1_KMA'!$I$21 -> 2024-06-30 | H35: ='1_KMA'!$I$19 -> $millions | J35: =J54*J$7 -> 0.318112 | K35: 0.416408 | L35: 0.513426 | M35: 0.606184 | N35: 0.700646 | O35: 0.795534 | P35: 0.887866 | Q35: 0.981476 | R35: 1.07466 | S35: 1.165714 | T35: 1.165714 | U35: 1.165714 | V35: 1.165714 | W35: 1.165714 | X35: 1.165714 | Y35: 1.165714 | Z35: 1.165714 | AA35: 1.165714 | AB35: 1.165714 | AC35: 1.165714 | AD35: 1.165714 | AE35: 1.165714 | AF35: 1.165714 | AG35: 1.165714 | AH35: 1.165714 | AI35: 1.165714 | AJ35: 1.165714 | AK35: 1.165714 | AL35: 1.165714 | AM35: 1.165714 | AN35: 1.165714 | AO35: 1.165714 | AP35: =AP54*AP$7 -> 1.165714 | AQ35: 1.165714 | AR35: 1.165714 | AS35: 1.165714 | AT35: 1.165714 | AU35: 1.165714 | AV35: 1.165714 | AW35: 1.165714 | AX35: 1.165714 | AY35: 1.165714 | AZ35: 1.165714 | BA35: 1.165714 | BB35: 1.165714 | BC35: 1.165714 | BD35: 1.165714 | BE35: 1.165714 | BF35: 1.165714 | BG35: 1.165714
B37: Benefits
G39: $ Basis Reminder | H39: $ Reminder
B40: =B59 -> Value of EUE | G40: ='1_KMA'!$I$21 -> 2024-06-30 | H40: ='1_KMA'!$I$19 -> $millions | J40: =J59*J$7 -> 0 | K40: 0 | L40: 0 | M40: 0 | N40: 0 | O40: 0 | P40: 0 | Q40: 0 | R40: 0 | S40: 0 | T40: 0 | U40: 0 | V40: 0 | W40: 0 | X40: 0 | Y40: 0 | Z40: 0 | AA40: 0 | AB40: 0 | AC40: 0 | AD40: 0 | AE40: 0 | AF40: 0 | AG40: 0 | AH40: 0 | AI40: 0 | AJ40: 0 | AK40: 0 | AL40: 0 | AM40: 0 | AN40: 0 | AO40: 0 | AP40: =AP59*AP$7 -> 0 | AQ40: 0 | AR40: 0 | AS40: 0 | AT40: 0 | AU40: 0 | AV40: 0 | AW40: 0 | AX40: 0 | AY40: 0 | AZ40: 0 | BA40: 0 | BB40: 0 | BC40: 0 | BD40: 0 | BE40: 0 | BF40: 0 | BG40: =BG59*BG$7 -> 0
B41: =B60 -> Reliability | G41: ='1_KMA'!$I$21 -> 2024-06-30 | H41: ='1_KMA'!$I$19 -> $millions | J41: =J60*J$7 -> 0 | K41: 0 | L41: 0 | M41: 0 | N41: 0 | O41: 0 | P41: 0 | Q41: 0 | R41: 0 | S41: 0 | T41: 0 | U41: 0 | V41: 0 | W41: 0 | X41: 0 | Y41: 0 | Z41: 0 | AA41: 0 | AB41: 0 | AC41: 0 | AD41: 0 | AE41: 0 | AF41: 0 | AG41: 0 | AH41: 0 | AI41: 0 | AJ41: 0 | AK41: 0 | AL41: 0 | AM41: 0 | AN41: 0 | AO41: 0 | AP41: =AP60*AP$7 -> 0 | AQ41: 0 | AR41: 0 | AS41: 0 | AT41: 0 | AU41: 0 | AV41: 0 | AW41: 0 | AX41: 0 | AY41: 0 | AZ41: 0 | BA41: 0 | BB41: 0 | BC41: 0 | BD41: 0 | BE41: 0 | BF41: 0 | BG41: 0
B42: Resilience | G42: ='1_KMA'!$I$21 -> 2024-06-30 | H42: ='1_KMA'!$I$19 -> $millions | J42: =J61*J$7 -> 0 | K42: 0 | L42: 0 | M42: 0 | N42: 0 | O42: 0 | P42: 0 | Q42: 0 | R42: 0 | S42: 0 | T42: 0 | U42: 0 | V42: 0 | W42: 0 | X42: 0 | Y42: 0 | Z42: 0 | AA42: 0 | AB42: 0 | AC42: 0 | AD42: 0 | AE42: 0 | AF42: 0 | AG42: 0 | AH42: 0 | AI42: 0 | AJ42: 0 | AK42: 0 | AL42: 0 | AM42: 0 | AN42: 0 | AO42: 0 | AP42: =AP61*AP$7 -> 0 | AQ42: 0 | AR42: 0 | AS42: 0 | AT42: 0 | AU42: 0 | AV42: 0 | AW42: 0 | AX42: 0 | AY42: 0 | AZ42: 0 | BA42: 0 | BB42: 0 | BC42: 0 | BD42: 0 | BE42: 0 | BF42: 0 | BG42: 0
B43: Batteries | G43: ='1_KMA'!$I$21 -> 2024-06-30 | H43: ='1_KMA'!$I$19 -> $millions | J43: =J62*J$7 -> 0 | K43: 0 | L43: 0 | M43: 0 | N43: 0 | O43: 0 | P43: 0 | Q43: 0 | R43: 0 | S43: 0 | T43: 0 | U43: 0 | V43: 0 | W43: 0 | X43: 0 | Y43: 0 | Z43: 0 | AA43: 0 | AB43: 0 | AC43: 0 | AD43: 0 | AE43: 0 | AF43: 0 | AG43: 0 | AH43: 0 | AI43: 0 | AJ43: 0 | AK43: 0 | AL43: 0 | AM43: 0 | AN43: 0 | AO43: 0 | AP43: =AP62*AP$7 -> 0 | AQ43: 0 | AR43: 0 | AS43: 0 | AT43: 0 | AU43: 0 | AV43: 0 | AW43: 0 | AX43: 0 | AY43: 0 | AZ43: 0 | BA43: 0 | BB43: 0 | BC43: 0 | BD43: 0 | BE43: 0 | BF43: 0 | BG43: 0
B44: Others | G44: ='1_KMA'!$I$21 -> 2024-06-30 | H44: ='1_KMA'!$I$19 -> $millions | J44: =J63*J$7 -> 0 | K44: 0 | L44: 0 | M44: 0 | N44: 0 | O44: 0 | P44: -373 | Q44: -440 | R44: -658 | S44: -972 | T44: -972 | U44: -972 | V44: -972 | W44: -972 | X44: -972 | Y44: -972 | Z44: -972 | AA44: -972 | AB44: -972 | AC44: -972 | AD44: -972 | AE44: -972 | AF44: -972 | AG44: -972 | AH44: -972 | AI44: -972 | AJ44: -972 | AK44: -972 | AL44: -972 | AM44: -972 | AN44: -972 | AO44: -972 | AP44: =AP63*AP$7 -> -972 | AQ44: -972 | AR44: -972 | AS44: -972 | AT44: -972 | AU44: -972 | AV44: -972 | AW44: -972 | AX44: -972 | AY44: -972 | AZ44: -972 | BA44: -972 | BB44: -972 | BC44: -972 | BD44: -972 | BE44: -972 | BF44: -972 | BG44: -972
B45: ='3_BC'!B64 -> Total | G45: ='1_KMA'!$I$21 -> 2024-06-30 | H45: ='1_KMA'!$I$19 -> $millions | J45: =J64*J$7 -> 0 | K45: 0 | L45: 0 | M45: 0 | N45: 0 | O45: 0 | P45: -373 | Q45: -440 | R45: -658 | S45: -972 | T45: -972 | U45: -972 | V45: -972 | W45: -972 | X45: -972 | Y45: -972 | Z45: -972 | AA45: -972 | AB45: -972 | AC45: -972 | AD45: -972 | AE45: -972 | AF45: -972 | AG45: -972 | AH45: -972 | AI45: -972 | AJ45: -972 | AK45: -972 | AL45: -972 | AM45: -972 | AN45: -972 | AO45: -972 | AP45: =AP64*AP$7 -> -972 | AQ45: -972 | AR45: -972 | AS45: -972 | AT45: -972 | AU45: -972 | AV45: -972 | AW45: -972 | AX45: -972 | AY45: -972 | AZ45: -972 | BA45: -972 | BB45: -972 | BC45: -972 | BD45: -972 | BE45: -972 | BF45: -972 | BG45: -972
B47: Undiscounted | D47: ="("&TEXT('1_KMA'!$I$20,"dd-mmm-yy")&" dollars)" -> (30-Jun-24 dollars)
B49: Costs
G51: $ Basis Reminder | H51: $ Reminder
B52: Net Capex | G52: ='1_KMA'!$I$20 -> 2024-06-30 | H52: ='1_KMA'!$I$19 -> $millions | J52: ='2.1_BAU'!J10+'2.1_BAU'!J11 -> 0 | K52: ='2.1_BAU'!K10+'2.1_BAU'!K11 -> 0 | L52: ='2.1_BAU'!L10+'2.1_BAU'!L11 -> 0 | M52: ='2.1_BAU'!M10+'2.1_BAU'!M11 -> 0 | N52: ='2.1_BAU'!N10+'2.1_BAU'!N11 -> 0 | O52: ='2.1_BAU'!O10+'2.1_BAU'!O11 -> 0 | P52: ='2.1_BAU'!P10+'2.1_BAU'!P11 -> 0 | Q52: ='2.1_BAU'!Q10+'2.1_BAU'!Q11 -> 0 | R52: ='2.1_BAU'!R10+'2.1_BAU'!R11 -> 0 | S52: ='2.1_BAU'!S10+'2.1_BAU'!S11 -> 0 | T52: ='2.1_BAU'!T10+'2.1_BAU'!T11 -> 0 | U52: ='2.1_BAU'!U10+'2.1_BAU'!U11 -> 0 | V52: ='2.1_BAU'!V10+'2.1_BAU'!V11 -> 0 | W52: ='2.1_BAU'!W10+'2.1_BAU'!W11 -> 0 | X52: ='2.1_BAU'!X10+'2.1_BAU'!X11 -> 0 | Y52: ='2.1_BAU'!Y10+'2.1_BAU'!Y11 -> 0 | Z52: ='2.1_BAU'!Z10+'2.1_BAU'!Z11 -> 0 | AA52: ='2.1_BAU'!AA10+'2.1_BAU'!AA11 -> 0 | AB52: ='2.1_BAU'!AB10+'2.1_BAU'!AB11 -> 0 | AC52: ='2.1_BAU'!AC10+'2.1_BAU'!AC11 -> 0 | AD52: ='2.1_BAU'!AD10+'2.1_BAU'!AD11 -> 0 | AE52: ='2.1_BAU'!AE10+'2.1_BAU'!AE11 -> 0 | AF52: ='2.1_BAU'!AF10+'2.1_BAU'!AF11 -> 0 | AG52: ='2.1_BAU'!AG10+'2.1_BAU'!AG11 -> 0 | AH52: ='2.1_BAU'!AH10+'2.1_BAU'!AH11 -> 0 | AI52: ='2.1_BAU'!AI10+'2.1_BAU'!AI11 -> 0 | AJ52: ='2.1_BAU'!AJ10+'2.1_BAU'!AJ11 -> 0 | AK52: ='2.1_BAU'!AK10+'2.1_BAU'!AK11 -> 0 | AL52: ='2.1_BAU'!AL10+'2.1_BAU'!AL11 -> 0 | AM52: ='2.1_BAU'!AM10+'2.1_BAU'!AM11 -> 0 | AN52: ='2.1_BAU'!AN10+'2.1_BAU'!AN11 -> 0 | AO52: ='2.1_BAU'!AO10+'2.1_BAU'!AO11 -> 0 | AP52: ='2.1_BAU'!AP10+'2.1_BAU'!AP11 -> 0 | AQ52: ='2.1_BAU'!AQ10+'2.1_BAU'!AQ11 -> 0 | AR52: ='2.1_BAU'!AR10+'2.1_BAU'!AR11 -> 0 | AS52: ='2.1_BAU'!AS10+'2.1_BAU'!AS11 -> 0 | AT52: ='2.1_BAU'!AT10+'2.1_BAU'!AT11 -> 0 | AU52: ='2.1_BAU'!AU10+'2.1_BAU'!AU11 -> 0 | AV52: ='2.1_BAU'!AV10+'2.1_BAU'!AV11 -> 0 | AW52: ='2.1_BAU'!AW10+'2.1_BAU'!AW11 -> 0 | AX52: ='2.1_BAU'!AX10+'2.1_BAU'!AX11 -> 0 | AY52: ='2.1_BAU'!AY10+'2.1_BAU'!AY11 -> 0 | AZ52: ='2.1_BAU'!AZ10+'2.1_BAU'!AZ11 -> 0 | BA52: ='2.1_BAU'!BA10+'2.1_BAU'!BA11 -> 0 | BB52: ='2.1_BAU'!BB10+'2.1_BAU'!BB11 -> 0 | BC52: ='2.1_BAU'!BC10+'2.1_BAU'!BC11 -> 0 | BD52: ='2.1_BAU'!BD10+'2.1_BAU'!BD11 -> 0 | BE52: ='2.1_BAU'!BE10+'2.1_BAU'!BE11 -> 0 | BF52: ='2.1_BAU'!BF10+'2.1_BAU'!BF11 -> 0 | BG52: ='2.1_BAU'!BG10+'2.1_BAU'!BG11 -> 0
B53: Opex | G53: ='1_KMA'!$I$20 -> 2024-06-30 | H53: ='1_KMA'!$I$19 -> $millions | J53: ='2.1_BAU'!J12 -> 0.318112 | K53: ='2.1_BAU'!K12 -> 0.416408 | L53: ='2.1_BAU'!L12 -> 0.513426 | M53: ='2.1_BAU'!M12 -> 0.606184 | N53: ='2.1_BAU'!N12 -> 0.700646 | O53: ='2.1_BAU'!O12 -> 0.795534 | P53: ='2.1_BAU'!P12 -> 0.887866 | Q53: ='2.1_BAU'!Q12 -> 0.981476 | R53: ='2.1_BAU'!R12 -> 1.07466 | S53: ='2.1_BAU'!S12 -> 1.165714 | T53: ='2.1_BAU'!T12 -> 1.165714 | U53: ='2.1_BAU'!U12 -> 1.165714 | V53: ='2.1_BAU'!V12 -> 1.165714 | W53: ='2.1_BAU'!W12 -> 1.165714 | X53: ='2.1_BAU'!X12 -> 1.165714 | Y53: ='2.1_BAU'!Y12 -> 1.165714 | Z53: ='2.1_BAU'!Z12 -> 1.165714 | AA53: ='2.1_BAU'!AA12 -> 1.165714 | AB53: ='2.1_BAU'!AB12 -> 1.165714 | AC53: ='2.1_BAU'!AC12 -> 1.165714 | AD53: ='2.1_BAU'!AD12 -> 1.165714 | AE53: ='2.1_BAU'!AE12 -> 1.165714 | AF53: ='2.1_BAU'!AF12 -> 1.165714 | AG53: ='2.1_BAU'!AG12 -> 1.165714 | AH53: ='2.1_BAU'!AH12 -> 1.165714 | AI53: ='2.1_BAU'!AI12 -> 1.165714 | AJ53: ='2.1_BAU'!AJ12 -> 1.165714 | AK53: ='2.1_BAU'!AK12 -> 1.165714 | AL53: ='2.1_BAU'!AL12 -> 1.165714 | AM53: ='2.1_BAU'!AM12 -> 1.165714 | AN53: ='2.1_BAU'!AN12 -> 1.165714 | AO53: ='2.1_BAU'!AO12 -> 1.165714 | AP53: ='2.1_BAU'!AP12 -> 1.165714 | AQ53: ='2.1_BAU'!AQ12 -> 1.165714 | AR53: ='2.1_BAU'!AR12 -> 1.165714 | AS53: ='2.1_BAU'!AS12 -> 1.165714 | AT53: ='2.1_BAU'!AT12 -> 1.165714 | AU53: ='2.1_BAU'!AU12 -> 1.165714 | AV53: ='2.1_BAU'!AV12 -> 1.165714 | AW53: ='2.1_BAU'!AW12 -> 1.165714 | AX53: ='2.1_BAU'!AX12 -> 1.165714 | AY53: ='2.1_BAU'!AY12 -> 1.165714 | AZ53: ='2.1_BAU'!AZ12 -> 1.165714 | BA53: ='2.1_BAU'!BA12 -> 1.165714 | BB53: ='2.1_BAU'!BB12 -> 1.165714 | BC53: ='2.1_BAU'!BC12 -> 1.165714 | BD53: ='2.1_BAU'!BD12 -> 1.165714 | BE53: ='2.1_BAU'!BE12 -> 1.165714 | BF53: ='2.1_BAU'!BF12 -> 1.165714 | BG53: ='2.1_BAU'!BG12 -> 1.165714
B54: Total | G54: ='1_KMA'!$I$20 -> 2024-06-30 | H54: ='1_KMA'!$I$19 -> $millions | J54: =SUM(J52:J53) -> 0.318112 | K54: =SUM(K52:K53) -> 0.416408 | L54: 0.513426 | M54: 0.606184 | N54: 0.700646 | O54: 0.795534 | P54: 0.887866 | Q54: 0.981476 | R54: 1.07466 | S54: 1.165714 | T54: 1.165714 | U54: 1.165714 | V54: 1.165714 | W54: 1.165714 | X54: 1.165714 | Y54: 1.165714 | Z54: 1.165714 | AA54: 1.165714 | AB54: 1.165714 | AC54: 1.165714 | AD54: 1.165714 | AE54: 1.165714 | AF54: 1.165714 | AG54: 1.165714 | AH54: 1.165714 | AI54: 1.165714 | AJ54: 1.165714 | AK54: 1.165714 | AL54: 1.165714 | AM54: 1.165714 | AN54: 1.165714 | AO54: 1.165714 | AP54: 1.165714 | AQ54: 1.165714 | AR54: 1.165714 | AS54: 1.165714 | AT54: 1.165714 | AU54: 1.165714 | AV54: 1.165714 | AW54: 1.165714 | AX54: 1.165714 | AY54: 1.165714 | AZ54: 1.165714 | BA54: 1.165714 | BB54: 1.165714 | BC54: 1.165714 | BD54: 1.165714 | BE54: 1.165714 | BF54: 1.165714 | BG54: 1.165714
B56: Benefits
G58: $ Basis Reminder | H58: $ Reminder
B59: ='2.1_BAU'!$B$16 -> Value of EUE | G59: ='1_KMA'!$I$20 -> 2024-06-30 | H59: ='1_KMA'!$I$19 -> $millions | J59: ='2.1_BAU'!J16 -> 0 | K59: ='2.1_BAU'!K16 -> 0 | L59: ='2.1_BAU'!L16 -> 0 | M59: ='2.1_BAU'!M16 -> 0 | N59: ='2.1_BAU'!N16 -> 0 | O59: ='2.1_BAU'!O16 -> 0 | P59: ='2.1_BAU'!P16 -> 0 | Q59: ='2.1_BAU'!Q16 -> 0 | R59: ='2.1_BAU'!R16 -> 0 | S59: ='2.1_BAU'!S16 -> 0 | T59: ='2.1_BAU'!T16 -> 0 | U59: ='2.1_BAU'!U16 -> 0 | V59: ='2.1_BAU'!V16 -> 0 | W59: ='2.1_BAU'!W16 -> 0 | X59: ='2.1_BAU'!X16 -> 0 | Y59: ='2.1_BAU'!Y16 -> 0 | Z59: ='2.1_BAU'!Z16 -> 0 | AA59: ='2.1_BAU'!AA16 -> 0 | AB59: ='2.1_BAU'!AB16 -> 0 | AC59: ='2.1_BAU'!AC16 -> 0 | AD59: ='2.1_BAU'!AD16 -> 0 | AE59: ='2.1_BAU'!AE16 -> 0 | AF59: ='2.1_BAU'!AF16 -> 0 | AG59: ='2.1_BAU'!AG16 -> 0 | AH59: ='2.1_BAU'!AH16 -> 0 | AI59: ='2.1_BAU'!AI16 -> 0 | AJ59: ='2.1_BAU'!AJ16 -> 0 | AK59: ='2.1_BAU'!AK16 -> 0 | AL59: ='2.1_BAU'!AL16 -> 0 | AM59: ='2.1_BAU'!AM16 -> 0 | AN59: ='2.1_BAU'!AN16 -> 0 | AO59: ='2.1_BAU'!AO16 -> 0 | AP59: ='2.1_BAU'!AP16 -> 0 | AQ59: ='2.1_BAU'!AQ16 -> 0 | AR59: ='2.1_BAU'!AR16 -> 0 | AS59: ='2.1_BAU'!AS16 -> 0 | AT59: ='2.1_BAU'!AT16 -> 0 | AU59: ='2.1_BAU'!AU16 -> 0 | AV59: ='2.1_BAU'!AV16 -> 0 | AW59: ='2.1_BAU'!AW16 -> 0 | AX59: ='2.1_BAU'!AX16 -> 0 | AY59: ='2.1_BAU'!AY16 -> 0 | AZ59: ='2.1_BAU'!AZ16 -> 0 | BA59: ='2.1_BAU'!BA16 -> 0 | BB59: ='2.1_BAU'!BB16 -> 0 | BC59: ='2.1_BAU'!BC16 -> 0 | BD59: ='2.1_BAU'!BD16 -> 0 | BE59: ='2.1_BAU'!BE16 -> 0 | BF59: ='2.1_BAU'!BF16 -> 0 | BG59: ='2.1_BAU'!BG16 -> 0
B60: ='2.1_BAU'!$B$17 -> Reliability | G60: ='1_KMA'!$I$20 -> 2024-06-30 | H60: ='1_KMA'!$I$19 -> $millions | J60: ='2.1_BAU'!J17 -> 0 | K60: ='2.1_BAU'!K17 -> 0 | L60: ='2.1_BAU'!L17 -> 0 | M60: ='2.1_BAU'!M17 -> 0 | N60: ='2.1_BAU'!N17 -> 0 | O60: ='2.1_BAU'!O17 -> 0 | P60: ='2.1_BAU'!P17 -> 0 | Q60: ='2.1_BAU'!Q17 -> 0 | R60: ='2.1_BAU'!R17 -> 0 | S60: ='2.1_BAU'!S17 -> 0 | T60: ='2.1_BAU'!T17 -> 0 | U60: ='2.1_BAU'!U17 -> 0 | V60: ='2.1_BAU'!V17 -> 0 | W60: ='2.1_BAU'!W17 -> 0 | X60: ='2.1_BAU'!X17 -> 0 | Y60: ='2.1_BAU'!Y17 -> 0 | Z60: ='2.1_BAU'!Z17 -> 0 | AA60: ='2.1_BAU'!AA17 -> 0 | AB60: ='2.1_BAU'!AB17 -> 0 | AC60: ='2.1_BAU'!AC17 -> 0 | AD60: ='2.1_BAU'!AD17 -> 0 | AE60: ='2.1_BAU'!AE17 -> 0 | AF60: ='2.1_BAU'!AF17 -> 0 | AG60: ='2.1_BAU'!AG17 -> 0 | AH60: ='2.1_BAU'!AH17 -> 0 | AI60: ='2.1_BAU'!AI17 -> 0 | AJ60: ='2.1_BAU'!AJ17 -> 0 | AK60: ='2.1_BAU'!AK17 -> 0 | AL60: ='2.1_BAU'!AL17 -> 0 | AM60: ='2.1_BAU'!AM17 -> 0 | AN60: ='2.1_BAU'!AN17 -> 0 | AO60: ='2.1_BAU'!AO17 -> 0 | AP60: ='2.1_BAU'!AP17 -> 0 | AQ60: ='2.1_BAU'!AQ17 -> 0 | AR60: ='2.1_BAU'!AR17 -> 0 | AS60: ='2.1_BAU'!AS17 -> 0 | AT60: ='2.1_BAU'!AT17 -> 0 | AU60: ='2.1_BAU'!AU17 -> 0 | AV60: ='2.1_BAU'!AV17 -> 0 | AW60: ='2.1_BAU'!AW17 -> 0 | AX60: ='2.1_BAU'!AX17 -> 0 | AY60: ='2.1_BAU'!AY17 -> 0 | AZ60: ='2.1_BAU'!AZ17 -> 0 | BA60: ='2.1_BAU'!BA17 -> 0 | BB60: ='2.1_BAU'!BB17 -> 0 | BC60: ='2.1_BAU'!BC17 -> 0 | BD60: ='2.1_BAU'!BD17 -> 0 | BE60: ='2.1_BAU'!BE17 -> 0 | BF60: ='2.1_BAU'!BF17 -> 0 | BG60: ='2.1_BAU'!BG17 -> 0
B61: ='2.1_BAU'!$B$18 -> Resilience | G61: ='1_KMA'!$I$20 -> 2024-06-30 | H61: ='1_KMA'!$I$19 -> $millions | J61: ='2.1_BAU'!J18 -> 0 | K61: ='2.1_BAU'!K18 -> 0 | L61: ='2.1_BAU'!L18 -> 0 | M61: ='2.1_BAU'!M18 -> 0 | N61: ='2.1_BAU'!N18 -> 0 | O61: ='2.1_BAU'!O18 -> 0 | P61: ='2.1_BAU'!P18 -> 0 | Q61: ='2.1_BAU'!Q18 -> 0 | R61: ='2.1_BAU'!R18 -> 0 | S61: ='2.1_BAU'!S18 -> 0 | T61: ='2.1_BAU'!T18 -> 0 | U61: ='2.1_BAU'!U18 -> 0 | V61: ='2.1_BAU'!V18 -> 0 | W61: ='2.1_BAU'!W18 -> 0 | X61: ='2.1_BAU'!X18 -> 0 | Y61: ='2.1_BAU'!Y18 -> 0 | Z61: ='2.1_BAU'!Z18 -> 0 | AA61: ='2.1_BAU'!AA18 -> 0 | AB61: ='2.1_BAU'!AB18 -> 0 | AC61: ='2.1_BAU'!AC18 -> 0 | AD61: ='2.1_BAU'!AD18 -> 0 | AE61: ='2.1_BAU'!AE18 -> 0 | AF61: ='2.1_BAU'!AF18 -> 0 | AG61: ='2.1_BAU'!AG18 -> 0 | AH61: ='2.1_BAU'!AH18 -> 0 | AI61: ='2.1_BAU'!AI18 -> 0 | AJ61: ='2.1_BAU'!AJ18 -> 0 | AK61: ='2.1_BAU'!AK18 -> 0 | AL61: ='2.1_BAU'!AL18 -> 0 | AM61: ='2.1_BAU'!AM18 -> 0 | AN61: ='2.1_BAU'!AN18 -> 0 | AO61: ='2.1_BAU'!AO18 -> 0 | AP61: ='2.1_BAU'!AP18 -> 0 | AQ61: ='2.1_BAU'!AQ18 -> 0 | AR61: ='2.1_BAU'!AR18 -> 0 | AS61: ='2.1_BAU'!AS18 -> 0 | AT61: ='2.1_BAU'!AT18 -> 0 | AU61: ='2.1_BAU'!AU18 -> 0 | AV61: ='2.1_BAU'!AV18 -> 0 | AW61: ='2.1_BAU'!AW18 -> 0 | AX61: ='2.1_BAU'!AX18 -> 0 | AY61: ='2.1_BAU'!AY18 -> 0 | AZ61: ='2.1_BAU'!AZ18 -> 0 | BA61: ='2.1_BAU'!BA18 -> 0 | BB61: ='2.1_BAU'!BB18 -> 0 | BC61: ='2.1_BAU'!BC18 -> 0 | BD61: ='2.1_BAU'!BD18 -> 0 | BE61: ='2.1_BAU'!BE18 -> 0 | BF61: ='2.1_BAU'!BF18 -> 0 | BG61: ='2.1_BAU'!BG18 -> 0
B62: ='2.1_BAU'!$B$19 -> Batteries | G62: ='1_KMA'!$I$20 -> 2024-06-30 | H62: ='1_KMA'!$I$19 -> $millions | J62: ='2.1_BAU'!J19 -> 0 | K62: ='2.1_BAU'!K19 -> 0 | L62: ='2.1_BAU'!L19 -> 0 | M62: ='2.1_BAU'!M19 -> 0 | N62: ='2.1_BAU'!N19 -> 0 | O62: ='2.1_BAU'!O19 -> 0 | P62: ='2.1_BAU'!P19 -> 0 | Q62: ='2.1_BAU'!Q19 -> 0 | R62: ='2.1_BAU'!R19 -> 0 | S62: ='2.1_BAU'!S19 -> 0 | T62: ='2.1_BAU'!T19 -> 0 | U62: ='2.1_BAU'!U19 -> 0 | V62: ='2.1_BAU'!V19 -> 0 | W62: ='2.1_BAU'!W19 -> 0 | X62: ='2.1_BAU'!X19 -> 0 | Y62: ='2.1_BAU'!Y19 -> 0 | Z62: ='2.1_BAU'!Z19 -> 0 | AA62: ='2.1_BAU'!AA19 -> 0 | AB62: ='2.1_BAU'!AB19 -> 0 | AC62: ='2.1_BAU'!AC19 -> 0 | AD62: ='2.1_BAU'!AD19 -> 0 | AE62: ='2.1_BAU'!AE19 -> 0 | AF62: ='2.1_BAU'!AF19 -> 0 | AG62: ='2.1_BAU'!AG19 -> 0 | AH62: ='2.1_BAU'!AH19 -> 0 | AI62: ='2.1_BAU'!AI19 -> 0 | AJ62: ='2.1_BAU'!AJ19 -> 0 | AK62: ='2.1_BAU'!AK19 -> 0 | AL62: ='2.1_BAU'!AL19 -> 0 | AM62: ='2.1_BAU'!AM19 -> 0 | AN62: ='2.1_BAU'!AN19 -> 0 | AO62: ='2.1_BAU'!AO19 -> 0 | AP62: ='2.1_BAU'!AP19 -> 0 | AQ62: ='2.1_BAU'!AQ19 -> 0 | AR62: ='2.1_BAU'!AR19 -> 0 | AS62: ='2.1_BAU'!AS19 -> 0 | AT62: ='2.1_BAU'!AT19 -> 0 | AU62: ='2.1_BAU'!AU19 -> 0 | AV62: ='2.1_BAU'!AV19 -> 0 | AW62: ='2.1_BAU'!AW19 -> 0 | AX62: ='2.1_BAU'!AX19 -> 0 | AY62: ='2.1_BAU'!AY19 -> 0 | AZ62: ='2.1_BAU'!AZ19 -> 0 | BA62: ='2.1_BAU'!BA19 -> 0 | BB62: ='2.1_BAU'!BB19 -> 0 | BC62: ='2.1_BAU'!BC19 -> 0 | BD62: ='2.1_BAU'!BD19 -> 0 | BE62: ='2.1_BAU'!BE19 -> 0 | BF62: ='2.1_BAU'!BF19 -> 0 | BG62: ='2.1_BAU'!BG19 -> 0
B63: ='2.1_BAU'!$B$20 -> Others | G63: ='1_KMA'!$I$20 -> 2024-06-30 | H63: ='1_KMA'!$I$19 -> $millions | J63: ='2.1_BAU'!J20 -> 0 | K63: ='2.1_BAU'!K20 -> 0 | L63: ='2.1_BAU'!L20 -> 0 | M63: ='2.1_BAU'!M20 -> 0 | N63: ='2.1_BAU'!N20 -> 0 | O63: ='2.1_BAU'!O20 -> 0 | P63: ='2.1_BAU'!P20 -> -373 | Q63: ='2.1_BAU'!Q20 -> -440 | R63: ='2.1_BAU'!R20 -> -658 | S63: ='2.1_BAU'!S20 -> -972 | T63: ='2.1_BAU'!T20 -> -972 | U63: ='2.1_BAU'!U20 -> -972 | V63: ='2.1_BAU'!V20 -> -972 | W63: ='2.1_BAU'!W20 -> -972 | X63: ='2.1_BAU'!X20 -> -972 | Y63: ='2.1_BAU'!Y20 -> -972 | Z63: ='2.1_BAU'!Z20 -> -972 | AA63: ='2.1_BAU'!AA20 -> -972 | AB63: ='2.1_BAU'!AB20 -> -972 | AC63: ='2.1_BAU'!AC20 -> -972 | AD63: ='2.1_BAU'!AD20 -> -972 | AE63: ='2.1_BAU'!AE20 -> -972 | AF63: ='2.1_BAU'!AF20 -> -972 | AG63: ='2.1_BAU'!AG20 -> -972 | AH63: ='2.1_BAU'!AH20 -> -972 | AI63: ='2.1_BAU'!AI20 -> -972 | AJ63: ='2.1_BAU'!AJ20 -> -972 | AK63: ='2.1_BAU'!AK20 -> -972 | AL63: ='2.1_BAU'!AL20 -> -972 | AM63: ='2.1_BAU'!AM20 -> -972 | AN63: ='2.1_BAU'!AN20 -> -972 | AO63: ='2.1_BAU'!AO20 -> -972 | AP63: ='2.1_BAU'!AP20 -> -972 | AQ63: ='2.1_BAU'!AQ20 -> -972 | AR63: ='2.1_BAU'!AR20 -> -972 | AS63: ='2.1_BAU'!AS20 -> -972 | AT63: ='2.1_BAU'!AT20 -> -972 | AU63: ='2.1_BAU'!AU20 -> -972 | AV63: ='2.1_BAU'!AV20 -> -972 | AW63: ='2.1_BAU'!AW20 -> -972 | AX63: ='2.1_BAU'!AX20 -> -972 | AY63: ='2.1_BAU'!AY20 -> -972 | AZ63: ='2.1_BAU'!AZ20 -> -972 | BA63: ='2.1_BAU'!BA20 -> -972 | BB63: ='2.1_BAU'!BB20 -> -972 | BC63: ='2.1_BAU'!BC20 -> -972 | BD63: ='2.1_BAU'!BD20 -> -972 | BE63: ='2.1_BAU'!BE20 -> -972 | BF63: ='2.1_BAU'!BF20 -> -972 | BG63: ='2.1_BAU'!BG20 -> -972
B64: Total | G64: ='1_KMA'!$I$20 -> 2024-06-30 | H64: ='1_KMA'!$I$19 -> $millions | J64: =SUM(J59:J63) -> 0 | K64: =SUM(K59:K63) -> 0 | L64: 0 | M64: =SUM(M59:M63) -> 0 | N64: 0 | O64: 0 | P64: -373 | Q64: -440 | R64: -658 | S64: -972 | T64: -972 | U64: -972 | V64: -972 | W64: -972 | X64: -972 | Y64: -972 | Z64: -972 | AA64: -972 | AB64: -972 | AC64: -972 | AD64: -972 | AE64: -972 | AF64: -972 | AG64: -972 | AH64: -972 | AI64: -972 | AJ64: -972 | AK64: -972 | AL64: -972 | AM64: -972 | AN64: -972 | AO64: -972 | AP64: -972 | AQ64: -972 | AR64: -972 | AS64: -972 | AT64: -972 | AU64: -972 | AV64: -972 | AW64: -972 | AX64: -972 | AY64: -972 | AZ64: -972 | BA64: -972 | BB64: -972 | BC64: -972 | BD64: -972 | BE64: -972 | BF64: -972 | BG64: -972
B66: =Controls!$B$22&" "&Controls!$C$22&" ("&TEXT(Controls!$E$22,"0.00%")&")" -> Sensitivity Scenario 1 Higher Discount rate (7.00%)
B67: Summary
B69: WACC | J69: =Controls!$E$22 -> 0.07 | K69: =Controls!$E$22 -> 0.07 | L69: =Controls!$E$22 -> 0.07 | M69: =Controls!$E$22 -> 0.07 | N69: =Controls!$E$22 -> 0.07 | O69: =Controls!$E$22 -> 0.07 | P69: =Controls!$E$22 -> 0.07 | Q69: =Controls!$E$22 -> 0.07 | R69: =Controls!$E$22 -> 0.07 | S69: =Controls!$E$22 -> 0.07 | T69: =Controls!$E$22 -> 0.07 | U69: =Controls!$E$22 -> 0.07 | V69: =Controls!$E$22 -> 0.07 | W69: =Controls!$E$22 -> 0.07 | X69: =Controls!$E$22 -> 0.07 | Y69: =Controls!$E$22 -> 0.07 | Z69: =Controls!$E$22 -> 0.07 | AA69: =Controls!$E$22 -> 0.07 | AB69: =Controls!$E$22 -> 0.07 | AC69: =Controls!$E$22 -> 0.07 | AD69: =Controls!$E$22 -> 0.07 | AE69: =Controls!$E$22 -> 0.07 | AF69: =Controls!$E$22 -> 0.07 | AG69: =Controls!$E$22 -> 0.07 | AH69: =Controls!$E$22 -> 0.07 | AI69: =Controls!$E$22 -> 0.07 | AJ69: =Controls!$E$22 -> 0.07 | AK69: =Controls!$E$22 -> 0.07 | AL69: =Controls!$E$22 -> 0.07 | AM69: =Controls!$E$22 -> 0.07 | AN69: =Controls!$E$22 -> 0.07 | AO69: =Controls!$E$22 -> 0.07 | AP69: =Controls!$E$22 -> 0.07 | AQ69: =Controls!$E$22 -> 0.07 | AR69: =Controls!$E$22 -> 0.07 | AS69: =Controls!$E$22 -> 0.07 | AT69: =Controls!$E$22 -> 0.07 | AU69: =Controls!$E$22 -> 0.07 | AV69: =Controls!$E$22 -> 0.07 | AW69: =Controls!$E$22 -> 0.07 | AX69: =Controls!$E$22 -> 0.07 | AY69: =Controls!$E$22 -> 0.07 | AZ69: =Controls!$E$22 -> 0.07 | BA69: =Controls!$E$22 -> 0.07 | BB69: =Controls!$E$22 -> 0.07 | BC69: =Controls!$E$22 -> 0.07 | BD69: =Controls!$E$22 -> 0.07 | BE69: =Controls!$E$22 -> 0.07 | BF69: =Controls!$E$22 -> 0.07 | BG69: =Controls!$E$22 -> 0.07
B70: Deflator (interim calculation) | J70: 1 | K70: =J70*(1+K69) -> 1.07 | L70: =K70*(1+L69) -> 1.1449 | M70: =L70*(1+M69) -> 1.225043 | N70: =M70*(1+N69) -> 1.31079601 | O70: =N70*(1+O69) -> 1.402551731 | P70: =O70*(1+P69) -> 1.500730352 | Q70: =P70*(1+Q69) -> 1.605781476 | R70: =Q70*(1+R69) -> 1.71818618 | S70: =R70*(1+S69) -> 1.838459212 | T70: =S70*(1+T69) -> 1.967151357 | U70: =T70*(1+U69) -> 2.104851952 | V70: =U70*(1+V69) -> 2.252191589 | W70: =V70*(1+W69) -> 2.409845 | X70: =W70*(1+X69) -> 2.57853415 | Y70: =X70*(1+Y69) -> 2.759031541 | Z70: =Y70*(1+Z69) -> 2.952163749 | AA70: =Z70*(1+AA69) -> 3.158815211 | AB70: =AA70*(1+AB69) -> 3.379932276 | AC70: =AB70*(1+AC69) -> 3.616527535 | AD70: =AC70*(1+AD69) -> 3.869684462 | AE70: =AD70*(1+AE69) -> 4.140562375 | AF70: =AE70*(1+AF69) -> 4.430401741 | AG70: =AF70*(1+AG69) -> 4.740529863 | AH70: =AG70*(1+AH69) -> 5.072366953 | AI70: =AH70*(1+AI69) -> 5.42743264 | AJ70: =AI70*(1+AJ69) -> 5.807352925 | AK70: =AJ70*(1+AK69) -> 6.21386763 | AL70: =AK70*(1+AL69) -> 6.648838364 | AM70: =AL70*(1+AM69) -> 7.114257049 | AN70: =AM70*(1+AN69) -> 7.612255043 | AO70: =AN70*(1+AO69) -> 8.145112896 | AP70: =AO70*(1+AP69) -> 8.715270798 | AQ70: =AP70*(1+AQ69) -> 9.325339754 | AR70: =AQ70*(1+AR69) -> 9.978113537 | AS70: =AR70*(1+AS69) -> 10.67658148 | AT70: =AS70*(1+AT69) -> 11.42394219 | AU70: =AT70*(1+AU69) -> 12.22361814 | AV70: =AU70*(1+AV69) -> 13.07927141 | AW70: =AV70*(1+AW69) -> 13.99482041 | AX70: =AW70*(1+AX69) -> 14.97445784 | AY70: =AX70*(1+AY69) -> 16.02266989 | AZ70: =AY70*(1+AZ69) -> 17.14425678 | BA70: =AZ70*(1+BA69) -> 18.34435475 | BB70: =BA70*(1+BB69) -> 19.62845959 | BC70: =BB70*(1+BC69) -> 21.00245176 | BD70: =BC70*(1+BD69) -> 22.47262338 | BE70: =BD70*(1+BE69) -> 24.04570702 | BF70: =BE70*(1+BF69) -> 25.72890651 | BG70: =BF70*(1+BG69) -> 27.52992997
B71: Deflator | J71: =1/J70 -> 1 | K71: =1/K70 -> 0.9345794393 | L71: =1/L70 -> 0.8734387283 | M71: =1/M70 -> 0.8162978769 | N71: =1/N70 -> 0.762895212 | O71: =1/O70 -> 0.7129861795 | P71: 0.6663422238 | Q71: 0.6227497419 | R71: 0.5820091046 | S71: 0.5439337426 | T71: 0.5083492921 | U71: 0.4750927964 | V71: 0.4440119592 | W71: 0.4149644479 | X71: 0.387817241 | Y71: 0.3624460196 | Z71: 0.3387345978 | AA71: 0.3165743905 | AB71: 0.2958639163 | AC71: 0.276508333 | AD71: 0.2584190028 | AE71: 0.2415130867 | AF71: 0.2257131652 | AG71: 0.2109468833 | AH71: 0.1971466199 | AI71: 0.1842491775 | AJ71: 0.172195493 | AK71: 0.1609303673 | AL71: 0.1504022124 | AM71: 0.1405628154 | AN71: 0.1313671172 | AO71: 0.1227730067 | AP71: 0.1147411277 | AQ71: 0.1072346988 | AR71: 0.1002193447 | AS71: 0.09366293897 | AT71: 0.08753545698 | AU71: 0.0818088383 | AV71: 0.07645685822 | AW71: 0.07145500769 | AX71: 0.06678038102 | AY71: 0.06241157104 | AZ71: 0.05832857107 | BA71: 0.05451268324 | BB71: 0.05094643294 | BC71: 0.04761348872 | BD71: 0.04449858759 | BE71: 0.04158746504 | BF71: 0.03886678976 | BG71: 0.03632410258
B73: Totex sought for EDPR FY27-31 (undiscounted) | G73: ="("&TEXT('1_KMA'!$I$21,"dd-mmm-yy")&" Dollars)" -> (30-Jun-24 Dollars)
C74: Net Capital Expenditure | G74: =SUM(J74:BG74) -> 0 | J74: =-J89*J$1*J$8 -> 0 | K74: =-K89*K$1*K$8 -> 0 | L74: 0 | M74: 0 | N74: 0 | O74: 0 | P74: 0 | Q74: 0 | R74: 0 | S74: 0 | T74: 0 | U74: 0 | V74: 0 | W74: 0 | X74: 0 | Y74: 0 | Z74: 0 | AA74: 0 | AB74: 0 | AC74: 0 | AD74: 0 | AE74: 0 | AF74: 0 | AG74: 0 | AH74: 0 | AI74: 0 | AJ74: 0 | AK74: 0 | AL74: 0 | AM74: 0 | AN74: 0 | AO74: 0 | AP74: 0 | AQ74: 0 | AR74: 0 | AS74: 0 | AT74: 0 | AU74: 0 | AV74: 0 | AW74: 0 | AX74: 0 | AY74: 0 | AZ74: 0 | BA74: 0 | BB74: 0 | BC74: 0 | BD74: 0 | BE74: 0 | BF74: 0 | BG74: 0
C75: Operating Expenditure | G75: =SUM(J75:BG75) -> -2.554776 | J75: =-J90*J$1*J$8 -> -0.318112 | K75: =-K90*K$1*K$8 -> -0.416408 | L75: -0.513426 | M75: -0.606184 | N75: -0.700646 | O75: 0 | P75: 0 | Q75: 0 | R75: 0 | S75: 0 | T75: 0 | U75: 0 | V75: 0 | W75: 0 | X75: 0 | Y75: 0 | Z75: 0 | AA75: 0 | AB75: 0 | AC75: 0 | AD75: 0 | AE75: 0 | AF75: 0 | AG75: 0 | AH75: 0 | AI75: 0 | AJ75: 0 | AK75: 0 | AL75: 0 | AM75: 0 | AN75: 0 | AO75: 0 | AP75: 0 | AQ75: 0 | AR75: 0 | AS75: 0 | AT75: 0 | AU75: 0 | AV75: 0 | AW75: 0 | AX75: 0 | AY75: 0 | AZ75: 0 | BA75: 0 | BB75: 0 | BC75: 0 | BD75: 0 | BE75: 0 | BF75: 0 | BG75: 0
C76: Totex | G76: =SUM(G74:G75) -> -2.554776 | J76: =SUM(J74:J75) -> -0.318112 | K76: =SUM(K74:K75) -> -0.416408 | L76: =SUM(L74:L75) -> -0.513426 | M76: -0.606184 | N76: -0.700646 | O76: 0 | P76: 0 | Q76: 0 | R76: 0 | S76: 0 | T76: 0 | U76: 0 | V76: 0 | W76: 0 | X76: 0 | Y76: 0 | Z76: 0 | AA76: 0 | AB76: 0 | AC76: 0 | AD76: 0 | AE76: 0 | AF76: 0 | AG76: 0 | AH76: 0 | AI76: 0 | AJ76: 0 | AK76: 0 | AL76: 0 | AM76: 0 | AN76: 0 | AO76: 0 | AP76: 0 | AQ76: 0 | AR76: 0 | AS76: 0 | AT76: 0 | AU76: 0 | AV76: 0 | AW76: 0 | AX76: 0 | AY76: 0 | AZ76: 0 | BA76: 0 | BB76: 0 | BC76: 0 | BD76: 0 | BE76: 0 | BF76: 0 | BG76: 0
B78: PV over full assessment period to establish the preferred option (discounted) | G78: ="("&TEXT('1_KMA'!$I$21,"dd-mmm-yy")&" Dollars)" -> (30-Jun-24 Dollars)
C79: Net Capital Expenditure | G79: =SUM(J79:BG79) -> 0 | J79: =-(J89)*J$71*J$8 -> 0 | K79: =-(K89)*K$71*K$8 -> 0 | L79: 0 | M79: 0 | N79: 0 | O79: 0 | P79: 0 | Q79: 0 | R79: 0 | S79: 0 | T79: 0 | U79: 0 | V79: 0 | W79: 0 | X79: 0 | Y79: 0 | Z79: 0 | AA79: 0 | AB79: 0 | AC79: 0 | AD79: 0 | AE79: 0 | AF79: 0 | AG79: 0 | AH79: 0 | AI79: 0 | AJ79: 0 | AK79: 0 | AL79: 0 | AM79: 0 | AN79: 0 | AO79: 0 | AP79: 0 | AQ79: 0 | AR79: 0 | AS79: 0 | AT79: 0 | AU79: 0 | AV79: 0 | AW79: 0 | AX79: 0 | AY79: 0 | AZ79: 0 | BA79: 0 | BB79: 0 | BC79: 0 | BD79: 0 | BE79: 0 | BF79: 0 | BG79: 0
C80: Operating Expenditure | G80: =SUM(J80:BG80) -> -13.08286043 | J80: =-(J90)*J$71*J$8 -> -0.318112 | K80: =-(K90)*K$71*K$8 -> -0.3891663551 | L80: -0.4484461525 | M80: -0.4948267122 | N80: -0.5345194787 | O80: -0.5672047473 | P80: -0.5916226049 | Q80: -0.6112139257 | R80: -0.6254619043 | S80: -0.6340711788 | T80: -0.5925898867 | U80: -0.553822324 | V80: -0.5175909571 | W80: -0.4837298664 | X80: -0.4520839873 | Y80: -0.4225083993 | Z80: -0.3948676629 | AA80: -0.369035199 | AB80: -0.3448927094 | AC80: -0.3223296349 | AD80: -0.3012426494 | AE80: -0.2815351864 | AF80: -0.2631169966 | AG80: -0.2459037352 | AH80: -0.2298165749 | AI80: -0.2147818457 | AJ80: -0.2007306969 | AK80: -0.1875987822 | AL80: -0.1753259647 | AM80: -0.1638560417 | AN80: -0.1531364876 | AO80: -0.1431182127 | AP80: -0.133755339 | AQ80: -0.1250049897 | AR80: -0.1168270932 | AS80: -0.1091841992 | AT80: -0.1020413077 | AU80: -0.09536570813 | AV80: -0.08912683003 | AW80: -0.08329610283 | AX80: 0 | AY80: 0 | AZ80: 0 | BA80: 0 | BB80: 0 | BC80: 0 | BD80: 0 | BE80: 0 | BF80: 0 | BG80: 0
C81: Net Benefits | G81: =SUM(J81:BG81) -> -7994.925843 | J81: =(J101)*J$71*J$8 -> 0 | K81: =(K101)*K$71*K$8 -> 0 | L81: 0 | M81: 0 | N81: 0 | O81: 0 | P81: -248.5456495 | Q81: -274.0098864 | R81: -382.9619908 | S81: -528.7035978 | T81: -494.115512 | U81: -461.7901981 | V81: -431.5796244 | W81: -403.3454433 | X81: -376.9583583 | Y81: -352.2975311 | Z81: -329.2500291 | AA81: -307.7103075 | AB81: -287.5797267 | AC81: -268.7660997 | AD81: -251.1832707 | AE81: -234.7507203 | AF81: -219.3931966 | AG81: -205.0403706 | AH81: -191.6265146 | AI81: -179.0902006 | AJ81: -167.3740192 | AK81: -156.424317 | AL81: -146.1909505 | AM81: -136.6270565 | AN81: -127.6888379 | AO81: -119.3353625 | AP81: -111.5283762 | AQ81: -104.2321273 | AR81: -97.41320305 | AS81: -91.04037668 | AT81: -85.08446419 | AU81: -79.51819083 | AV81: -74.31606619 | AW81: -69.45426747 | AX81: 0 | AY81: 0 | AZ81: 0 | BA81: 0 | BB81: 0 | BC81: 0 | BD81: 0 | BE81: 0 | BF81: 0 | BG81: 0
B82: Total Present Value | G82: =SUM(J82:BG82) -> -8008.008704 | J82: =SUM(J79:J81) -> -0.318112 | K82: =SUM(K79:K81) -> -0.3891663551 | L82: -0.4484461525 | M82: -0.4948267122 | N82: -0.5345194787 | O82: -0.5672047473 | P82: -249.1372721 | Q82: -274.6211004 | R82: -383.5874527 | S82: -529.337669 | T82: -494.7081018 | U82: -462.3440204 | V82: -432.0972153 | W82: -403.8291732 | X82: -377.4104423 | Y82: -352.7200395 | Z82: -329.6448967 | AA82: -308.0793427 | AB82: -287.9246194 | AC82: -269.0884293 | AD82: -251.4845134 | AE82: -235.0322555 | AF82: -219.6563136 | AG82: -205.2862743 | AH82: -191.8563312 | AI82: -179.3049824 | AJ82: -167.5747499 | AK82: -156.6119158 | AL82: -146.3662764 | AM82: -136.7909126 | AN82: -127.8419744 | AO82: -119.4784807 | AP82: -111.6621315 | AQ82: -104.3571322 | AR82: -97.53003014 | AS82: -91.14956088 | AT82: -85.18650549 | AU82: -79.61355654 | AV82: -74.40519302 | AW82: -69.53756357 | AX82: 0 | AY82: 0 | AZ82: 0 | BA82: 0 | BB82: 0 | BC82: 0 | BD82: 0 | BE82: 0 | BF82: 0 | BG82: 0
B84: Undiscounted | D84: ="("&TEXT('1_KMA'!$I$21,"dd-mmm-yy")&" dollars)" -> (30-Jun-24 dollars)
B86: Costs
G88: $ Basis Reminder | H88: $ Reminder
B89: Net Capex | G89: ='1_KMA'!$I$21 -> 2024-06-30 | H89: ='1_KMA'!$I$19 -> $millions | J89: =J108*J$7 -> 0 | K89: 0 | L89: 0 | M89: 0 | N89: 0 | O89: 0 | P89: 0 | Q89: 0 | R89: 0 | S89: 0 | T89: 0 | U89: 0 | V89: 0 | W89: 0 | X89: 0 | Y89: 0 | Z89: 0 | AA89: 0 | AB89: 0 | AC89: 0 | AD89: 0 | AE89: 0 | AF89: 0 | AG89: 0 | AH89: 0 | AI89: 0 | AJ89: 0 | AK89: 0 | AL89: 0 | AM89: 0 | AN89: 0 | AO89: 0 | AP89: =AP108*AP$7 -> 0 | AQ89: 0 | AR89: 0 | AS89: 0 | AT89: 0 | AU89: 0 | AV89: 0 | AW89: 0 | AX89: 0 | AY89: 0 | AZ89: 0 | BA89: 0 | BB89: 0 | BC89: 0 | BD89: 0 | BE89: 0 | BF89: 0 | BG89: 0
B90: Opex | G90: ='1_KMA'!$I$21 -> 2024-06-30 | H90: ='1_KMA'!$I$19 -> $millions | J90: =J109*J$7 -> 0.318112 | K90: 0.416408 | L90: 0.513426 | M90: 0.606184 | N90: 0.700646 | O90: 0.795534 | P90: 0.887866 | Q90: 0.981476 | R90: 1.07466 | S90: 1.165714 | T90: 1.165714 | U90: 1.165714 | V90: 1.165714 | W90: 1.165714 | X90: 1.165714 | Y90: 1.165714 | Z90: 1.165714 | AA90: 1.165714 | AB90: 1.165714 | AC90: 1.165714 | AD90: 1.165714 | AE90: 1.165714 | AF90: 1.165714 | AG90: 1.165714 | AH90: 1.165714 | AI90: 1.165714 | AJ90: 1.165714 | AK90: 1.165714 | AL90: 1.165714 | AM90: 1.165714 | AN90: 1.165714 | AO90: 1.165714 | AP90: =AP109*AP$7 -> 1.165714 | AQ90: 1.165714 | AR90: 1.165714 | AS90: 1.165714 | AT90: 1.165714 | AU90: 1.165714 | AV90: 1.165714 | AW90: 1.165714 | AX90: 1.165714 | AY90: 1.165714 | AZ90: 1.165714 | BA90: 1.165714 | BB90: 1.165714 | BC90: 1.165714 | BD90: 1.165714 | BE90: 1.165714 | BF90: 1.165714 | BG90: 1.165714
B91: Total | G91: ='1_KMA'!$I$21 -> 2024-06-30 | H91: ='1_KMA'!$I$19 -> $millions | J91: =J110*J$7 -> 0.318112 | K91: 0.416408 | L91: 0.513426 | M91: 0.606184 | N91: 0.700646 | O91: 0.795534 | P91: 0.887866 | Q91: 0.981476 | R91: 1.07466 | S91: 1.165714 | T91: 1.165714 | U91: 1.165714 | V91: 1.165714 | W91: 1.165714 | X91: 1.165714 | Y91: 1.165714 | Z91: 1.165714 | AA91: 1.165714 | AB91: 1.165714 | AC91: 1.165714 | AD91: 1.165714 | AE91: 1.165714 | AF91: 1.165714 | AG91: 1.165714 | AH91: 1.165714 | AI91: 1.165714 | AJ91: 1.165714 | AK91: 1.165714 | AL91: 1.165714 | AM91: 1.165714 | AN91: 1.165714 | AO91: 1.165714 | AP91: =AP110*AP$7 -> 1.165714 | AQ91: 1.165714 | AR91: 1.165714 | AS91: 1.165714 | AT91: 1.165714 | AU91: 1.165714 | AV91: 1.165714 | AW91: 1.165714 | AX91: 1.165714 | AY91: 1.165714 | AZ91: 1.165714 | BA91: 1.165714 | BB91: 1.165714 | BC91: 1.165714 | BD91: 1.165714 | BE91: 1.165714 | BF91: 1.165714 | BG91: 1.165714
B93: Benefits
G95: $ Basis Reminder | H95: $ Reminder
B96: =B115 -> Value of EUE | G96: ='1_KMA'!$I$21 -> 2024-06-30 | H96: ='1_KMA'!$I$19 -> $millions | J96: =J115*J$7 -> 0 | K96: 0 | L96: 0 | M96: 0 | N96: 0 | O96: 0 | P96: 0 | Q96: 0 | R96: 0 | S96: 0 | T96: 0 | U96: 0 | V96: 0 | W96: 0 | X96: 0 | Y96: 0 | Z96: 0 | AA96: 0 | AB96: 0 | AC96: 0 | AD96: 0 | AE96: 0 | AF96: 0 | AG96: 0 | AH96: 0 | AI96: 0 | AJ96: 0 | AK96: 0 | AL96: 0 | AM96: 0 | AN96: 0 | AO96: 0 | AP96: =AP115*AP$7 -> 0 | AQ96: 0 | AR96: 0 | AS96: 0 | AT96: 0 | AU96: 0 | AV96: 0 | AW96: 0 | AX96: 0 | AY96: 0 | AZ96: 0 | BA96: 0 | BB96: 0 | BC96: 0 | BD96: 0 | BE96: 0 | BF96: 0 | BG96: 0
B97: =B116 -> Reliability | G97: ='1_KMA'!$I$21 -> 2024-06-30 | H97: ='1_KMA'!$I$19 -> $millions | J97: =J116*J$7 -> 0 | K97: 0 | L97: 0 | M97: 0 | N97: 0 | O97: 0 | P97: 0 | Q97: 0 | R97: 0 | S97: 0 | T97: 0 | U97: 0 | V97: 0 | W97: 0 | X97: 0 | Y97: 0 | Z97: 0 | AA97: 0 | AB97: 0 | AC97: 0 | AD97: 0 | AE97: 0 | AF97: 0 | AG97: 0 | AH97: 0 | AI97: 0 | AJ97: 0 | AK97: 0 | AL97: 0 | AM97: 0 | AN97: 0 | AO97: 0 | AP97: =AP116*AP$7 -> 0 | AQ97: 0 | AR97: 0 | AS97: 0 | AT97: 0 | AU97: 0 | AV97: 0 | AW97: 0 | AX97: 0 | AY97: 0 | AZ97: 0 | BA97: 0 | BB97: 0 | BC97: 0 | BD97: 0 | BE97: 0 | BF97: 0 | BG97: 0
B98: Resilience | G98: ='1_KMA'!$I$21 -> 2024-06-30 | H98: ='1_KMA'!$I$19 -> $millions | J98: =J117*J$7 -> 0 | K98: 0 | L98: 0 | M98: 0 | N98: 0 | O98: 0 | P98: 0 | Q98: 0 | R98: 0 | S98: 0 | T98: 0 | U98: 0 | V98: 0 | W98: 0 | X98: 0 | Y98: 0 | Z98: 0 | AA98: 0 | AB98: 0 | AC98: 0 | AD98: 0 | AE98: 0 | AF98: 0 | AG98: 0 | AH98: 0 | AI98: 0 | AJ98: 0 | AK98: 0 | AL98: 0 | AM98: 0 | AN98: 0 | AO98: 0 | AP98: =AP117*AP$7 -> 0 | AQ98: 0 | AR98: 0 | AS98: 0 | AT98: 0 | AU98: 0 | AV98: 0 | AW98: 0 | AX98: 0 | AY98: 0 | AZ98: 0 | BA98: 0 | BB98: 0 | BC98: 0 | BD98: 0 | BE98: 0 | BF98: 0 | BG98: 0
B99: Batteries | G99: ='1_KMA'!$I$21 -> 2024-06-30 | H99: ='1_KMA'!$I$19 -> $millions | J99: =J118*J$7 -> 0 | K99: 0 | L99: 0 | M99: 0 | N99: 0 | O99: 0 | P99: 0 | Q99: 0 | R99: 0 | S99: 0 | T99: 0 | U99: 0 | V99: 0 | W99: 0 | X99: 0 | Y99: 0 | Z99: 0 | AA99: 0 | AB99: 0 | AC99: 0 | AD99: 0 | AE99: 0 | AF99: 0 | AG99: 0 | AH99: 0 | AI99: 0 | AJ99: 0 | AK99: 0 | AL99: 0 | AM99: 0 | AN99: 0 | AO99: 0 | AP99: =AP118*AP$7 -> 0 | AQ99: 0 | AR99: 0 | AS99: 0 | AT99: 0 | AU99: 0 | AV99: 0 | AW99: 0 | AX99: 0 | AY99: 0 | AZ99: 0 | BA99: 0 | BB99: 0 | BC99: 0 | BD99: 0 | BE99: 0 | BF99: 0 | BG99: 0
B100: Others | G100: ='1_KMA'!$I$21 -> 2024-06-30 | H100: ='1_KMA'!$I$19 -> $millions | J100: =J119*J$7 -> 0 | K100: 0 | L100: 0 | M100: 0 | N100: 0 | O100: 0 | P100: -373 | Q100: -440 | R100: -658 | S100: -972 | T100: -972 | U100: -972 | V100: -972 | W100: -972 | X100: -972 | Y100: -972 | Z100: -972 | AA100: -972 | AB100: -972 | AC100: -972 | AD100: -972 | AE100: -972 | AF100: -972 | AG100: -972 | AH100: -972 | AI100: -972 | AJ100: -972 | AK100: -972 | AL100: -972 | AM100: -972 | AN100: -972 | AO100: -972 | AP100: =AP119*AP$7 -> -972 | AQ100: -972 | AR100: -972 | AS100: -972 | AT100: -972 | AU100: -972 | AV100: -972 | AW100: -972 | AX100: -972 | AY100: -972 | AZ100: -972 | BA100: -972 | BB100: -972 | BC100: -972 | BD100: -972 | BE100: -972 | BF100: -972 | BG100: -972
B101: ='3_BC'!B120 -> Total | G101: ='1_KMA'!$I$21 -> 2024-06-30 | H101: ='1_KMA'!$I$19 -> $millions | J101: =J120*J$7 -> 0 | K101: 0 | L101: 0 | M101: 0 | N101: 0 | O101: 0 | P101: -373 | Q101: -440 | R101: -658 | S101: -972 | T101: -972 | U101: -972 | V101: -972 | W101: -972 | X101: -972 | Y101: -972 | Z101: -972 | AA101: -972 | AB101: -972 | AC101: -972 | AD101: -972 | AE101: -972 | AF101: -972 | AG101: -972 | AH101: -972 | AI101: -972 | AJ101: -972 | AK101: -972 | AL101: -972 | AM101: -972 | AN101: -972 | AO101: -972 | AP101: =AP120*AP$7 -> -972 | AQ101: -972 | AR101: -972 | AS101: -972 | AT101: -972 | AU101: -972 | AV101: -972 | AW101: -972 | AX101: -972 | AY101: -972 | AZ101: -972 | BA101: -972 | BB101: -972 | BC101: -972 | BD101: -972 | BE101: -972 | BF101: -972 | BG101: -972
B103: Undiscounted | D103: ="("&TEXT('1_KMA'!$I$20,"dd-mmm-yy")&" dollars)" -> (30-Jun-24 dollars)
B105: Costs
G107: $ Basis Reminder | H107: $ Reminder
B108: Net Capex | G108: ='1_KMA'!$I$20 -> 2024-06-30 | H108: ='1_KMA'!$I$19 -> $millions | J108: =J52*Controls!$F$22 -> 0 | K108: =K52*Controls!$F$22 -> 0 | L108: =L52*Controls!$F$22 -> 0 | M108: =M52*Controls!$F$22 -> 0 | N108: =N52*Controls!$F$22 -> 0 | O108: =O52*Controls!$F$22 -> 0 | P108: =P52*Controls!$F$22 -> 0 | Q108: =Q52*Controls!$F$22 -> 0 | R108: =R52*Controls!$F$22 -> 0 | S108: =S52*Controls!$F$22 -> 0 | T108: =T52*Controls!$F$22 -> 0 | U108: =U52*Controls!$F$22 -> 0 | V108: =V52*Controls!$F$22 -> 0 | W108: =W52*Controls!$F$22 -> 0 | X108: =X52*Controls!$F$22 -> 0 | Y108: =Y52*Controls!$F$22 -> 0 | Z108: =Z52*Controls!$F$22 -> 0 | AA108: =AA52*Controls!$F$22 -> 0 | AB108: =AB52*Controls!$F$22 -> 0 | AC108: =AC52*Controls!$F$22 -> 0 | AD108: =AD52*Controls!$F$22 -> 0 | AE108: =AE52*Controls!$F$22 -> 0 | AF108: =AF52*Controls!$F$22 -> 0 | AG108: =AG52*Controls!$F$22 -> 0 | AH108: =AH52*Controls!$F$22 -> 0 | AI108: =AI52*Controls!$F$22 -> 0 | AJ108: =AJ52*Controls!$F$22 -> 0 | AK108: =AK52*Controls!$F$22 -> 0 | AL108: =AL52*Controls!$F$22 -> 0 | AM108: =AM52*Controls!$F$22 -> 0 | AN108: =AN52*Controls!$F$22 -> 0 | AO108: =AO52*Controls!$F$22 -> 0 | AP108: =AP52*Controls!$F$22 -> 0 | AQ108: =AQ52*Controls!$F$22 -> 0 | AR108: =AR52*Controls!$F$22 -> 0 | AS108: =AS52*Controls!$F$22 -> 0 | AT108: =AT52*Controls!$F$22 -> 0 | AU108: =AU52*Controls!$F$22 -> 0 | AV108: =AV52*Controls!$F$22 -> 0 | AW108: =AW52*Controls!$F$22 -> 0 | AX108: =AX52*Controls!$F$22 -> 0 | AY108: =AY52*Controls!$F$22 -> 0 | AZ108: =AZ52*Controls!$F$22 -> 0 | BA108: =BA52*Controls!$F$22 -> 0 | BB108: =BB52*Controls!$F$22 -> 0 | BC108: =BC52*Controls!$F$22 -> 0 | BD108: =BD52*Controls!$F$22 -> 0 | BE108: =BE52*Controls!$F$22 -> 0 | BF108: =BF52*Controls!$F$22 -> 0 | BG108: =BG52*Controls!$F$22 -> 0
B109: Opex | G109: ='1_KMA'!$I$20 -> 2024-06-30 | H109: ='1_KMA'!$I$19 -> $millions | J109: =J53*Controls!$F$22 -> 0.318112 | K109: =K53*Controls!$F$22 -> 0.416408 | L109: =L53*Controls!$F$22 -> 0.513426 | M109: =M53*Controls!$F$22 -> 0.606184 | N109: =N53*Controls!$F$22 -> 0.700646 | O109: =O53*Controls!$F$22 -> 0.795534 | P109: =P53*Controls!$F$22 -> 0.887866 | Q109: =Q53*Controls!$F$22 -> 0.981476 | R109: =R53*Controls!$F$22 -> 1.07466 | S109: =S53*Controls!$F$22 -> 1.165714 | T109: =T53*Controls!$F$22 -> 1.165714 | U109: =U53*Controls!$F$22 -> 1.165714 | V109: =V53*Controls!$F$22 -> 1.165714 | W109: =W53*Controls!$F$22 -> 1.165714 | X109: =X53*Controls!$F$22 -> 1.165714 | Y109: =Y53*Controls!$F$22 -> 1.165714 | Z109: =Z53*Controls!$F$22 -> 1.165714 | AA109: =AA53*Controls!$F$22 -> 1.165714 | AB109: =AB53*Controls!$F$22 -> 1.165714 | AC109: =AC53*Controls!$F$22 -> 1.165714 | AD109: =AD53*Controls!$F$22 -> 1.165714 | AE109: =AE53*Controls!$F$22 -> 1.165714 | AF109: =AF53*Controls!$F$22 -> 1.165714 | AG109: =AG53*Controls!$F$22 -> 1.165714 | AH109: =AH53*Controls!$F$22 -> 1.165714 | AI109: =AI53*Controls!$F$22 -> 1.165714 | AJ109: =AJ53*Controls!$F$22 -> 1.165714 | AK109: =AK53*Controls!$F$22 -> 1.165714 | AL109: =AL53*Controls!$F$22 -> 1.165714 | AM109: =AM53*Controls!$F$22 -> 1.165714 | AN109: =AN53*Controls!$F$22 -> 1.165714 | AO109: =AO53*Controls!$F$22 -> 1.165714 | AP109: =AP53*Controls!$F$22 -> 1.165714 | AQ109: =AQ53*Controls!$F$22 -> 1.165714 | AR109: =AR53*Controls!$F$22 -> 1.165714 | AS109: =AS53*Controls!$F$22 -> 1.165714 | AT109: =AT53*Controls!$F$22 -> 1.165714 | AU109: =AU53*Controls!$F$22 -> 1.165714 | AV109: =AV53*Controls!$F$22 -> 1.165714 | AW109: =AW53*Controls!$F$22 -> 1.165714 | AX109: =AX53*Controls!$F$22 -> 1.165714 | AY109: =AY53*Controls!$F$22 -> 1.165714 | AZ109: =AZ53*Controls!$F$22 -> 1.165714 | BA109: =BA53*Controls!$F$22 -> 1.165714 | BB109: =BB53*Controls!$F$22 -> 1.165714 | BC109: =BC53*Controls!$F$22 -> 1.165714 | BD109: =BD53*Controls!$F$22 -> 1.165714 | BE109: =BE53*Controls!$F$22 -> 1.165714 | BF109: =BF53*Controls!$F$22 -> 1.165714 | BG109: =BG53*Controls!$F$22 -> 1.165714
B110: Total | G110: ='1_KMA'!$I$20 -> 2024-06-30 | H110: ='1_KMA'!$I$19 -> $millions | J110: =SUM(J108:J109) -> 0.318112 | K110: =SUM(K108:K109) -> 0.416408 | L110: 0.513426 | M110: 0.606184 | N110: 0.700646 | O110: 0.795534 | P110: 0.887866 | Q110: 0.981476 | R110: 1.07466 | S110: 1.165714 | T110: 1.165714 | U110: 1.165714 | V110: 1.165714 | W110: 1.165714 | X110: 1.165714 | Y110: 1.165714 | Z110: 1.165714 | AA110: 1.165714 | AB110: 1.165714 | AC110: 1.165714 | AD110: 1.165714 | AE110: 1.165714 | AF110: 1.165714 | AG110: 1.165714 | AH110: 1.165714 | AI110: 1.165714 | AJ110: 1.165714 | AK110: 1.165714 | AL110: 1.165714 | AM110: 1.165714 | AN110: 1.165714 | AO110: 1.165714 | AP110: 1.165714 | AQ110: 1.165714 | AR110: 1.165714 | AS110: 1.165714 | AT110: 1.165714 | AU110: 1.165714 | AV110: 1.165714 | AW110: 1.165714 | AX110: 1.165714 | AY110: 1.165714 | AZ110: 1.165714 | BA110: 1.165714 | BB110: 1.165714 | BC110: 1.165714 | BD110: 1.165714 | BE110: 1.165714 | BF110: 1.165714 | BG110: 1.165714
B112: Benefits
G114: $ Basis Reminder | H114: $ Reminder
B115: ='2.1_BAU'!$B$16 -> Value of EUE | G115: ='1_KMA'!$I$20 -> 2024-06-30 | H115: ='1_KMA'!$I$19 -> $millions | J115: =J59 -> 0 | K115: =K59 -> 0 | L115: 0 | M115: 0 | N115: 0 | O115: 0 | P115: 0 | Q115: 0 | R115: 0 | S115: 0 | T115: 0 | U115: 0 | V115: 0 | W115: 0 | X115: 0 | Y115: 0 | Z115: 0 | AA115: 0 | AB115: 0 | AC115: 0 | AD115: 0 | AE115: 0 | AF115: 0 | AG115: 0 | AH115: 0 | AI115: 0 | AJ115: 0 | AK115: 0 | AL115: 0 | AM115: 0 | AN115: 0 | AO115: 0 | AP115: 0 | AQ115: 0 | AR115: 0 | AS115: 0 | AT115: 0 | AU115: 0 | AV115: 0 | AW115: 0 | AX115: 0 | AY115: 0 | AZ115: 0 | BA115: 0 | BB115: 0 | BC115: 0 | BD115: 0 | BE115: 0 | BF115: 0 | BG115: 0
B116: ='2.1_BAU'!$B$17 -> Reliability | G116: ='1_KMA'!$I$20 -> 2024-06-30 | H116: ='1_KMA'!$I$19 -> $millions | J116: =J60 -> 0 | K116: =K60 -> 0 | L116: 0 | M116: 0 | N116: 0 | O116: 0 | P116: 0 | Q116: 0 | R116: 0 | S116: 0 | T116: 0 | U116: 0 | V116: 0 | W116: 0 | X116: 0 | Y116: 0 | Z116: 0 | AA116: 0 | AB116: 0 | AC116: 0 | AD116: 0 | AE116: 0 | AF116: 0 | AG116: 0 | AH116: 0 | AI116: 0 | AJ116: 0 | AK116: 0 | AL116: 0 | AM116: 0 | AN116: 0 | AO116: 0 | AP116: 0 | AQ116: 0 | AR116: 0 | AS116: 0 | AT116: 0 | AU116: 0 | AV116: 0 | AW116: 0 | AX116: 0 | AY116: 0 | AZ116: 0 | BA116: 0 | BB116: 0 | BC116: 0 | BD116: 0 | BE116: 0 | BF116: 0 | BG116: 0
B117: ='2.1_BAU'!$B$18 -> Resilience | G117: ='1_KMA'!$I$20 -> 2024-06-30 | H117: ='1_KMA'!$I$19 -> $millions | J117: =J61 -> 0 | K117: =K61 -> 0 | L117: 0 | M117: 0 | N117: 0 | O117: 0 | P117: 0 | Q117: 0 | R117: 0 | S117: 0 | T117: 0 | U117: 0 | V117: 0 | W117: 0 | X117: 0 | Y117: 0 | Z117: 0 | AA117: 0 | AB117: 0 | AC117: 0 | AD117: 0 | AE117: 0 | AF117: 0 | AG117: 0 | AH117: 0 | AI117: 0 | AJ117: 0 | AK117: 0 | AL117: 0 | AM117: 0 | AN117: 0 | AO117: 0 | AP117: 0 | AQ117: 0 | AR117: 0 | AS117: 0 | AT117: 0 | AU117: 0 | AV117: 0 | AW117: 0 | AX117: 0 | AY117: 0 | AZ117: 0 | BA117: 0 | BB117: 0 | BC117: 0 | BD117: 0 | BE117: 0 | BF117: 0 | BG117: 0
B118: ='2.1_BAU'!$B$19 -> Batteries | G118: ='1_KMA'!$I$20 -> 2024-06-30 | H118: ='1_KMA'!$I$19 -> $millions | J118: =J62 -> 0 | K118: =K62 -> 0 | L118: 0 | M118: 0 | N118: 0 | O118: 0 | P118: 0 | Q118: 0 | R118: 0 | S118: 0 | T118: 0 | U118: 0 | V118: 0 | W118: 0 | X118: 0 | Y118: 0 | Z118: 0 | AA118: 0 | AB118: 0 | AC118: 0 | AD118: 0 | AE118: 0 | AF118: 0 | AG118: 0 | AH118: 0 | AI118: 0 | AJ118: 0 | AK118: 0 | AL118: 0 | AM118: 0 | AN118: 0 | AO118: 0 | AP118: 0 | AQ118: 0 | AR118: 0 | AS118: 0 | AT118: 0 | AU118: 0 | AV118: 0 | AW118: 0 | AX118: 0 | AY118: 0 | AZ118: 0 | BA118: 0 | BB118: 0 | BC118: 0 | BD118: 0 | BE118: 0 | BF118: 0 | BG118: 0
B119: ='2.1_BAU'!$B$20 -> Others | G119: ='1_KMA'!$I$20 -> 2024-06-30 | H119: ='1_KMA'!$I$19 -> $millions | J119: =J63 -> 0 | K119: =K63 -> 0 | L119: 0 | M119: 0 | N119: 0 | O119: 0 | P119: -373 | Q119: -440 | R119: -658 | S119: -972 | T119: -972 | U119: -972 | V119: -972 | W119: -972 | X119: -972 | Y119: -972 | Z119: -972 | AA119: -972 | AB119: -972 | AC119: -972 | AD119: -972 | AE119: -972 | AF119: -972 | AG119: -972 | AH119: -972 | AI119: -972 | AJ119: -972 | AK119: -972 | AL119: -972 | AM119: -972 | AN119: -972 | AO119: -972 | AP119: -972 | AQ119: -972 | AR119: -972 | AS119: -972 | AT119: -972 | AU119: -972 | AV119: -972 | AW119: -972 | AX119: -972 | AY119: -972 | AZ119: -972 | BA119: -972 | BB119: -972 | BC119: -972 | BD119: -972 | BE119: -972 | BF119: -972 | BG119: -972
B120: Total | G120: ='1_KMA'!$I$20 -> 2024-06-30 | H120: ='1_KMA'!$I$19 -> $millions | J120: =SUM(J115:J119) -> 0 | K120: =SUM(K115:K119) -> 0 | L120: 0 | M120: 0 | N120: 0 | O120: 0 | P120: -373 | Q120: -440 | R120: -658 | S120: -972 | T120: -972 | U120: -972 | V120: -972 | W120: -972 | X120: -972 | Y120: -972 | Z120: -972 | AA120: -972 | AB120: -972 | AC120: -972 | AD120: -972 | AE120: -972 | AF120: -972 | AG120: -972 | AH120: -972 | AI120: -972 | AJ120: -972 | AK120: -972 | AL120: -972 | AM120: -972 | AN120: -972 | AO120: -972 | AP120: -972 | AQ120: -972 | AR120: -972 | AS120: -972 | AT120: -972 | AU120: -972 | AV120: -972 | AW120: -972 | AX120: -972 | AY120: -972 | AZ120: -972 | BA120: -972 | BB120: -972 | BC120: -972 | BD120: -972 | BE120: -972 | BF120: -972 | BG120: -972
B122: =Controls!$B$23&" "&Controls!$C$23&" ("&TEXT(Controls!$E$23,"0.00%")&")" -> Sensitivity Scenario 2 Lower Discount Rate (4.11%)
B123: Summary
B125: WACC | J125: =Controls!$E$23 -> 0.0411 | K125: =Controls!$E$23 -> 0.0411 | L125: =Controls!$E$23 -> 0.0411 | M125: =Controls!$E$23 -> 0.0411 | N125: =Controls!$E$23 -> 0.0411 | O125: =Controls!$E$23 -> 0.0411 | P125: =Controls!$E$23 -> 0.0411 | Q125: =Controls!$E$23 -> 0.0411 | R125: =Controls!$E$23 -> 0.0411 | S125: =Controls!$E$23 -> 0.0411 | T125: =Controls!$E$23 -> 0.0411 | U125: =Controls!$E$23 -> 0.0411 | V125: =Controls!$E$23 -> 0.0411 | W125: =Controls!$E$23 -> 0.0411 | X125: =Controls!$E$23 -> 0.0411 | Y125: =Controls!$E$23 -> 0.0411 | Z125: =Controls!$E$23 -> 0.0411 | AA125: =Controls!$E$23 -> 0.0411 | AB125: =Controls!$E$23 -> 0.0411 | AC125: =Controls!$E$23 -> 0.0411 | AD125: =Controls!$E$23 -> 0.0411 | AE125: =Controls!$E$23 -> 0.0411 | AF125: =Controls!$E$23 -> 0.0411 | AG125: =Controls!$E$23 -> 0.0411 | AH125: =Controls!$E$23 -> 0.0411 | AI125: =Controls!$E$23 -> 0.0411 | AJ125: =Controls!$E$23 -> 0.0411 | AK125: =Controls!$E$23 -> 0.0411 | AL125: =Controls!$E$23 -> 0.0411 | AM125: =Controls!$E$23 -> 0.0411 | AN125: =Controls!$E$23 -> 0.0411 | AO125: =Controls!$E$23 -> 0.0411 | AP125: =Controls!$E$23 -> 0.0411 | AQ125: =Controls!$E$23 -> 0.0411 | AR125: =Controls!$E$23 -> 0.0411 | AS125: =Controls!$E$23 -> 0.0411 | AT125: =Controls!$E$23 -> 0.0411 | AU125: =Controls!$E$23 -> 0.0411 | AV125: =Controls!$E$23 -> 0.0411 | AW125: =Controls!$E$23 -> 0.0411 | AX125: =Controls!$E$23 -> 0.0411 | AY125: =Controls!$E$23 -> 0.0411 | AZ125: =Controls!$E$23 -> 0.0411 | BA125: =Controls!$E$23 -> 0.0411 | BB125: =Controls!$E$23 -> 0.0411 | BC125: =Controls!$E$23 -> 0.0411 | BD125: =Controls!$E$23 -> 0.0411 | BE125: =Controls!$E$23 -> 0.0411 | BF125: =Controls!$E$23 -> 0.0411 | BG125: =Controls!$E$23 -> 0.0411
B126: Deflator (interim calculation) | J126: 1 | K126: =J126*(1+K125) -> 1.0411 | L126: =K126*(1+L125) -> 1.08388921 | M126: =L126*(1+M125) -> 1.128437057 | N126: =M126*(1+N125) -> 1.17481582 | O126: =N126*(1+O125) -> 1.22310075 | P126: =O126*(1+P125) -> 1.273370191 | Q126: =P126*(1+Q125) -> 1.325705705 | R126: =Q126*(1+R125) -> 1.38019221 | S126: =R126*(1+S125) -> 1.43691811 | T126: =S126*(1+T125) -> 1.495975444 | U126: =T126*(1+U125) -> 1.557460035 | V126: =U126*(1+V125) -> 1.621471642 | W126: =V126*(1+W125) -> 1.688114127 | X126: =W126*(1+X125) -> 1.757495617 | Y126: =X126*(1+Y125) -> 1.829728687 | Z126: =Y126*(1+Z125) -> 1.904930536 | AA126: =Z126*(1+AA125) -> 1.983223181 | AB126: =AA126*(1+AB125) -> 2.064733654 | AC126: =AB126*(1+AC125) -> 2.149594207 | AD126: =AC126*(1+AD125) -> 2.237942529 | AE126: =AD126*(1+AE125) -> 2.329921967 | AF126: =AE126*(1+AF125) -> 2.42568176 | AG126: =AF126*(1+AG125) -> 2.52537728 | AH126: =AG126*(1+AH125) -> 2.629170286 | AI126: =AH126*(1+AI125) -> 2.737229185 | AJ126: =AI126*(1+AJ125) -> 2.849729305 | AK126: =AJ126*(1+AK125) -> 2.966853179 | AL126: =AK126*(1+AL125) -> 3.088790845 | AM126: =AL126*(1+AM125) -> 3.215740149 | AN126: =AM126*(1+AN125) -> 3.347907069 | AO126: =AN126*(1+AO125) -> 3.485506049 | AP126: =AO126*(1+AP125) -> 3.628760348 | AQ126: =AP126*(1+AQ125) -> 3.777902398 | AR126: =AQ126*(1+AR125) -> 3.933174187 | AS126: =AR126*(1+AS125) -> 4.094827646 | AT126: =AS126*(1+AT125) -> 4.263125062 | AU126: =AT126*(1+AU125) -> 4.438339502 | AV126: =AU126*(1+AV125) -> 4.620755255 | AW126: =AV126*(1+AW125) -> 4.810668296 | AX126: =AW126*(1+AX125) -> 5.008386763 | AY126: =AX126*(1+AY125) -> 5.214231459 | AZ126: =AY126*(1+AZ125) -> 5.428536372 | BA126: =AZ126*(1+BA125) -> 5.651649217 | BB126: =BA126*(1+BB125) -> 5.883932 | BC126: =BB126*(1+BC125) -> 6.125761605 | BD126: =BC126*(1+BD125) -> 6.377530407 | BE126: =BD126*(1+BE125) -> 6.639646907 | BF126: =BE126*(1+BF125) -> 6.912536395 | BG126: =BF126*(1+BG125) -> 7.196641641
B127: Deflator | J127: =1/J126 -> 1 | K127: =1/K126 -> 0.9605225243 | L127: =1/L126 -> 0.9226035196 | M127: =1/M126 -> 0.8861814615 | N127: =1/N126 -> 0.8511972544 | O127: =1/O126 -> 0.8175941354 | P127: 0.7853175828 | Q127: 0.7543152269 | R127: 0.7245367659 | S127: 0.6959338833 | T127: 0.6684601703 | U127: 0.6420710501 | V127: 0.6167237058 | W127: 0.5923770107 | X127: 0.5689914616 | Y127: 0.546529115 | Z127: 0.5249535251 | AA127: 0.504229685 | AB127: 0.4843239699 | AC127: 0.4652040821 | AD127: 0.4468389992 | AE127: 0.4291989235 | AF127: 0.4122552334 | AG127: 0.3959804374 | AH127: 0.3803481293 | AI127: 0.3653329452 | AJ127: 0.3509105227 | AK127: 0.3370574611 | AL127: 0.3237512834 | AM127: 0.3109703999 | AN127: 0.2986940735 | AO127: 0.2869023855 | AP127: 0.2755762035 | AQ127: 0.2646971506 | AR127: 0.2542475753 | AS127: 0.2442105228 | AT127: 0.2345697078 | AU127: 0.2253094878 | AV127: 0.216414838 | AW127: 0.2078713265 | AX127: 0.1996650912 | AY127: 0.1917828174 | AZ127: 0.1842117159 | BA127: 0.1769395024 | BB127: 0.1699543774 | BC127: 0.1632450076 | BD127: 0.1568005068 | BE127: 0.1506104186 | BF127: 0.1446646994 | BG127: 0.1389537023
B129: Totex sought for EDPR FY27-31 (undiscounted) | G129: ="("&TEXT('1_KMA'!$I$21,"dd-mmm-yy")&" Dollars)" -> (30-Jun-24 Dollars)
C130: Net Capital Expenditure | G130: =SUM(J130:BG130) -> 0 | J130: =-J145*J$1*J$8 -> 0 | K130: =-K145*K$1*K$8 -> 0 | L130: 0 | M130: 0 | N130: =-N145*N$1*N$8 -> 0 | O130: 0 | P130: 0 | Q130: 0 | R130: 0 | S130: 0 | T130: 0 | U130: 0 | V130: 0 | W130: 0 | X130: 0 | Y130: 0 | Z130: 0 | AA130: 0 | AB130: 0 | AC130: 0 | AD130: 0 | AE130: 0 | AF130: 0 | AG130: 0 | AH130: 0 | AI130: 0 | AJ130: 0 | AK130: 0 | AL130: 0 | AM130: 0 | AN130: 0 | AO130: 0 | AP130: 0 | AQ130: 0 | AR130: 0 | AS130: 0 | AT130: 0 | AU130: 0 | AV130: 0 | AW130: 0 | AX130: 0 | AY130: 0 | AZ130: 0 | BA130: 0 | BB130: 0 | BC130: 0 | BD130: 0 | BE130: 0 | BF130: 0 | BG130: 0
C131: Operating Expenditure | G131: =SUM(J131:BG131) -> -2.554776 | J131: =-J146*J$1*J$8 -> -0.318112 | K131: =-K146*K$1*K$8 -> -0.416408 | L131: -0.513426 | M131: -0.606184 | N131: =-N146*N$1*N$8 -> -0.700646 | O131: 0 | P131: 0 | Q131: 0 | R131: 0 | S131: 0 | T131: 0 | U131: 0 | V131: 0 | W131: 0 | X131: 0 | Y131: 0 | Z131: 0 | AA131: 0 | AB131: 0 | AC131: 0 | AD131: 0 | AE131: 0 | AF131: 0 | AG131: 0 | AH131: 0 | AI131: 0 | AJ131: 0 | AK131: 0 | AL131: 0 | AM131: 0 | AN131: 0 | AO131: 0 | AP131: 0 | AQ131: 0 | AR131: 0 | AS131: 0 | AT131: 0 | AU131: 0 | AV131: 0 | AW131: 0 | AX131: 0 | AY131: 0 | AZ131: 0 | BA131: 0 | BB131: 0 | BC131: 0 | BD131: 0 | BE131: 0 | BF131: 0 | BG131: 0
C132: Totex | G132: =SUM(G130:G131) -> -2.554776 | J132: =SUM(J130:J131) -> -0.318112 | K132: =SUM(K130:K131) -> -0.416408 | L132: =SUM(L130:L131) -> -0.513426 | M132: -0.606184 | N132: -0.700646 | O132: 0 | P132: 0 | Q132: 0 | R132: 0 | S132: 0 | T132: 0 | U132: 0 | V132: 0 | W132: 0 | X132: 0 | Y132: 0 | Z132: 0 | AA132: 0 | AB132: 0 | AC132: 0 | AD132: 0 | AE132: 0 | AF132: 0 | AG132: 0 | AH132: 0 | AI132: 0 | AJ132: 0 | AK132: 0 | AL132: 0 | AM132: 0 | AN132: 0 | AO132: 0 | AP132: 0 | AQ132: 0 | AR132: 0 | AS132: 0 | AT132: 0 | AU132: 0 | AV132: 0 | AW132: 0 | AX132: 0 | AY132: 0 | AZ132: 0 | BA132: 0 | BB132: 0 | BC132: 0 | BD132: 0 | BE132: 0 | BF132: 0 | BG132: 0
B134: PV over full assessment period to establish the preferred option (discounted) | G134: ="("&TEXT('1_KMA'!$I$21,"dd-mmm-yy")&" Dollars)" -> (30-Jun-24 Dollars)
C135: Net Capital Expenditure | G135: =SUM(J135:BG135) -> 0 | J135: =-(J145)*J$127*J$8 -> 0 | K135: =-(K145)*K$127*K$8 -> 0 | L135: 0 | M135: 0 | N135: 0 | O135: 0 | P135: 0 | Q135: 0 | R135: 0 | S135: 0 | T135: 0 | U135: 0 | V135: 0 | W135: 0 | X135: 0 | Y135: 0 | Z135: 0 | AA135: 0 | AB135: 0 | AC135: 0 | AD135: 0 | AE135: 0 | AF135: 0 | AG135: 0 | AH135: 0 | AI135: 0 | AJ135: 0 | AK135: 0 | AL135: 0 | AM135: 0 | AN135: 0 | AO135: 0 | AP135: 0 | AQ135: 0 | AR135: 0 | AS135: 0 | AT135: 0 | AU135: 0 | AV135: 0 | AW135: 0 | AX135: 0 | AY135: 0 | AZ135: 0 | BA135: 0 | BB135: 0 | BC135: 0 | BD135: 0 | BE135: 0 | BF135: 0 | BG135: =-(BG145)*BG$127*BG$8 -> 0
C136: Operating Expenditure | G136: =SUM(J136:BG136) -> -19.84611579 | J136: =-(J146)*J$127*J$8 -> -0.318112 | K136: =-(K146)*K$127*K$8 -> -0.3999692633 | L136: -0.4736886347 | M136: -0.5371890231 | N136: -0.5963879515 | O136: -0.6504239329 | P136: -0.6972567809 | Q136: -0.7403422917 | R136: -0.7786306808 | S136: -0.8112598708 | T136: -0.7792333789 | U136: -0.7484712121 | V136: -0.718923458 | W136: -0.6905421746 | X136: -0.6632813126 | Y136: -0.6370966407 | Z136: -0.6119456735 | AA136: -0.587787603 | AB136: -0.5645832322 | AC136: -0.5422949113 | AD136: -0.5208864771 | AE136: -0.5003231939 | AF136: -0.4805716971 | AG136: -0.4615999396 | AH136: -0.4433771392 | AI136: -0.4258737289 | AJ136: -0.4090613091 | AK136: -0.3929126012 | AL136: -0.3774014035 | AM136: -0.3625025488 | AN136: -0.3481918632 | AO136: -0.3344461274 | AP136: -0.3212430385 | AQ136: -0.3085611742 | AR136: -0.2963799579 | AS136: -0.2846796253 | AT136: -0.2734411923 | AU136: -0.2626464243 | AV136: -0.2522778065 | AW136: -0.2423185155 | AX136: 0 | AY136: 0 | AZ136: 0 | BA136: 0 | BB136: 0 | BC136: 0 | BD136: 0 | BE136: 0 | BF136: 0 | BG136: =-(BG146)*BG$127*BG$8 -> 0
C137: Net Benefits | G137: =SUM(J137:BG137) -> -13320.51643 | J137: =(J157)*J$127*J$8 -> 0 | K137: =(K157)*K$127*K$8 -> 0 | L137: 0 | M137: 0 | N137: 0 | O137: 0 | P137: -292.9234584 | Q137: -331.8986998 | R137: -476.7451919 | S137: -676.4477345 | T137: -649.7432855 | U137: -624.0930607 | V137: -599.455442 | W137: -575.7904544 | X137: -553.0597007 | Y137: -531.2262997 | Z137: -510.2548264 | AA137: -490.1112538 | AB137: -470.7628987 | AC137: -452.1783678 | AD137: -434.3275072 | AE137: -417.1813536 | AF137: -400.7120868 | AG137: -384.8929851 | AH137: -369.6983817 | AI137: -355.1036228 | AJ137: -341.0850281 | AK137: -327.6198522 | AL137: -314.6862474 | AM137: -302.2632287 | AN137: -290.3306394 | AO137: -278.8691187 | AP137: -267.8600698 | AQ137: -257.2856304 | AR137: -247.1286431 | AS137: -237.3726281 | AT137: -228.001756 | AU137: -219.0008222 | AV137: -210.3552225 | AW137: -202.0509293 | AX137: 0 | AY137: 0 | AZ137: 0 | BA137: 0 | BB137: 0 | BC137: 0 | BD137: 0 | BE137: 0 | BF137: 0 | BG137: =(BG157)*BG$127*BG$8 -> 0
B138: Total Present Value | G138: =SUM(J138:BG138) -> -13340.36254 | J138: =SUM(J135:J137) -> -0.318112 | K138: =SUM(K135:K137) -> -0.3999692633 | L138: -0.4736886347 | M138: -0.5371890231 | N138: -0.5963879515 | O138: -0.6504239329 | P138: -293.6207151 | Q138: -332.6390421 | R138: -477.5238226 | S138: -677.2589944 | T138: -650.5225189 | U138: -624.8415319 | V138: -600.1743655 | W138: -576.4809965 | X138: -553.722982 | Y138: -531.8633964 | Z138: -510.866772 | AA138: -490.6990414 | AB138: -471.3274819 | AC138: -452.7206627 | AD138: -434.8483937 | AE138: -417.6816768 | AF138: -401.1926585 | AG138: -385.3545851 | AH138: -370.1417588 | AI138: -355.5294965 | AJ138: -341.4940894 | AK138: -328.0127648 | AL138: -315.0636488 | AM138: -302.6257313 | AN138: -290.6788313 | AO138: -279.2035648 | AP138: -268.1813128 | AQ138: -257.5941916 | AR138: -247.4250231 | AS138: -237.6573078 | AT138: -228.2751972 | AU138: -219.2634686 | AV138: -210.6075003 | AW138: -202.2932478 | AX138: 0 | AY138: 0 | AZ138: 0 | BA138: 0 | BB138: 0 | BC138: 0 | BD138: 0 | BE138: 0 | BF138: 0 | BG138: 0
B140: Undiscounted | D140: ="("&TEXT('1_KMA'!$I$21,"dd-mmm-yy")&" dollars)" -> (30-Jun-24 dollars)
B142: Costs
G144: $ Basis Reminder | H144: $ Reminder
B145: Net Capex | G145: ='1_KMA'!$I$21 -> 2024-06-30 | H145: ='1_KMA'!$I$19 -> $millions | J145: =J164*J$7 -> 0 | K145: 0 | L145: 0 | M145: 0 | N145: 0 | O145: 0 | P145: 0 | Q145: 0 | R145: 0 | S145: 0 | T145: 0 | U145: 0 | V145: 0 | W145: 0 | X145: 0 | Y145: 0 | Z145: 0 | AA145: 0 | AB145: 0 | AC145: 0 | AD145: 0 | AE145: 0 | AF145: 0 | AG145: 0 | AH145: 0 | AI145: 0 | AJ145: 0 | AK145: 0 | AL145: 0 | AM145: 0 | AN145: 0 | AO145: 0 | AP145: =AP164*AP$7 -> 0 | AQ145: 0 | AR145: 0 | AS145: 0 | AT145: 0 | AU145: 0 | AV145: 0 | AW145: 0 | AX145: 0 | AY145: 0 | AZ145: 0 | BA145: 0 | BB145: 0 | BC145: 0 | BD145: 0 | BE145: 0 | BF145: 0 | BG145: 0
B146: Opex | G146: ='1_KMA'!$I$21 -> 2024-06-30 | H146: ='1_KMA'!$I$19 -> $millions | J146: =J165*J$7 -> 0.318112 | K146: 0.416408 | L146: 0.513426 | M146: 0.606184 | N146: 0.700646 | O146: 0.795534 | P146: 0.887866 | Q146: 0.981476 | R146: 1.07466 | S146: 1.165714 | T146: 1.165714 | U146: 1.165714 | V146: 1.165714 | W146: 1.165714 | X146: 1.165714 | Y146: 1.165714 | Z146: 1.165714 | AA146: 1.165714 | AB146: 1.165714 | AC146: 1.165714 | AD146: 1.165714 | AE146: 1.165714 | AF146: 1.165714 | AG146: 1.165714 | AH146: 1.165714 | AI146: 1.165714 | AJ146: 1.165714 | AK146: 1.165714 | AL146: 1.165714 | AM146: 1.165714 | AN146: 1.165714 | AO146: 1.165714 | AP146: =AP165*AP$7 -> 1.165714 | AQ146: 1.165714 | AR146: 1.165714 | AS146: 1.165714 | AT146: 1.165714 | AU146: 1.165714 | AV146: 1.165714 | AW146: 1.165714 | AX146: 1.165714 | AY146: 1.165714 | AZ146: 1.165714 | BA146: 1.165714 | BB146: 1.165714 | BC146: 1.165714 | BD146: 1.165714 | BE146: 1.165714 | BF146: 1.165714 | BG146: 1.165714
B147: Total | G147: ='1_KMA'!$I$21 -> 2024-06-30 | H147: ='1_KMA'!$I$19 -> $millions | J147: =J166*J$7 -> 0.318112 | K147: 0.416408 | L147: 0.513426 | M147: 0.606184 | N147: 0.700646 | O147: 0.795534 | P147: 0.887866 | Q147: 0.981476 | R147: 1.07466 | S147: 1.165714 | T147: 1.165714 | U147: 1.165714 | V147: 1.165714 | W147: 1.165714 | X147: 1.165714 | Y147: 1.165714 | Z147: 1.165714 | AA147: 1.165714 | AB147: 1.165714 | AC147: 1.165714 | AD147: 1.165714 | AE147: 1.165714 | AF147: 1.165714 | AG147: 1.165714 | AH147: 1.165714 | AI147: 1.165714 | AJ147: 1.165714 | AK147: 1.165714 | AL147: 1.165714 | AM147: 1.165714 | AN147: 1.165714 | AO147: 1.165714 | AP147: =AP166*AP$7 -> 1.165714 | AQ147: 1.165714 | AR147: 1.165714 | AS147: 1.165714 | AT147: 1.165714 | AU147: 1.165714 | AV147: 1.165714 | AW147: 1.165714 | AX147: 1.165714 | AY147: 1.165714 | AZ147: 1.165714 | BA147: 1.165714 | BB147: 1.165714 | BC147: 1.165714 | BD147: 1.165714 | BE147: 1.165714 | BF147: 1.165714 | BG147: 1.165714
B149: Benefits
G151: $ Basis Reminder | H151: $ Reminder
B152: =B171 -> Value of EUE | G152: ='1_KMA'!$I$21 -> 2024-06-30 | H152: ='1_KMA'!$I$19 -> $millions | J152: =J171*J$7 -> 0 | K152: 0 | L152: 0 | M152: 0 | N152: 0 | O152: 0 | P152: 0 | Q152: 0 | R152: 0 | S152: 0 | T152: 0 | U152: 0 | V152: 0 | W152: 0 | X152: 0 | Y152: 0 | Z152: 0 | AA152: 0 | AB152: 0 | AC152: 0 | AD152: 0 | AE152: 0 | AF152: 0 | AG152: 0 | AH152: 0 | AI152: 0 | AJ152: 0 | AK152: 0 | AL152: 0 | AM152: 0 | AN152: 0 | AO152: 0 | AP152: =AP171*AP$7 -> 0 | AQ152: 0 | AR152: 0 | AS152: 0 | AT152: 0 | AU152: 0 | AV152: 0 | AW152: 0 | AX152: 0 | AY152: 0 | AZ152: 0 | BA152: 0 | BB152: 0 | BC152: 0 | BD152: 0 | BE152: 0 | BF152: 0 | BG152: 0
B153: =B172 -> Reliability | G153: ='1_KMA'!$I$21 -> 2024-06-30 | H153: ='1_KMA'!$I$19 -> $millions | J153: =J172*J$7 -> 0 | K153: 0 | L153: 0 | M153: 0 | N153: 0 | O153: 0 | P153: 0 | Q153: 0 | R153: 0 | S153: 0 | T153: 0 | U153: 0 | V153: 0 | W153: 0 | X153: 0 | Y153: 0 | Z153: 0 | AA153: 0 | AB153: 0 | AC153: 0 | AD153: 0 | AE153: 0 | AF153: 0 | AG153: 0 | AH153: 0 | AI153: 0 | AJ153: 0 | AK153: 0 | AL153: 0 | AM153: 0 | AN153: 0 | AO153: 0 | AP153: =AP172*AP$7 -> 0 | AQ153: 0 | AR153: 0 | AS153: 0 | AT153: 0 | AU153: 0 | AV153: 0 | AW153: 0 | AX153: 0 | AY153: 0 | AZ153: 0 | BA153: 0 | BB153: 0 | BC153: 0 | BD153: 0 | BE153: 0 | BF153: 0 | BG153: 0
B154: Resilience | G154: ='1_KMA'!$I$21 -> 2024-06-30 | H154: ='1_KMA'!$I$19 -> $millions | J154: =J173*J$7 -> 0 | K154: 0 | L154: 0 | M154: 0 | N154: 0 | O154: 0 | P154: 0 | Q154: 0 | R154: 0 | S154: 0 | T154: 0 | U154: 0 | V154: 0 | W154: 0 | X154: 0 | Y154: 0 | Z154: 0 | AA154: 0 | AB154: 0 | AC154: 0 | AD154: 0 | AE154: 0 | AF154: 0 | AG154: 0 | AH154: 0 | AI154: 0 | AJ154: 0 | AK154: 0 | AL154: 0 | AM154: 0 | AN154: 0 | AO154: 0 | AP154: =AP173*AP$7 -> 0 | AQ154: 0 | AR154: 0 | AS154: 0 | AT154: 0 | AU154: 0 | AV154: 0 | AW154: 0 | AX154: 0 | AY154: 0 | AZ154: 0 | BA154: 0 | BB154: 0 | BC154: 0 | BD154: 0 | BE154: 0 | BF154: 0 | BG154: 0
B155: Batteries | G155: ='1_KMA'!$I$21 -> 2024-06-30 | H155: ='1_KMA'!$I$19 -> $millions | J155: =J174*J$7 -> 0 | K155: 0 | L155: 0 | M155: 0 | N155: 0 | O155: 0 | P155: 0 | Q155: 0 | R155: 0 | S155: 0 | T155: 0 | U155: 0 | V155: 0 | W155: 0 | X155: 0 | Y155: 0 | Z155: 0 | AA155: 0 | AB155: 0 | AC155: 0 | AD155: 0 | AE155: 0 | AF155: 0 | AG155: 0 | AH155: 0 | AI155: 0 | AJ155: 0 | AK155: 0 | AL155: 0 | AM155: 0 | AN155: 0 | AO155: 0 | AP155: =AP174*AP$7 -> 0 | AQ155: 0 | AR155: 0 | AS155: 0 | AT155: 0 | AU155: 0 | AV155: 0 | AW155: 0 | AX155: 0 | AY155: 0 | AZ155: 0 | BA155: 0 | BB155: 0 | BC155: 0 | BD155: 0 | BE155: 0 | BF155: 0 | BG155: 0
B156: =B175 -> Others | G156: ='1_KMA'!$I$21 -> 2024-06-30 | H156: ='1_KMA'!$I$19 -> $millions | J156: =J175*J$7 -> 0 | K156: 0 | L156: 0 | M156: 0 | N156: 0 | O156: 0 | P156: -373 | Q156: -440 | R156: -658 | S156: -972 | T156: -972 | U156: -972 | V156: -972 | W156: -972 | X156: -972 | Y156: -972 | Z156: -972 | AA156: -972 | AB156: -972 | AC156: -972 | AD156: -972 | AE156: -972 | AF156: -972 | AG156: -972 | AH156: -972 | AI156: -972 | AJ156: -972 | AK156: -972 | AL156: -972 | AM156: -972 | AN156: -972 | AO156: -972 | AP156: =AP175*AP$7 -> -972 | AQ156: -972 | AR156: -972 | AS156: -972 | AT156: -972 | AU156: -972 | AV156: -972 | AW156: -972 | AX156: -972 | AY156: -972 | AZ156: -972 | BA156: -972 | BB156: -972 | BC156: -972 | BD156: -972 | BE156: -972 | BF156: -972 | BG156: -972
B157: ='3_BC'!B176 -> Total | G157: ='1_KMA'!$I$21 -> 2024-06-30 | H157: ='1_KMA'!$I$19 -> $millions | J157: =J176*J$7 -> 0 | K157: 0 | L157: 0 | M157: 0 | N157: 0 | O157: 0 | P157: -373 | Q157: -440 | R157: -658 | S157: -972 | T157: -972 | U157: -972 | V157: -972 | W157: -972 | X157: -972 | Y157: -972 | Z157: -972 | AA157: -972 | AB157: -972 | AC157: -972 | AD157: -972 | AE157: -972 | AF157: -972 | AG157: -972 | AH157: -972 | AI157: -972 | AJ157: -972 | AK157: -972 | AL157: -972 | AM157: -972 | AN157: -972 | AO157: -972 | AP157: =AP176*AP$7 -> -972 | AQ157: -972 | AR157: -972 | AS157: -972 | AT157: -972 | AU157: -972 | AV157: -972 | AW157: -972 | AX157: -972 | AY157: -972 | AZ157: -972 | BA157: -972 | BB157: -972 | BC157: -972 | BD157: -972 | BE157: -972 | BF157: -972 | BG157: -972
B159: Undiscounted | D159: ="("&TEXT('1_KMA'!$I$20,"dd-mmm-yy")&" dollars)" -> (30-Jun-24 dollars)
B161: Costs
G163: $ Basis Reminder | H163: $ Reminder
B164: Net Capex | G164: ='1_KMA'!$I$20 -> 2024-06-30 | H164: ='1_KMA'!$I$19 -> $millions | J164: =J52*Controls!$F$23 -> 0 | K164: =K52*Controls!$F$23 -> 0 | L164: =L52*Controls!$F$23 -> 0 | M164: =M52*Controls!$F$23 -> 0 | N164: =N52*Controls!$F$23 -> 0 | O164: =O52*Controls!$F$23 -> 0 | P164: =P52*Controls!$F$23 -> 0 | Q164: =Q52*Controls!$F$23 -> 0 | R164: =R52*Controls!$F$23 -> 0 | S164: =S52*Controls!$F$23 -> 0 | T164: =T52*Controls!$F$23 -> 0 | U164: =U52*Controls!$F$23 -> 0 | V164: =V52*Controls!$F$23 -> 0 | W164: =W52*Controls!$F$23 -> 0 | X164: =X52*Controls!$F$23 -> 0 | Y164: =Y52*Controls!$F$23 -> 0 | Z164: =Z52*Controls!$F$23 -> 0 | AA164: =AA52*Controls!$F$23 -> 0 | AB164: =AB52*Controls!$F$23 -> 0 | AC164: =AC52*Controls!$F$23 -> 0 | AD164: =AD52*Controls!$F$23 -> 0 | AE164: =AE52*Controls!$F$23 -> 0 | AF164: =AF52*Controls!$F$23 -> 0 | AG164: =AG52*Controls!$F$23 -> 0 | AH164: =AH52*Controls!$F$23 -> 0 | AI164: =AI52*Controls!$F$23 -> 0 | AJ164: =AJ52*Controls!$F$23 -> 0 | AK164: =AK52*Controls!$F$23 -> 0 | AL164: =AL52*Controls!$F$23 -> 0 | AM164: =AM52*Controls!$F$23 -> 0 | AN164: =AN52*Controls!$F$23 -> 0 | AO164: =AO52*Controls!$F$23 -> 0 | AP164: =AP52*Controls!$F$23 -> 0 | AQ164: =AQ52*Controls!$F$23 -> 0 | AR164: =AR52*Controls!$F$23 -> 0 | AS164: =AS52*Controls!$F$23 -> 0 | AT164: =AT52*Controls!$F$23 -> 0 | AU164: =AU52*Controls!$F$23 -> 0 | AV164: =AV52*Controls!$F$23 -> 0 | AW164: =AW52*Controls!$F$23 -> 0 | AX164: =AX52*Controls!$F$23 -> 0 | AY164: =AY52*Controls!$F$23 -> 0 | AZ164: =AZ52*Controls!$F$23 -> 0 | BA164: =BA52*Controls!$F$23 -> 0 | BB164: =BB52*Controls!$F$23 -> 0 | BC164: =BC52*Controls!$F$23 -> 0 | BD164: =BD52*Controls!$F$23 -> 0 | BE164: =BE52*Controls!$F$23 -> 0 | BF164: =BF52*Controls!$F$23 -> 0 | BG164: =BG52*Controls!$F$23 -> 0
B165: Opex | G165: ='1_KMA'!$I$20 -> 2024-06-30 | H165: ='1_KMA'!$I$19 -> $millions | J165: =J53*Controls!$F$23 -> 0.318112 | K165: =K53*Controls!$F$23 -> 0.416408 | L165: =L53*Controls!$F$23 -> 0.513426 | M165: =M53*Controls!$F$23 -> 0.606184 | N165: =N53*Controls!$F$23 -> 0.700646 | O165: =O53*Controls!$F$23 -> 0.795534 | P165: =P53*Controls!$F$23 -> 0.887866 | Q165: =Q53*Controls!$F$23 -> 0.981476 | R165: =R53*Controls!$F$23 -> 1.07466 | S165: =S53*Controls!$F$23 -> 1.165714 | T165: =T53*Controls!$F$23 -> 1.165714 | U165: =U53*Controls!$F$23 -> 1.165714 | V165: =V53*Controls!$F$23 -> 1.165714 | W165: =W53*Controls!$F$23 -> 1.165714 | X165: =X53*Controls!$F$23 -> 1.165714 | Y165: =Y53*Controls!$F$23 -> 1.165714 | Z165: =Z53*Controls!$F$23 -> 1.165714 | AA165: =AA53*Controls!$F$23 -> 1.165714 | AB165: =AB53*Controls!$F$23 -> 1.165714 | AC165: =AC53*Controls!$F$23 -> 1.165714 | AD165: =AD53*Controls!$F$23 -> 1.165714 | AE165: =AE53*Controls!$F$23 -> 1.165714 | AF165: =AF53*Controls!$F$23 -> 1.165714 | AG165: =AG53*Controls!$F$23 -> 1.165714 | AH165: =AH53*Controls!$F$23 -> 1.165714 | AI165: =AI53*Controls!$F$23 -> 1.165714 | AJ165: =AJ53*Controls!$F$23 -> 1.165714 | AK165: =AK53*Controls!$F$23 -> 1.165714 | AL165: =AL53*Controls!$F$23 -> 1.165714 | AM165: =AM53*Controls!$F$23 -> 1.165714 | AN165: =AN53*Controls!$F$23 -> 1.165714 | AO165: =AO53*Controls!$F$23 -> 1.165714 | AP165: =AP53*Controls!$F$23 -> 1.165714 | AQ165: =AQ53*Controls!$F$23 -> 1.165714 | AR165: =AR53*Controls!$F$23 -> 1.165714 | AS165: =AS53*Controls!$F$23 -> 1.165714 | AT165: =AT53*Controls!$F$23 -> 1.165714 | AU165: =AU53*Controls!$F$23 -> 1.165714 | AV165: =AV53*Controls!$F$23 -> 1.165714 | AW165: =AW53*Controls!$F$23 -> 1.165714 | AX165: =AX53*Controls!$F$23 -> 1.165714 | AY165: =AY53*Controls!$F$23 -> 1.165714 | AZ165: =AZ53*Controls!$F$23 -> 1.165714 | BA165: =BA53*Controls!$F$23 -> 1.165714 | BB165: =BB53*Controls!$F$23 -> 1.165714 | BC165: =BC53*Controls!$F$23 -> 1.165714 | BD165: =BD53*Controls!$F$23 -> 1.165714 | BE165: =BE53*Controls!$F$23 -> 1.165714 | BF165: =BF53*Controls!$F$23 -> 1.165714 | BG165: =BG53*Controls!$F$23 -> 1.165714
B166: Total | G166: ='1_KMA'!$I$20 -> 2024-06-30 | H166: ='1_KMA'!$I$19 -> $millions | J166: =SUM(J164:J165) -> 0.318112 | K166: =SUM(K164:K165) -> 0.416408 | L166: 0.513426 | M166: 0.606184 | N166: 0.700646 | O166: 0.795534 | P166: 0.887866 | Q166: 0.981476 | R166: 1.07466 | S166: 1.165714 | T166: 1.165714 | U166: 1.165714 | V166: 1.165714 | W166: 1.165714 | X166: 1.165714 | Y166: 1.165714 | Z166: 1.165714 | AA166: 1.165714 | AB166: 1.165714 | AC166: 1.165714 | AD166: 1.165714 | AE166: 1.165714 | AF166: 1.165714 | AG166: 1.165714 | AH166: 1.165714 | AI166: 1.165714 | AJ166: 1.165714 | AK166: 1.165714 | AL166: 1.165714 | AM166: 1.165714 | AN166: 1.165714 | AO166: 1.165714 | AP166: 1.165714 | AQ166: 1.165714 | AR166: 1.165714 | AS166: 1.165714 | AT166: 1.165714 | AU166: 1.165714 | AV166: 1.165714 | AW166: 1.165714 | AX166: 1.165714 | AY166: 1.165714 | AZ166: 1.165714 | BA166: 1.165714 | BB166: 1.165714 | BC166: 1.165714 | BD166: 1.165714 | BE166: 1.165714 | BF166: 1.165714 | BG166: 1.165714
B168: Benefits
G170: $ Basis Reminder | H170: $ Reminder
B171: ='2.1_BAU'!$B$16 -> Value of EUE | G171: ='1_KMA'!$I$20 -> 2024-06-30 | H171: ='1_KMA'!$I$19 -> $millions | J171: =J59 -> 0 | K171: =K59 -> 0 | L171: 0 | M171: 0 | N171: =N59 -> 0 | O171: 0 | P171: 0 | Q171: 0 | R171: 0 | S171: 0 | T171: 0 | U171: 0 | V171: 0 | W171: 0 | X171: 0 | Y171: 0 | Z171: 0 | AA171: 0 | AB171: 0 | AC171: 0 | AD171: 0 | AE171: 0 | AF171: 0 | AG171: 0 | AH171: 0 | AI171: 0 | AJ171: 0 | AK171: 0 | AL171: 0 | AM171: 0 | AN171: 0 | AO171: 0 | AP171: 0 | AQ171: 0 | AR171: 0 | AS171: 0 | AT171: 0 | AU171: 0 | AV171: 0 | AW171: 0 | AX171: 0 | AY171: 0 | AZ171: 0 | BA171: 0 | BB171: 0 | BC171: 0 | BD171: 0 | BE171: 0 | BF171: 0 | BG171: 0
B172: ='2.1_BAU'!$B$17 -> Reliability | G172: ='1_KMA'!$I$20 -> 2024-06-30 | H172: ='1_KMA'!$I$19 -> $millions | J172: =J60 -> 0 | K172: =K60 -> 0 | L172: 0 | M172: 0 | N172: =N60 -> 0 | O172: 0 | P172: 0 | Q172: 0 | R172: 0 | S172: 0 | T172: 0 | U172: 0 | V172: 0 | W172: 0 | X172: 0 | Y172: 0 | Z172: 0 | AA172: 0 | AB172: 0 | AC172: 0 | AD172: 0 | AE172: 0 | AF172: 0 | AG172: 0 | AH172: 0 | AI172: 0 | AJ172: 0 | AK172: 0 | AL172: 0 | AM172: 0 | AN172: 0 | AO172: 0 | AP172: 0 | AQ172: 0 | AR172: 0 | AS172: 0 | AT172: 0 | AU172: 0 | AV172: 0 | AW172: 0 | AX172: 0 | AY172: 0 | AZ172: 0 | BA172: 0 | BB172: 0 | BC172: 0 | BD172: 0 | BE172: 0 | BF172: 0 | BG172: 0
B173: ='2.1_BAU'!$B$18 -> Resilience | G173: ='1_KMA'!$I$20 -> 2024-06-30 | H173: ='1_KMA'!$I$19 -> $millions | J173: =J61 -> 0 | K173: =K61 -> 0 | L173: 0 | M173: 0 | N173: 0 | O173: 0 | P173: 0 | Q173: 0 | R173: 0 | S173: 0 | T173: 0 | U173: 0 | V173: 0 | W173: 0 | X173: 0 | Y173: 0 | Z173: 0 | AA173: 0 | AB173: 0 | AC173: 0 | AD173: 0 | AE173: 0 | AF173: 0 | AG173: 0 | AH173: 0 | AI173: 0 | AJ173: 0 | AK173: 0 | AL173: 0 | AM173: 0 | AN173: 0 | AO173: 0 | AP173: 0 | AQ173: 0 | AR173: 0 | AS173: 0 | AT173: 0 | AU173: 0 | AV173: 0 | AW173: 0 | AX173: 0 | AY173: 0 | AZ173: 0 | BA173: 0 | BB173: 0 | BC173: 0 | BD173: 0 | BE173: 0 | BF173: 0 | BG173: 0
B174: ='2.1_BAU'!$B$19 -> Batteries | G174: ='1_KMA'!$I$20 -> 2024-06-30 | H174: ='1_KMA'!$I$19 -> $millions | J174: =J62 -> 0 | K174: =K62 -> 0 | L174: 0 | M174: 0 | N174: 0 | O174: 0 | P174: 0 | Q174: 0 | R174: 0 | S174: 0 | T174: 0 | U174: 0 | V174: 0 | W174: 0 | X174: 0 | Y174: 0 | Z174: 0 | AA174: 0 | AB174: 0 | AC174: 0 | AD174: 0 | AE174: 0 | AF174: 0 | AG174: 0 | AH174: 0 | AI174: 0 | AJ174: 0 | AK174: 0 | AL174: 0 | AM174: 0 | AN174: 0 | AO174: 0 | AP174: 0 | AQ174: 0 | AR174: 0 | AS174: 0 | AT174: 0 | AU174: 0 | AV174: 0 | AW174: 0 | AX174: 0 | AY174: 0 | AZ174: 0 | BA174: 0 | BB174: 0 | BC174: 0 | BD174: 0 | BE174: 0 | BF174: 0 | BG174: 0
B175: ='2.1_BAU'!$B$20 -> Others | G175: ='1_KMA'!$I$20 -> 2024-06-30 | H175: ='1_KMA'!$I$19 -> $millions | J175: =J63 -> 0 | K175: =K63 -> 0 | L175: 0 | M175: 0 | N175: 0 | O175: 0 | P175: -373 | Q175: -440 | R175: -658 | S175: -972 | T175: -972 | U175: -972 | V175: -972 | W175: -972 | X175: -972 | Y175: -972 | Z175: -972 | AA175: -972 | AB175: -972 | AC175: -972 | AD175: -972 | AE175: -972 | AF175: -972 | AG175: -972 | AH175: -972 | AI175: -972 | AJ175: -972 | AK175: -972 | AL175: -972 | AM175: -972 | AN175: -972 | AO175: -972 | AP175: -972 | AQ175: -972 | AR175: -972 | AS175: -972 | AT175: -972 | AU175: -972 | AV175: -972 | AW175: -972 | AX175: -972 | AY175: -972 | AZ175: -972 | BA175: -972 | BB175: -972 | BC175: -972 | BD175: -972 | BE175: -972 | BF175: -972 | BG175: -972
B176: Total | G176: ='1_KMA'!$I$20 -> 2024-06-30 | H176: ='1_KMA'!$I$19 -> $millions | J176: =SUM(J171:J175) -> 0 | K176: =SUM(K171:K175) -> 0 | L176: =SUM(L171:L175) -> 0 | M176: =SUM(M171:M175) -> 0 | N176: =SUM(N171:N175) -> 0 | O176: 0 | P176: -373 | Q176: -440 | R176: -658 | S176: -972 | T176: -972 | U176: -972 | V176: -972 | W176: -972 | X176: -972 | Y176: -972 | Z176: -972 | AA176: -972 | AB176: -972 | AC176: -972 | AD176: -972 | AE176: -972 | AF176: -972 | AG176: -972 | AH176: -972 | AI176: -972 | AJ176: -972 | AK176: -972 | AL176: -972 | AM176: -972 | AN176: -972 | AO176: -972 | AP176: -972 | AQ176: -972 | AR176: -972 | AS176: -972 | AT176: -972 | AU176: -972 | AV176: -972 | AW176: -972 | AX176: -972 | AY176: -972 | AZ176: -972 | BA176: -972 | BB176: -972 | BC176: -972 | BD176: -972 | BE176: -972 | BF176: -972 | BG176: -972
B178: =Controls!$B$24&" "&Controls!$C$24&" (+"&TEXT(Controls!$F$24-1,"0.00%")&")" -> Sensitivity Scenario 3 Higher costs (+15.00%)
B179: Summary
B181: WACC | J181: =Controls!$E$24 -> 0.0556 | K181: =Controls!$E$24 -> 0.0556 | L181: =Controls!$E$24 -> 0.0556 | M181: =Controls!$E$24 -> 0.0556 | N181: =Controls!$E$24 -> 0.0556 | O181: =Controls!$E$24 -> 0.0556 | P181: =Controls!$E$24 -> 0.0556 | Q181: =Controls!$E$24 -> 0.0556 | R181: =Controls!$E$24 -> 0.0556 | S181: =Controls!$E$24 -> 0.0556 | T181: =Controls!$E$24 -> 0.0556 | U181: =Controls!$E$24 -> 0.0556 | V181: =Controls!$E$24 -> 0.0556 | W181: =Controls!$E$24 -> 0.0556 | X181: =Controls!$E$24 -> 0.0556 | Y181: =Controls!$E$24 -> 0.0556 | Z181: =Controls!$E$24 -> 0.0556 | AA181: =Controls!$E$24 -> 0.0556 | AB181: =Controls!$E$24 -> 0.0556 | AC181: =Controls!$E$24 -> 0.0556 | AD181: =Controls!$E$24 -> 0.0556 | AE181: =Controls!$E$24 -> 0.0556 | AF181: =Controls!$E$24 -> 0.0556 | AG181: =Controls!$E$24 -> 0.0556 | AH181: =Controls!$E$24 -> 0.0556 | AI181: =Controls!$E$24 -> 0.0556 | AJ181: =Controls!$E$24 -> 0.0556 | AK181: =Controls!$E$24 -> 0.0556 | AL181: =Controls!$E$24 -> 0.0556 | AM181: =Controls!$E$24 -> 0.0556 | AN181: =Controls!$E$24 -> 0.0556 | AO181: =Controls!$E$24 -> 0.0556 | AP181: =Controls!$E$24 -> 0.0556 | AQ181: =Controls!$E$24 -> 0.0556 | AR181: =Controls!$E$24 -> 0.0556 | AS181: =Controls!$E$24 -> 0.0556 | AT181: =Controls!$E$24 -> 0.0556 | AU181: =Controls!$E$24 -> 0.0556 | AV181: =Controls!$E$24 -> 0.0556 | AW181: =Controls!$E$24 -> 0.0556 | AX181: =Controls!$E$24 -> 0.0556 | AY181: =Controls!$E$24 -> 0.0556 | AZ181: =Controls!$E$24 -> 0.0556 | BA181: =Controls!$E$24 -> 0.0556 | BB181: =Controls!$E$24 -> 0.0556 | BC181: =Controls!$E$24 -> 0.0556 | BD181: =Controls!$E$24 -> 0.0556 | BE181: =Controls!$E$24 -> 0.0556 | BF181: =Controls!$E$24 -> 0.0556 | BG181: =Controls!$E$24 -> 0.0556
B182: Deflator (interim calculation) | J182: 1 | K182: =J182*(1+K181) -> 1.0556 | L182: =K182*(1+L181) -> 1.11429136 | M182: =L182*(1+M181) -> 1.17624596 | N182: =M182*(1+N181) -> 1.241645235 | O182: =N182*(1+O181) -> 1.31068071 | P182: =O182*(1+P181) -> 1.383554558 | Q182: =P182*(1+Q181) -> 1.460480191 | R182: =Q182*(1+R181) -> 1.54168289 | S182: =R182*(1+S181) -> 1.627400458 | T182: =S182*(1+T181) -> 1.717883924 | U182: =T182*(1+U181) -> 1.81339827 | V182: =U182*(1+V181) -> 1.914223214 | W182: =V182*(1+W181) -> 2.020654024 | X182: =W182*(1+X181) -> 2.133002388 | Y182: =X182*(1+Y181) -> 2.251597321 | Z182: =Y182*(1+Z181) -> 2.376786132 | AA182: =Z182*(1+AA181) -> 2.508935441 | AB182: =AA182*(1+AB181) -> 2.648432251 | AC182: =AB182*(1+AC181) -> 2.795685084 | AD182: =AC182*(1+AD181) -> 2.951125175 | AE182: =AD182*(1+AE181) -> 3.115207735 | AF182: =AE182*(1+AF181) -> 3.288413285 | AG182: =AF182*(1+AG181) -> 3.471249064 | AH182: =AG182*(1+AH181) -> 3.664250512 | AI182: =AH182*(1+AI181) -> 3.86798284 | AJ182: =AI182*(1+AJ181) -> 4.083042686 | AK182: =AJ182*(1+AK181) -> 4.310059859 | AL182: =AK182*(1+AL181) -> 4.549699187 | AM182: =AL182*(1+AM181) -> 4.802662462 | AN182: =AM182*(1+AN181) -> 5.069690495 | AO182: =AN182*(1+AO181) -> 5.351565287 | AP182: =AO182*(1+AP181) -> 5.649112317 | AQ182: =AP182*(1+AQ181) -> 5.963202961 | AR182: =AQ182*(1+AR181) -> 6.294757046 | AS182: =AR182*(1+AS181) -> 6.644745538 | AT182: =AS182*(1+AT181) -> 7.01419339 | AU182: =AT182*(1+AU181) -> 7.404182542 | AV182: =AU182*(1+AV181) -> 7.815855092 | AW182: =AV182*(1+AW181) -> 8.250416635 | AX182: =AW182*(1+AX181) -> 8.709139799 | AY182: =AX182*(1+AY181) -> 9.193367972 | AZ182: =AY182*(1+AZ181) -> 9.704519232 | BA182: =AZ182*(1+BA181) -> 10.2440905 | BB182: =BA182*(1+BB181) -> 10.81366193 | BC182: =BB182*(1+BC181) -> 11.41490154 | BD182: =BC182*(1+BD181) -> 12.04957006 | BE182: =BD182*(1+BE181) -> 12.71952616 | BF182: =BE182*(1+BF181) -> 13.42673181 | BG182: =BF182*(1+BG181) -> 14.1732581
B183: Deflator | J183: =1/J182 -> 1 | K183: =1/K182 -> 0.9473285335 | L183: =1/L182 -> 0.8974313505 | M183: =1/M182 -> 0.8501623252 | N183: =1/N182 -> 0.8053830288 | O183: =1/O182 -> 0.7629623236 | P183: 0.7227759791 | Q183: 0.6847063084 | R183: 0.648641823 | S183: 0.614476907 | T183: 0.5821115072 | U183: 0.5514508405 | V183: 0.522405116 | W183: 0.4948892725 | X183: 0.4688227288 | Y183: 0.4441291481 | Z183: 0.4207362146 | AA183: 0.3985754212 | AB183: 0.3775818692 | AC183: 0.3576940785 | AD183: 0.3388538068 | AE183: 0.3210058799 | AF183: 0.3040980295 | AG183: 0.2880807403 | AH183: 0.2729071052 | AI183: 0.2585326878 | AJ183: 0.244915392 | AK183: 0.2320153392 | AL183: 0.219794751 | AM183: 0.2082178391 | AN183: 0.1972507002 | AO183: 0.1868612166 | AP183: 0.1770189623 | AQ183: 0.1676951139 | AR183: 0.1588623664 | AS183: 0.1504948526 | AT183: 0.142568068 | AU183: 0.1350587988 | AV183: 0.1279450538 | AW183: 0.1212060002 | AX183: 0.1148219024 | AY183: 0.1087740644 | AZ183: 0.1030447749 | BA183: 0.09761725552 | BB183: 0.09247561152 | BC183: 0.08760478545 | BD183: 0.08299051293 | BE183: 0.07861928091 | BF183: 0.07447828809 | BG183: 0.07055540744
B185: Totex sought for EDPR FY27-31 (undiscounted) | G185: ="("&TEXT('1_KMA'!$I$21,"dd-mmm-yy")&" Dollars)" -> (30-Jun-24 Dollars)
C186: Net Capital Expenditure | G186: =SUM(J186:BG186) -> 0 | J186: =-J201*J$1 -> 0 | K186: =-K201*K$1 -> 0 | L186: =-L201*L$1 -> 0 | M186: =-M201*M$1 -> 0 | N186: =-N201*N$1 -> 0 | O186: 0 | P186: 0 | Q186: 0 | R186: 0 | S186: 0 | T186: 0 | U186: 0 | V186: 0 | W186: 0 | X186: 0 | Y186: 0 | Z186: 0 | AA186: 0 | AB186: 0 | AC186: 0 | AD186: 0 | AE186: 0 | AF186: 0 | AG186: 0 | AH186: 0 | AI186: 0 | AJ186: 0 | AK186: 0 | AL186: 0 | AM186: 0 | AN186: 0 | AO186: 0 | AP186: 0 | AQ186: 0 | AR186: 0 | AS186: 0 | AT186: 0 | AU186: 0 | AV186: 0 | AW186: 0 | AX186: 0 | AY186: 0 | AZ186: 0 | BA186: 0 | BB186: 0 | BC186: 0 | BD186: 0 | BE186: 0 | BF186: 0 | BG186: 0
C187: Operating Expenditure | G187: =SUM(J187:BG187) -> -2.9379924 | J187: =-J202*J$1 -> -0.3658288 | K187: =-K202*K$1 -> -0.4788692 | L187: =-L202*L$1 -> -0.5904399 | M187: -0.6971116 | N187: -0.8057429 | O187: 0 | P187: 0 | Q187: 0 | R187: 0 | S187: 0 | T187: 0 | U187: 0 | V187: 0 | W187: 0 | X187: 0 | Y187: 0 | Z187: 0 | AA187: 0 | AB187: 0 | AC187: 0 | AD187: 0 | AE187: 0 | AF187: 0 | AG187: 0 | AH187: 0 | AI187: 0 | AJ187: 0 | AK187: 0 | AL187: 0 | AM187: 0 | AN187: 0 | AO187: 0 | AP187: 0 | AQ187: 0 | AR187: 0 | AS187: 0 | AT187: 0 | AU187: 0 | AV187: 0 | AW187: 0 | AX187: 0 | AY187: 0 | AZ187: 0 | BA187: 0 | BB187: 0 | BC187: 0 | BD187: 0 | BE187: 0 | BF187: 0 | BG187: 0
C188: Totex | G188: =SUM(G186:G187) -> -2.9379924 | J188: =SUM(J186:J187) -> -0.3658288 | K188: =SUM(K186:K187) -> -0.4788692 | L188: =SUM(L186:L187) -> -0.5904399 | M188: -0.6971116 | N188: -0.8057429 | O188: 0 | P188: 0 | Q188: 0 | R188: 0 | S188: 0 | T188: 0 | U188: 0 | V188: 0 | W188: 0 | X188: 0 | Y188: 0 | Z188: 0 | AA188: 0 | AB188: 0 | AC188: 0 | AD188: 0 | AE188: 0 | AF188: 0 | AG188: 0 | AH188: 0 | AI188: 0 | AJ188: 0 | AK188: 0 | AL188: 0 | AM188: 0 | AN188: 0 | AO188: 0 | AP188: 0 | AQ188: 0 | AR188: 0 | AS188: 0 | AT188: 0 | AU188: 0 | AV188: 0 | AW188: 0 | AX188: 0 | AY188: 0 | AZ188: 0 | BA188: 0 | BB188: 0 | BC188: 0 | BD188: 0 | BE188: 0 | BF188: 0 | BG188: 0
B190: PV over full assessment period to establish the preferred option (discounted) | G190: ="("&TEXT('1_KMA'!$I$21,"dd-mmm-yy")&" Dollars)" -> (30-Jun-24 Dollars)
C191: Net Capital Expenditure | G191: =SUM(J191:BG191) -> 0 | J191: =-(J201)*J$183*J$8 -> 0 | K191: =-(K201)*K$183*K$8 -> 0 | L191: 0 | M191: 0 | N191: 0 | O191: 0 | P191: 0 | Q191: 0 | R191: 0 | S191: 0 | T191: 0 | U191: 0 | V191: 0 | W191: 0 | X191: 0 | Y191: 0 | Z191: 0 | AA191: 0 | AB191: 0 | AC191: 0 | AD191: 0 | AE191: 0 | AF191: 0 | AG191: 0 | AH191: 0 | AI191: 0 | AJ191: 0 | AK191: 0 | AL191: 0 | AM191: 0 | AN191: 0 | AO191: 0 | AP191: 0 | AQ191: 0 | AR191: 0 | AS191: 0 | AT191: 0 | AU191: 0 | AV191: 0 | AW191: 0 | AX191: 0 | AY191: 0 | AZ191: 0 | BA191: 0 | BB191: 0 | BC191: 0 | BD191: =-(BD201)*BD$183*BD$8 -> 0 | BE191: 0 | BF191: 0 | BG191: 0
C192: Operating Expenditure | G192: =SUM(J192:BG192) -> -18.31839495 | J192: =-(J202)*J$183*J$8 -> -0.3658288 | K192: =-(K202)*K$183*K$8 -> -0.453646457 | L192: -0.5298792768 | M192: -0.5926580188 | N192: -0.6489316572 | O192: -0.6980068395 | P192: -0.7379874501 | Q192: -0.77282623 | R192: -0.8016298348 | S192: -0.8237499831 | T192: -0.7803618635 | U192: -0.7392590598 | V192: -0.700321201 | W192: -0.6634342564 | X192: -0.6284902012 | Y192: -0.5953867006 | Z192: -0.56402681 | AA192: -0.5343186908 | AB192: -0.5061753418 | AC192: -0.4795143442 | AD192: -0.4542576205 | AE192: -0.4303312055 | AF192: -0.4076650299 | AG192: -0.3861927149 | AH192: -0.3658513783 | AI192: -0.3465814497 | AJ192: -0.3283264965 | AK192: -0.3110330584 | AL192: -0.2946504911 | AM192: -0.2791308177 | AN192: -0.2644285882 | AO192: -0.2505007466 | AP192: -0.237306505 | AQ192: -0.2248072233 | AR192: -0.2129662972 | AS192: -0.20174905 | AT192: -0.1911226317 | AU192: -0.1810559224 | AV192: -0.1715194415 | AW192: -0.162485261 | AX192: 0 | AY192: 0 | AZ192: 0 | BA192: 0 | BB192: 0 | BC192: 0 | BD192: =-(BD202)*BD$183*BD$8 -> 0 | BE192: 0 | BF192: 0 | BG192: 0
C193: Net Benefits | G193: =SUM(J193:BG193) -> -10218.31318 | J193: =(J213)*J$183*J$8 -> 0 | K193: =(K213)*K$183*K$8 -> 0 | L193: 0 | M193: 0 | N193: 0 | O193: 0 | P193: -269.5954402 | Q193: -301.2707757 | R193: -426.8063196 | S193: -597.2715536 | T193: -565.812385 | U193: -536.0102169 | V193: -507.7777728 | W193: -481.0323728 | X193: -455.6956923 | Y193: -431.693532 | Z193: -408.9556006 | AA193: -387.4153094 | AB193: -367.0095769 | AC193: -347.6786443 | AD193: -329.3659002 | AE193: -312.0177153 | AF193: -295.5832846 | AG193: -280.0144796 | AH193: -265.2657063 | AI193: -251.2937725 | AJ193: -238.057761 | AK193: -225.5189097 | AL193: -213.640498 | AM193: -202.3877396 | AN193: -191.7276806 | AO193: -181.6291025 | AP193: -172.0624313 | AQ193: -162.9996507 | AR193: -154.4142201 | AS193: -146.2809967 | AT193: -138.5761621 | AU193: -131.2771524 | AV193: -124.3625923 | AW193: -117.8122322 | AX193: 0 | AY193: 0 | AZ193: 0 | BA193: 0 | BB193: 0 | BC193: 0 | BD193: =(BD213)*BD$183*BD$8 -> 0 | BE193: 0 | BF193: 0 | BG193: 0
B194: Total Present Value | G194: =SUM(J194:BG194) -> -10236.63157 | J194: =SUM(J191:J193) -> -0.3658288 | K194: =SUM(K191:K193) -> -0.453646457 | L194: -0.5298792768 | M194: -0.5926580188 | N194: -0.6489316572 | O194: -0.6980068395 | P194: -270.3334277 | Q194: -302.0436019 | R194: -427.6079494 | S194: -598.0953036 | T194: -566.5927469 | U194: -536.749476 | V194: -508.478094 | W194: -481.6958071 | X194: -456.3241825 | Y194: -432.2889187 | Z194: -409.5196274 | AA194: -387.9496281 | AB194: -367.5157522 | AC194: -348.1581586 | AD194: -329.8201578 | AE194: -312.4480465 | AF194: -295.9909497 | AG194: -280.4006723 | AH194: -265.6315577 | AI194: -251.640354 | AJ194: -238.3860875 | AK194: -225.8299427 | AL194: -213.9351485 | AM194: -202.6668705 | AN194: -191.9921092 | AO194: -181.8796032 | AP194: -172.2997378 | AQ194: -163.224458 | AR194: -154.6271864 | AS194: -146.4827457 | AT194: -138.7672847 | AU194: -131.4582083 | AV194: -124.5341117 | AW194: -117.9747174 | AX194: 0 | AY194: 0 | AZ194: 0 | BA194: 0 | BB194: 0 | BC194: 0 | BD194: 0 | BE194: 0 | BF194: 0 | BG194: 0
B196: Undiscounted | D196: ="("&TEXT('1_KMA'!$I$21,"dd-mmm-yy")&" dollars)" -> (30-Jun-24 dollars)
B198: Costs
G200: $ Basis Reminder | H200: $ Reminder
B201: Net Capex | G201: ='1_KMA'!$I$21 -> 2024-06-30 | H201: ='1_KMA'!$I$19 -> $millions | J201: =J220*J$7 -> 0 | K201: 0 | L201: 0 | M201: 0 | N201: 0 | O201: 0 | P201: 0 | Q201: 0 | R201: 0 | S201: 0 | T201: 0 | U201: 0 | V201: 0 | W201: 0 | X201: 0 | Y201: 0 | Z201: 0 | AA201: 0 | AB201: 0 | AC201: 0 | AD201: 0 | AE201: 0 | AF201: 0 | AG201: 0 | AH201: 0 | AI201: 0 | AJ201: 0 | AK201: 0 | AL201: 0 | AM201: 0 | AN201: 0 | AO201: 0 | AP201: =AP220*AP$7 -> 0 | AQ201: 0 | AR201: 0 | AS201: 0 | AT201: 0 | AU201: 0 | AV201: 0 | AW201: 0 | AX201: 0 | AY201: 0 | AZ201: 0 | BA201: 0 | BB201: 0 | BC201: 0 | BD201: 0 | BE201: 0 | BF201: 0 | BG201: 0
B202: Opex | G202: ='1_KMA'!$I$21 -> 2024-06-30 | H202: ='1_KMA'!$I$19 -> $millions | J202: =J221*J$7 -> 0.3658288 | K202: 0.4788692 | L202: 0.5904399 | M202: 0.6971116 | N202: 0.8057429 | O202: 0.9148641 | P202: 1.0210459 | Q202: 1.1286974 | R202: 1.235859 | S202: 1.3405711 | T202: 1.3405711 | U202: 1.3405711 | V202: 1.3405711 | W202: 1.3405711 | X202: 1.3405711 | Y202: 1.3405711 | Z202: 1.3405711 | AA202: 1.3405711 | AB202: 1.3405711 | AC202: 1.3405711 | AD202: 1.3405711 | AE202: 1.3405711 | AF202: 1.3405711 | AG202: 1.3405711 | AH202: 1.3405711 | AI202: 1.3405711 | AJ202: 1.3405711 | AK202: 1.3405711 | AL202: 1.3405711 | AM202: 1.3405711 | AN202: 1.3405711 | AO202: 1.3405711 | AP202: =AP221*AP$7 -> 1.3405711 | AQ202: 1.3405711 | AR202: 1.3405711 | AS202: 1.3405711 | AT202: 1.3405711 | AU202: 1.3405711 | AV202: 1.3405711 | AW202: 1.3405711 | AX202: 1.3405711 | AY202: 1.3405711 | AZ202: 1.3405711 | BA202: 1.3405711 | BB202: 1.3405711 | BC202: 1.3405711 | BD202: 1.3405711 | BE202: 1.3405711 | BF202: 1.3405711 | BG202: 1.3405711
B203: Total | G203: ='1_KMA'!$I$21 -> 2024-06-30 | H203: ='1_KMA'!$I$19 -> $millions | J203: =J222*J$7 -> 0.3658288 | K203: 0.4788692 | L203: 0.5904399 | M203: 0.6971116 | N203: 0.8057429 | O203: 0.9148641 | P203: 1.0210459 | Q203: 1.1286974 | R203: 1.235859 | S203: 1.3405711 | T203: 1.3405711 | U203: 1.3405711 | V203: 1.3405711 | W203: 1.3405711 | X203: 1.3405711 | Y203: 1.3405711 | Z203: 1.3405711 | AA203: 1.3405711 | AB203: 1.3405711 | AC203: 1.3405711 | AD203: 1.3405711 | AE203: 1.3405711 | AF203: 1.3405711 | AG203: 1.3405711 | AH203: 1.3405711 | AI203: 1.3405711 | AJ203: 1.3405711 | AK203: 1.3405711 | AL203: 1.3405711 | AM203: 1.3405711 | AN203: 1.3405711 | AO203: 1.3405711 | AP203: =AP222*AP$7 -> 1.3405711 | AQ203: 1.3405711 | AR203: 1.3405711 | AS203: 1.3405711 | AT203: 1.3405711 | AU203: 1.3405711 | AV203: 1.3405711 | AW203: 1.3405711 | AX203: 1.3405711 | AY203: 1.3405711 | AZ203: 1.3405711 | BA203: 1.3405711 | BB203: 1.3405711 | BC203: 1.3405711 | BD203: 1.3405711 | BE203: 1.3405711 | BF203: 1.3405711 | BG203: 1.3405711
B205: Benefits
G207: $ Basis Reminder | H207: $ Reminder
B208: =B227 -> Value of EUE | G208: ='1_KMA'!$I$21 -> 2024-06-30 | H208: ='1_KMA'!$I$19 -> $millions | J208: =J227*J$7 -> 0 | K208: 0 | L208: 0 | M208: 0 | N208: 0 | O208: 0 | P208: 0 | Q208: 0 | R208: 0 | S208: 0 | T208: 0 | U208: 0 | V208: 0 | W208: 0 | X208: 0 | Y208: 0 | Z208: 0 | AA208: 0 | AB208: 0 | AC208: 0 | AD208: 0 | AE208: 0 | AF208: 0 | AG208: 0 | AH208: 0 | AI208: 0 | AJ208: 0 | AK208: 0 | AL208: 0 | AM208: 0 | AN208: 0 | AO208: 0 | AP208: =AP227*AP$7 -> 0 | AQ208: 0 | AR208: 0 | AS208: 0 | AT208: 0 | AU208: 0 | AV208: 0 | AW208: 0 | AX208: 0 | AY208: 0 | AZ208: 0 | BA208: 0 | BB208: 0 | BC208: 0 | BD208: 0 | BE208: 0 | BF208: 0 | BG208: 0
B209: =B228 -> Reliability | G209: ='1_KMA'!$I$21 -> 2024-06-30 | H209: ='1_KMA'!$I$19 -> $millions | J209: =J228*J$7 -> 0 | K209: 0 | L209: 0 | M209: 0 | N209: 0 | O209: 0 | P209: 0 | Q209: 0 | R209: 0 | S209: 0 | T209: 0 | U209: 0 | V209: 0 | W209: 0 | X209: 0 | Y209: 0 | Z209: 0 | AA209: 0 | AB209: 0 | AC209: 0 | AD209: 0 | AE209: 0 | AF209: 0 | AG209: 0 | AH209: 0 | AI209: 0 | AJ209: 0 | AK209: 0 | AL209: 0 | AM209: 0 | AN209: 0 | AO209: 0 | AP209: =AP228*AP$7 -> 0 | AQ209: 0 | AR209: 0 | AS209: 0 | AT209: 0 | AU209: 0 | AV209: 0 | AW209: 0 | AX209: 0 | AY209: 0 | AZ209: 0 | BA209: 0 | BB209: 0 | BC209: 0 | BD209: 0 | BE209: 0 | BF209: 0 | BG209: 0
B210: Resilience | G210: ='1_KMA'!$I$21 -> 2024-06-30 | H210: ='1_KMA'!$I$19 -> $millions | J210: =J229*J$7 -> 0 | K210: 0 | L210: 0 | M210: 0 | N210: 0 | O210: 0 | P210: 0 | Q210: 0 | R210: 0 | S210: 0 | T210: 0 | U210: 0 | V210: 0 | W210: 0 | X210: 0 | Y210: 0 | Z210: 0 | AA210: 0 | AB210: 0 | AC210: 0 | AD210: 0 | AE210: 0 | AF210: 0 | AG210: 0 | AH210: 0 | AI210: 0 | AJ210: 0 | AK210: 0 | AL210: 0 | AM210: 0 | AN210: 0 | AO210: 0 | AP210: =AP229*AP$7 -> 0 | AQ210: 0 | AR210: 0 | AS210: 0 | AT210: 0 | AU210: 0 | AV210: 0 | AW210: 0 | AX210: 0 | AY210: 0 | AZ210: 0 | BA210: 0 | BB210: 0 | BC210: 0 | BD210: 0 | BE210: 0 | BF210: 0 | BG210: 0
B211: Batteries | G211: ='1_KMA'!$I$21 -> 2024-06-30 | H211: ='1_KMA'!$I$19 -> $millions | J211: =J230*J$7 -> 0 | K211: 0 | L211: 0 | M211: 0 | N211: 0 | O211: 0 | P211: 0 | Q211: 0 | R211: 0 | S211: 0 | T211: 0 | U211: 0 | V211: 0 | W211: 0 | X211: 0 | Y211: 0 | Z211: 0 | AA211: 0 | AB211: 0 | AC211: 0 | AD211: 0 | AE211: 0 | AF211: 0 | AG211: 0 | AH211: 0 | AI211: 0 | AJ211: 0 | AK211: 0 | AL211: 0 | AM211: 0 | AN211: 0 | AO211: 0 | AP211: =AP230*AP$7 -> 0 | AQ211: 0 | AR211: 0 | AS211: 0 | AT211: 0 | AU211: 0 | AV211: 0 | AW211: 0 | AX211: 0 | AY211: 0 | AZ211: 0 | BA211: 0 | BB211: 0 | BC211: 0 | BD211: 0 | BE211: 0 | BF211: 0 | BG211: 0
B212: Others | G212: ='1_KMA'!$I$21 -> 2024-06-30 | H212: ='1_KMA'!$I$19 -> $millions | J212: =J231*J$7 -> 0 | K212: 0 | L212: 0 | M212: 0 | N212: 0 | O212: 0 | P212: -373 | Q212: -440 | R212: -658 | S212: -972 | T212: -972 | U212: -972 | V212: -972 | W212: -972 | X212: -972 | Y212: -972 | Z212: -972 | AA212: -972 | AB212: -972 | AC212: -972 | AD212: -972 | AE212: -972 | AF212: -972 | AG212: -972 | AH212: -972 | AI212: -972 | AJ212: -972 | AK212: -972 | AL212: -972 | AM212: -972 | AN212: -972 | AO212: -972 | AP212: =AP231*AP$7 -> -972 | AQ212: -972 | AR212: -972 | AS212: -972 | AT212: -972 | AU212: -972 | AV212: -972 | AW212: -972 | AX212: -972 | AY212: -972 | AZ212: -972 | BA212: -972 | BB212: -972 | BC212: -972 | BD212: -972 | BE212: -972 | BF212: -972 | BG212: -972
B213: ='3_BC'!B232 -> Total | G213: ='1_KMA'!$I$21 -> 2024-06-30 | H213: ='1_KMA'!$I$19 -> $millions | J213: =J232*J$7 -> 0 | K213: 0 | L213: 0 | M213: 0 | N213: 0 | O213: 0 | P213: -373 | Q213: -440 | R213: -658 | S213: -972 | T213: -972 | U213: -972 | V213: -972 | W213: -972 | X213: -972 | Y213: -972 | Z213: -972 | AA213: -972 | AB213: -972 | AC213: -972 | AD213: -972 | AE213: -972 | AF213: -972 | AG213: -972 | AH213: -972 | AI213: -972 | AJ213: -972 | AK213: -972 | AL213: -972 | AM213: -972 | AN213: -972 | AO213: -972 | AP213: =AP232*AP$7 -> -972 | AQ213: -972 | AR213: -972 | AS213: -972 | AT213: -972 | AU213: -972 | AV213: -972 | AW213: -972 | AX213: -972 | AY213: -972 | AZ213: -972 | BA213: -972 | BB213: -972 | BC213: -972 | BD213: -972 | BE213: -972 | BF213: -972 | BG213: -972
B215: Undiscounted | D215: ="("&TEXT('1_KMA'!$I$20,"dd-mmm-yy")&" dollars)" -> (30-Jun-24 dollars)
B217: Costs
G219: $ Basis Reminder | H219: $ Reminder
B220: Net Capex | G220: ='1_KMA'!$I$20 -> 2024-06-30 | H220: ='1_KMA'!$I$19 -> $millions | J220: =J52*Controls!$F$24 -> 0 | K220: =K52*Controls!$F$24 -> 0 | L220: =L52*Controls!$F$24 -> 0 | M220: =M52*Controls!$F$24 -> 0 | N220: =N52*Controls!$F$24 -> 0 | O220: =O52*Controls!$F$24 -> 0 | P220: =P52*Controls!$F$24 -> 0 | Q220: =Q52*Controls!$F$24 -> 0 | R220: =R52*Controls!$F$24 -> 0 | S220: =S52*Controls!$F$24 -> 0 | T220: =T52*Controls!$F$24 -> 0 | U220: =U52*Controls!$F$24 -> 0 | V220: =V52*Controls!$F$24 -> 0 | W220: =W52*Controls!$F$24 -> 0 | X220: =X52*Controls!$F$24 -> 0 | Y220: =Y52*Controls!$F$24 -> 0 | Z220: =Z52*Controls!$F$24 -> 0 | AA220: =AA52*Controls!$F$24 -> 0 | AB220: =AB52*Controls!$F$24 -> 0 | AC220: =AC52*Controls!$F$24 -> 0 | AD220: =AD52*Controls!$F$24 -> 0 | AE220: =AE52*Controls!$F$24 -> 0 | AF220: =AF52*Controls!$F$24 -> 0 | AG220: =AG52*Controls!$F$24 -> 0 | AH220: =AH52*Controls!$F$24 -> 0 | AI220: =AI52*Controls!$F$24 -> 0 | AJ220: =AJ52*Controls!$F$24 -> 0 | AK220: =AK52*Controls!$F$24 -> 0 | AL220: =AL52*Controls!$F$24 -> 0 | AM220: =AM52*Controls!$F$24 -> 0 | AN220: =AN52*Controls!$F$24 -> 0 | AO220: =AO52*Controls!$F$24 -> 0 | AP220: =AP52*Controls!$F$24 -> 0 | AQ220: =AQ52*Controls!$F$24 -> 0 | AR220: =AR52*Controls!$F$24 -> 0 | AS220: =AS52*Controls!$F$24 -> 0 | AT220: =AT52*Controls!$F$24 -> 0 | AU220: =AU52*Controls!$F$24 -> 0 | AV220: =AV52*Controls!$F$24 -> 0 | AW220: =AW52*Controls!$F$24 -> 0 | AX220: =AX52*Controls!$F$24 -> 0 | AY220: =AY52*Controls!$F$24 -> 0 | AZ220: =AZ52*Controls!$F$24 -> 0 | BA220: =BA52*Controls!$F$24 -> 0 | BB220: =BB52*Controls!$F$24 -> 0 | BC220: =BC52*Controls!$F$24 -> 0 | BD220: =BD52*Controls!$F$24 -> 0 | BE220: =BE52*Controls!$F$24 -> 0 | BF220: =BF52*Controls!$F$24 -> 0 | BG220: =BG52*Controls!$F$24 -> 0
